Workbook

Sheet اطلاعات
A1: شماره فاکتور | B1: تاریخ فاکتور | C1: کد کالا | D1: تعداد | E1: شماره پروانه گمرکی | F1: شماره کوتاژ | G1: تاریخ کوتاژ | H1: کد گمرک اظهار | I1: نوع ارز | J1: مجموع ارزش ارزی | K1: مجموع وزن | L1: نرخ برابری ارز | M1: مبلغ کل کالا/خدمت ریالی | N1: وزن خالص (کیلوگرم) | O1: کد طرف حساب | P1: ارزی پیشنهادی | Q1: مبلغ ریالی پیشنهادی | R1: اختلاف وزن | S1: خطا در ستون m | T1: اختلاف | U1: براساس فاکتور باید ستونها f-g-h-i-j-k-l با هم برابر باشند | V1: خطاها
A2: 470006795843 | B2: 1404/08/20 | C2: 4155371 | D2: 23,200 | E2: 15203 | F2: 795843 | G2: 1404/08/20 | H2: 15203 | I2: USD | J2: 9929 | K2: 23200 | L2: 704204 | M2: 6992041516 | N2: 23200 | P2: =IF($A2="","", IF($M2="","", ROUND(IFERROR($M2/$L2,0),0) + IF( ROW()= LOOKUP( 2, 1/( ($A$2:$A$20=$A2)* (IFERROR($M$2:$M$20/$L$2:$L$20,0)= _xlfn.AGGREGATE(14,6, IFERROR($M$2:$M$20/$L$2:$L$20,0)/($A$2:$A$20=$A2), 1) ) ), ROW($A$2:$A$20) ), VALUE( SUBSTITUTE( SUBSTITUTE( SUBSTITUTE( INDEX($J$2:$J$20,MATCH($A2,$A$2:$A$20,0)), "٬",""), ",",""), "٫",".") ) - SUMPRODUCT( ROUND(IFERROR($M$2:$M$20/$L$2:$L$20,0),0)* --($A$2:$A$20=$A2) ), 0 ) ) ) -> 9929 | Q2: =IF($A2="","", _xlfn.LET( _xlpm.calc, P2*L2, _xlpm.real, M2, _xlpm.diffPct, IF(_xlpm.real=0,"",ABS(_xlpm.calc-_xlpm.real)/_xlpm.real), IF(_xlpm.diffPct>0.01, "⚠️ اعداد شما از واقعیت تفاوت معنادار دارد", ROUND(_xlpm.calc,0) ) ) ) -> 6992041516 | R2: =IF($A2="","", _xlfn.LET( _xlpm.ktxt, TRIM(SUBSTITUTE(SUBSTITUTE($K2,CHAR(160),"")," ","")), _xlpm.k, IF(_xlpm.ktxt="","", VALUE( SUBSTITUTE( SUBSTITUTE( SUBSTITUTE(_xlpm.ktxt,"٬",""), ",",""), "٫",".") ) ), _xlpm.sumN, SUMIF($F:$F,$F2,$N:$N), _xlpm.diff, IF(OR(_xlpm.k="",_xlpm.sumN=""),"",_xlpm.sumN-_xlpm.k), _xlpm.msgSumN, IF(OR(_xlpm.k="",_xlpm.sumN=""),"", IF(ROUND(_xlpm.diff,0)=0,"", "جمع N = " & TEXT(_xlpm.sumN,"#,##0") & " | K = " & TEXT(_xlpm.k,"#,##0") & " | اختلاف = " & TEXT(_xlpm.diff,"#,##0") ) ), _xlfn.TEXTJOIN(" | ",TRUE, _xlpm.msgSumN, IF($J2="","", IF( IFERROR( ABS( VALUE(SUBSTITUTE(SUBSTITUTE(SUBSTITUTE(TRIM($J2),"٬",""),",",""),"٫",".")) - ROUND(VALUE(SUBSTITUTE(SUBSTITUTE(SUBSTITUTE(TRIM($J2),"٬",""),",",""),"٫",".")),4) )>0.000000001, FALSE), "خطا: J بیش از ۴ رقم اعشار دارد","") ), IF($K2="","", IF( IFERROR( MOD(VALUE(SUBSTITUTE(SUBSTITUTE(SUBSTITUTE(TRIM($K2),"٬",""),",",""),"٫",".")),1)<>0, FALSE), "خطا: K (مجموع وزن خالص) اعشاری است","") ), IF($L2="","", IF( IFERROR( MOD(VALUE(SUBSTITUTE(SUBSTITUTE(SUBSTITUTE(TRIM($L2),"٬",""),",",""),"٫",".")),1)<>0, FALSE), "خطا: L (نرخ برابری ارز) اعشاری است","") ), IF($M2="","", IF( IFERROR( MOD(VALUE(SUBSTITUTE(SUBSTITUTE(SUBSTITUTE(TRIM($M2),"٬",""),",",""),"٫",".")),1)<>0, FALSE), "خطا: M اعشاری است","") ), IF($N2="","", IF( IFERROR( MOD(VALUE(SUBSTITUTE(SUBSTITUTE(SUBSTITUTE(TRIM($N2),"٬",""),",",""),"٫",".")),1)<>0, FALSE), "خطا: N (وزن خالص) اعشاری است","") ) ) ) ) ->  | S2: =IF($A2="","", _xlfn.LET( _xlpm.mtxt,TRIM($M2), _xlpm.ltxt,TRIM($L2), _xlpm.m,IF(_xlpm.mtxt="","",VALUE(SUBSTITUTE(SUBSTITUTE(SUBSTITUTE(SUBSTITUTE(_xlpm.mtxt,"٬",""),",",""),"٫","."),CHAR(160),""))), _xlpm.l,IF(_xlpm.ltxt="","",VALUE(SUBSTITUTE(SUBSTITUTE(SUBSTITUTE(SUBSTITUTE(_xlpm.ltxt,"٬",""),",",""),"٫","."),CHAR(160),""))), _xlpm.ratio,IF(OR(_xlpm.m="",_xlpm.l="",_xlpm.l=0),"",_xlpm.m/_xlpm.l), _xlpm.diff,IF(_xlpm.ratio="","",ABS(_xlpm.ratio-ROUND(_xlpm.ratio,4))), IF(OR(_xlpm.ratio="",_xlpm.diff<=0.000000001),"","تقسیم M بر L نباید بیشتر از 4 رقم اعشار باشد") ) ) ->  | T2: =IF($A2="","", IF(ROW()<>ROW(INDEX($A$2:$A$20,MATCH($A2,$A$2:$A$20,0))),"", IF( ROUND( VALUE( SUBSTITUTE( SUBSTITUTE( SUBSTITUTE( INDEX($J$2:$J$20,MATCH($A2,$A$2:$A$20,0)), "٬",""), ",",""), "٫",".") )*10000,0) <> ROUND( SUMPRODUCT( ($A$2:$A$20=$A2)* ROUND( IFERROR( VALUE(SUBSTITUTE(SUBSTITUTE(SUBSTITUTE($M$2:$M$20,"٬",""),",",""),"٫","."))/ VALUE(SUBSTITUTE(SUBSTITUTE(SUBSTITUTE($L$2:$L$20,"٬",""),",",""),"٫",".")), 0), 4) )*10000,0), "اختلاف معادل " & TEXT( ROUND( ( VALUE( SUBSTITUTE( SUBSTITUTE( SUBSTITUTE( INDEX($J$2:$J$20,MATCH($A2,$A$2:$A$20,0)), "٬",""), ",",""), "٫",".") ) - SUMPRODUCT( ($A$2:$A$20=$A2)* ROUND( IFERROR( VALUE(SUBSTITUTE(SUBSTITUTE(SUBSTITUTE($M$2:$M$20,"٬",""),",",""),"٫","."))/ VALUE(SUBSTITUTE(SUBSTITUTE(SUBSTITUTE($L$2:$L$20,"٬",""),",",""),"٫",".")), 0), 4) ) )* VALUE( SUBSTITUTE( SUBSTITUTE( SUBSTITUTE( INDEX($L$2:$L$20,MATCH($A2,$A$2:$A$20,0)), "٬",""), ",",""), "٫",".") ), 0 ), "#,##0" ) & " ریال", "" ) ) ) ->  | U2: =IF($A2="","", MID( IF($B2="","", IF(TRIM($B2)<>TRIM(INDEX($B$2:$B$20,MATCH($A2,$A$2:$A$20,0))), " | خطا در ستون B","") ) & IF($F2="","", IF( OR( TRIM($F2)<>TRIM(INDEX($F$2:$F$20,MATCH($A2,$A$2:$A$20,0))), TRIM($A2)<>TRIM(IFERROR(INDEX($A$2:$A$20,MATCH($F2,$F$2:$F$20,0)),"")) ), " | خطا در ستون F","") ) & IF($G2="","", IF(TRIM($G2)<>TRIM(INDEX($G$2:$G$20,MATCH($A2,$A$2:$A$20,0))), " | خطا در ستون G","") ) & IF($H2="","", IF(TRIM($H2)<>TRIM(INDEX($H$2:$H$20,MATCH($A2,$A$2:$A$20,0))), " | خطا در ستون H","") ) & IF($I2="","", IF(TRIM($I2)<>TRIM(INDEX($I$2:$I$20,MATCH($A2,$A$2:$A$20,0))), " | خطا در ستون I","") ) & IF($J2="","", IF(TRIM($J2)<>TRIM(INDEX($J$2:$J$20,MATCH($A2,$A$2:$A$20,0))), " | خطا در ستون J","") ) & IF($K2="","", IF(TRIM($K2)<>TRIM(INDEX($K$2:$K$20,MATCH($A2,$A$2:$A$20,0))), " | خطا در ستون K","") ) & IF($L2="","", IF(TRIM($L2)<>TRIM(INDEX($L$2:$L$20,MATCH($A2,$A$2:$A$20,0))), " | خطا در ستون L","") ),4,1000) ) -> 
A3: 470006796725 | B3: 1404/08/20 | C3: 4155371 | D3: 23,200 | E3: 15203 | F3: 796725 | G3: 1404/08/20 | H3: 15203 | I3: USD | J3: 9929 | K3: 23200 | L3: 702967 | M3: 6979759343 | N3: 23200 | P3: =IF($A3="","", IF($M3="","", ROUND(IFERROR($M3/$L3,0),0) + IF( ROW()= LOOKUP( 2, 1/( ($A$2:$A$20=$A3)* (IFERROR($M$2:$M$20/$L$2:$L$20,0)= _xlfn.AGGREGATE(14,6, IFERROR($M$2:$M$20/$L$2:$L$20,0)/($A$2:$A$20=$A3), 1) ) ), ROW($A$2:$A$20) ), VALUE( SUBSTITUTE( SUBSTITUTE( SUBSTITUTE( INDEX($J$2:$J$20,MATCH($A3,$A$2:$A$20,0)), "٬",""), ",",""), "٫",".") ) - SUMPRODUCT( ROUND(IFERROR($M$2:$M$20/$L$2:$L$20,0),0)* --($A$2:$A$20=$A3) ), 0 ) ) ) -> 9929 | Q3: =IF($A3="","", _xlfn.LET( _xlpm.calc, P3*L3, _xlpm.real, M3, _xlpm.diffPct, IF(_xlpm.real=0,"",ABS(_xlpm.calc-_xlpm.real)/_xlpm.real), IF(_xlpm.diffPct>0.01, "⚠️ اعداد شما از واقعیت تفاوت معنادار دارد", ROUND(_xlpm.calc,0) ) ) ) -> 6979759343 | R3: =IF($A3="","", _xlfn.LET( _xlpm.ktxt, TRIM(SUBSTITUTE(SUBSTITUTE($K3,CHAR(160),"")," ","")), _xlpm.k, IF(_xlpm.ktxt="","", VALUE( SUBSTITUTE( SUBSTITUTE( SUBSTITUTE(_xlpm.ktxt,"٬",""), ",",""), "٫",".") ) ), _xlpm.sumN, SUMIF($F:$F,$F3,$N:$N), _xlpm.diff, IF(OR(_xlpm.k="",_xlpm.sumN=""),"",_xlpm.sumN-_xlpm.k), _xlpm.msgSumN, IF(OR(_xlpm.k="",_xlpm.sumN=""),"", IF(ROUND(_xlpm.diff,0)=0,"", "جمع N = " & TEXT(_xlpm.sumN,"#,##0") & " | K = " & TEXT(_xlpm.k,"#,##0") & " | اختلاف = " & TEXT(_xlpm.diff,"#,##0") ) ), _xlfn.TEXTJOIN(" | ",TRUE, _xlpm.msgSumN, IF($J3="","", IF( IFERROR( ABS( VALUE(SUBSTITUTE(SUBSTITUTE(SUBSTITUTE(TRIM($J3),"٬",""),",",""),"٫",".")) - ROUND(VALUE(SUBSTITUTE(SUBSTITUTE(SUBSTITUTE(TRIM($J3),"٬",""),",",""),"٫",".")),4) )>0.000000001, FALSE), "خطا: J بیش از ۴ رقم اعشار دارد","") ), IF($K3="","", IF( IFERROR( MOD(VALUE(SUBSTITUTE(SUBSTITUTE(SUBSTITUTE(TRIM($K3),"٬",""),",",""),"٫",".")),1)<>0, FALSE), "خطا: K (مجموع وزن خالص) اعشاری است","") ), IF($L3="","", IF( IFERROR( MOD(VALUE(SUBSTITUTE(SUBSTITUTE(SUBSTITUTE(TRIM($L3),"٬",""),",",""),"٫",".")),1)<>0, FALSE), "خطا: L (نرخ برابری ارز) اعشاری است","") ), IF($M3="","", IF( IFERROR( MOD(VALUE(SUBSTITUTE(SUBSTITUTE(SUBSTITUTE(TRIM($M3),"٬",""),",",""),"٫",".")),1)<>0, FALSE), "خطا: M اعشاری است","") ), IF($N3="","", IF( IFERROR( MOD(VALUE(SUBSTITUTE(SUBSTITUTE(SUBSTITUTE(TRIM($N3),"٬",""),",",""),"٫",".")),1)<>0, FALSE), "خطا: N (وزن خالص) اعشاری است","") ) ) ) ) ->  | S3: =IF($A3="","", _xlfn.LET( _xlpm.mtxt,TRIM($M3), _xlpm.ltxt,TRIM($L3), _xlpm.m,IF(_xlpm.mtxt="","",VALUE(SUBSTITUTE(SUBSTITUTE(SUBSTITUTE(SUBSTITUTE(_xlpm.mtxt,"٬",""),",",""),"٫","."),CHAR(160),""))), _xlpm.l,IF(_xlpm.ltxt="","",VALUE(SUBSTITUTE(SUBSTITUTE(SUBSTITUTE(SUBSTITUTE(_xlpm.ltxt,"٬",""),",",""),"٫","."),CHAR(160),""))), _xlpm.ratio,IF(OR(_xlpm.m="",_xlpm.l="",_xlpm.l=0),"",_xlpm.m/_xlpm.l), _xlpm.diff,IF(_xlpm.ratio="","",ABS(_xlpm.ratio-ROUND(_xlpm.ratio,4))), IF(OR(_xlpm.ratio="",_xlpm.diff<=0.000000001),"","تقسیم M بر L نباید بیشتر از 4 رقم اعشار باشد") ) ) ->  | T3: =IF($A3="","", IF(ROW()<>ROW(INDEX($A$2:$A$20,MATCH($A3,$A$2:$A$20,0))),"", IF( ROUND( VALUE( SUBSTITUTE( SUBSTITUTE( SUBSTITUTE( INDEX($J$2:$J$20,MATCH($A3,$A$2:$A$20,0)), "٬",""), ",",""), "٫",".") )*10000,0) <> ROUND( SUMPRODUCT( ($A$2:$A$20=$A3)* ROUND( IFERROR( VALUE(SUBSTITUTE(SUBSTITUTE(SUBSTITUTE($M$2:$M$20,"٬",""),",",""),"٫","."))/ VALUE(SUBSTITUTE(SUBSTITUTE(SUBSTITUTE($L$2:$L$20,"٬",""),",",""),"٫",".")), 0), 4) )*10000,0), "اختلاف معادل " & TEXT( ROUND( ( VALUE( SUBSTITUTE( SUBSTITUTE( SUBSTITUTE( INDEX($J$2:$J$20,MATCH($A3,$A$2:$A$20,0)), "٬",""), ",",""), "٫",".") ) - SUMPRODUCT( ($A$2:$A$20=$A3)* ROUND( IFERROR( VALUE(SUBSTITUTE(SUBSTITUTE(SUBSTITUTE($M$2:$M$20,"٬",""),",",""),"٫","."))/ VALUE(SUBSTITUTE(SUBSTITUTE(SUBSTITUTE($L$2:$L$20,"٬",""),",",""),"٫",".")), 0), 4) ) )* VALUE( SUBSTITUTE( SUBSTITUTE( SUBSTITUTE( INDEX($L$2:$L$20,MATCH($A3,$A$2:$A$20,0)), "٬",""), ",",""), "٫",".") ), 0 ), "#,##0" ) & " ریال", "" ) ) ) ->  | U3: =IF($A3="","", MID( IF($B3="","", IF(TRIM($B3)<>TRIM(INDEX($B$2:$B$20,MATCH($A3,$A$2:$A$20,0))), " | خطا در ستون B","") ) & IF($F3="","", IF( OR( TRIM($F3)<>TRIM(INDEX($F$2:$F$20,MATCH($A3,$A$2:$A$20,0))), TRIM($A3)<>TRIM(IFERROR(INDEX($A$2:$A$20,MATCH($F3,$F$2:$F$20,0)),"")) ), " | خطا در ستون F","") ) & IF($G3="","", IF(TRIM($G3)<>TRIM(INDEX($G$2:$G$20,MATCH($A3,$A$2:$A$20,0))), " | خطا در ستون G","") ) & IF($H3="","", IF(TRIM($H3)<>TRIM(INDEX($H$2:$H$20,MATCH($A3,$A$2:$A$20,0))), " | خطا در ستون H","") ) & IF($I3="","", IF(TRIM($I3)<>TRIM(INDEX($I$2:$I$20,MATCH($A3,$A$2:$A$20,0))), " | خطا در ستون I","") ) & IF($J3="","", IF(TRIM($J3)<>TRIM(INDEX($J$2:$J$20,MATCH($A3,$A$2:$A$20,0))), " | خطا در ستون J","") ) & IF($K3="","", IF(TRIM($K3)<>TRIM(INDEX($K$2:$K$20,MATCH($A3,$A$2:$A$20,0))), " | خطا در ستون K","") ) & IF($L3="","", IF(TRIM($L3)<>TRIM(INDEX($L$2:$L$20,MATCH($A3,$A$2:$A$20,0))), " | خطا در ستون L","") ),4,1000) ) -> 
A4: 470006797758 | B4: 1404/08/20 | C4: 4155371 | D4: 23,200 | E4: 15203 | F4: 797758 | G4: 1404/08/20 | H4: 15203 | I4: USD | J4: 29787 | K4: 69600 | L4: 704090 | M4: 6990909610 | N4: 23884 | P4: =IF($A4="","", IF($M4="","", ROUND(IFERROR($M4/$L4,0),0) + IF( ROW()= LOOKUP( 2, 1/( ($A$2:$A$20=$A4)* (IFERROR($M$2:$M$20/$L$2:$L$20,0)= _xlfn.AGGREGATE(14,6, IFERROR($M$2:$M$20/$L$2:$L$20,0)/($A$2:$A$20=$A4), 1) ) ), ROW($A$2:$A$20) ), VALUE( SUBSTITUTE( SUBSTITUTE( SUBSTITUTE( INDEX($J$2:$J$20,MATCH($A4,$A$2:$A$20,0)), "٬",""), ",",""), "٫",".") ) - SUMPRODUCT( ROUND(IFERROR($M$2:$M$20/$L$2:$L$20,0),0)* --($A$2:$A$20=$A4) ), 0 ) ) ) -> 9929 | Q4: =IF($A4="","", _xlfn.LET( _xlpm.calc, P4*L4, _xlpm.real, M4, _xlpm.diffPct, IF(_xlpm.real=0,"",ABS(_xlpm.calc-_xlpm.real)/_xlpm.real), IF(_xlpm.diffPct>0.01, "⚠️ اعداد شما از واقعیت تفاوت معنادار دارد", ROUND(_xlpm.calc,0) ) ) ) -> 6990909610 | R4: =IF($A4="","", _xlfn.LET( _xlpm.ktxt, TRIM(SUBSTITUTE(SUBSTITUTE($K4,CHAR(160),"")," ","")), _xlpm.k, IF(_xlpm.ktxt="","", VALUE( SUBSTITUTE( SUBSTITUTE( SUBSTITUTE(_xlpm.ktxt,"٬",""), ",",""), "٫",".") ) ), _xlpm.sumN, SUMIF($F:$F,$F4,$N:$N), _xlpm.diff, IF(OR(_xlpm.k="",_xlpm.sumN=""),"",_xlpm.sumN-_xlpm.k), _xlpm.msgSumN, IF(OR(_xlpm.k="",_xlpm.sumN=""),"", IF(ROUND(_xlpm.diff,0)=0,"", "جمع N = " & TEXT(_xlpm.sumN,"#,##0") & " | K = " & TEXT(_xlpm.k,"#,##0") & " | اختلاف = " & TEXT(_xlpm.diff,"#,##0") ) ), _xlfn.TEXTJOIN(" | ",TRUE, _xlpm.msgSumN, IF($J4="","", IF( IFERROR( ABS( VALUE(SUBSTITUTE(SUBSTITUTE(SUBSTITUTE(TRIM($J4),"٬",""),",",""),"٫",".")) - ROUND(VALUE(SUBSTITUTE(SUBSTITUTE(SUBSTITUTE(TRIM($J4),"٬",""),",",""),"٫",".")),4) )>0.000000001, FALSE), "خطا: J بیش از ۴ رقم اعشار دارد","") ), IF($K4="","", IF( IFERROR( MOD(VALUE(SUBSTITUTE(SUBSTITUTE(SUBSTITUTE(TRIM($K4),"٬",""),",",""),"٫",".")),1)<>0, FALSE), "خطا: K (مجموع وزن خالص) اعشاری است","") ), IF($L4="","", IF( IFERROR( MOD(VALUE(SUBSTITUTE(SUBSTITUTE(SUBSTITUTE(TRIM($L4),"٬",""),",",""),"٫",".")),1)<>0, FALSE), "خطا: L (نرخ برابری ارز) اعشاری است","") ), IF($M4="","", IF( IFERROR( MOD(VALUE(SUBSTITUTE(SUBSTITUTE(SUBSTITUTE(TRIM($M4),"٬",""),",",""),"٫",".")),1)<>0, FALSE), "خطا: M اعشاری است","") ), IF($N4="","", IF( IFERROR( MOD(VALUE(SUBSTITUTE(SUBSTITUTE(SUBSTITUTE(TRIM($N4),"٬",""),",",""),"٫",".")),1)<>0, FALSE), "خطا: N (وزن خالص) اعشاری است","") ) ) ) ) ->  | S4: =IF($A4="","", _xlfn.LET( _xlpm.mtxt,TRIM($M4), _xlpm.ltxt,TRIM($L4), _xlpm.m,IF(_xlpm.mtxt="","",VALUE(SUBSTITUTE(SUBSTITUTE(SUBSTITUTE(SUBSTITUTE(_xlpm.mtxt,"٬",""),",",""),"٫","."),CHAR(160),""))), _xlpm.l,IF(_xlpm.ltxt="","",VALUE(SUBSTITUTE(SUBSTITUTE(SUBSTITUTE(SUBSTITUTE(_xlpm.ltxt,"٬",""),",",""),"٫","."),CHAR(160),""))), _xlpm.ratio,IF(OR(_xlpm.m="",_xlpm.l="",_xlpm.l=0),"",_xlpm.m/_xlpm.l), _xlpm.diff,IF(_xlpm.ratio="","",ABS(_xlpm.ratio-ROUND(_xlpm.ratio,4))), IF(OR(_xlpm.ratio="",_xlpm.diff<=0.000000001),"","تقسیم M بر L نباید بیشتر از 4 رقم اعشار باشد") ) ) ->  | T4: =IF($A4="","", IF(ROW()<>ROW(INDEX($A$2:$A$20,MATCH($A4,$A$2:$A$20,0))),"", IF( ROUND( VALUE( SUBSTITUTE( SUBSTITUTE( SUBSTITUTE( INDEX($J$2:$J$20,MATCH($A4,$A$2:$A$20,0)), "٬",""), ",",""), "٫",".") )*10000,0) <> ROUND( SUMPRODUCT( ($A$2:$A$20=$A4)* ROUND( IFERROR( VALUE(SUBSTITUTE(SUBSTITUTE(SUBSTITUTE($M$2:$M$20,"٬",""),",",""),"٫","."))/ VALUE(SUBSTITUTE(SUBSTITUTE(SUBSTITUTE($L$2:$L$20,"٬",""),",",""),"٫",".")), 0), 4) )*10000,0), "اختلاف معادل " & TEXT( ROUND( ( VALUE( SUBSTITUTE( SUBSTITUTE( SUBSTITUTE( INDEX($J$2:$J$20,MATCH($A4,$A$2:$A$20,0)), "٬",""), ",",""), "٫",".") ) - SUMPRODUCT( ($A$2:$A$20=$A4)* ROUND( IFERROR( VALUE(SUBSTITUTE(SUBSTITUTE(SUBSTITUTE($M$2:$M$20,"٬",""),",",""),"٫","."))/ VALUE(SUBSTITUTE(SUBSTITUTE(SUBSTITUTE($L$2:$L$20,"٬",""),",",""),"٫",".")), 0), 4) ) )* VALUE( SUBSTITUTE( SUBSTITUTE( SUBSTITUTE( INDEX($L$2:$L$20,MATCH($A4,$A$2:$A$20,0)), "٬",""), ",",""), "٫",".") ), 0 ), "#,##0" ) & " ریال", "" ) ) ) ->  | U4: =IF($A4="","", MID( IF($B4="","", IF(TRIM($B4)<>TRIM(INDEX($B$2:$B$20,MATCH($A4,$A$2:$A$20,0))), " | خطا در ستون B","") ) & IF($F4="","", IF( OR( TRIM($F4)<>TRIM(INDEX($F$2:$F$20,MATCH($A4,$A$2:$A$20,0))), TRIM($A4)<>TRIM(IFERROR(INDEX($A$2:$A$20,MATCH($F4,$F$2:$F$20,0)),"")) ), " | خطا در ستون F","") ) & IF($G4="","", IF(TRIM($G4)<>TRIM(INDEX($G$2:$G$20,MATCH($A4,$A$2:$A$20,0))), " | خطا در ستون G","") ) & IF($H4="","", IF(TRIM($H4)<>TRIM(INDEX($H$2:$H$20,MATCH($A4,$A$2:$A$20,0))), " | خطا در ستون H","") ) & IF($I4="","", IF(TRIM($I4)<>TRIM(INDEX($I$2:$I$20,MATCH($A4,$A$2:$A$20,0))), " | خطا در ستون I","") ) & IF($J4="","", IF(TRIM($J4)<>TRIM(INDEX($J$2:$J$20,MATCH($A4,$A$2:$A$20,0))), " | خطا در ستون J","") ) & IF($K4="","", IF(TRIM($K4)<>TRIM(INDEX($K$2:$K$20,MATCH($A4,$A$2:$A$20,0))), " | خطا در ستون K","") ) & IF($L4="","", IF(TRIM($L4)<>TRIM(INDEX($L$2:$L$20,MATCH($A4,$A$2:$A$20,0))), " | خطا در ستون L","") ),4,1000) ) -> 
A5: 470006797758 | B5: 1404/08/20 | C5: 4155371 | D5: 23,200 | E5: 15203 | F5: 797758 | G5: 1404/08/20 | H5: 15203 | I5: USD | J5: 29787 | K5: 69600 | L5: 704090 | M5: 6990909610 | N5: 22832 | P5: =IF($A5="","", IF($M5="","", ROUND(IFERROR($M5/$L5,0),0) + IF( ROW()= LOOKUP( 2, 1/( ($A$2:$A$20=$A5)* (IFERROR($M$2:$M$20/$L$2:$L$20,0)= _xlfn.AGGREGATE(14,6, IFERROR($M$2:$M$20/$L$2:$L$20,0)/($A$2:$A$20=$A5), 1) ) ), ROW($A$2:$A$20) ), VALUE( SUBSTITUTE( SUBSTITUTE( SUBSTITUTE( INDEX($J$2:$J$20,MATCH($A5,$A$2:$A$20,0)), "٬",""), ",",""), "٫",".") ) - SUMPRODUCT( ROUND(IFERROR($M$2:$M$20/$L$2:$L$20,0),0)* --($A$2:$A$20=$A5) ), 0 ) ) ) -> 9929 | Q5: =IF($A5="","", _xlfn.LET( _xlpm.calc, P5*L5, _xlpm.real, M5, _xlpm.diffPct, IF(_xlpm.real=0,"",ABS(_xlpm.calc-_xlpm.real)/_xlpm.real), IF(_xlpm.diffPct>0.01, "⚠️ اعداد شما از واقعیت تفاوت معنادار دارد", ROUND(_xlpm.calc,0) ) ) ) -> 6990909610 | R5: =IF($A5="","", _xlfn.LET( _xlpm.ktxt, TRIM(SUBSTITUTE(SUBSTITUTE($K5,CHAR(160),"")," ","")), _xlpm.k, IF(_xlpm.ktxt="","", VALUE( SUBSTITUTE( SUBSTITUTE( SUBSTITUTE(_xlpm.ktxt,"٬",""), ",",""), "٫",".") ) ), _xlpm.sumN, SUMIF($F:$F,$F5,$N:$N), _xlpm.diff, IF(OR(_xlpm.k="",_xlpm.sumN=""),"",_xlpm.sumN-_xlpm.k), _xlpm.msgSumN, IF(OR(_xlpm.k="",_xlpm.sumN=""),"", IF(ROUND(_xlpm.diff,0)=0,"", "جمع N = " & TEXT(_xlpm.sumN,"#,##0") & " | K = " & TEXT(_xlpm.k,"#,##0") & " | اختلاف = " & TEXT(_xlpm.diff,"#,##0") ) ), _xlfn.TEXTJOIN(" | ",TRUE, _xlpm.msgSumN, IF($J5="","", IF( IFERROR( ABS( VALUE(SUBSTITUTE(SUBSTITUTE(SUBSTITUTE(TRIM($J5),"٬",""),",",""),"٫",".")) - ROUND(VALUE(SUBSTITUTE(SUBSTITUTE(SUBSTITUTE(TRIM($J5),"٬",""),",",""),"٫",".")),4) )>0.000000001, FALSE), "خطا: J بیش از ۴ رقم اعشار دارد","") ), IF($K5="","", IF( IFERROR( MOD(VALUE(SUBSTITUTE(SUBSTITUTE(SUBSTITUTE(TRIM($K5),"٬",""),",",""),"٫",".")),1)<>0, FALSE), "خطا: K (مجموع وزن خالص) اعشاری است","") ), IF($L5="","", IF( IFERROR( MOD(VALUE(SUBSTITUTE(SUBSTITUTE(SUBSTITUTE(TRIM($L5),"٬",""),",",""),"٫",".")),1)<>0, FALSE), "خطا: L (نرخ برابری ارز) اعشاری است","") ), IF($M5="","", IF( IFERROR( MOD(VALUE(SUBSTITUTE(SUBSTITUTE(SUBSTITUTE(TRIM($M5),"٬",""),",",""),"٫",".")),1)<>0, FALSE), "خطا: M اعشاری است","") ), IF($N5="","", IF( IFERROR( MOD(VALUE(SUBSTITUTE(SUBSTITUTE(SUBSTITUTE(TRIM($N5),"٬",""),",",""),"٫",".")),1)<>0, FALSE), "خطا: N (وزن خالص) اعشاری است","") ) ) ) ) ->  | S5: =IF($A5="","", _xlfn.LET( _xlpm.mtxt,TRIM($M5), _xlpm.ltxt,TRIM($L5), _xlpm.m,IF(_xlpm.mtxt="","",VALUE(SUBSTITUTE(SUBSTITUTE(SUBSTITUTE(SUBSTITUTE(_xlpm.mtxt,"٬",""),",",""),"٫","."),CHAR(160),""))), _xlpm.l,IF(_xlpm.ltxt="","",VALUE(SUBSTITUTE(SUBSTITUTE(SUBSTITUTE(SUBSTITUTE(_xlpm.ltxt,"٬",""),",",""),"٫","."),CHAR(160),""))), _xlpm.ratio,IF(OR(_xlpm.m="",_xlpm.l="",_xlpm.l=0),"",_xlpm.m/_xlpm.l), _xlpm.diff,IF(_xlpm.ratio="","",ABS(_xlpm.ratio-ROUND(_xlpm.ratio,4))), IF(OR(_xlpm.ratio="",_xlpm.diff<=0.000000001),"","تقسیم M بر L نباید بیشتر از 4 رقم اعشار باشد") ) ) ->  | T5: =IF($A5="","", IF(ROW()<>ROW(INDEX($A$2:$A$20,MATCH($A5,$A$2:$A$20,0))),"", IF( ROUND( VALUE( SUBSTITUTE( SUBSTITUTE( SUBSTITUTE( INDEX($J$2:$J$20,MATCH($A5,$A$2:$A$20,0)), "٬",""), ",",""), "٫",".") )*10000,0) <> ROUND( SUMPRODUCT( ($A$2:$A$20=$A5)* ROUND( IFERROR( VALUE(SUBSTITUTE(SUBSTITUTE(SUBSTITUTE($M$2:$M$20,"٬",""),",",""),"٫","."))/ VALUE(SUBSTITUTE(SUBSTITUTE(SUBSTITUTE($L$2:$L$20,"٬",""),",",""),"٫",".")), 0), 4) )*10000,0), "اختلاف معادل " & TEXT( ROUND( ( VALUE( SUBSTITUTE( SUBSTITUTE( SUBSTITUTE( INDEX($J$2:$J$20,MATCH($A5,$A$2:$A$20,0)), "٬",""), ",",""), "٫",".") ) - SUMPRODUCT( ($A$2:$A$20=$A5)* ROUND( IFERROR( VALUE(SUBSTITUTE(SUBSTITUTE(SUBSTITUTE($M$2:$M$20,"٬",""),",",""),"٫","."))/ VALUE(SUBSTITUTE(SUBSTITUTE(SUBSTITUTE($L$2:$L$20,"٬",""),",",""),"٫",".")), 0), 4) ) )* VALUE( SUBSTITUTE( SUBSTITUTE( SUBSTITUTE( INDEX($L$2:$L$20,MATCH($A5,$A$2:$A$20,0)), "٬",""), ",",""), "٫",".") ), 0 ), "#,##0" ) & " ریال", "" ) ) ) ->  | U5: =IF($A5="","", MID( IF($B5="","", IF(TRIM($B5)<>TRIM(INDEX($B$2:$B$20,MATCH($A5,$A$2:$A$20,0))), " | خطا در ستون B","") ) & IF($F5="","", IF( OR( TRIM($F5)<>TRIM(INDEX($F$2:$F$20,MATCH($A5,$A$2:$A$20,0))), TRIM($A5)<>TRIM(IFERROR(INDEX($A$2:$A$20,MATCH($F5,$F$2:$F$20,0)),"")) ), " | خطا در ستون F","") ) & IF($G5="","", IF(TRIM($G5)<>TRIM(INDEX($G$2:$G$20,MATCH($A5,$A$2:$A$20,0))), " | خطا در ستون G","") ) & IF($H5="","", IF(TRIM($H5)<>TRIM(INDEX($H$2:$H$20,MATCH($A5,$A$2:$A$20,0))), " | خطا در ستون H","") ) & IF($I5="","", IF(TRIM($I5)<>TRIM(INDEX($I$2:$I$20,MATCH($A5,$A$2:$A$20,0))), " | خطا در ستون I","") ) & IF($J5="","", IF(TRIM($J5)<>TRIM(INDEX($J$2:$J$20,MATCH($A5,$A$2:$A$20,0))), " | خطا در ستون J","") ) & IF($K5="","", IF(TRIM($K5)<>TRIM(INDEX($K$2:$K$20,MATCH($A5,$A$2:$A$20,0))), " | خطا در ستون K","") ) & IF($L5="","", IF(TRIM($L5)<>TRIM(INDEX($L$2:$L$20,MATCH($A5,$A$2:$A$20,0))), " | خطا در ستون L","") ),4,1000) ) -> 
A6: 470006797758 | B6: 1404/08/20 | C6: 4155371 | D6: 23,200 | E6: 15203 | F6: 797758 | G6: 1404/08/20 | H6: 15203 | I6: USD | J6: 29787 | K6: 69600 | L6: 704090 | M6: 6990909610 | N6: 22884 | P6: =IF($A6="","", IF($M6="","", ROUND(IFERROR($M6/$L6,0),0) + IF( ROW()= LOOKUP( 2, 1/( ($A$2:$A$20=$A6)* (IFERROR($M$2:$M$20/$L$2:$L$20,0)= _xlfn.AGGREGATE(14,6, IFERROR($M$2:$M$20/$L$2:$L$20,0)/($A$2:$A$20=$A6), 1) ) ), ROW($A$2:$A$20) ), VALUE( SUBSTITUTE( SUBSTITUTE( SUBSTITUTE( INDEX($J$2:$J$20,MATCH($A6,$A$2:$A$20,0)), "٬",""), ",",""), "٫",".") ) - SUMPRODUCT( ROUND(IFERROR($M$2:$M$20/$L$2:$L$20,0),0)* --($A$2:$A$20=$A6) ), 0 ) ) ) -> 9929 | Q6: =IF($A6="","", _xlfn.LET( _xlpm.calc, P6*L6, _xlpm.real, M6, _xlpm.diffPct, IF(_xlpm.real=0,"",ABS(_xlpm.calc-_xlpm.real)/_xlpm.real), IF(_xlpm.diffPct>0.01, "⚠️ اعداد شما از واقعیت تفاوت معنادار دارد", ROUND(_xlpm.calc,0) ) ) ) -> 6990909610 | R6: =IF($A6="","", _xlfn.LET( _xlpm.ktxt, TRIM(SUBSTITUTE(SUBSTITUTE($K6,CHAR(160),"")," ","")), _xlpm.k, IF(_xlpm.ktxt="","", VALUE( SUBSTITUTE( SUBSTITUTE( SUBSTITUTE(_xlpm.ktxt,"٬",""), ",",""), "٫",".") ) ), _xlpm.sumN, SUMIF($F:$F,$F6,$N:$N), _xlpm.diff, IF(OR(_xlpm.k="",_xlpm.sumN=""),"",_xlpm.sumN-_xlpm.k), _xlpm.msgSumN, IF(OR(_xlpm.k="",_xlpm.sumN=""),"", IF(ROUND(_xlpm.diff,0)=0,"", "جمع N = " & TEXT(_xlpm.sumN,"#,##0") & " | K = " & TEXT(_xlpm.k,"#,##0") & " | اختلاف = " & TEXT(_xlpm.diff,"#,##0") ) ), _xlfn.TEXTJOIN(" | ",TRUE, _xlpm.msgSumN, IF($J6="","", IF( IFERROR( ABS( VALUE(SUBSTITUTE(SUBSTITUTE(SUBSTITUTE(TRIM($J6),"٬",""),",",""),"٫",".")) - ROUND(VALUE(SUBSTITUTE(SUBSTITUTE(SUBSTITUTE(TRIM($J6),"٬",""),",",""),"٫",".")),4) )>0.000000001, FALSE), "خطا: J بیش از ۴ رقم اعشار دارد","") ), IF($K6="","", IF( IFERROR( MOD(VALUE(SUBSTITUTE(SUBSTITUTE(SUBSTITUTE(TRIM($K6),"٬",""),",",""),"٫",".")),1)<>0, FALSE), "خطا: K (مجموع وزن خالص) اعشاری است","") ), IF($L6="","", IF( IFERROR( MOD(VALUE(SUBSTITUTE(SUBSTITUTE(SUBSTITUTE(TRIM($L6),"٬",""),",",""),"٫",".")),1)<>0, FALSE), "خطا: L (نرخ برابری ارز) اعشاری است","") ), IF($M6="","", IF( IFERROR( MOD(VALUE(SUBSTITUTE(SUBSTITUTE(SUBSTITUTE(TRIM($M6),"٬",""),",",""),"٫",".")),1)<>0, FALSE), "خطا: M اعشاری است","") ), IF($N6="","", IF( IFERROR( MOD(VALUE(SUBSTITUTE(SUBSTITUTE(SUBSTITUTE(TRIM($N6),"٬",""),",",""),"٫",".")),1)<>0, FALSE), "خطا: N (وزن خالص) اعشاری است","") ) ) ) ) ->  | S6: =IF($A6="","", _xlfn.LET( _xlpm.mtxt,TRIM($M6), _xlpm.ltxt,TRIM($L6), _xlpm.m,IF(_xlpm.mtxt="","",VALUE(SUBSTITUTE(SUBSTITUTE(SUBSTITUTE(SUBSTITUTE(_xlpm.mtxt,"٬",""),",",""),"٫","."),CHAR(160),""))), _xlpm.l,IF(_xlpm.ltxt="","",VALUE(SUBSTITUTE(SUBSTITUTE(SUBSTITUTE(SUBSTITUTE(_xlpm.ltxt,"٬",""),",",""),"٫","."),CHAR(160),""))), _xlpm.ratio,IF(OR(_xlpm.m="",_xlpm.l="",_xlpm.l=0),"",_xlpm.m/_xlpm.l), _xlpm.diff,IF(_xlpm.ratio="","",ABS(_xlpm.ratio-ROUND(_xlpm.ratio,4))), IF(OR(_xlpm.ratio="",_xlpm.diff<=0.000000001),"","تقسیم M بر L نباید بیشتر از 4 رقم اعشار باشد") ) ) ->  | T6: =IF($A6="","", IF(ROW()<>ROW(INDEX($A$2:$A$20,MATCH($A6,$A$2:$A$20,0))),"", IF( ROUND( VALUE( SUBSTITUTE( SUBSTITUTE( SUBSTITUTE( INDEX($J$2:$J$20,MATCH($A6,$A$2:$A$20,0)), "٬",""), ",",""), "٫",".") )*10000,0) <> ROUND( SUMPRODUCT( ($A$2:$A$20=$A6)* ROUND( IFERROR( VALUE(SUBSTITUTE(SUBSTITUTE(SUBSTITUTE($M$2:$M$20,"٬",""),",",""),"٫","."))/ VALUE(SUBSTITUTE(SUBSTITUTE(SUBSTITUTE($L$2:$L$20,"٬",""),",",""),"٫",".")), 0), 4) )*10000,0), "اختلاف معادل " & TEXT( ROUND( ( VALUE( SUBSTITUTE( SUBSTITUTE( SUBSTITUTE( INDEX($J$2:$J$20,MATCH($A6,$A$2:$A$20,0)), "٬",""), ",",""), "٫",".") ) - SUMPRODUCT( ($A$2:$A$20=$A6)* ROUND( IFERROR( VALUE(SUBSTITUTE(SUBSTITUTE(SUBSTITUTE($M$2:$M$20,"٬",""),",",""),"٫","."))/ VALUE(SUBSTITUTE(SUBSTITUTE(SUBSTITUTE($L$2:$L$20,"٬",""),",",""),"٫",".")), 0), 4) ) )* VALUE( SUBSTITUTE( SUBSTITUTE( SUBSTITUTE( INDEX($L$2:$L$20,MATCH($A6,$A$2:$A$20,0)), "٬",""), ",",""), "٫",".") ), 0 ), "#,##0" ) & " ریال", "" ) ) ) ->  | U6: =IF($A6="","", MID( IF($B6="","", IF(TRIM($B6)<>TRIM(INDEX($B$2:$B$20,MATCH($A6,$A$2:$A$20,0))), " | خطا در ستون B","") ) & IF($F6="","", IF( OR( TRIM($F6)<>TRIM(INDEX($F$2:$F$20,MATCH($A6,$A$2:$A$20,0))), TRIM($A6)<>TRIM(IFERROR(INDEX($A$2:$A$20,MATCH($F6,$F$2:$F$20,0)),"")) ), " | خطا در ستون F","") ) & IF($G6="","", IF(TRIM($G6)<>TRIM(INDEX($G$2:$G$20,MATCH($A6,$A$2:$A$20,0))), " | خطا در ستون G","") ) & IF($H6="","", IF(TRIM($H6)<>TRIM(INDEX($H$2:$H$20,MATCH($A6,$A$2:$A$20,0))), " | خطا در ستون H","") ) & IF($I6="","", IF(TRIM($I6)<>TRIM(INDEX($I$2:$I$20,MATCH($A6,$A$2:$A$20,0))), " | خطا در ستون I","") ) & IF($J6="","", IF(TRIM($J6)<>TRIM(INDEX($J$2:$J$20,MATCH($A6,$A$2:$A$20,0))), " | خطا در ستون J","") ) & IF($K6="","", IF(TRIM($K6)<>TRIM(INDEX($K$2:$K$20,MATCH($A6,$A$2:$A$20,0))), " | خطا در ستون K","") ) & IF($L6="","", IF(TRIM($L6)<>TRIM(INDEX($L$2:$L$20,MATCH($A6,$A$2:$A$20,0))), " | خطا در ستون L","") ),4,1000) ) -> 
A7: 470006798518 | B7: 1404/08/20 | C7: 4155371 | D7: 23,200 | E7: 15203 | F7: 798518 | G7: 1404/08/20 | H7: 15203 | I7: USD | J7: 19858 | K7: 46400 | L7: 704177 | M7: 6991773433 | N7: 23200 | P7: =IF($A7="","", IF($M7="","", ROUND(IFERROR($M7/$L7,0),0) + IF( ROW()= LOOKUP( 2, 1/( ($A$2:$A$20=$A7)* (IFERROR($M$2:$M$20/$L$2:$L$20,0)= _xlfn.AGGREGATE(14,6, IFERROR($M$2:$M$20/$L$2:$L$20,0)/($A$2:$A$20=$A7), 1) ) ), ROW($A$2:$A$20) ), VALUE( SUBSTITUTE( SUBSTITUTE( SUBSTITUTE( INDEX($J$2:$J$20,MATCH($A7,$A$2:$A$20,0)), "٬",""), ",",""), "٫",".") ) - SUMPRODUCT( ROUND(IFERROR($M$2:$M$20/$L$2:$L$20,0),0)* --($A$2:$A$20=$A7) ), 0 ) ) ) -> 9929 | Q7: =IF($A7="","", _xlfn.LET( _xlpm.calc, P7*L7, _xlpm.real, M7, _xlpm.diffPct, IF(_xlpm.real=0,"",ABS(_xlpm.calc-_xlpm.real)/_xlpm.real), IF(_xlpm.diffPct>0.01, "⚠️ اعداد شما از واقعیت تفاوت معنادار دارد", ROUND(_xlpm.calc,0) ) ) ) -> 6991773433 | R7: =IF($A7="","", _xlfn.LET( _xlpm.ktxt, TRIM(SUBSTITUTE(SUBSTITUTE($K7,CHAR(160),"")," ","")), _xlpm.k, IF(_xlpm.ktxt="","", VALUE( SUBSTITUTE( SUBSTITUTE( SUBSTITUTE(_xlpm.ktxt,"٬",""), ",",""), "٫",".") ) ), _xlpm.sumN, SUMIF($F:$F,$F7,$N:$N), _xlpm.diff, IF(OR(_xlpm.k="",_xlpm.sumN=""),"",_xlpm.sumN-_xlpm.k), _xlpm.msgSumN, IF(OR(_xlpm.k="",_xlpm.sumN=""),"", IF(ROUND(_xlpm.diff,0)=0,"", "جمع N = " & TEXT(_xlpm.sumN,"#,##0") & " | K = " & TEXT(_xlpm.k,"#,##0") & " | اختلاف = " & TEXT(_xlpm.diff,"#,##0") ) ), _xlfn.TEXTJOIN(" | ",TRUE, _xlpm.msgSumN, IF($J7="","", IF( IFERROR( ABS( VALUE(SUBSTITUTE(SUBSTITUTE(SUBSTITUTE(TRIM($J7),"٬",""),",",""),"٫",".")) - ROUND(VALUE(SUBSTITUTE(SUBSTITUTE(SUBSTITUTE(TRIM($J7),"٬",""),",",""),"٫",".")),4) )>0.000000001, FALSE), "خطا: J بیش از ۴ رقم اعشار دارد","") ), IF($K7="","", IF( IFERROR( MOD(VALUE(SUBSTITUTE(SUBSTITUTE(SUBSTITUTE(TRIM($K7),"٬",""),",",""),"٫",".")),1)<>0, FALSE), "خطا: K (مجموع وزن خالص) اعشاری است","") ), IF($L7="","", IF( IFERROR( MOD(VALUE(SUBSTITUTE(SUBSTITUTE(SUBSTITUTE(TRIM($L7),"٬",""),",",""),"٫",".")),1)<>0, FALSE), "خطا: L (نرخ برابری ارز) اعشاری است","") ), IF($M7="","", IF( IFERROR( MOD(VALUE(SUBSTITUTE(SUBSTITUTE(SUBSTITUTE(TRIM($M7),"٬",""),",",""),"٫",".")),1)<>0, FALSE), "خطا: M اعشاری است","") ), IF($N7="","", IF( IFERROR( MOD(VALUE(SUBSTITUTE(SUBSTITUTE(SUBSTITUTE(TRIM($N7),"٬",""),",",""),"٫",".")),1)<>0, FALSE), "خطا: N (وزن خالص) اعشاری است","") ) ) ) ) ->  | S7: =IF($A7="","", _xlfn.LET( _xlpm.mtxt,TRIM($M7), _xlpm.ltxt,TRIM($L7), _xlpm.m,IF(_xlpm.mtxt="","",VALUE(SUBSTITUTE(SUBSTITUTE(SUBSTITUTE(SUBSTITUTE(_xlpm.mtxt,"٬",""),",",""),"٫","."),CHAR(160),""))), _xlpm.l,IF(_xlpm.ltxt="","",VALUE(SUBSTITUTE(SUBSTITUTE(SUBSTITUTE(SUBSTITUTE(_xlpm.ltxt,"٬",""),",",""),"٫","."),CHAR(160),""))), _xlpm.ratio,IF(OR(_xlpm.m="",_xlpm.l="",_xlpm.l=0),"",_xlpm.m/_xlpm.l), _xlpm.diff,IF(_xlpm.ratio="","",ABS(_xlpm.ratio-ROUND(_xlpm.ratio,4))), IF(OR(_xlpm.ratio="",_xlpm.diff<=0.000000001),"","تقسیم M بر L نباید بیشتر از 4 رقم اعشار باشد") ) ) ->  | T7: =IF($A7="","", IF(ROW()<>ROW(INDEX($A$2:$A$20,MATCH($A7,$A$2:$A$20,0))),"", IF( ROUND( VALUE( SUBSTITUTE( SUBSTITUTE( SUBSTITUTE( INDEX($J$2:$J$20,MATCH($A7,$A$2:$A$20,0)), "٬",""), ",",""), "٫",".") )*10000,0) <> ROUND( SUMPRODUCT( ($A$2:$A$20=$A7)* ROUND( IFERROR( VALUE(SUBSTITUTE(SUBSTITUTE(SUBSTITUTE($M$2:$M$20,"٬",""),",",""),"٫","."))/ VALUE(SUBSTITUTE(SUBSTITUTE(SUBSTITUTE($L$2:$L$20,"٬",""),",",""),"٫",".")), 0), 4) )*10000,0), "اختلاف معادل " & TEXT( ROUND( ( VALUE( SUBSTITUTE( SUBSTITUTE( SUBSTITUTE( INDEX($J$2:$J$20,MATCH($A7,$A$2:$A$20,0)), "٬",""), ",",""), "٫",".") ) - SUMPRODUCT( ($A$2:$A$20=$A7)* ROUND( IFERROR( VALUE(SUBSTITUTE(SUBSTITUTE(SUBSTITUTE($M$2:$M$20,"٬",""),",",""),"٫","."))/ VALUE(SUBSTITUTE(SUBSTITUTE(SUBSTITUTE($L$2:$L$20,"٬",""),",",""),"٫",".")), 0), 4) ) )* VALUE( SUBSTITUTE( SUBSTITUTE( SUBSTITUTE( INDEX($L$2:$L$20,MATCH($A7,$A$2:$A$20,0)), "٬",""), ",",""), "٫",".") ), 0 ), "#,##0" ) & " ریال", "" ) ) ) ->  | U7: =IF($A7="","", MID( IF($B7="","", IF(TRIM($B7)<>TRIM(INDEX($B$2:$B$20,MATCH($A7,$A$2:$A$20,0))), " | خطا در ستون B","") ) & IF($F7="","", IF( OR( TRIM($F7)<>TRIM(INDEX($F$2:$F$20,MATCH($A7,$A$2:$A$20,0))), TRIM($A7)<>TRIM(IFERROR(INDEX($A$2:$A$20,MATCH($F7,$F$2:$F$20,0)),"")) ), " | خطا در ستون F","") ) & IF($G7="","", IF(TRIM($G7)<>TRIM(INDEX($G$2:$G$20,MATCH($A7,$A$2:$A$20,0))), " | خطا در ستون G","") ) & IF($H7="","", IF(TRIM($H7)<>TRIM(INDEX($H$2:$H$20,MATCH($A7,$A$2:$A$20,0))), " | خطا در ستون H","") ) & IF($I7="","", IF(TRIM($I7)<>TRIM(INDEX($I$2:$I$20,MATCH($A7,$A$2:$A$20,0))), " | خطا در ستون I","") ) & IF($J7="","", IF(TRIM($J7)<>TRIM(INDEX($J$2:$J$20,MATCH($A7,$A$2:$A$20,0))), " | خطا در ستون J","") ) & IF($K7="","", IF(TRIM($K7)<>TRIM(INDEX($K$2:$K$20,MATCH($A7,$A$2:$A$20,0))), " | خطا در ستون K","") ) & IF($L7="","", IF(TRIM($L7)<>TRIM(INDEX($L$2:$L$20,MATCH($A7,$A$2:$A$20,0))), " | خطا در ستون L","") ),4,1000) ) -> 
A8: 470006798518 | B8: 1404/08/20 | C8: 4155371 | D8: 23,200 | E8: 15203 | F8: 798518 | G8: 1404/08/20 | H8: 15203 | I8: USD | J8: 19858 | K8: 46400 | L8: 704177 | M8: 6991773433 | N8: 23200 | P8: =IF($A8="","", IF($M8="","", ROUND(IFERROR($M8/$L8,0),0) + IF( ROW()= LOOKUP( 2, 1/( ($A$2:$A$20=$A8)* (IFERROR($M$2:$M$20/$L$2:$L$20,0)= _xlfn.AGGREGATE(14,6, IFERROR($M$2:$M$20/$L$2:$L$20,0)/($A$2:$A$20=$A8), 1) ) ), ROW($A$2:$A$20) ), VALUE( SUBSTITUTE( SUBSTITUTE( SUBSTITUTE( INDEX($J$2:$J$20,MATCH($A8,$A$2:$A$20,0)), "٬",""), ",",""), "٫",".") ) - SUMPRODUCT( ROUND(IFERROR($M$2:$M$20/$L$2:$L$20,0),0)* --($A$2:$A$20=$A8) ), 0 ) ) ) -> 9929 | Q8: =IF($A8="","", _xlfn.LET( _xlpm.calc, P8*L8, _xlpm.real, M8, _xlpm.diffPct, IF(_xlpm.real=0,"",ABS(_xlpm.calc-_xlpm.real)/_xlpm.real), IF(_xlpm.diffPct>0.01, "⚠️ اعداد شما از واقعیت تفاوت معنادار دارد", ROUND(_xlpm.calc,0) ) ) ) -> 6991773433 | R8: =IF($A8="","", _xlfn.LET( _xlpm.ktxt, TRIM(SUBSTITUTE(SUBSTITUTE($K8,CHAR(160),"")," ","")), _xlpm.k, IF(_xlpm.ktxt="","", VALUE( SUBSTITUTE( SUBSTITUTE( SUBSTITUTE(_xlpm.ktxt,"٬",""), ",",""), "٫",".") ) ), _xlpm.sumN, SUMIF($F:$F,$F8,$N:$N), _xlpm.diff, IF(OR(_xlpm.k="",_xlpm.sumN=""),"",_xlpm.sumN-_xlpm.k), _xlpm.msgSumN, IF(OR(_xlpm.k="",_xlpm.sumN=""),"", IF(ROUND(_xlpm.diff,0)=0,"", "جمع N = " & TEXT(_xlpm.sumN,"#,##0") & " | K = " & TEXT(_xlpm.k,"#,##0") & " | اختلاف = " & TEXT(_xlpm.diff,"#,##0") ) ), _xlfn.TEXTJOIN(" | ",TRUE, _xlpm.msgSumN, IF($J8="","", IF( IFERROR( ABS( VALUE(SUBSTITUTE(SUBSTITUTE(SUBSTITUTE(TRIM($J8),"٬",""),",",""),"٫",".")) - ROUND(VALUE(SUBSTITUTE(SUBSTITUTE(SUBSTITUTE(TRIM($J8),"٬",""),",",""),"٫",".")),4) )>0.000000001, FALSE), "خطا: J بیش از ۴ رقم اعشار دارد","") ), IF($K8="","", IF( IFERROR( MOD(VALUE(SUBSTITUTE(SUBSTITUTE(SUBSTITUTE(TRIM($K8),"٬",""),",",""),"٫",".")),1)<>0, FALSE), "خطا: K (مجموع وزن خالص) اعشاری است","") ), IF($L8="","", IF( IFERROR( MOD(VALUE(SUBSTITUTE(SUBSTITUTE(SUBSTITUTE(TRIM($L8),"٬",""),",",""),"٫",".")),1)<>0, FALSE), "خطا: L (نرخ برابری ارز) اعشاری است","") ), IF($M8="","", IF( IFERROR( MOD(VALUE(SUBSTITUTE(SUBSTITUTE(SUBSTITUTE(TRIM($M8),"٬",""),",",""),"٫",".")),1)<>0, FALSE), "خطا: M اعشاری است","") ), IF($N8="","", IF( IFERROR( MOD(VALUE(SUBSTITUTE(SUBSTITUTE(SUBSTITUTE(TRIM($N8),"٬",""),",",""),"٫",".")),1)<>0, FALSE), "خطا: N (وزن خالص) اعشاری است","") ) ) ) ) ->  | S8: =IF($A8="","", _xlfn.LET( _xlpm.mtxt,TRIM($M8), _xlpm.ltxt,TRIM($L8), _xlpm.m,IF(_xlpm.mtxt="","",VALUE(SUBSTITUTE(SUBSTITUTE(SUBSTITUTE(SUBSTITUTE(_xlpm.mtxt,"٬",""),",",""),"٫","."),CHAR(160),""))), _xlpm.l,IF(_xlpm.ltxt="","",VALUE(SUBSTITUTE(SUBSTITUTE(SUBSTITUTE(SUBSTITUTE(_xlpm.ltxt,"٬",""),",",""),"٫","."),CHAR(160),""))), _xlpm.ratio,IF(OR(_xlpm.m="",_xlpm.l="",_xlpm.l=0),"",_xlpm.m/_xlpm.l), _xlpm.diff,IF(_xlpm.ratio="","",ABS(_xlpm.ratio-ROUND(_xlpm.ratio,4))), IF(OR(_xlpm.ratio="",_xlpm.diff<=0.000000001),"","تقسیم M بر L نباید بیشتر از 4 رقم اعشار باشد") ) ) ->  | T8: =IF($A8="","", IF(ROW()<>ROW(INDEX($A$2:$A$20,MATCH($A8,$A$2:$A$20,0))),"", IF( ROUND( VALUE( SUBSTITUTE( SUBSTITUTE( SUBSTITUTE( INDEX($J$2:$J$20,MATCH($A8,$A$2:$A$20,0)), "٬",""), ",",""), "٫",".") )*10000,0) <> ROUND( SUMPRODUCT( ($A$2:$A$20=$A8)* ROUND( IFERROR( VALUE(SUBSTITUTE(SUBSTITUTE(SUBSTITUTE($M$2:$M$20,"٬",""),",",""),"٫","."))/ VALUE(SUBSTITUTE(SUBSTITUTE(SUBSTITUTE($L$2:$L$20,"٬",""),",",""),"٫",".")), 0), 4) )*10000,0), "اختلاف معادل " & TEXT( ROUND( ( VALUE( SUBSTITUTE( SUBSTITUTE( SUBSTITUTE( INDEX($J$2:$J$20,MATCH($A8,$A$2:$A$20,0)), "٬",""), ",",""), "٫",".") ) - SUMPRODUCT( ($A$2:$A$20=$A8)* ROUND( IFERROR( VALUE(SUBSTITUTE(SUBSTITUTE(SUBSTITUTE($M$2:$M$20,"٬",""),",",""),"٫","."))/ VALUE(SUBSTITUTE(SUBSTITUTE(SUBSTITUTE($L$2:$L$20,"٬",""),",",""),"٫",".")), 0), 4) ) )* VALUE( SUBSTITUTE( SUBSTITUTE( SUBSTITUTE( INDEX($L$2:$L$20,MATCH($A8,$A$2:$A$20,0)), "٬",""), ",",""), "٫",".") ), 0 ), "#,##0" ) & " ریال", "" ) ) ) ->  | U8: =IF($A8="","", MID( IF($B8="","", IF(TRIM($B8)<>TRIM(INDEX($B$2:$B$20,MATCH($A8,$A$2:$A$20,0))), " | خطا در ستون B","") ) & IF($F8="","", IF( OR( TRIM($F8)<>TRIM(INDEX($F$2:$F$20,MATCH($A8,$A$2:$A$20,0))), TRIM($A8)<>TRIM(IFERROR(INDEX($A$2:$A$20,MATCH($F8,$F$2:$F$20,0)),"")) ), " | خطا در ستون F","") ) & IF($G8="","", IF(TRIM($G8)<>TRIM(INDEX($G$2:$G$20,MATCH($A8,$A$2:$A$20,0))), " | خطا در ستون G","") ) & IF($H8="","", IF(TRIM($H8)<>TRIM(INDEX($H$2:$H$20,MATCH($A8,$A$2:$A$20,0))), " | خطا در ستون H","") ) & IF($I8="","", IF(TRIM($I8)<>TRIM(INDEX($I$2:$I$20,MATCH($A8,$A$2:$A$20,0))), " | خطا در ستون I","") ) & IF($J8="","", IF(TRIM($J8)<>TRIM(INDEX($J$2:$J$20,MATCH($A8,$A$2:$A$20,0))), " | خطا در ستون J","") ) & IF($K8="","", IF(TRIM($K8)<>TRIM(INDEX($K$2:$K$20,MATCH($A8,$A$2:$A$20,0))), " | خطا در ستون K","") ) & IF($L8="","", IF(TRIM($L8)<>TRIM(INDEX($L$2:$L$20,MATCH($A8,$A$2:$A$20,0))), " | خطا در ستون L","") ),4,1000) ) -> 
A9: 470006798873 | B9: 1404/08/20 | C9: 4155371 | D9: 23,200 | E9: 15203 | F9: 798873 | G9: 1404/08/20 | H9: 15203 | I9: USD | J9: 19858 | K9: 46400 | L9: 704177 | M9: 6991773433 | N9: 23200 | P9: =IF($A9="","", IF($M9="","", ROUND(IFERROR($M9/$L9,0),0) + IF( ROW()= LOOKUP( 2, 1/( ($A$2:$A$20=$A9)* (IFERROR($M$2:$M$20/$L$2:$L$20,0)= _xlfn.AGGREGATE(14,6, IFERROR($M$2:$M$20/$L$2:$L$20,0)/($A$2:$A$20=$A9), 1) ) ), ROW($A$2:$A$20) ), VALUE( SUBSTITUTE( SUBSTITUTE( SUBSTITUTE( INDEX($J$2:$J$20,MATCH($A9,$A$2:$A$20,0)), "٬",""), ",",""), "٫",".") ) - SUMPRODUCT( ROUND(IFERROR($M$2:$M$20/$L$2:$L$20,0),0)* --($A$2:$A$20=$A9) ), 0 ) ) ) -> 9929 | Q9: =IF($A9="","", _xlfn.LET( _xlpm.calc, P9*L9, _xlpm.real, M9, _xlpm.diffPct, IF(_xlpm.real=0,"",ABS(_xlpm.calc-_xlpm.real)/_xlpm.real), IF(_xlpm.diffPct>0.01, "⚠️ اعداد شما از واقعیت تفاوت معنادار دارد", ROUND(_xlpm.calc,0) ) ) ) -> 6991773433 | R9: =IF($A9="","", _xlfn.LET( _xlpm.ktxt, TRIM(SUBSTITUTE(SUBSTITUTE($K9,CHAR(160),"")," ","")), _xlpm.k, IF(_xlpm.ktxt="","", VALUE( SUBSTITUTE( SUBSTITUTE( SUBSTITUTE(_xlpm.ktxt,"٬",""), ",",""), "٫",".") ) ), _xlpm.sumN, SUMIF($F:$F,$F9,$N:$N), _xlpm.diff, IF(OR(_xlpm.k="",_xlpm.sumN=""),"",_xlpm.sumN-_xlpm.k), _xlpm.msgSumN, IF(OR(_xlpm.k="",_xlpm.sumN=""),"", IF(ROUND(_xlpm.diff,0)=0,"", "جمع N = " & TEXT(_xlpm.sumN,"#,##0") & " | K = " & TEXT(_xlpm.k,"#,##0") & " | اختلاف = " & TEXT(_xlpm.diff,"#,##0") ) ), _xlfn.TEXTJOIN(" | ",TRUE, _xlpm.msgSumN, IF($J9="","", IF( IFERROR( ABS( VALUE(SUBSTITUTE(SUBSTITUTE(SUBSTITUTE(TRIM($J9),"٬",""),",",""),"٫",".")) - ROUND(VALUE(SUBSTITUTE(SUBSTITUTE(SUBSTITUTE(TRIM($J9),"٬",""),",",""),"٫",".")),4) )>0.000000001, FALSE), "خطا: J بیش از ۴ رقم اعشار دارد","") ), IF($K9="","", IF( IFERROR( MOD(VALUE(SUBSTITUTE(SUBSTITUTE(SUBSTITUTE(TRIM($K9),"٬",""),",",""),"٫",".")),1)<>0, FALSE), "خطا: K (مجموع وزن خالص) اعشاری است","") ), IF($L9="","", IF( IFERROR( MOD(VALUE(SUBSTITUTE(SUBSTITUTE(SUBSTITUTE(TRIM($L9),"٬",""),",",""),"٫",".")),1)<>0, FALSE), "خطا: L (نرخ برابری ارز) اعشاری است","") ), IF($M9="","", IF( IFERROR( MOD(VALUE(SUBSTITUTE(SUBSTITUTE(SUBSTITUTE(TRIM($M9),"٬",""),",",""),"٫",".")),1)<>0, FALSE), "خطا: M اعشاری است","") ), IF($N9="","", IF( IFERROR( MOD(VALUE(SUBSTITUTE(SUBSTITUTE(SUBSTITUTE(TRIM($N9),"٬",""),",",""),"٫",".")),1)<>0, FALSE), "خطا: N (وزن خالص) اعشاری است","") ) ) ) ) ->  | S9: =IF($A9="","", _xlfn.LET( _xlpm.mtxt,TRIM($M9), _xlpm.ltxt,TRIM($L9), _xlpm.m,IF(_xlpm.mtxt="","",VALUE(SUBSTITUTE(SUBSTITUTE(SUBSTITUTE(SUBSTITUTE(_xlpm.mtxt,"٬",""),",",""),"٫","."),CHAR(160),""))), _xlpm.l,IF(_xlpm.ltxt="","",VALUE(SUBSTITUTE(SUBSTITUTE(SUBSTITUTE(SUBSTITUTE(_xlpm.ltxt,"٬",""),",",""),"٫","."),CHAR(160),""))), _xlpm.ratio,IF(OR(_xlpm.m="",_xlpm.l="",_xlpm.l=0),"",_xlpm.m/_xlpm.l), _xlpm.diff,IF(_xlpm.ratio="","",ABS(_xlpm.ratio-ROUND(_xlpm.ratio,4))), IF(OR(_xlpm.ratio="",_xlpm.diff<=0.000000001),"","تقسیم M بر L نباید بیشتر از 4 رقم اعشار باشد") ) ) ->  | T9: =IF($A9="","", IF(ROW()<>ROW(INDEX($A$2:$A$20,MATCH($A9,$A$2:$A$20,0))),"", IF( ROUND( VALUE( SUBSTITUTE( SUBSTITUTE( SUBSTITUTE( INDEX($J$2:$J$20,MATCH($A9,$A$2:$A$20,0)), "٬",""), ",",""), "٫",".") )*10000,0) <> ROUND( SUMPRODUCT( ($A$2:$A$20=$A9)* ROUND( IFERROR( VALUE(SUBSTITUTE(SUBSTITUTE(SUBSTITUTE($M$2:$M$20,"٬",""),",",""),"٫","."))/ VALUE(SUBSTITUTE(SUBSTITUTE(SUBSTITUTE($L$2:$L$20,"٬",""),",",""),"٫",".")), 0), 4) )*10000,0), "اختلاف معادل " & TEXT( ROUND( ( VALUE( SUBSTITUTE( SUBSTITUTE( SUBSTITUTE( INDEX($J$2:$J$20,MATCH($A9,$A$2:$A$20,0)), "٬",""), ",",""), "٫",".") ) - SUMPRODUCT( ($A$2:$A$20=$A9)* ROUND( IFERROR( VALUE(SUBSTITUTE(SUBSTITUTE(SUBSTITUTE($M$2:$M$20,"٬",""),",",""),"٫","."))/ VALUE(SUBSTITUTE(SUBSTITUTE(SUBSTITUTE($L$2:$L$20,"٬",""),",",""),"٫",".")), 0), 4) ) )* VALUE( SUBSTITUTE( SUBSTITUTE( SUBSTITUTE( INDEX($L$2:$L$20,MATCH($A9,$A$2:$A$20,0)), "٬",""), ",",""), "٫",".") ), 0 ), "#,##0" ) & " ریال", "" ) ) ) ->  | U9: =IF($A9="","", MID( IF($B9="","", IF(TRIM($B9)<>TRIM(INDEX($B$2:$B$20,MATCH($A9,$A$2:$A$20,0))), " | خطا در ستون B","") ) & IF($F9="","", IF( OR( TRIM($F9)<>TRIM(INDEX($F$2:$F$20,MATCH($A9,$A$2:$A$20,0))), TRIM($A9)<>TRIM(IFERROR(INDEX($A$2:$A$20,MATCH($F9,$F$2:$F$20,0)),"")) ), " | خطا در ستون F","") ) & IF($G9="","", IF(TRIM($G9)<>TRIM(INDEX($G$2:$G$20,MATCH($A9,$A$2:$A$20,0))), " | خطا در ستون G","") ) & IF($H9="","", IF(TRIM($H9)<>TRIM(INDEX($H$2:$H$20,MATCH($A9,$A$2:$A$20,0))), " | خطا در ستون H","") ) & IF($I9="","", IF(TRIM($I9)<>TRIM(INDEX($I$2:$I$20,MATCH($A9,$A$2:$A$20,0))), " | خطا در ستون I","") ) & IF($J9="","", IF(TRIM($J9)<>TRIM(INDEX($J$2:$J$20,MATCH($A9,$A$2:$A$20,0))), " | خطا در ستون J","") ) & IF($K9="","", IF(TRIM($K9)<>TRIM(INDEX($K$2:$K$20,MATCH($A9,$A$2:$A$20,0))), " | خطا در ستون K","") ) & IF($L9="","", IF(TRIM($L9)<>TRIM(INDEX($L$2:$L$20,MATCH($A9,$A$2:$A$20,0))), " | خطا در ستون L","") ),4,1000) ) -> 
A10: 470006798873 | B10: 1404/08/20 | C10: 4155371 | D10: 23,200 | E10: 15203 | F10: 798873 | G10: 1404/08/20 | H10: 15203 | I10: USD | J10: 19858 | K10: 46400 | L10: 704177 | M10: 6991773433 | N10: 23200 | P10: =IF($A10="","", IF($M10="","", ROUND(IFERROR($M10/$L10,0),0) + IF( ROW()= LOOKUP( 2, 1/( ($A$2:$A$20=$A10)* (IFERROR($M$2:$M$20/$L$2:$L$20,0)= _xlfn.AGGREGATE(14,6, IFERROR($M$2:$M$20/$L$2:$L$20,0)/($A$2:$A$20=$A10), 1) ) ), ROW($A$2:$A$20) ), VALUE( SUBSTITUTE( SUBSTITUTE( SUBSTITUTE( INDEX($J$2:$J$20,MATCH($A10,$A$2:$A$20,0)), "٬",""), ",",""), "٫",".") ) - SUMPRODUCT( ROUND(IFERROR($M$2:$M$20/$L$2:$L$20,0),0)* --($A$2:$A$20=$A10) ), 0 ) ) ) -> 9929 | Q10: =IF($A10="","", _xlfn.LET( _xlpm.calc, P10*L10, _xlpm.real, M10, _xlpm.diffPct, IF(_xlpm.real=0,"",ABS(_xlpm.calc-_xlpm.real)/_xlpm.real), IF(_xlpm.diffPct>0.01, "⚠️ اعداد شما از واقعیت تفاوت معنادار دارد", ROUND(_xlpm.calc,0) ) ) ) -> 6991773433 | R10: =IF($A10="","", _xlfn.LET( _xlpm.ktxt, TRIM(SUBSTITUTE(SUBSTITUTE($K10,CHAR(160),"")," ","")), _xlpm.k, IF(_xlpm.ktxt="","", VALUE( SUBSTITUTE( SUBSTITUTE( SUBSTITUTE(_xlpm.ktxt,"٬",""), ",",""), "٫",".") ) ), _xlpm.sumN, SUMIF($F:$F,$F10,$N:$N), _xlpm.diff, IF(OR(_xlpm.k="",_xlpm.sumN=""),"",_xlpm.sumN-_xlpm.k), _xlpm.msgSumN, IF(OR(_xlpm.k="",_xlpm.sumN=""),"", IF(ROUND(_xlpm.diff,0)=0,"", "جمع N = " & TEXT(_xlpm.sumN,"#,##0") & " | K = " & TEXT(_xlpm.k,"#,##0") & " | اختلاف = " & TEXT(_xlpm.diff,"#,##0") ) ), _xlfn.TEXTJOIN(" | ",TRUE, _xlpm.msgSumN, IF($J10="","", IF( IFERROR( ABS( VALUE(SUBSTITUTE(SUBSTITUTE(SUBSTITUTE(TRIM($J10),"٬",""),",",""),"٫",".")) - ROUND(VALUE(SUBSTITUTE(SUBSTITUTE(SUBSTITUTE(TRIM($J10),"٬",""),",",""),"٫",".")),4) )>0.000000001, FALSE), "خطا: J بیش از ۴ رقم اعشار دارد","") ), IF($K10="","", IF( IFERROR( MOD(VALUE(SUBSTITUTE(SUBSTITUTE(SUBSTITUTE(TRIM($K10),"٬",""),",",""),"٫",".")),1)<>0, FALSE), "خطا: K (مجموع وزن خالص) اعشاری است","") ), IF($L10="","", IF( IFERROR( MOD(VALUE(SUBSTITUTE(SUBSTITUTE(SUBSTITUTE(TRIM($L10),"٬",""),",",""),"٫",".")),1)<>0, FALSE), "خطا: L (نرخ برابری ارز) اعشاری است","") ), IF($M10="","", IF( IFERROR( MOD(VALUE(SUBSTITUTE(SUBSTITUTE(SUBSTITUTE(TRIM($M10),"٬",""),",",""),"٫",".")),1)<>0, FALSE), "خطا: M اعشاری است","") ), IF($N10="","", IF( IFERROR( MOD(VALUE(SUBSTITUTE(SUBSTITUTE(SUBSTITUTE(TRIM($N10),"٬",""),",",""),"٫",".")),1)<>0, FALSE), "خطا: N (وزن خالص) اعشاری است","") ) ) ) ) ->  | S10: =IF($A10="","", _xlfn.LET( _xlpm.mtxt,TRIM($M10), _xlpm.ltxt,TRIM($L10), _xlpm.m,IF(_xlpm.mtxt="","",VALUE(SUBSTITUTE(SUBSTITUTE(SUBSTITUTE(SUBSTITUTE(_xlpm.mtxt,"٬",""),",",""),"٫","."),CHAR(160),""))), _xlpm.l,IF(_xlpm.ltxt="","",VALUE(SUBSTITUTE(SUBSTITUTE(SUBSTITUTE(SUBSTITUTE(_xlpm.ltxt,"٬",""),",",""),"٫","."),CHAR(160),""))), _xlpm.ratio,IF(OR(_xlpm.m="",_xlpm.l="",_xlpm.l=0),"",_xlpm.m/_xlpm.l), _xlpm.diff,IF(_xlpm.ratio="","",ABS(_xlpm.ratio-ROUND(_xlpm.ratio,4))), IF(OR(_xlpm.ratio="",_xlpm.diff<=0.000000001),"","تقسیم M بر L نباید بیشتر از 4 رقم اعشار باشد") ) ) ->  | T10: =IF($A10="","", IF(ROW()<>ROW(INDEX($A$2:$A$20,MATCH($A10,$A$2:$A$20,0))),"", IF( ROUND( VALUE( SUBSTITUTE( SUBSTITUTE( SUBSTITUTE( INDEX($J$2:$J$20,MATCH($A10,$A$2:$A$20,0)), "٬",""), ",",""), "٫",".") )*10000,0) <> ROUND( SUMPRODUCT( ($A$2:$A$20=$A10)* ROUND( IFERROR( VALUE(SUBSTITUTE(SUBSTITUTE(SUBSTITUTE($M$2:$M$20,"٬",""),",",""),"٫","."))/ VALUE(SUBSTITUTE(SUBSTITUTE(SUBSTITUTE($L$2:$L$20,"٬",""),",",""),"٫",".")), 0), 4) )*10000,0), "اختلاف معادل " & TEXT( ROUND( ( VALUE( SUBSTITUTE( SUBSTITUTE( SUBSTITUTE( INDEX($J$2:$J$20,MATCH($A10,$A$2:$A$20,0)), "٬",""), ",",""), "٫",".") ) - SUMPRODUCT( ($A$2:$A$20=$A10)* ROUND( IFERROR( VALUE(SUBSTITUTE(SUBSTITUTE(SUBSTITUTE($M$2:$M$20,"٬",""),",",""),"٫","."))/ VALUE(SUBSTITUTE(SUBSTITUTE(SUBSTITUTE($L$2:$L$20,"٬",""),",",""),"٫",".")), 0), 4) ) )* VALUE( SUBSTITUTE( SUBSTITUTE( SUBSTITUTE( INDEX($L$2:$L$20,MATCH($A10,$A$2:$A$20,0)), "٬",""), ",",""), "٫",".") ), 0 ), "#,##0" ) & " ریال", "" ) ) ) ->  | U10: =IF($A10="","", MID( IF($B10="","", IF(TRIM($B10)<>TRIM(INDEX($B$2:$B$20,MATCH($A10,$A$2:$A$20,0))), " | خطا در ستون B","") ) & IF($F10="","", IF( OR( TRIM($F10)<>TRIM(INDEX($F$2:$F$20,MATCH($A10,$A$2:$A$20,0))), TRIM($A10)<>TRIM(IFERROR(INDEX($A$2:$A$20,MATCH($F10,$F$2:$F$20,0)),"")) ), " | خطا در ستون F","") ) & IF($G10="","", IF(TRIM($G10)<>TRIM(INDEX($G$2:$G$20,MATCH($A10,$A$2:$A$20,0))), " | خطا در ستون G","") ) & IF($H10="","", IF(TRIM($H10)<>TRIM(INDEX($H$2:$H$20,MATCH($A10,$A$2:$A$20,0))), " | خطا در ستون H","") ) & IF($I10="","", IF(TRIM($I10)<>TRIM(INDEX($I$2:$I$20,MATCH($A10,$A$2:$A$20,0))), " | خطا در ستون I","") ) & IF($J10="","", IF(TRIM($J10)<>TRIM(INDEX($J$2:$J$20,MATCH($A10,$A$2:$A$20,0))), " | خطا در ستون J","") ) & IF($K10="","", IF(TRIM($K10)<>TRIM(INDEX($K$2:$K$20,MATCH($A10,$A$2:$A$20,0))), " | خطا در ستون K","") ) & IF($L10="","", IF(TRIM($L10)<>TRIM(INDEX($L$2:$L$20,MATCH($A10,$A$2:$A$20,0))), " | خطا در ستون L","") ),4,1000) ) -> 
A11: 470006800623 | B11: 1404/08/20 | C11: 4155371 | D11: 23,200 | E11: 15203 | F11: 800623 | G11: 1404/08/20 | H11: 15203 | I11: USD | J11: 9929 | K11: 2320 | L11: 703763 | M11: 6987662827 | N11: 2320 | P11: =IF($A11="","", IF($M11="","", ROUND(IFERROR($M11/$L11,0),0) + IF( ROW()= LOOKUP( 2, 1/( ($A$2:$A$20=$A11)* (IFERROR($M$2:$M$20/$L$2:$L$20,0)= _xlfn.AGGREGATE(14,6, IFERROR($M$2:$M$20/$L$2:$L$20,0)/($A$2:$A$20=$A11), 1) ) ), ROW($A$2:$A$20) ), VALUE( SUBSTITUTE( SUBSTITUTE( SUBSTITUTE( INDEX($J$2:$J$20,MATCH($A11,$A$2:$A$20,0)), "٬",""), ",",""), "٫",".") ) - SUMPRODUCT( ROUND(IFERROR($M$2:$M$20/$L$2:$L$20,0),0)* --($A$2:$A$20=$A11) ), 0 ) ) ) -> 9929 | Q11: =IF($A11="","", _xlfn.LET( _xlpm.calc, P11*L11, _xlpm.real, M11, _xlpm.diffPct, IF(_xlpm.real=0,"",ABS(_xlpm.calc-_xlpm.real)/_xlpm.real), IF(_xlpm.diffPct>0.01, "⚠️ اعداد شما از واقعیت تفاوت معنادار دارد", ROUND(_xlpm.calc,0) ) ) ) -> 6987662827 | R11: =IF($A11="","", _xlfn.LET( _xlpm.ktxt, TRIM(SUBSTITUTE(SUBSTITUTE($K11,CHAR(160),"")," ","")), _xlpm.k, IF(_xlpm.ktxt="","", VALUE( SUBSTITUTE( SUBSTITUTE( SUBSTITUTE(_xlpm.ktxt,"٬",""), ",",""), "٫",".") ) ), _xlpm.sumN, SUMIF($F:$F,$F11,$N:$N), _xlpm.diff, IF(OR(_xlpm.k="",_xlpm.sumN=""),"",_xlpm.sumN-_xlpm.k), _xlpm.msgSumN, IF(OR(_xlpm.k="",_xlpm.sumN=""),"", IF(ROUND(_xlpm.diff,0)=0,"", "جمع N = " & TEXT(_xlpm.sumN,"#,##0") & " | K = " & TEXT(_xlpm.k,"#,##0") & " | اختلاف = " & TEXT(_xlpm.diff,"#,##0") ) ), _xlfn.TEXTJOIN(" | ",TRUE, _xlpm.msgSumN, IF($J11="","", IF( IFERROR( ABS( VALUE(SUBSTITUTE(SUBSTITUTE(SUBSTITUTE(TRIM($J11),"٬",""),",",""),"٫",".")) - ROUND(VALUE(SUBSTITUTE(SUBSTITUTE(SUBSTITUTE(TRIM($J11),"٬",""),",",""),"٫",".")),4) )>0.000000001, FALSE), "خطا: J بیش از ۴ رقم اعشار دارد","") ), IF($K11="","", IF( IFERROR( MOD(VALUE(SUBSTITUTE(SUBSTITUTE(SUBSTITUTE(TRIM($K11),"٬",""),",",""),"٫",".")),1)<>0, FALSE), "خطا: K (مجموع وزن خالص) اعشاری است","") ), IF($L11="","", IF( IFERROR( MOD(VALUE(SUBSTITUTE(SUBSTITUTE(SUBSTITUTE(TRIM($L11),"٬",""),",",""),"٫",".")),1)<>0, FALSE), "خطا: L (نرخ برابری ارز) اعشاری است","") ), IF($M11="","", IF( IFERROR( MOD(VALUE(SUBSTITUTE(SUBSTITUTE(SUBSTITUTE(TRIM($M11),"٬",""),",",""),"٫",".")),1)<>0, FALSE), "خطا: M اعشاری است","") ), IF($N11="","", IF( IFERROR( MOD(VALUE(SUBSTITUTE(SUBSTITUTE(SUBSTITUTE(TRIM($N11),"٬",""),",",""),"٫",".")),1)<>0, FALSE), "خطا: N (وزن خالص) اعشاری است","") ) ) ) ) ->  | S11: =IF($A11="","", _xlfn.LET( _xlpm.mtxt,TRIM($M11), _xlpm.ltxt,TRIM($L11), _xlpm.m,IF(_xlpm.mtxt="","",VALUE(SUBSTITUTE(SUBSTITUTE(SUBSTITUTE(SUBSTITUTE(_xlpm.mtxt,"٬",""),",",""),"٫","."),CHAR(160),""))), _xlpm.l,IF(_xlpm.ltxt="","",VALUE(SUBSTITUTE(SUBSTITUTE(SUBSTITUTE(SUBSTITUTE(_xlpm.ltxt,"٬",""),",",""),"٫","."),CHAR(160),""))), _xlpm.ratio,IF(OR(_xlpm.m="",_xlpm.l="",_xlpm.l=0),"",_xlpm.m/_xlpm.l), _xlpm.diff,IF(_xlpm.ratio="","",ABS(_xlpm.ratio-ROUND(_xlpm.ratio,4))), IF(OR(_xlpm.ratio="",_xlpm.diff<=0.000000001),"","تقسیم M بر L نباید بیشتر از 4 رقم اعشار باشد") ) ) ->  | T11: =IF($A11="","", IF(ROW()<>ROW(INDEX($A$2:$A$20,MATCH($A11,$A$2:$A$20,0))),"", IF( ROUND( VALUE( SUBSTITUTE( SUBSTITUTE( SUBSTITUTE( INDEX($J$2:$J$20,MATCH($A11,$A$2:$A$20,0)), "٬",""), ",",""), "٫",".") )*10000,0) <> ROUND( SUMPRODUCT( ($A$2:$A$20=$A11)* ROUND( IFERROR( VALUE(SUBSTITUTE(SUBSTITUTE(SUBSTITUTE($M$2:$M$20,"٬",""),",",""),"٫","."))/ VALUE(SUBSTITUTE(SUBSTITUTE(SUBSTITUTE($L$2:$L$20,"٬",""),",",""),"٫",".")), 0), 4) )*10000,0), "اختلاف معادل " & TEXT( ROUND( ( VALUE( SUBSTITUTE( SUBSTITUTE( SUBSTITUTE( INDEX($J$2:$J$20,MATCH($A11,$A$2:$A$20,0)), "٬",""), ",",""), "٫",".") ) - SUMPRODUCT( ($A$2:$A$20=$A11)* ROUND( IFERROR( VALUE(SUBSTITUTE(SUBSTITUTE(SUBSTITUTE($M$2:$M$20,"٬",""),",",""),"٫","."))/ VALUE(SUBSTITUTE(SUBSTITUTE(SUBSTITUTE($L$2:$L$20,"٬",""),",",""),"٫",".")), 0), 4) ) )* VALUE( SUBSTITUTE( SUBSTITUTE( SUBSTITUTE( INDEX($L$2:$L$20,MATCH($A11,$A$2:$A$20,0)), "٬",""), ",",""), "٫",".") ), 0 ), "#,##0" ) & " ریال", "" ) ) ) ->  | U11: =IF($A11="","", MID( IF($B11="","", IF(TRIM($B11)<>TRIM(INDEX($B$2:$B$20,MATCH($A11,$A$2:$A$20,0))), " | خطا در ستون B","") ) & IF($F11="","", IF( OR( TRIM($F11)<>TRIM(INDEX($F$2:$F$20,MATCH($A11,$A$2:$A$20,0))), TRIM($A11)<>TRIM(IFERROR(INDEX($A$2:$A$20,MATCH($F11,$F$2:$F$20,0)),"")) ), " | خطا در ستون F","") ) & IF($G11="","", IF(TRIM($G11)<>TRIM(INDEX($G$2:$G$20,MATCH($A11,$A$2:$A$20,0))), " | خطا در ستون G","") ) & IF($H11="","", IF(TRIM($H11)<>TRIM(INDEX($H$2:$H$20,MATCH($A11,$A$2:$A$20,0))), " | خطا در ستون H","") ) & IF($I11="","", IF(TRIM($I11)<>TRIM(INDEX($I$2:$I$20,MATCH($A11,$A$2:$A$20,0))), " | خطا در ستون I","") ) & IF($J11="","", IF(TRIM($J11)<>TRIM(INDEX($J$2:$J$20,MATCH($A11,$A$2:$A$20,0))), " | خطا در ستون J","") ) & IF($K11="","", IF(TRIM($K11)<>TRIM(INDEX($K$2:$K$20,MATCH($A11,$A$2:$A$20,0))), " | خطا در ستون K","") ) & IF($L11="","", IF(TRIM($L11)<>TRIM(INDEX($L$2:$L$20,MATCH($A11,$A$2:$A$20,0))), " | خطا در ستون L","") ),4,1000) ) -> 
A12: 470006802485 | B12: 1404/08/20 | C12: 4155371 | D12: 23,200 | E12: 15203 | F12: 802485 | G12: 1404/08/20 | H12: 15203 | I12: USD | J12: 39716 | K12: 92800 | L12: 702878 | M12: 6978875662 | N12: 23200 | P12: =IF($A12="","", IF($M12="","", ROUND(IFERROR($M12/$L12,0),0) + IF( ROW()= LOOKUP( 2, 1/( ($A$2:$A$20=$A12)* (IFERROR($M$2:$M$20/$L$2:$L$20,0)= _xlfn.AGGREGATE(14,6, IFERROR($M$2:$M$20/$L$2:$L$20,0)/($A$2:$A$20=$A12), 1) ) ), ROW($A$2:$A$20) ), VALUE( SUBSTITUTE( SUBSTITUTE( SUBSTITUTE( INDEX($J$2:$J$20,MATCH($A12,$A$2:$A$20,0)), "٬",""), ",",""), "٫",".") ) - SUMPRODUCT( ROUND(IFERROR($M$2:$M$20/$L$2:$L$20,0),0)* --($A$2:$A$20=$A12) ), 0 ) ) ) -> 9929 | Q12: =IF($A12="","", _xlfn.LET( _xlpm.calc, P12*L12, _xlpm.real, M12, _xlpm.diffPct, IF(_xlpm.real=0,"",ABS(_xlpm.calc-_xlpm.real)/_xlpm.real), IF(_xlpm.diffPct>0.01, "⚠️ اعداد شما از واقعیت تفاوت معنادار دارد", ROUND(_xlpm.calc,0) ) ) ) -> 6978875662 | R12: =IF($A12="","", _xlfn.LET( _xlpm.ktxt, TRIM(SUBSTITUTE(SUBSTITUTE($K12,CHAR(160),"")," ","")), _xlpm.k, IF(_xlpm.ktxt="","", VALUE( SUBSTITUTE( SUBSTITUTE( SUBSTITUTE(_xlpm.ktxt,"٬",""), ",",""), "٫",".") ) ), _xlpm.sumN, SUMIF($F:$F,$F12,$N:$N), _xlpm.diff, IF(OR(_xlpm.k="",_xlpm.sumN=""),"",_xlpm.sumN-_xlpm.k), _xlpm.msgSumN, IF(OR(_xlpm.k="",_xlpm.sumN=""),"", IF(ROUND(_xlpm.diff,0)=0,"", "جمع N = " & TEXT(_xlpm.sumN,"#,##0") & " | K = " & TEXT(_xlpm.k,"#,##0") & " | اختلاف = " & TEXT(_xlpm.diff,"#,##0") ) ), _xlfn.TEXTJOIN(" | ",TRUE, _xlpm.msgSumN, IF($J12="","", IF( IFERROR( ABS( VALUE(SUBSTITUTE(SUBSTITUTE(SUBSTITUTE(TRIM($J12),"٬",""),",",""),"٫",".")) - ROUND(VALUE(SUBSTITUTE(SUBSTITUTE(SUBSTITUTE(TRIM($J12),"٬",""),",",""),"٫",".")),4) )>0.000000001, FALSE), "خطا: J بیش از ۴ رقم اعشار دارد","") ), IF($K12="","", IF( IFERROR( MOD(VALUE(SUBSTITUTE(SUBSTITUTE(SUBSTITUTE(TRIM($K12),"٬",""),",",""),"٫",".")),1)<>0, FALSE), "خطا: K (مجموع وزن خالص) اعشاری است","") ), IF($L12="","", IF( IFERROR( MOD(VALUE(SUBSTITUTE(SUBSTITUTE(SUBSTITUTE(TRIM($L12),"٬",""),",",""),"٫",".")),1)<>0, FALSE), "خطا: L (نرخ برابری ارز) اعشاری است","") ), IF($M12="","", IF( IFERROR( MOD(VALUE(SUBSTITUTE(SUBSTITUTE(SUBSTITUTE(TRIM($M12),"٬",""),",",""),"٫",".")),1)<>0, FALSE), "خطا: M اعشاری است","") ), IF($N12="","", IF( IFERROR( MOD(VALUE(SUBSTITUTE(SUBSTITUTE(SUBSTITUTE(TRIM($N12),"٬",""),",",""),"٫",".")),1)<>0, FALSE), "خطا: N (وزن خالص) اعشاری است","") ) ) ) ) ->  | S12: =IF($A12="","", _xlfn.LET( _xlpm.mtxt,TRIM($M12), _xlpm.ltxt,TRIM($L12), _xlpm.m,IF(_xlpm.mtxt="","",VALUE(SUBSTITUTE(SUBSTITUTE(SUBSTITUTE(SUBSTITUTE(_xlpm.mtxt,"٬",""),",",""),"٫","."),CHAR(160),""))), _xlpm.l,IF(_xlpm.ltxt="","",VALUE(SUBSTITUTE(SUBSTITUTE(SUBSTITUTE(SUBSTITUTE(_xlpm.ltxt,"٬",""),",",""),"٫","."),CHAR(160),""))), _xlpm.ratio,IF(OR(_xlpm.m="",_xlpm.l="",_xlpm.l=0),"",_xlpm.m/_xlpm.l), _xlpm.diff,IF(_xlpm.ratio="","",ABS(_xlpm.ratio-ROUND(_xlpm.ratio,4))), IF(OR(_xlpm.ratio="",_xlpm.diff<=0.000000001),"","تقسیم M بر L نباید بیشتر از 4 رقم اعشار باشد") ) ) ->  | T12: =IF($A12="","", IF(ROW()<>ROW(INDEX($A$2:$A$20,MATCH($A12,$A$2:$A$20,0))),"", IF( ROUND( VALUE( SUBSTITUTE( SUBSTITUTE( SUBSTITUTE( INDEX($J$2:$J$20,MATCH($A12,$A$2:$A$20,0)), "٬",""), ",",""), "٫",".") )*10000,0) <> ROUND( SUMPRODUCT( ($A$2:$A$20=$A12)* ROUND( IFERROR( VALUE(SUBSTITUTE(SUBSTITUTE(SUBSTITUTE($M$2:$M$20,"٬",""),",",""),"٫","."))/ VALUE(SUBSTITUTE(SUBSTITUTE(SUBSTITUTE($L$2:$L$20,"٬",""),",",""),"٫",".")), 0), 4) )*10000,0), "اختلاف معادل " & TEXT( ROUND( ( VALUE( SUBSTITUTE( SUBSTITUTE( SUBSTITUTE( INDEX($J$2:$J$20,MATCH($A12,$A$2:$A$20,0)), "٬",""), ",",""), "٫",".") ) - SUMPRODUCT( ($A$2:$A$20=$A12)* ROUND( IFERROR( VALUE(SUBSTITUTE(SUBSTITUTE(SUBSTITUTE($M$2:$M$20,"٬",""),",",""),"٫","."))/ VALUE(SUBSTITUTE(SUBSTITUTE(SUBSTITUTE($L$2:$L$20,"٬",""),",",""),"٫",".")), 0), 4) ) )* VALUE( SUBSTITUTE( SUBSTITUTE( SUBSTITUTE( INDEX($L$2:$L$20,MATCH($A12,$A$2:$A$20,0)), "٬",""), ",",""), "٫",".") ), 0 ), "#,##0" ) & " ریال", "" ) ) ) ->  | U12: =IF($A12="","", MID( IF($B12="","", IF(TRIM($B12)<>TRIM(INDEX($B$2:$B$20,MATCH($A12,$A$2:$A$20,0))), " | خطا در ستون B","") ) & IF($F12="","", IF( OR( TRIM($F12)<>TRIM(INDEX($F$2:$F$20,MATCH($A12,$A$2:$A$20,0))), TRIM($A12)<>TRIM(IFERROR(INDEX($A$2:$A$20,MATCH($F12,$F$2:$F$20,0)),"")) ), " | خطا در ستون F","") ) & IF($G12="","", IF(TRIM($G12)<>TRIM(INDEX($G$2:$G$20,MATCH($A12,$A$2:$A$20,0))), " | خطا در ستون G","") ) & IF($H12="","", IF(TRIM($H12)<>TRIM(INDEX($H$2:$H$20,MATCH($A12,$A$2:$A$20,0))), " | خطا در ستون H","") ) & IF($I12="","", IF(TRIM($I12)<>TRIM(INDEX($I$2:$I$20,MATCH($A12,$A$2:$A$20,0))), " | خطا در ستون I","") ) & IF($J12="","", IF(TRIM($J12)<>TRIM(INDEX($J$2:$J$20,MATCH($A12,$A$2:$A$20,0))), " | خطا در ستون J","") ) & IF($K12="","", IF(TRIM($K12)<>TRIM(INDEX($K$2:$K$20,MATCH($A12,$A$2:$A$20,0))), " | خطا در ستون K","") ) & IF($L12="","", IF(TRIM($L12)<>TRIM(INDEX($L$2:$L$20,MATCH($A12,$A$2:$A$20,0))), " | خطا در ستون L","") ),4,1000) ) -> 
A13: 470006802485 | B13: 1404/08/20 | C13: 4155371 | D13: 23,200 | E13: 15203 | F13: 802485 | G13: 1404/08/20 | H13: 15203 | I13: USD | J13: 39716 | K13: 92800 | L13: 702878 | M13: 6978875662 | N13: 23200 | P13: =IF($A13="","", IF($M13="","", ROUND(IFERROR($M13/$L13,0),0) + IF( ROW()= LOOKUP( 2, 1/( ($A$2:$A$20=$A13)* (IFERROR($M$2:$M$20/$L$2:$L$20,0)= _xlfn.AGGREGATE(14,6, IFERROR($M$2:$M$20/$L$2:$L$20,0)/($A$2:$A$20=$A13), 1) ) ), ROW($A$2:$A$20) ), VALUE( SUBSTITUTE( SUBSTITUTE( SUBSTITUTE( INDEX($J$2:$J$20,MATCH($A13,$A$2:$A$20,0)), "٬",""), ",",""), "٫",".") ) - SUMPRODUCT( ROUND(IFERROR($M$2:$M$20/$L$2:$L$20,0),0)* --($A$2:$A$20=$A13) ), 0 ) ) ) -> 9929 | Q13: =IF($A13="","", _xlfn.LET( _xlpm.calc, P13*L13, _xlpm.real, M13, _xlpm.diffPct, IF(_xlpm.real=0,"",ABS(_xlpm.calc-_xlpm.real)/_xlpm.real), IF(_xlpm.diffPct>0.01, "⚠️ اعداد شما از واقعیت تفاوت معنادار دارد", ROUND(_xlpm.calc,0) ) ) ) -> 6978875662 | R13: =IF($A13="","", _xlfn.LET( _xlpm.ktxt, TRIM(SUBSTITUTE(SUBSTITUTE($K13,CHAR(160),"")," ","")), _xlpm.k, IF(_xlpm.ktxt="","", VALUE( SUBSTITUTE( SUBSTITUTE( SUBSTITUTE(_xlpm.ktxt,"٬",""), ",",""), "٫",".") ) ), _xlpm.sumN, SUMIF($F:$F,$F13,$N:$N), _xlpm.diff, IF(OR(_xlpm.k="",_xlpm.sumN=""),"",_xlpm.sumN-_xlpm.k), _xlpm.msgSumN, IF(OR(_xlpm.k="",_xlpm.sumN=""),"", IF(ROUND(_xlpm.diff,0)=0,"", "جمع N = " & TEXT(_xlpm.sumN,"#,##0") & " | K = " & TEXT(_xlpm.k,"#,##0") & " | اختلاف = " & TEXT(_xlpm.diff,"#,##0") ) ), _xlfn.TEXTJOIN(" | ",TRUE, _xlpm.msgSumN, IF($J13="","", IF( IFERROR( ABS( VALUE(SUBSTITUTE(SUBSTITUTE(SUBSTITUTE(TRIM($J13),"٬",""),",",""),"٫",".")) - ROUND(VALUE(SUBSTITUTE(SUBSTITUTE(SUBSTITUTE(TRIM($J13),"٬",""),",",""),"٫",".")),4) )>0.000000001, FALSE), "خطا: J بیش از ۴ رقم اعشار دارد","") ), IF($K13="","", IF( IFERROR( MOD(VALUE(SUBSTITUTE(SUBSTITUTE(SUBSTITUTE(TRIM($K13),"٬",""),",",""),"٫",".")),1)<>0, FALSE), "خطا: K (مجموع وزن خالص) اعشاری است","") ), IF($L13="","", IF( IFERROR( MOD(VALUE(SUBSTITUTE(SUBSTITUTE(SUBSTITUTE(TRIM($L13),"٬",""),",",""),"٫",".")),1)<>0, FALSE), "خطا: L (نرخ برابری ارز) اعشاری است","") ), IF($M13="","", IF( IFERROR( MOD(VALUE(SUBSTITUTE(SUBSTITUTE(SUBSTITUTE(TRIM($M13),"٬",""),",",""),"٫",".")),1)<>0, FALSE), "خطا: M اعشاری است","") ), IF($N13="","", IF( IFERROR( MOD(VALUE(SUBSTITUTE(SUBSTITUTE(SUBSTITUTE(TRIM($N13),"٬",""),",",""),"٫",".")),1)<>0, FALSE), "خطا: N (وزن خالص) اعشاری است","") ) ) ) ) ->  | S13: =IF($A13="","", _xlfn.LET( _xlpm.mtxt,TRIM($M13), _xlpm.ltxt,TRIM($L13), _xlpm.m,IF(_xlpm.mtxt="","",VALUE(SUBSTITUTE(SUBSTITUTE(SUBSTITUTE(SUBSTITUTE(_xlpm.mtxt,"٬",""),",",""),"٫","."),CHAR(160),""))), _xlpm.l,IF(_xlpm.ltxt="","",VALUE(SUBSTITUTE(SUBSTITUTE(SUBSTITUTE(SUBSTITUTE(_xlpm.ltxt,"٬",""),",",""),"٫","."),CHAR(160),""))), _xlpm.ratio,IF(OR(_xlpm.m="",_xlpm.l="",_xlpm.l=0),"",_xlpm.m/_xlpm.l), _xlpm.diff,IF(_xlpm.ratio="","",ABS(_xlpm.ratio-ROUND(_xlpm.ratio,4))), IF(OR(_xlpm.ratio="",_xlpm.diff<=0.000000001),"","تقسیم M بر L نباید بیشتر از 4 رقم اعشار باشد") ) ) ->  | T13: =IF($A13="","", IF(ROW()<>ROW(INDEX($A$2:$A$20,MATCH($A13,$A$2:$A$20,0))),"", IF( ROUND( VALUE( SUBSTITUTE( SUBSTITUTE( SUBSTITUTE( INDEX($J$2:$J$20,MATCH($A13,$A$2:$A$20,0)), "٬",""), ",",""), "٫",".") )*10000,0) <> ROUND( SUMPRODUCT( ($A$2:$A$20=$A13)* ROUND( IFERROR( VALUE(SUBSTITUTE(SUBSTITUTE(SUBSTITUTE($M$2:$M$20,"٬",""),",",""),"٫","."))/ VALUE(SUBSTITUTE(SUBSTITUTE(SUBSTITUTE($L$2:$L$20,"٬",""),",",""),"٫",".")), 0), 4) )*10000,0), "اختلاف معادل " & TEXT( ROUND( ( VALUE( SUBSTITUTE( SUBSTITUTE( SUBSTITUTE( INDEX($J$2:$J$20,MATCH($A13,$A$2:$A$20,0)), "٬",""), ",",""), "٫",".") ) - SUMPRODUCT( ($A$2:$A$20=$A13)* ROUND( IFERROR( VALUE(SUBSTITUTE(SUBSTITUTE(SUBSTITUTE($M$2:$M$20,"٬",""),",",""),"٫","."))/ VALUE(SUBSTITUTE(SUBSTITUTE(SUBSTITUTE($L$2:$L$20,"٬",""),",",""),"٫",".")), 0), 4) ) )* VALUE( SUBSTITUTE( SUBSTITUTE( SUBSTITUTE( INDEX($L$2:$L$20,MATCH($A13,$A$2:$A$20,0)), "٬",""), ",",""), "٫",".") ), 0 ), "#,##0" ) & " ریال", "" ) ) ) ->  | U13: =IF($A13="","", MID( IF($B13="","", IF(TRIM($B13)<>TRIM(INDEX($B$2:$B$20,MATCH($A13,$A$2:$A$20,0))), " | خطا در ستون B","") ) & IF($F13="","", IF( OR( TRIM($F13)<>TRIM(INDEX($F$2:$F$20,MATCH($A13,$A$2:$A$20,0))), TRIM($A13)<>TRIM(IFERROR(INDEX($A$2:$A$20,MATCH($F13,$F$2:$F$20,0)),"")) ), " | خطا در ستون F","") ) & IF($G13="","", IF(TRIM($G13)<>TRIM(INDEX($G$2:$G$20,MATCH($A13,$A$2:$A$20,0))), " | خطا در ستون G","") ) & IF($H13="","", IF(TRIM($H13)<>TRIM(INDEX($H$2:$H$20,MATCH($A13,$A$2:$A$20,0))), " | خطا در ستون H","") ) & IF($I13="","", IF(TRIM($I13)<>TRIM(INDEX($I$2:$I$20,MATCH($A13,$A$2:$A$20,0))), " | خطا در ستون I","") ) & IF($J13="","", IF(TRIM($J13)<>TRIM(INDEX($J$2:$J$20,MATCH($A13,$A$2:$A$20,0))), " | خطا در ستون J","") ) & IF($K13="","", IF(TRIM($K13)<>TRIM(INDEX($K$2:$K$20,MATCH($A13,$A$2:$A$20,0))), " | خطا در ستون K","") ) & IF($L13="","", IF(TRIM($L13)<>TRIM(INDEX($L$2:$L$20,MATCH($A13,$A$2:$A$20,0))), " | خطا در ستون L","") ),4,1000) ) -> 
A14: 470006802485 | B14: 1404/08/20 | C14: 4155371 | D14: 23,200 | E14: 15203 | F14: 802485 | G14: 1404/08/20 | H14: 15203 | I14: USD | J14: 39716 | K14: 92800 | L14: 702878 | M14: 6978875662 | N14: 23200 | P14: =IF($A14="","", IF($M14="","", ROUND(IFERROR($M14/$L14,0),0) + IF( ROW()= LOOKUP( 2, 1/( ($A$2:$A$20=$A14)* (IFERROR($M$2:$M$20/$L$2:$L$20,0)= _xlfn.AGGREGATE(14,6, IFERROR($M$2:$M$20/$L$2:$L$20,0)/($A$2:$A$20=$A14), 1) ) ), ROW($A$2:$A$20) ), VALUE( SUBSTITUTE( SUBSTITUTE( SUBSTITUTE( INDEX($J$2:$J$20,MATCH($A14,$A$2:$A$20,0)), "٬",""), ",",""), "٫",".") ) - SUMPRODUCT( ROUND(IFERROR($M$2:$M$20/$L$2:$L$20,0),0)* --($A$2:$A$20=$A14) ), 0 ) ) ) -> 9929 | Q14: =IF($A14="","", _xlfn.LET( _xlpm.calc, P14*L14, _xlpm.real, M14, _xlpm.diffPct, IF(_xlpm.real=0,"",ABS(_xlpm.calc-_xlpm.real)/_xlpm.real), IF(_xlpm.diffPct>0.01, "⚠️ اعداد شما از واقعیت تفاوت معنادار دارد", ROUND(_xlpm.calc,0) ) ) ) -> 6978875662 | R14: =IF($A14="","", _xlfn.LET( _xlpm.ktxt, TRIM(SUBSTITUTE(SUBSTITUTE($K14,CHAR(160),"")," ","")), _xlpm.k, IF(_xlpm.ktxt="","", VALUE( SUBSTITUTE( SUBSTITUTE( SUBSTITUTE(_xlpm.ktxt,"٬",""), ",",""), "٫",".") ) ), _xlpm.sumN, SUMIF($F:$F,$F14,$N:$N), _xlpm.diff, IF(OR(_xlpm.k="",_xlpm.sumN=""),"",_xlpm.sumN-_xlpm.k), _xlpm.msgSumN, IF(OR(_xlpm.k="",_xlpm.sumN=""),"", IF(ROUND(_xlpm.diff,0)=0,"", "جمع N = " & TEXT(_xlpm.sumN,"#,##0") & " | K = " & TEXT(_xlpm.k,"#,##0") & " | اختلاف = " & TEXT(_xlpm.diff,"#,##0") ) ), _xlfn.TEXTJOIN(" | ",TRUE, _xlpm.msgSumN, IF($J14="","", IF( IFERROR( ABS( VALUE(SUBSTITUTE(SUBSTITUTE(SUBSTITUTE(TRIM($J14),"٬",""),",",""),"٫",".")) - ROUND(VALUE(SUBSTITUTE(SUBSTITUTE(SUBSTITUTE(TRIM($J14),"٬",""),",",""),"٫",".")),4) )>0.000000001, FALSE), "خطا: J بیش از ۴ رقم اعشار دارد","") ), IF($K14="","", IF( IFERROR( MOD(VALUE(SUBSTITUTE(SUBSTITUTE(SUBSTITUTE(TRIM($K14),"٬",""),",",""),"٫",".")),1)<>0, FALSE), "خطا: K (مجموع وزن خالص) اعشاری است","") ), IF($L14="","", IF( IFERROR( MOD(VALUE(SUBSTITUTE(SUBSTITUTE(SUBSTITUTE(TRIM($L14),"٬",""),",",""),"٫",".")),1)<>0, FALSE), "خطا: L (نرخ برابری ارز) اعشاری است","") ), IF($M14="","", IF( IFERROR( MOD(VALUE(SUBSTITUTE(SUBSTITUTE(SUBSTITUTE(TRIM($M14),"٬",""),",",""),"٫",".")),1)<>0, FALSE), "خطا: M اعشاری است","") ), IF($N14="","", IF( IFERROR( MOD(VALUE(SUBSTITUTE(SUBSTITUTE(SUBSTITUTE(TRIM($N14),"٬",""),",",""),"٫",".")),1)<>0, FALSE), "خطا: N (وزن خالص) اعشاری است","") ) ) ) ) ->  | S14: =IF($A14="","", _xlfn.LET( _xlpm.mtxt,TRIM($M14), _xlpm.ltxt,TRIM($L14), _xlpm.m,IF(_xlpm.mtxt="","",VALUE(SUBSTITUTE(SUBSTITUTE(SUBSTITUTE(SUBSTITUTE(_xlpm.mtxt,"٬",""),",",""),"٫","."),CHAR(160),""))), _xlpm.l,IF(_xlpm.ltxt="","",VALUE(SUBSTITUTE(SUBSTITUTE(SUBSTITUTE(SUBSTITUTE(_xlpm.ltxt,"٬",""),",",""),"٫","."),CHAR(160),""))), _xlpm.ratio,IF(OR(_xlpm.m="",_xlpm.l="",_xlpm.l=0),"",_xlpm.m/_xlpm.l), _xlpm.diff,IF(_xlpm.ratio="","",ABS(_xlpm.ratio-ROUND(_xlpm.ratio,4))), IF(OR(_xlpm.ratio="",_xlpm.diff<=0.000000001),"","تقسیم M بر L نباید بیشتر از 4 رقم اعشار باشد") ) ) ->  | T14: =IF($A14="","", IF(ROW()<>ROW(INDEX($A$2:$A$20,MATCH($A14,$A$2:$A$20,0))),"", IF( ROUND( VALUE( SUBSTITUTE( SUBSTITUTE( SUBSTITUTE( INDEX($J$2:$J$20,MATCH($A14,$A$2:$A$20,0)), "٬",""), ",",""), "٫",".") )*10000,0) <> ROUND( SUMPRODUCT( ($A$2:$A$20=$A14)* ROUND( IFERROR( VALUE(SUBSTITUTE(SUBSTITUTE(SUBSTITUTE($M$2:$M$20,"٬",""),",",""),"٫","."))/ VALUE(SUBSTITUTE(SUBSTITUTE(SUBSTITUTE($L$2:$L$20,"٬",""),",",""),"٫",".")), 0), 4) )*10000,0), "اختلاف معادل " & TEXT( ROUND( ( VALUE( SUBSTITUTE( SUBSTITUTE( SUBSTITUTE( INDEX($J$2:$J$20,MATCH($A14,$A$2:$A$20,0)), "٬",""), ",",""), "٫",".") ) - SUMPRODUCT( ($A$2:$A$20=$A14)* ROUND( IFERROR( VALUE(SUBSTITUTE(SUBSTITUTE(SUBSTITUTE($M$2:$M$20,"٬",""),",",""),"٫","."))/ VALUE(SUBSTITUTE(SUBSTITUTE(SUBSTITUTE($L$2:$L$20,"٬",""),",",""),"٫",".")), 0), 4) ) )* VALUE( SUBSTITUTE( SUBSTITUTE( SUBSTITUTE( INDEX($L$2:$L$20,MATCH($A14,$A$2:$A$20,0)), "٬",""), ",",""), "٫",".") ), 0 ), "#,##0" ) & " ریال", "" ) ) ) ->  | U14: =IF($A14="","", MID( IF($B14="","", IF(TRIM($B14)<>TRIM(INDEX($B$2:$B$20,MATCH($A14,$A$2:$A$20,0))), " | خطا در ستون B","") ) & IF($F14="","", IF( OR( TRIM($F14)<>TRIM(INDEX($F$2:$F$20,MATCH($A14,$A$2:$A$20,0))), TRIM($A14)<>TRIM(IFERROR(INDEX($A$2:$A$20,MATCH($F14,$F$2:$F$20,0)),"")) ), " | خطا در ستون F","") ) & IF($G14="","", IF(TRIM($G14)<>TRIM(INDEX($G$2:$G$20,MATCH($A14,$A$2:$A$20,0))), " | خطا در ستون G","") ) & IF($H14="","", IF(TRIM($H14)<>TRIM(INDEX($H$2:$H$20,MATCH($A14,$A$2:$A$20,0))), " | خطا در ستون H","") ) & IF($I14="","", IF(TRIM($I14)<>TRIM(INDEX($I$2:$I$20,MATCH($A14,$A$2:$A$20,0))), " | خطا در ستون I","") ) & IF($J14="","", IF(TRIM($J14)<>TRIM(INDEX($J$2:$J$20,MATCH($A14,$A$2:$A$20,0))), " | خطا در ستون J","") ) & IF($K14="","", IF(TRIM($K14)<>TRIM(INDEX($K$2:$K$20,MATCH($A14,$A$2:$A$20,0))), " | خطا در ستون K","") ) & IF($L14="","", IF(TRIM($L14)<>TRIM(INDEX($L$2:$L$20,MATCH($A14,$A$2:$A$20,0))), " | خطا در ستون L","") ),4,1000) ) -> 
A15: 470006802485 | B15: 1404/08/20 | C15: 4155371 | D15: 23,200 | E15: 15203 | F15: 802485 | G15: 1404/08/20 | H15: 15203 | I15: USD | J15: 39716 | K15: 92800 | L15: 702878 | M15: 6978875662 | N15: 23200 | P15: =IF($A15="","", IF($M15="","", ROUND(IFERROR($M15/$L15,0),0) + IF( ROW()= LOOKUP( 2, 1/( ($A$2:$A$20=$A15)* (IFERROR($M$2:$M$20/$L$2:$L$20,0)= _xlfn.AGGREGATE(14,6, IFERROR($M$2:$M$20/$L$2:$L$20,0)/($A$2:$A$20=$A15), 1) ) ), ROW($A$2:$A$20) ), VALUE( SUBSTITUTE( SUBSTITUTE( SUBSTITUTE( INDEX($J$2:$J$20,MATCH($A15,$A$2:$A$20,0)), "٬",""), ",",""), "٫",".") ) - SUMPRODUCT( ROUND(IFERROR($M$2:$M$20/$L$2:$L$20,0),0)* --($A$2:$A$20=$A15) ), 0 ) ) ) -> 9929 | Q15: =IF($A15="","", _xlfn.LET( _xlpm.calc, P15*L15, _xlpm.real, M15, _xlpm.diffPct, IF(_xlpm.real=0,"",ABS(_xlpm.calc-_xlpm.real)/_xlpm.real), IF(_xlpm.diffPct>0.01, "⚠️ اعداد شما از واقعیت تفاوت معنادار دارد", ROUND(_xlpm.calc,0) ) ) ) -> 6978875662 | R15: =IF($A15="","", _xlfn.LET( _xlpm.ktxt, TRIM(SUBSTITUTE(SUBSTITUTE($K15,CHAR(160),"")," ","")), _xlpm.k, IF(_xlpm.ktxt="","", VALUE( SUBSTITUTE( SUBSTITUTE( SUBSTITUTE(_xlpm.ktxt,"٬",""), ",",""), "٫",".") ) ), _xlpm.sumN, SUMIF($F:$F,$F15,$N:$N), _xlpm.diff, IF(OR(_xlpm.k="",_xlpm.sumN=""),"",_xlpm.sumN-_xlpm.k), _xlpm.msgSumN, IF(OR(_xlpm.k="",_xlpm.sumN=""),"", IF(ROUND(_xlpm.diff,0)=0,"", "جمع N = " & TEXT(_xlpm.sumN,"#,##0") & " | K = " & TEXT(_xlpm.k,"#,##0") & " | اختلاف = " & TEXT(_xlpm.diff,"#,##0") ) ), _xlfn.TEXTJOIN(" | ",TRUE, _xlpm.msgSumN, IF($J15="","", IF( IFERROR( ABS( VALUE(SUBSTITUTE(SUBSTITUTE(SUBSTITUTE(TRIM($J15),"٬",""),",",""),"٫",".")) - ROUND(VALUE(SUBSTITUTE(SUBSTITUTE(SUBSTITUTE(TRIM($J15),"٬",""),",",""),"٫",".")),4) )>0.000000001, FALSE), "خطا: J بیش از ۴ رقم اعشار دارد","") ), IF($K15="","", IF( IFERROR( MOD(VALUE(SUBSTITUTE(SUBSTITUTE(SUBSTITUTE(TRIM($K15),"٬",""),",",""),"٫",".")),1)<>0, FALSE), "خطا: K (مجموع وزن خالص) اعشاری است","") ), IF($L15="","", IF( IFERROR( MOD(VALUE(SUBSTITUTE(SUBSTITUTE(SUBSTITUTE(TRIM($L15),"٬",""),",",""),"٫",".")),1)<>0, FALSE), "خطا: L (نرخ برابری ارز) اعشاری است","") ), IF($M15="","", IF( IFERROR( MOD(VALUE(SUBSTITUTE(SUBSTITUTE(SUBSTITUTE(TRIM($M15),"٬",""),",",""),"٫",".")),1)<>0, FALSE), "خطا: M اعشاری است","") ), IF($N15="","", IF( IFERROR( MOD(VALUE(SUBSTITUTE(SUBSTITUTE(SUBSTITUTE(TRIM($N15),"٬",""),",",""),"٫",".")),1)<>0, FALSE), "خطا: N (وزن خالص) اعشاری است","") ) ) ) ) ->  | S15: =IF($A15="","", _xlfn.LET( _xlpm.mtxt,TRIM($M15), _xlpm.ltxt,TRIM($L15), _xlpm.m,IF(_xlpm.mtxt="","",VALUE(SUBSTITUTE(SUBSTITUTE(SUBSTITUTE(SUBSTITUTE(_xlpm.mtxt,"٬",""),",",""),"٫","."),CHAR(160),""))), _xlpm.l,IF(_xlpm.ltxt="","",VALUE(SUBSTITUTE(SUBSTITUTE(SUBSTITUTE(SUBSTITUTE(_xlpm.ltxt,"٬",""),",",""),"٫","."),CHAR(160),""))), _xlpm.ratio,IF(OR(_xlpm.m="",_xlpm.l="",_xlpm.l=0),"",_xlpm.m/_xlpm.l), _xlpm.diff,IF(_xlpm.ratio="","",ABS(_xlpm.ratio-ROUND(_xlpm.ratio,4))), IF(OR(_xlpm.ratio="",_xlpm.diff<=0.000000001),"","تقسیم M بر L نباید بیشتر از 4 رقم اعشار باشد") ) ) ->  | T15: =IF($A15="","", IF(ROW()<>ROW(INDEX($A$2:$A$20,MATCH($A15,$A$2:$A$20,0))),"", IF( ROUND( VALUE( SUBSTITUTE( SUBSTITUTE( SUBSTITUTE( INDEX($J$2:$J$20,MATCH($A15,$A$2:$A$20,0)), "٬",""), ",",""), "٫",".") )*10000,0) <> ROUND( SUMPRODUCT( ($A$2:$A$20=$A15)* ROUND( IFERROR( VALUE(SUBSTITUTE(SUBSTITUTE(SUBSTITUTE($M$2:$M$20,"٬",""),",",""),"٫","."))/ VALUE(SUBSTITUTE(SUBSTITUTE(SUBSTITUTE($L$2:$L$20,"٬",""),",",""),"٫",".")), 0), 4) )*10000,0), "اختلاف معادل " & TEXT( ROUND( ( VALUE( SUBSTITUTE( SUBSTITUTE( SUBSTITUTE( INDEX($J$2:$J$20,MATCH($A15,$A$2:$A$20,0)), "٬",""), ",",""), "٫",".") ) - SUMPRODUCT( ($A$2:$A$20=$A15)* ROUND( IFERROR( VALUE(SUBSTITUTE(SUBSTITUTE(SUBSTITUTE($M$2:$M$20,"٬",""),",",""),"٫","."))/ VALUE(SUBSTITUTE(SUBSTITUTE(SUBSTITUTE($L$2:$L$20,"٬",""),",",""),"٫",".")), 0), 4) ) )* VALUE( SUBSTITUTE( SUBSTITUTE( SUBSTITUTE( INDEX($L$2:$L$20,MATCH($A15,$A$2:$A$20,0)), "٬",""), ",",""), "٫",".") ), 0 ), "#,##0" ) & " ریال", "" ) ) ) ->  | U15: =IF($A15="","", MID( IF($B15="","", IF(TRIM($B15)<>TRIM(INDEX($B$2:$B$20,MATCH($A15,$A$2:$A$20,0))), " | خطا در ستون B","") ) & IF($F15="","", IF( OR( TRIM($F15)<>TRIM(INDEX($F$2:$F$20,MATCH($A15,$A$2:$A$20,0))), TRIM($A15)<>TRIM(IFERROR(INDEX($A$2:$A$20,MATCH($F15,$F$2:$F$20,0)),"")) ), " | خطا در ستون F","") ) & IF($G15="","", IF(TRIM($G15)<>TRIM(INDEX($G$2:$G$20,MATCH($A15,$A$2:$A$20,0))), " | خطا در ستون G","") ) & IF($H15="","", IF(TRIM($H15)<>TRIM(INDEX($H$2:$H$20,MATCH($A15,$A$2:$A$20,0))), " | خطا در ستون H","") ) & IF($I15="","", IF(TRIM($I15)<>TRIM(INDEX($I$2:$I$20,MATCH($A15,$A$2:$A$20,0))), " | خطا در ستون I","") ) & IF($J15="","", IF(TRIM($J15)<>TRIM(INDEX($J$2:$J$20,MATCH($A15,$A$2:$A$20,0))), " | خطا در ستون J","") ) & IF($K15="","", IF(TRIM($K15)<>TRIM(INDEX($K$2:$K$20,MATCH($A15,$A$2:$A$20,0))), " | خطا در ستون K","") ) & IF($L15="","", IF(TRIM($L15)<>TRIM(INDEX($L$2:$L$20,MATCH($A15,$A$2:$A$20,0))), " | خطا در ستون L","") ),4,1000) ) -> 
A16: 470006804399 | B16: 1404/08/20 | C16: 4155369 | D16: 4,776 | E16: 15203 | F16: 804399 | G16: 1404/08/20 | H16: 15203 | I16: USD | J16: 19749 | K16: 46355 | L16: 705024 | M16: 224902656 | N16: 1011 | P16: =IF($A16="","", IF($M16="","", ROUND(IFERROR($M16/$L16,0),0) + IF( ROW()= LOOKUP( 2, 1/( ($A$2:$A$20=$A16)* (IFERROR($M$2:$M$20/$L$2:$L$20,0)= _xlfn.AGGREGATE(14,6, IFERROR($M$2:$M$20/$L$2:$L$20,0)/($A$2:$A$20=$A16), 1) ) ), ROW($A$2:$A$20) ), VALUE( SUBSTITUTE( SUBSTITUTE( SUBSTITUTE( INDEX($J$2:$J$20,MATCH($A16,$A$2:$A$20,0)), "٬",""), ",",""), "٫",".") ) - SUMPRODUCT( ROUND(IFERROR($M$2:$M$20/$L$2:$L$20,0),0)* --($A$2:$A$20=$A16) ), 0 ) ) ) -> 319 | Q16: =IF($A16="","", _xlfn.LET( _xlpm.calc, P16*L16, _xlpm.real, M16, _xlpm.diffPct, IF(_xlpm.real=0,"",ABS(_xlpm.calc-_xlpm.real)/_xlpm.real), IF(_xlpm.diffPct>0.01, "⚠️ اعداد شما از واقعیت تفاوت معنادار دارد", ROUND(_xlpm.calc,0) ) ) ) -> 224902656 | R16: =IF($A16="","", _xlfn.LET( _xlpm.ktxt, TRIM(SUBSTITUTE(SUBSTITUTE($K16,CHAR(160),"")," ","")), _xlpm.k, IF(_xlpm.ktxt="","", VALUE( SUBSTITUTE( SUBSTITUTE( SUBSTITUTE(_xlpm.ktxt,"٬",""), ",",""), "٫",".") ) ), _xlpm.sumN, SUMIF($F:$F,$F16,$N:$N), _xlpm.diff, IF(OR(_xlpm.k="",_xlpm.sumN=""),"",_xlpm.sumN-_xlpm.k), _xlpm.msgSumN, IF(OR(_xlpm.k="",_xlpm.sumN=""),"", IF(ROUND(_xlpm.diff,0)=0,"", "جمع N = " & TEXT(_xlpm.sumN,"#,##0") & " | K = " & TEXT(_xlpm.k,"#,##0") & " | اختلاف = " & TEXT(_xlpm.diff,"#,##0") ) ), _xlfn.TEXTJOIN(" | ",TRUE, _xlpm.msgSumN, IF($J16="","", IF( IFERROR( ABS( VALUE(SUBSTITUTE(SUBSTITUTE(SUBSTITUTE(TRIM($J16),"٬",""),",",""),"٫",".")) - ROUND(VALUE(SUBSTITUTE(SUBSTITUTE(SUBSTITUTE(TRIM($J16),"٬",""),",",""),"٫",".")),4) )>0.000000001, FALSE), "خطا: J بیش از ۴ رقم اعشار دارد","") ), IF($K16="","", IF( IFERROR( MOD(VALUE(SUBSTITUTE(SUBSTITUTE(SUBSTITUTE(TRIM($K16),"٬",""),",",""),"٫",".")),1)<>0, FALSE), "خطا: K (مجموع وزن خالص) اعشاری است","") ), IF($L16="","", IF( IFERROR( MOD(VALUE(SUBSTITUTE(SUBSTITUTE(SUBSTITUTE(TRIM($L16),"٬",""),",",""),"٫",".")),1)<>0, FALSE), "خطا: L (نرخ برابری ارز) اعشاری است","") ), IF($M16="","", IF( IFERROR( MOD(VALUE(SUBSTITUTE(SUBSTITUTE(SUBSTITUTE(TRIM($M16),"٬",""),",",""),"٫",".")),1)<>0, FALSE), "خطا: M اعشاری است","") ), IF($N16="","", IF( IFERROR( MOD(VALUE(SUBSTITUTE(SUBSTITUTE(SUBSTITUTE(TRIM($N16),"٬",""),",",""),"٫",".")),1)<>0, FALSE), "خطا: N (وزن خالص) اعشاری است","") ) ) ) ) -> جمع N = 23,500 | K = 46,355 | اختلاف = -22,855 | S16: =IF($A16="","", _xlfn.LET( _xlpm.mtxt,TRIM($M16), _xlpm.ltxt,TRIM($L16), _xlpm.m,IF(_xlpm.mtxt="","",VALUE(SUBSTITUTE(SUBSTITUTE(SUBSTITUTE(SUBSTITUTE(_xlpm.mtxt,"٬",""),",",""),"٫","."),CHAR(160),""))), _xlpm.l,IF(_xlpm.ltxt="","",VALUE(SUBSTITUTE(SUBSTITUTE(SUBSTITUTE(SUBSTITUTE(_xlpm.ltxt,"٬",""),",",""),"٫","."),CHAR(160),""))), _xlpm.ratio,IF(OR(_xlpm.m="",_xlpm.l="",_xlpm.l=0),"",_xlpm.m/_xlpm.l), _xlpm.diff,IF(_xlpm.ratio="","",ABS(_xlpm.ratio-ROUND(_xlpm.ratio,4))), IF(OR(_xlpm.ratio="",_xlpm.diff<=0.000000001),"","تقسیم M بر L نباید بیشتر از 4 رقم اعشار باشد") ) ) ->  | T16: =IF($A16="","", IF(ROW()<>ROW(INDEX($A$2:$A$20,MATCH($A16,$A$2:$A$20,0))),"", IF( ROUND( VALUE( SUBSTITUTE( SUBSTITUTE( SUBSTITUTE( INDEX($J$2:$J$20,MATCH($A16,$A$2:$A$20,0)), "٬",""), ",",""), "٫",".") )*10000,0) <> ROUND( SUMPRODUCT( ($A$2:$A$20=$A16)* ROUND( IFERROR( VALUE(SUBSTITUTE(SUBSTITUTE(SUBSTITUTE($M$2:$M$20,"٬",""),",",""),"٫","."))/ VALUE(SUBSTITUTE(SUBSTITUTE(SUBSTITUTE($L$2:$L$20,"٬",""),",",""),"٫",".")), 0), 4) )*10000,0), "اختلاف معادل " & TEXT( ROUND( ( VALUE( SUBSTITUTE( SUBSTITUTE( SUBSTITUTE( INDEX($J$2:$J$20,MATCH($A16,$A$2:$A$20,0)), "٬",""), ",",""), "٫",".") ) - SUMPRODUCT( ($A$2:$A$20=$A16)* ROUND( IFERROR( VALUE(SUBSTITUTE(SUBSTITUTE(SUBSTITUTE($M$2:$M$20,"٬",""),",",""),"٫","."))/ VALUE(SUBSTITUTE(SUBSTITUTE(SUBSTITUTE($L$2:$L$20,"٬",""),",",""),"٫",".")), 0), 4) ) )* VALUE( SUBSTITUTE( SUBSTITUTE( SUBSTITUTE( INDEX($L$2:$L$20,MATCH($A16,$A$2:$A$20,0)), "٬",""), ",",""), "٫",".") ), 0 ), "#,##0" ) & " ریال", "" ) ) ) -> اختلاف معادل 6,698,433,024 ریال | U16: =IF($A16="","", MID( IF($B16="","", IF(TRIM($B16)<>TRIM(INDEX($B$2:$B$20,MATCH($A16,$A$2:$A$20,0))), " | خطا در ستون B","") ) & IF($F16="","", IF( OR( TRIM($F16)<>TRIM(INDEX($F$2:$F$20,MATCH($A16,$A$2:$A$20,0))), TRIM($A16)<>TRIM(IFERROR(INDEX($A$2:$A$20,MATCH($F16,$F$2:$F$20,0)),"")) ), " | خطا در ستون F","") ) & IF($G16="","", IF(TRIM($G16)<>TRIM(INDEX($G$2:$G$20,MATCH($A16,$A$2:$A$20,0))), " | خطا در ستون G","") ) & IF($H16="","", IF(TRIM($H16)<>TRIM(INDEX($H$2:$H$20,MATCH($A16,$A$2:$A$20,0))), " | خطا در ستون H","") ) & IF($I16="","", IF(TRIM($I16)<>TRIM(INDEX($I$2:$I$20,MATCH($A16,$A$2:$A$20,0))), " | خطا در ستون I","") ) & IF($J16="","", IF(TRIM($J16)<>TRIM(INDEX($J$2:$J$20,MATCH($A16,$A$2:$A$20,0))), " | خطا در ستون J","") ) & IF($K16="","", IF(TRIM($K16)<>TRIM(INDEX($K$2:$K$20,MATCH($A16,$A$2:$A$20,0))), " | خطا در ستون K","") ) & IF($L16="","", IF(TRIM($L16)<>TRIM(INDEX($L$2:$L$20,MATCH($A16,$A$2:$A$20,0))), " | خطا در ستون L","") ),4,1000) ) ->  | V16: جمع N = 23,500 | K = 46,355 | اختلاف = -22,855 | اختلاف معادل 6,698,433,024 ريال
A17: 470006804399 | B17: 1404/08/20 | C17: 4155371 | D17: 23,200 | E17: 15203 | F17: 804399 | G17: 1404/08/20 | H17: 15203 | I17: USD | J17: 19749 | K17: 46355 | L17: 705024 | M17: 7000183296 | N17: 22489 | P17: =IF($A17="","", IF($M17="","", ROUND(IFERROR($M17/$L17,0),0) + IF( ROW()= LOOKUP( 2, 1/( ($A$2:$A$20=$A17)* (IFERROR($M$2:$M$20/$L$2:$L$20,0)= _xlfn.AGGREGATE(14,6, IFERROR($M$2:$M$20/$L$2:$L$20,0)/($A$2:$A$20=$A17), 1) ) ), ROW($A$2:$A$20) ), VALUE( SUBSTITUTE( SUBSTITUTE( SUBSTITUTE( INDEX($J$2:$J$20,MATCH($A17,$A$2:$A$20,0)), "٬",""), ",",""), "٫",".") ) - SUMPRODUCT( ROUND(IFERROR($M$2:$M$20/$L$2:$L$20,0),0)* --($A$2:$A$20=$A17) ), 0 ) ) ) -> 19430 | Q17: =IF($A17="","", _xlfn.LET( _xlpm.calc, P17*L17, _xlpm.real, M17, _xlpm.diffPct, IF(_xlpm.real=0,"",ABS(_xlpm.calc-_xlpm.real)/_xlpm.real), IF(_xlpm.diffPct>0.01, "⚠️ اعداد شما از واقعیت تفاوت معنادار دارد", ROUND(_xlpm.calc,0) ) ) ) -> ⚠️ اعداد شما از واقعیت تفاوت معنادار دارد | R17: =IF($A17="","", _xlfn.LET( _xlpm.ktxt, TRIM(SUBSTITUTE(SUBSTITUTE($K17,CHAR(160),"")," ","")), _xlpm.k, IF(_xlpm.ktxt="","", VALUE( SUBSTITUTE( SUBSTITUTE( SUBSTITUTE(_xlpm.ktxt,"٬",""), ",",""), "٫",".") ) ), _xlpm.sumN, SUMIF($F:$F,$F17,$N:$N), _xlpm.diff, IF(OR(_xlpm.k="",_xlpm.sumN=""),"",_xlpm.sumN-_xlpm.k), _xlpm.msgSumN, IF(OR(_xlpm.k="",_xlpm.sumN=""),"", IF(ROUND(_xlpm.diff,0)=0,"", "جمع N = " & TEXT(_xlpm.sumN,"#,##0") & " | K = " & TEXT(_xlpm.k,"#,##0") & " | اختلاف = " & TEXT(_xlpm.diff,"#,##0") ) ), _xlfn.TEXTJOIN(" | ",TRUE, _xlpm.msgSumN, IF($J17="","", IF( IFERROR( ABS( VALUE(SUBSTITUTE(SUBSTITUTE(SUBSTITUTE(TRIM($J17),"٬",""),",",""),"٫",".")) - ROUND(VALUE(SUBSTITUTE(SUBSTITUTE(SUBSTITUTE(TRIM($J17),"٬",""),",",""),"٫",".")),4) )>0.000000001, FALSE), "خطا: J بیش از ۴ رقم اعشار دارد","") ), IF($K17="","", IF( IFERROR( MOD(VALUE(SUBSTITUTE(SUBSTITUTE(SUBSTITUTE(TRIM($K17),"٬",""),",",""),"٫",".")),1)<>0, FALSE), "خطا: K (مجموع وزن خالص) اعشاری است","") ), IF($L17="","", IF( IFERROR( MOD(VALUE(SUBSTITUTE(SUBSTITUTE(SUBSTITUTE(TRIM($L17),"٬",""),",",""),"٫",".")),1)<>0, FALSE), "خطا: L (نرخ برابری ارز) اعشاری است","") ), IF($M17="","", IF( IFERROR( MOD(VALUE(SUBSTITUTE(SUBSTITUTE(SUBSTITUTE(TRIM($M17),"٬",""),",",""),"٫",".")),1)<>0, FALSE), "خطا: M اعشاری است","") ), IF($N17="","", IF( IFERROR( MOD(VALUE(SUBSTITUTE(SUBSTITUTE(SUBSTITUTE(TRIM($N17),"٬",""),",",""),"٫",".")),1)<>0, FALSE), "خطا: N (وزن خالص) اعشاری است","") ) ) ) ) -> جمع N = 23,500 | K = 46,355 | اختلاف = -22,855 | S17: =IF($A17="","", _xlfn.LET( _xlpm.mtxt,TRIM($M17), _xlpm.ltxt,TRIM($L17), _xlpm.m,IF(_xlpm.mtxt="","",VALUE(SUBSTITUTE(SUBSTITUTE(SUBSTITUTE(SUBSTITUTE(_xlpm.mtxt,"٬",""),",",""),"٫","."),CHAR(160),""))), _xlpm.l,IF(_xlpm.ltxt="","",VALUE(SUBSTITUTE(SUBSTITUTE(SUBSTITUTE(SUBSTITUTE(_xlpm.ltxt,"٬",""),",",""),"٫","."),CHAR(160),""))), _xlpm.ratio,IF(OR(_xlpm.m="",_xlpm.l="",_xlpm.l=0),"",_xlpm.m/_xlpm.l), _xlpm.diff,IF(_xlpm.ratio="","",ABS(_xlpm.ratio-ROUND(_xlpm.ratio,4))), IF(OR(_xlpm.ratio="",_xlpm.diff<=0.000000001),"","تقسیم M بر L نباید بیشتر از 4 رقم اعشار باشد") ) ) ->  | T17: =IF($A17="","", IF(ROW()<>ROW(INDEX($A$2:$A$20,MATCH($A17,$A$2:$A$20,0))),"", IF( ROUND( VALUE( SUBSTITUTE( SUBSTITUTE( SUBSTITUTE( INDEX($J$2:$J$20,MATCH($A17,$A$2:$A$20,0)), "٬",""), ",",""), "٫",".") )*10000,0) <> ROUND( SUMPRODUCT( ($A$2:$A$20=$A17)* ROUND( IFERROR( VALUE(SUBSTITUTE(SUBSTITUTE(SUBSTITUTE($M$2:$M$20,"٬",""),",",""),"٫","."))/ VALUE(SUBSTITUTE(SUBSTITUTE(SUBSTITUTE($L$2:$L$20,"٬",""),",",""),"٫",".")), 0), 4) )*10000,0), "اختلاف معادل " & TEXT( ROUND( ( VALUE( SUBSTITUTE( SUBSTITUTE( SUBSTITUTE( INDEX($J$2:$J$20,MATCH($A17,$A$2:$A$20,0)), "٬",""), ",",""), "٫",".") ) - SUMPRODUCT( ($A$2:$A$20=$A17)* ROUND( IFERROR( VALUE(SUBSTITUTE(SUBSTITUTE(SUBSTITUTE($M$2:$M$20,"٬",""),",",""),"٫","."))/ VALUE(SUBSTITUTE(SUBSTITUTE(SUBSTITUTE($L$2:$L$20,"٬",""),",",""),"٫",".")), 0), 4) ) )* VALUE( SUBSTITUTE( SUBSTITUTE( SUBSTITUTE( INDEX($L$2:$L$20,MATCH($A17,$A$2:$A$20,0)), "٬",""), ",",""), "٫",".") ), 0 ), "#,##0" ) & " ریال", "" ) ) ) ->  | U17: =IF($A17="","", MID( IF($B17="","", IF(TRIM($B17)<>TRIM(INDEX($B$2:$B$20,MATCH($A17,$A$2:$A$20,0))), " | خطا در ستون B","") ) & IF($F17="","", IF( OR( TRIM($F17)<>TRIM(INDEX($F$2:$F$20,MATCH($A17,$A$2:$A$20,0))), TRIM($A17)<>TRIM(IFERROR(INDEX($A$2:$A$20,MATCH($F17,$F$2:$F$20,0)),"")) ), " | خطا در ستون F","") ) & IF($G17="","", IF(TRIM($G17)<>TRIM(INDEX($G$2:$G$20,MATCH($A17,$A$2:$A$20,0))), " | خطا در ستون G","") ) & IF($H17="","", IF(TRIM($H17)<>TRIM(INDEX($H$2:$H$20,MATCH($A17,$A$2:$A$20,0))), " | خطا در ستون H","") ) & IF($I17="","", IF(TRIM($I17)<>TRIM(INDEX($I$2:$I$20,MATCH($A17,$A$2:$A$20,0))), " | خطا در ستون I","") ) & IF($J17="","", IF(TRIM($J17)<>TRIM(INDEX($J$2:$J$20,MATCH($A17,$A$2:$A$20,0))), " | خطا در ستون J","") ) & IF($K17="","", IF(TRIM($K17)<>TRIM(INDEX($K$2:$K$20,MATCH($A17,$A$2:$A$20,0))), " | خطا در ستون K","") ) & IF($L17="","", IF(TRIM($L17)<>TRIM(INDEX($L$2:$L$20,MATCH($A17,$A$2:$A$20,0))), " | خطا در ستون L","") ),4,1000) ) ->  | V17: جمع N = 23,500 | K = 46,355 | اختلاف = -22,855
A18: 0125776164059 | B18: 1404/08/20 | C18: 4152304 | D18: 4,224 | E18: 10200 | F18: 6164059 | G18: 1404/08/20 | H18: 10200 | I18: USD | J18: 20965.03 | K18: 11765 | L18: 702808.1 | M18: 370379816 | N18: 270 | P18: =IF($A18="","", IF($M18="","", ROUND(IFERROR($M18/$L18,0),0) + IF( ROW()= LOOKUP( 2, 1/( ($A$2:$A$20=$A18)* (IFERROR($M$2:$M$20/$L$2:$L$20,0)= _xlfn.AGGREGATE(14,6, IFERROR($M$2:$M$20/$L$2:$L$20,0)/($A$2:$A$20=$A18), 1) ) ), ROW($A$2:$A$20) ), VALUE( SUBSTITUTE( SUBSTITUTE( SUBSTITUTE( INDEX($J$2:$J$20,MATCH($A18,$A$2:$A$20,0)), "٬",""), ",",""), "٫",".") ) - SUMPRODUCT( ROUND(IFERROR($M$2:$M$20/$L$2:$L$20,0),0)* --($A$2:$A$20=$A18) ), 0 ) ) ) -> 527 | Q18: =IF($A18="","", _xlfn.LET( _xlpm.calc, P18*L18, _xlpm.real, M18, _xlpm.diffPct, IF(_xlpm.real=0,"",ABS(_xlpm.calc-_xlpm.real)/_xlpm.real), IF(_xlpm.diffPct>0.01, "⚠️ اعداد شما از واقعیت تفاوت معنادار دارد", ROUND(_xlpm.calc,0) ) ) ) -> 370379869 | R18: =IF($A18="","", _xlfn.LET( _xlpm.ktxt, TRIM(SUBSTITUTE(SUBSTITUTE($K18,CHAR(160),"")," ","")), _xlpm.k, IF(_xlpm.ktxt="","", VALUE( SUBSTITUTE( SUBSTITUTE( SUBSTITUTE(_xlpm.ktxt,"٬",""), ",",""), "٫",".") ) ), _xlpm.sumN, SUMIF($F:$F,$F18,$N:$N), _xlpm.diff, IF(OR(_xlpm.k="",_xlpm.sumN=""),"",_xlpm.sumN-_xlpm.k), _xlpm.msgSumN, IF(OR(_xlpm.k="",_xlpm.sumN=""),"", IF(ROUND(_xlpm.diff,0)=0,"", "جمع N = " & TEXT(_xlpm.sumN,"#,##0") & " | K = " & TEXT(_xlpm.k,"#,##0") & " | اختلاف = " & TEXT(_xlpm.diff,"#,##0") ) ), _xlfn.TEXTJOIN(" | ",TRUE, _xlpm.msgSumN, IF($J18="","", IF( IFERROR( ABS( VALUE(SUBSTITUTE(SUBSTITUTE(SUBSTITUTE(TRIM($J18),"٬",""),",",""),"٫",".")) - ROUND(VALUE(SUBSTITUTE(SUBSTITUTE(SUBSTITUTE(TRIM($J18),"٬",""),",",""),"٫",".")),4) )>0.000000001, FALSE), "خطا: J بیش از ۴ رقم اعشار دارد","") ), IF($K18="","", IF( IFERROR( MOD(VALUE(SUBSTITUTE(SUBSTITUTE(SUBSTITUTE(TRIM($K18),"٬",""),",",""),"٫",".")),1)<>0, FALSE), "خطا: K (مجموع وزن خالص) اعشاری است","") ), IF($L18="","", IF( IFERROR( MOD(VALUE(SUBSTITUTE(SUBSTITUTE(SUBSTITUTE(TRIM($L18),"٬",""),",",""),"٫",".")),1)<>0, FALSE), "خطا: L (نرخ برابری ارز) اعشاری است","") ), IF($M18="","", IF( IFERROR( MOD(VALUE(SUBSTITUTE(SUBSTITUTE(SUBSTITUTE(TRIM($M18),"٬",""),",",""),"٫",".")),1)<>0, FALSE), "خطا: M اعشاری است","") ), IF($N18="","", IF( IFERROR( MOD(VALUE(SUBSTITUTE(SUBSTITUTE(SUBSTITUTE(TRIM($N18),"٬",""),",",""),"٫",".")),1)<>0, FALSE), "خطا: N (وزن خالص) اعشاری است","") ) ) ) ) -> خطا: L (نرخ برابری ارز) اعشاری است | S18: =IF($A18="","", _xlfn.LET( _xlpm.mtxt,TRIM($M18), _xlpm.ltxt,TRIM($L18), _xlpm.m,IF(_xlpm.mtxt="","",VALUE(SUBSTITUTE(SUBSTITUTE(SUBSTITUTE(SUBSTITUTE(_xlpm.mtxt,"٬",""),",",""),"٫","."),CHAR(160),""))), _xlpm.l,IF(_xlpm.ltxt="","",VALUE(SUBSTITUTE(SUBSTITUTE(SUBSTITUTE(SUBSTITUTE(_xlpm.ltxt,"٬",""),",",""),"٫","."),CHAR(160),""))), _xlpm.ratio,IF(OR(_xlpm.m="",_xlpm.l="",_xlpm.l=0),"",_xlpm.m/_xlpm.l), _xlpm.diff,IF(_xlpm.ratio="","",ABS(_xlpm.ratio-ROUND(_xlpm.ratio,4))), IF(OR(_xlpm.ratio="",_xlpm.diff<=0.000000001),"","تقسیم M بر L نباید بیشتر از 4 رقم اعشار باشد") ) ) -> تقسیم M بر L نباید بیشتر از 4 رقم اعشار باشد | T18: =IF($A18="","", IF(ROW()<>ROW(INDEX($A$2:$A$20,MATCH($A18,$A$2:$A$20,0))),"", IF( ROUND( VALUE( SUBSTITUTE( SUBSTITUTE( SUBSTITUTE( INDEX($J$2:$J$20,MATCH($A18,$A$2:$A$20,0)), "٬",""), ",",""), "٫",".") )*10000,0) <> ROUND( SUMPRODUCT( ($A$2:$A$20=$A18)* ROUND( IFERROR( VALUE(SUBSTITUTE(SUBSTITUTE(SUBSTITUTE($M$2:$M$20,"٬",""),",",""),"٫","."))/ VALUE(SUBSTITUTE(SUBSTITUTE(SUBSTITUTE($L$2:$L$20,"٬",""),",",""),"٫",".")), 0), 4) )*10000,0), "اختلاف معادل " & TEXT( ROUND( ( VALUE( SUBSTITUTE( SUBSTITUTE( SUBSTITUTE( INDEX($J$2:$J$20,MATCH($A18,$A$2:$A$20,0)), "٬",""), ",",""), "٫",".") ) - SUMPRODUCT( ($A$2:$A$20=$A18)* ROUND( IFERROR( VALUE(SUBSTITUTE(SUBSTITUTE(SUBSTITUTE($M$2:$M$20,"٬",""),",",""),"٫","."))/ VALUE(SUBSTITUTE(SUBSTITUTE(SUBSTITUTE($L$2:$L$20,"٬",""),",",""),"٫",".")), 0), 4) ) )* VALUE( SUBSTITUTE( SUBSTITUTE( SUBSTITUTE( INDEX($L$2:$L$20,MATCH($A18,$A$2:$A$20,0)), "٬",""), ",",""), "٫",".") ), 0 ), "#,##0" ) & " ریال", "" ) ) ) -> اختلاف معادل 21,155 ریال | U18: =IF($A18="","", MID( IF($B18="","", IF(TRIM($B18)<>TRIM(INDEX($B$2:$B$20,MATCH($A18,$A$2:$A$20,0))), " | خطا در ستون B","") ) & IF($F18="","", IF( OR( TRIM($F18)<>TRIM(INDEX($F$2:$F$20,MATCH($A18,$A$2:$A$20,0))), TRIM($A18)<>TRIM(IFERROR(INDEX($A$2:$A$20,MATCH($F18,$F$2:$F$20,0)),"")) ), " | خطا در ستون F","") ) & IF($G18="","", IF(TRIM($G18)<>TRIM(INDEX($G$2:$G$20,MATCH($A18,$A$2:$A$20,0))), " | خطا در ستون G","") ) & IF($H18="","", IF(TRIM($H18)<>TRIM(INDEX($H$2:$H$20,MATCH($A18,$A$2:$A$20,0))), " | خطا در ستون H","") ) & IF($I18="","", IF(TRIM($I18)<>TRIM(INDEX($I$2:$I$20,MATCH($A18,$A$2:$A$20,0))), " | خطا در ستون I","") ) & IF($J18="","", IF(TRIM($J18)<>TRIM(INDEX($J$2:$J$20,MATCH($A18,$A$2:$A$20,0))), " | خطا در ستون J","") ) & IF($K18="","", IF(TRIM($K18)<>TRIM(INDEX($K$2:$K$20,MATCH($A18,$A$2:$A$20,0))), " | خطا در ستون K","") ) & IF($L18="","", IF(TRIM($L18)<>TRIM(INDEX($L$2:$L$20,MATCH($A18,$A$2:$A$20,0))), " | خطا در ستون L","") ),4,1000) ) ->  | V18: خطا: ستون L اعشاري است | تقسيم M بر L نبايد بيش از ? رقم اعشار داشته باشد | اختلاف معادل 21,155 ريال
A19: 0125776164059 | B19: 1404/08/20 | C19: 4155274 | D19: 159,624 | E19: 10200 | F19: 6164059 | G19: 1404/08/20 | H19: 10200 | I19: USD | J19: 20965 | K19: 11765 | L19: 702808 | M19: 13993610088 | N19: 11229 | P19: =IF($A19="","", IF($M19="","", ROUND(IFERROR($M19/$L19,0),0) + IF( ROW()= LOOKUP( 2, 1/( ($A$2:$A$20=$A19)* (IFERROR($M$2:$M$20/$L$2:$L$20,0)= _xlfn.AGGREGATE(14,6, IFERROR($M$2:$M$20/$L$2:$L$20,0)/($A$2:$A$20=$A19), 1) ) ), ROW($A$2:$A$20) ), VALUE( SUBSTITUTE( SUBSTITUTE( SUBSTITUTE( INDEX($J$2:$J$20,MATCH($A19,$A$2:$A$20,0)), "٬",""), ",",""), "٫",".") ) - SUMPRODUCT( ROUND(IFERROR($M$2:$M$20/$L$2:$L$20,0),0)* --($A$2:$A$20=$A19) ), 0 ) ) ) -> 19911.03 | Q19: =IF($A19="","", _xlfn.LET( _xlpm.calc, P19*L19, _xlpm.real, M19, _xlpm.diffPct, IF(_xlpm.real=0,"",ABS(_xlpm.calc-_xlpm.real)/_xlpm.real), IF(_xlpm.diffPct>0.01, "⚠️ اعداد شما از واقعیت تفاوت معنادار دارد", ROUND(_xlpm.calc,0) ) ) ) -> 13993631172 | R19: =IF($A19="","", _xlfn.LET( _xlpm.ktxt, TRIM(SUBSTITUTE(SUBSTITUTE($K19,CHAR(160),"")," ","")), _xlpm.k, IF(_xlpm.ktxt="","", VALUE( SUBSTITUTE( SUBSTITUTE( SUBSTITUTE(_xlpm.ktxt,"٬",""), ",",""), "٫",".") ) ), _xlpm.sumN, SUMIF($F:$F,$F19,$N:$N), _xlpm.diff, IF(OR(_xlpm.k="",_xlpm.sumN=""),"",_xlpm.sumN-_xlpm.k), _xlpm.msgSumN, IF(OR(_xlpm.k="",_xlpm.sumN=""),"", IF(ROUND(_xlpm.diff,0)=0,"", "جمع N = " & TEXT(_xlpm.sumN,"#,##0") & " | K = " & TEXT(_xlpm.k,"#,##0") & " | اختلاف = " & TEXT(_xlpm.diff,"#,##0") ) ), _xlfn.TEXTJOIN(" | ",TRUE, _xlpm.msgSumN, IF($J19="","", IF( IFERROR( ABS( VALUE(SUBSTITUTE(SUBSTITUTE(SUBSTITUTE(TRIM($J19),"٬",""),",",""),"٫",".")) - ROUND(VALUE(SUBSTITUTE(SUBSTITUTE(SUBSTITUTE(TRIM($J19),"٬",""),",",""),"٫",".")),4) )>0.000000001, FALSE), "خطا: J بیش از ۴ رقم اعشار دارد","") ), IF($K19="","", IF( IFERROR( MOD(VALUE(SUBSTITUTE(SUBSTITUTE(SUBSTITUTE(TRIM($K19),"٬",""),",",""),"٫",".")),1)<>0, FALSE), "خطا: K (مجموع وزن خالص) اعشاری است","") ), IF($L19="","", IF( IFERROR( MOD(VALUE(SUBSTITUTE(SUBSTITUTE(SUBSTITUTE(TRIM($L19),"٬",""),",",""),"٫",".")),1)<>0, FALSE), "خطا: L (نرخ برابری ارز) اعشاری است","") ), IF($M19="","", IF( IFERROR( MOD(VALUE(SUBSTITUTE(SUBSTITUTE(SUBSTITUTE(TRIM($M19),"٬",""),",",""),"٫",".")),1)<>0, FALSE), "خطا: M اعشاری است","") ), IF($N19="","", IF( IFERROR( MOD(VALUE(SUBSTITUTE(SUBSTITUTE(SUBSTITUTE(TRIM($N19),"٬",""),",",""),"٫",".")),1)<>0, FALSE), "خطا: N (وزن خالص) اعشاری است","") ) ) ) ) ->  | S19: =IF($A19="","", _xlfn.LET( _xlpm.mtxt,TRIM($M19), _xlpm.ltxt,TRIM($L19), _xlpm.m,IF(_xlpm.mtxt="","",VALUE(SUBSTITUTE(SUBSTITUTE(SUBSTITUTE(SUBSTITUTE(_xlpm.mtxt,"٬",""),",",""),"٫","."),CHAR(160),""))), _xlpm.l,IF(_xlpm.ltxt="","",VALUE(SUBSTITUTE(SUBSTITUTE(SUBSTITUTE(SUBSTITUTE(_xlpm.ltxt,"٬",""),",",""),"٫","."),CHAR(160),""))), _xlpm.ratio,IF(OR(_xlpm.m="",_xlpm.l="",_xlpm.l=0),"",_xlpm.m/_xlpm.l), _xlpm.diff,IF(_xlpm.ratio="","",ABS(_xlpm.ratio-ROUND(_xlpm.ratio,4))), IF(OR(_xlpm.ratio="",_xlpm.diff<=0.000000001),"","تقسیم M بر L نباید بیشتر از 4 رقم اعشار باشد") ) ) ->  | T19: =IF($A19="","", IF(ROW()<>ROW(INDEX($A$2:$A$20,MATCH($A19,$A$2:$A$20,0))),"", IF( ROUND( VALUE( SUBSTITUTE( SUBSTITUTE( SUBSTITUTE( INDEX($J$2:$J$20,MATCH($A19,$A$2:$A$20,0)), "٬",""), ",",""), "٫",".") )*10000,0) <> ROUND( SUMPRODUCT( ($A$2:$A$20=$A19)* ROUND( IFERROR( VALUE(SUBSTITUTE(SUBSTITUTE(SUBSTITUTE($M$2:$M$20,"٬",""),",",""),"٫","."))/ VALUE(SUBSTITUTE(SUBSTITUTE(SUBSTITUTE($L$2:$L$20,"٬",""),",",""),"٫",".")), 0), 4) )*10000,0), "اختلاف معادل " & TEXT( ROUND( ( VALUE( SUBSTITUTE( SUBSTITUTE( SUBSTITUTE( INDEX($J$2:$J$20,MATCH($A19,$A$2:$A$20,0)), "٬",""), ",",""), "٫",".") ) - SUMPRODUCT( ($A$2:$A$20=$A19)* ROUND( IFERROR( VALUE(SUBSTITUTE(SUBSTITUTE(SUBSTITUTE($M$2:$M$20,"٬",""),",",""),"٫","."))/ VALUE(SUBSTITUTE(SUBSTITUTE(SUBSTITUTE($L$2:$L$20,"٬",""),",",""),"٫",".")), 0), 4) ) )* VALUE( SUBSTITUTE( SUBSTITUTE( SUBSTITUTE( INDEX($L$2:$L$20,MATCH($A19,$A$2:$A$20,0)), "٬",""), ",",""), "٫",".") ), 0 ), "#,##0" ) & " ریال", "" ) ) ) ->  | U19: =IF($A19="","", MID( IF($B19="","", IF(TRIM($B19)<>TRIM(INDEX($B$2:$B$20,MATCH($A19,$A$2:$A$20,0))), " | خطا در ستون B","") ) & IF($F19="","", IF( OR( TRIM($F19)<>TRIM(INDEX($F$2:$F$20,MATCH($A19,$A$2:$A$20,0))), TRIM($A19)<>TRIM(IFERROR(INDEX($A$2:$A$20,MATCH($F19,$F$2:$F$20,0)),"")) ), " | خطا در ستون F","") ) & IF($G19="","", IF(TRIM($G19)<>TRIM(INDEX($G$2:$G$20,MATCH($A19,$A$2:$A$20,0))), " | خطا در ستون G","") ) & IF($H19="","", IF(TRIM($H19)<>TRIM(INDEX($H$2:$H$20,MATCH($A19,$A$2:$A$20,0))), " | خطا در ستون H","") ) & IF($I19="","", IF(TRIM($I19)<>TRIM(INDEX($I$2:$I$20,MATCH($A19,$A$2:$A$20,0))), " | خطا در ستون I","") ) & IF($J19="","", IF(TRIM($J19)<>TRIM(INDEX($J$2:$J$20,MATCH($A19,$A$2:$A$20,0))), " | خطا در ستون J","") ) & IF($K19="","", IF(TRIM($K19)<>TRIM(INDEX($K$2:$K$20,MATCH($A19,$A$2:$A$20,0))), " | خطا در ستون K","") ) & IF($L19="","", IF(TRIM($L19)<>TRIM(INDEX($L$2:$L$20,MATCH($A19,$A$2:$A$20,0))), " | خطا در ستون L","") ),4,1000) ) -> خطا در ستون J | خطا در ستون L | V19: خطا در ستون J | خطا در ستون L
A20: 0125776164059 | B20: 1404/08/20 | C20: 4155288 | D20: 4,224 | E20: 10200 | F20: 6164059 | G20: 1404/08/20 | H20: 10200 | I20: USD | J20: 20100 | K20: 11765 | L20: 702808 | M20: 370379816 | N20: 266 | P20: =IF($A20="","", IF($M20="","", ROUND(IFERROR($M20/$L20,0),0) + IF( ROW()= LOOKUP( 2, 1/( ($A$2:$A$20=$A20)* (IFERROR($M$2:$M$20/$L$2:$L$20,0)= _xlfn.AGGREGATE(14,6, IFERROR($M$2:$M$20/$L$2:$L$20,0)/($A$2:$A$20=$A20), 1) ) ), ROW($A$2:$A$20) ), VALUE( SUBSTITUTE( SUBSTITUTE( SUBSTITUTE( INDEX($J$2:$J$20,MATCH($A20,$A$2:$A$20,0)), "٬",""), ",",""), "٫",".") ) - SUMPRODUCT( ROUND(IFERROR($M$2:$M$20/$L$2:$L$20,0),0)* --($A$2:$A$20=$A20) ), 0 ) ) ) -> 527 | Q20: =IF($A20="","", _xlfn.LET( _xlpm.calc, P20*L20, _xlpm.real, M20, _xlpm.diffPct, IF(_xlpm.real=0,"",ABS(_xlpm.calc-_xlpm.real)/_xlpm.real), IF(_xlpm.diffPct>0.01, "⚠️ اعداد شما از واقعیت تفاوت معنادار دارد", ROUND(_xlpm.calc,0) ) ) ) -> 370379816 | R20: =IF($A20="","", _xlfn.LET( _xlpm.ktxt, TRIM(SUBSTITUTE(SUBSTITUTE($K20,CHAR(160),"")," ","")), _xlpm.k, IF(_xlpm.ktxt="","", VALUE( SUBSTITUTE( SUBSTITUTE( SUBSTITUTE(_xlpm.ktxt,"٬",""), ",",""), "٫",".") ) ), _xlpm.sumN, SUMIF($F:$F,$F20,$N:$N), _xlpm.diff, IF(OR(_xlpm.k="",_xlpm.sumN=""),"",_xlpm.sumN-_xlpm.k), _xlpm.msgSumN, IF(OR(_xlpm.k="",_xlpm.sumN=""),"", IF(ROUND(_xlpm.diff,0)=0,"", "جمع N = " & TEXT(_xlpm.sumN,"#,##0") & " | K = " & TEXT(_xlpm.k,"#,##0") & " | اختلاف = " & TEXT(_xlpm.diff,"#,##0") ) ), _xlfn.TEXTJOIN(" | ",TRUE, _xlpm.msgSumN, IF($J20="","", IF( IFERROR( ABS( VALUE(SUBSTITUTE(SUBSTITUTE(SUBSTITUTE(TRIM($J20),"٬",""),",",""),"٫",".")) - ROUND(VALUE(SUBSTITUTE(SUBSTITUTE(SUBSTITUTE(TRIM($J20),"٬",""),",",""),"٫",".")),4) )>0.000000001, FALSE), "خطا: J بیش از ۴ رقم اعشار دارد","") ), IF($K20="","", IF( IFERROR( MOD(VALUE(SUBSTITUTE(SUBSTITUTE(SUBSTITUTE(TRIM($K20),"٬",""),",",""),"٫",".")),1)<>0, FALSE), "خطا: K (مجموع وزن خالص) اعشاری است","") ), IF($L20="","", IF( IFERROR( MOD(VALUE(SUBSTITUTE(SUBSTITUTE(SUBSTITUTE(TRIM($L20),"٬",""),",",""),"٫",".")),1)<>0, FALSE), "خطا: L (نرخ برابری ارز) اعشاری است","") ), IF($M20="","", IF( IFERROR( MOD(VALUE(SUBSTITUTE(SUBSTITUTE(SUBSTITUTE(TRIM($M20),"٬",""),",",""),"٫",".")),1)<>0, FALSE), "خطا: M اعشاری است","") ), IF($N20="","", IF( IFERROR( MOD(VALUE(SUBSTITUTE(SUBSTITUTE(SUBSTITUTE(TRIM($N20),"٬",""),",",""),"٫",".")),1)<>0, FALSE), "خطا: N (وزن خالص) اعشاری است","") ) ) ) ) ->  | S20: =IF($A20="","", _xlfn.LET( _xlpm.mtxt,TRIM($M20), _xlpm.ltxt,TRIM($L20), _xlpm.m,IF(_xlpm.mtxt="","",VALUE(SUBSTITUTE(SUBSTITUTE(SUBSTITUTE(SUBSTITUTE(_xlpm.mtxt,"٬",""),",",""),"٫","."),CHAR(160),""))), _xlpm.l,IF(_xlpm.ltxt="","",VALUE(SUBSTITUTE(SUBSTITUTE(SUBSTITUTE(SUBSTITUTE(_xlpm.ltxt,"٬",""),",",""),"٫","."),CHAR(160),""))), _xlpm.ratio,IF(OR(_xlpm.m="",_xlpm.l="",_xlpm.l=0),"",_xlpm.m/_xlpm.l), _xlpm.diff,IF(_xlpm.ratio="","",ABS(_xlpm.ratio-ROUND(_xlpm.ratio,4))), IF(OR(_xlpm.ratio="",_xlpm.diff<=0.000000001),"","تقسیم M بر L نباید بیشتر از 4 رقم اعشار باشد") ) ) ->  | T20: =IF($A20="","", IF(ROW()<>ROW(INDEX($A$2:$A$20,MATCH($A20,$A$2:$A$20,0))),"", IF( ROUND( VALUE( SUBSTITUTE( SUBSTITUTE( SUBSTITUTE( INDEX($J$2:$J$20,MATCH($A20,$A$2:$A$20,0)), "٬",""), ",",""), "٫",".") )*10000,0) <> ROUND( SUMPRODUCT( ($A$2:$A$20=$A20)* ROUND( IFERROR( VALUE(SUBSTITUTE(SUBSTITUTE(SUBSTITUTE($M$2:$M$20,"٬",""),",",""),"٫","."))/ VALUE(SUBSTITUTE(SUBSTITUTE(SUBSTITUTE($L$2:$L$20,"٬",""),",",""),"٫",".")), 0), 4) )*10000,0), "اختلاف معادل " & TEXT( ROUND( ( VALUE( SUBSTITUTE( SUBSTITUTE( SUBSTITUTE( INDEX($J$2:$J$20,MATCH($A20,$A$2:$A$20,0)), "٬",""), ",",""), "٫",".") ) - SUMPRODUCT( ($A$2:$A$20=$A20)* ROUND( IFERROR( VALUE(SUBSTITUTE(SUBSTITUTE(SUBSTITUTE($M$2:$M$20,"٬",""),",",""),"٫","."))/ VALUE(SUBSTITUTE(SUBSTITUTE(SUBSTITUTE($L$2:$L$20,"٬",""),",",""),"٫",".")), 0), 4) ) )* VALUE( SUBSTITUTE( SUBSTITUTE( SUBSTITUTE( INDEX($L$2:$L$20,MATCH($A20,$A$2:$A$20,0)), "٬",""), ",",""), "٫",".") ), 0 ), "#,##0" ) & " ریال", "" ) ) ) ->  | U20: =IF($A20="","", MID( IF($B20="","", IF(TRIM($B20)<>TRIM(INDEX($B$2:$B$20,MATCH($A20,$A$2:$A$20,0))), " | خطا در ستون B","") ) & IF($F20="","", IF( OR( TRIM($F20)<>TRIM(INDEX($F$2:$F$20,MATCH($A20,$A$2:$A$20,0))), TRIM($A20)<>TRIM(IFERROR(INDEX($A$2:$A$20,MATCH($F20,$F$2:$F$20,0)),"")) ), " | خطا در ستون F","") ) & IF($G20="","", IF(TRIM($G20)<>TRIM(INDEX($G$2:$G$20,MATCH($A20,$A$2:$A$20,0))), " | خطا در ستون G","") ) & IF($H20="","", IF(TRIM($H20)<>TRIM(INDEX($H$2:$H$20,MATCH($A20,$A$2:$A$20,0))), " | خطا در ستون H","") ) & IF($I20="","", IF(TRIM($I20)<>TRIM(INDEX($I$2:$I$20,MATCH($A20,$A$2:$A$20,0))), " | خطا در ستون I","") ) & IF($J20="","", IF(TRIM($J20)<>TRIM(INDEX($J$2:$J$20,MATCH($A20,$A$2:$A$20,0))), " | خطا در ستون J","") ) & IF($K20="","", IF(TRIM($K20)<>TRIM(INDEX($K$2:$K$20,MATCH($A20,$A$2:$A$20,0))), " | خطا در ستون K","") ) & IF($L20="","", IF(TRIM($L20)<>TRIM(INDEX($L$2:$L$20,MATCH($A20,$A$2:$A$20,0))), " | خطا در ستون L","") ),4,1000) ) -> خطا در ستون J | خطا در ستون L | V20: خطا در ستون J | خطا در ستون L
C22: 1- همه اختلافات باید حل شود ستون های p تا u فرمول دارند و هر خطا را جداگانه نمایشش میده 2- برای دریافت خطاها به صورت کلی در ستون v باید vba را اجرا کنید که قبل از آن نیاز هست developer را در اکسل فعال کنید پس از فعالسازی ماکرو را بزنید سپس run و یا دکمه ctrl+m را فشار دهید. 3- اگر برنامه اکسل شما قدیمی هست از شیت بعدی استفاده کنید | R22: ویدیو آموزشی

Sheet سیستم قدیمی
A1: شماره فاکتور | B1: تاریخ فاکتور | C1: کد کالا | D1: تعداد/مقدار | E1: شماره پروانه گمرکی | F1: شماره کوتاژ | G1: تاریخ گوتاژ | H1: کد گمرک اظهار | I1: نوع ارز | J1: مجموع ارزش ارزی | K1: مجموع وزن | L1: نرخ برابری ارز | M1: مبلغ کل کالا/خدمت ریالی | N1: وزن خالص (کیلوگرم) | O1: کد طرف حساب | P1: ارزی پیشنهادی | Q1: مبلغ ریالی پیشنهادی | R1: خطای اعشار در وزن و نرخ برابری ارز | S1: اختلاف وزن | T1: خطا در ستون m | U1: اختلاف | V1: براساس فاکتور باید ستونها f-g-h-i-j-k-l با هم برابر باشند | W1: خطا vba
A2: 470006795843 | B2: 1404/08/20 | C2: 4155371 | D2: 23,200 | E2: 15203 | F2: 795843 | G2: 1404/08/20 | H2: 15203 | I2: USD | J2: 9929 | K2: 23200 | L2: 704204 | M2: 6992041516 | N2: 23200 | P2: =IF($A2="","", IF($M2="","", ROUND(IFERROR($M2/$L2,0),0) + IF( ROW()= LOOKUP( 2, 1/( ($A$2:$A$398=$A2)* (IFERROR($M$2:$M$398/$L$2:$L$398,0)= _xlfn.AGGREGATE(14,6, IFERROR($M$2:$M$398/$L$2:$L$398,0)/($A$2:$A$398=$A2), 1) ) ), ROW($A$2:$A$398) ), VALUE( SUBSTITUTE( SUBSTITUTE( SUBSTITUTE( INDEX($J$2:$J$398,MATCH($A2,$A$2:$A$398,0)), "٬",""), ",",""), "٫",".") ) - SUMPRODUCT( ROUND(IFERROR($M$2:$M$398/$L$2:$L$398,0),0)* --($A$2:$A$398=$A2) ), 0 ) ) ) -> 9929 | Q2: =IF($A2="","", IF($M2="","", IF( IF($M2=0,"",ABS(P2*L2 - $M2)/$M2) > 0.01, "⚠️ اعداد شما از واقعیت تفاوت معنادار دارد", ROUND(P2*L2,0) ) ) ) -> 6992041516 | R2: =IF($A2="","", MID( IF($J2="","", IF( IFERROR( ABS( VALUE(SUBSTITUTE(SUBSTITUTE(SUBSTITUTE(TRIM($J2),"٬",""),",",""),"٫",".")) - ROUND(VALUE(SUBSTITUTE(SUBSTITUTE(SUBSTITUTE(TRIM($J2),"٬",""),",",""),"٫",".")),4) )>0.000000001, FALSE), " | خطا: J بیش از ۴ رقم اعشار دارد", "" ) ) & IF($K2="","", IF( IFERROR( MOD( VALUE(SUBSTITUTE(SUBSTITUTE(SUBSTITUTE(TRIM($K2),"٬",""),",",""),"٫",".")), 1)<>0, FALSE), " | خطا: K (مجموع وزن خالص) اعشاری است", "" ) ) & IF($L2="","", IF( IFERROR( MOD( VALUE(SUBSTITUTE(SUBSTITUTE(SUBSTITUTE(TRIM($L2),"٬",""),",",""),"٫",".")), 1)<>0, FALSE), " | خطا: L (نرخ برابری ارز) اعشاری است", "" ) ) & IF($M2="","", IF( IFERROR( MOD( VALUE(SUBSTITUTE(SUBSTITUTE(SUBSTITUTE(TRIM($M2),"٬",""),",",""),"٫",".")), 1)<>0, FALSE), " | خطا: M اعشاری است", "" ) ) & IF($N2="","", IF( IFERROR( MOD( VALUE(SUBSTITUTE(SUBSTITUTE(SUBSTITUTE(TRIM($N2),"٬",""),",",""),"٫",".")), 1)<>0, FALSE), " | خطا: N (وزن خالص) اعشاری است", "" ) ),4,1000) ) ->  | S2: =IF($F2="","", IF($K2="","", IF(SUMIF($F:$F,$F2,$N:$N)="","", IF( ROUND( SUMIF($F:$F,$F2,$N:$N) - VALUE(SUBSTITUTE(SUBSTITUTE(SUBSTITUTE(SUBSTITUTE(SUBSTITUTE(TRIM($K2),"٬",""),",",""),"٫","."),CHAR(160),"")," ","")), 0)=0, "", "جمع N = " & TEXT(SUMIF($F:$F,$F2,$N:$N),"#,##0") & " | K = " & TEXT(VALUE(SUBSTITUTE(SUBSTITUTE(SUBSTITUTE(SUBSTITUTE(SUBSTITUTE(TRIM($K2),"٬",""),",",""),"٫","."),CHAR(160),"")," ","")),"#,##0") & " | اختلاف = " & TEXT( SUMIF($F:$F,$F2,$N:$N) - VALUE(SUBSTITUTE(SUBSTITUTE(SUBSTITUTE(SUBSTITUTE(SUBSTITUTE(TRIM($K2),"٬",""),",",""),"٫","."),CHAR(160),"")," ","")), "#,##0") ) ) ) ) ->  | T2: =IF($A2="","", IF(OR($M2="",$L2=""),"", IF( L2=0, "", IF( ABS( VALUE(SUBSTITUTE(SUBSTITUTE(SUBSTITUTE(SUBSTITUTE(TRIM($M2),"٬",""),",",""),"٫","."),CHAR(160),"")) / VALUE(SUBSTITUTE(SUBSTITUTE(SUBSTITUTE(SUBSTITUTE(TRIM($L2),"٬",""),",",""),"٫","."),CHAR(160),"")) - ROUND( VALUE(SUBSTITUTE(SUBSTITUTE(SUBSTITUTE(SUBSTITUTE(TRIM($M2),"٬",""),",",""),"٫","."),CHAR(160),"")) / VALUE(SUBSTITUTE(SUBSTITUTE(SUBSTITUTE(SUBSTITUTE(TRIM($L2),"٬",""),",",""),"٫","."),CHAR(160),"")), 4) ) > 0.000000001, "تقسیم M بر L نباید بیشتر از 4 رقم اعشار باشد", "" ) ) ) ) ->  | U2: =IF($A2="","", IF(ROW()<>ROW(INDEX($A$2:$A$398,MATCH($A2,$A$2:$A$398,0))),"", IF( ROUND( VALUE( SUBSTITUTE( SUBSTITUTE( SUBSTITUTE( INDEX($J$2:$J$398,MATCH($A2,$A$2:$A$398,0)), "٬",""), ",",""), "٫",".") )*10000,0) <> ROUND( SUMPRODUCT( ($A$2:$A$398=$A2)* ROUND( IFERROR( VALUE(SUBSTITUTE(SUBSTITUTE(SUBSTITUTE($M$2:$M$398,"٬",""),",",""),"٫","."))/ VALUE(SUBSTITUTE(SUBSTITUTE(SUBSTITUTE($L$2:$L$398,"٬",""),",",""),"٫",".")), 0), 4) )*10000,0), "اختلاف معادل " & TEXT( ROUND( ( VALUE( SUBSTITUTE( SUBSTITUTE( SUBSTITUTE( INDEX($J$2:$J$398,MATCH($A2,$A$2:$A$398,0)), "٬",""), ",",""), "٫",".") ) - SUMPRODUCT( ($A$2:$A$398=$A2)* ROUND( IFERROR( VALUE(SUBSTITUTE(SUBSTITUTE(SUBSTITUTE($M$2:$M$398,"٬",""),",",""),"٫","."))/ VALUE(SUBSTITUTE(SUBSTITUTE(SUBSTITUTE($L$2:$L$398,"٬",""),",",""),"٫",".")), 0), 4) ) )* VALUE( SUBSTITUTE( SUBSTITUTE( SUBSTITUTE( INDEX($L$2:$L$398,MATCH($A2,$A$2:$A$398,0)), "٬",""), ",",""), "٫",".") ), 0 ), "#,##0" ) & " ریال", "" ) ) ) ->  | V2: =IF($A2="","", MID( IF($B2="","", IF(TRIM($B2)<>TRIM(INDEX($B$2:$B$227,MATCH($A2,$A$2:$A$227,0))), " | خطا در ستون B","") ) & IF($F2="","", IF( OR( TRIM($F2)<>TRIM(INDEX($F$2:$F$227,MATCH($A2,$A$2:$A$227,0))), TRIM($A2)<>TRIM(IFERROR(INDEX($A$2:$A$227,MATCH($F2,$F$2:$F$227,0)),"")) ), " | خطا در ستون F","") ) & IF($G2="","", IF(TRIM($G2)<>TRIM(INDEX($G$2:$G$227,MATCH($A2,$A$2:$A$227,0))), " | خطا در ستون G","") ) & IF($H2="","", IF(TRIM($H2)<>TRIM(INDEX($H$2:$H$227,MATCH($A2,$A$2:$A$227,0))), " | خطا در ستون H","") ) & IF($I2="","", IF(TRIM($I2)<>TRIM(INDEX($I$2:$I$227,MATCH($A2,$A$2:$A$227,0))), " | خطا در ستون I","") ) & IF($J2="","", IF(TRIM($J2)<>TRIM(INDEX($J$2:$J$227,MATCH($A2,$A$2:$A$227,0))), " | خطا در ستون J","") ) & IF($K2="","", IF(TRIM($K2)<>TRIM(INDEX($K$2:$K$227,MATCH($A2,$A$2:$A$227,0))), " | خطا در ستون K","") ) & IF($L2="","", IF(TRIM($L2)<>TRIM(INDEX($L$2:$L$227,MATCH($A2,$A$2:$A$227,0))), " | خطا در ستون L","") ),4,1000) ) -> 
A3: 470018796653 | B3: 1404/08/20 | C3: 4155403 | D3: 23,200 | E3: 15203 | F3: 796653 | G3: 1404/08/20 | H3: 15203 | I3: USD | J3: 19858 | K3: 46400 | L3: 702967 | M3: 6979759343 | N3: 23200 | P3: =IF($A3="","", IF($M3="","", ROUND(IFERROR($M3/$L3,0),0) + IF( ROW()= LOOKUP( 2, 1/( ($A$2:$A$398=$A3)* (IFERROR($M$2:$M$398/$L$2:$L$398,0)= _xlfn.AGGREGATE(14,6, IFERROR($M$2:$M$398/$L$2:$L$398,0)/($A$2:$A$398=$A3), 1) ) ), ROW($A$2:$A$398) ), VALUE( SUBSTITUTE( SUBSTITUTE( SUBSTITUTE( INDEX($J$2:$J$398,MATCH($A3,$A$2:$A$398,0)), "٬",""), ",",""), "٫",".") ) - SUMPRODUCT( ROUND(IFERROR($M$2:$M$398/$L$2:$L$398,0),0)* --($A$2:$A$398=$A3) ), 0 ) ) ) -> 9929 | Q3: =IF($A3="","", IF($M3="","", IF( IF($M3=0,"",ABS(P3*L3 - $M3)/$M3) > 0.01, "⚠️ اعداد شما از واقعیت تفاوت معنادار دارد", ROUND(P3*L3,0) ) ) ) -> 6979759343 | R3: =IF($A3="","", MID( IF($J3="","", IF( IFERROR( ABS( VALUE(SUBSTITUTE(SUBSTITUTE(SUBSTITUTE(TRIM($J3),"٬",""),",",""),"٫",".")) - ROUND(VALUE(SUBSTITUTE(SUBSTITUTE(SUBSTITUTE(TRIM($J3),"٬",""),",",""),"٫",".")),4) )>0.000000001, FALSE), " | خطا: J بیش از ۴ رقم اعشار دارد", "" ) ) & IF($K3="","", IF( IFERROR( MOD( VALUE(SUBSTITUTE(SUBSTITUTE(SUBSTITUTE(TRIM($K3),"٬",""),",",""),"٫",".")), 1)<>0, FALSE), " | خطا: K (مجموع وزن خالص) اعشاری است", "" ) ) & IF($L3="","", IF( IFERROR( MOD( VALUE(SUBSTITUTE(SUBSTITUTE(SUBSTITUTE(TRIM($L3),"٬",""),",",""),"٫",".")), 1)<>0, FALSE), " | خطا: L (نرخ برابری ارز) اعشاری است", "" ) ) & IF($M3="","", IF( IFERROR( MOD( VALUE(SUBSTITUTE(SUBSTITUTE(SUBSTITUTE(TRIM($M3),"٬",""),",",""),"٫",".")), 1)<>0, FALSE), " | خطا: M اعشاری است", "" ) ) & IF($N3="","", IF( IFERROR( MOD( VALUE(SUBSTITUTE(SUBSTITUTE(SUBSTITUTE(TRIM($N3),"٬",""),",",""),"٫",".")), 1)<>0, FALSE), " | خطا: N (وزن خالص) اعشاری است", "" ) ),4,1000) ) ->  | T3: =IF($A3="","", IF(OR($M3="",$L3=""),"", IF( L3=0, "", IF( ABS( VALUE(SUBSTITUTE(SUBSTITUTE(SUBSTITUTE(SUBSTITUTE(TRIM($M3),"٬",""),",",""),"٫","."),CHAR(160),"")) / VALUE(SUBSTITUTE(SUBSTITUTE(SUBSTITUTE(SUBSTITUTE(TRIM($L3),"٬",""),",",""),"٫","."),CHAR(160),"")) - ROUND( VALUE(SUBSTITUTE(SUBSTITUTE(SUBSTITUTE(SUBSTITUTE(TRIM($M3),"٬",""),",",""),"٫","."),CHAR(160),"")) / VALUE(SUBSTITUTE(SUBSTITUTE(SUBSTITUTE(SUBSTITUTE(TRIM($L3),"٬",""),",",""),"٫","."),CHAR(160),"")), 4) ) > 0.000000001, "تقسیم M بر L نباید بیشتر از 4 رقم اعشار باشد", "" ) ) ) ) ->  | U3: =IF($A3="","", IF(ROW()<>ROW(INDEX($A$2:$A$398,MATCH($A3,$A$2:$A$398,0))),"", IF( ROUND( VALUE( SUBSTITUTE( SUBSTITUTE( SUBSTITUTE( INDEX($J$2:$J$398,MATCH($A3,$A$2:$A$398,0)), "٬",""), ",",""), "٫",".") )*10000,0) <> ROUND( SUMPRODUCT( ($A$2:$A$398=$A3)* ROUND( IFERROR( VALUE(SUBSTITUTE(SUBSTITUTE(SUBSTITUTE($M$2:$M$398,"٬",""),",",""),"٫","."))/ VALUE(SUBSTITUTE(SUBSTITUTE(SUBSTITUTE($L$2:$L$398,"٬",""),",",""),"٫",".")), 0), 4) )*10000,0), "اختلاف معادل " & TEXT( ROUND( ( VALUE( SUBSTITUTE( SUBSTITUTE( SUBSTITUTE( INDEX($J$2:$J$398,MATCH($A3,$A$2:$A$398,0)), "٬",""), ",",""), "٫",".") ) - SUMPRODUCT( ($A$2:$A$398=$A3)* ROUND( IFERROR( VALUE(SUBSTITUTE(SUBSTITUTE(SUBSTITUTE($M$2:$M$398,"٬",""),",",""),"٫","."))/ VALUE(SUBSTITUTE(SUBSTITUTE(SUBSTITUTE($L$2:$L$398,"٬",""),",",""),"٫",".")), 0), 4) ) )* VALUE( SUBSTITUTE( SUBSTITUTE( SUBSTITUTE( INDEX($L$2:$L$398,MATCH($A3,$A$2:$A$398,0)), "٬",""), ",",""), "٫",".") ), 0 ), "#,##0" ) & " ریال", "" ) ) ) -> 
A4: 470018796653 | B4: 1404/08/20 | C4: 4155403 | D4: 23,200 | E4: 15203 | F4: 796653 | G4: 1404/08/20 | H4: 15203 | I4: USD | J4: 19858 | K4: 46400 | L4: 702967 | M4: 6979759343 | N4: 23200 | P4: =IF($A4="","", IF($M4="","", ROUND(IFERROR($M4/$L4,0),0) + IF( ROW()= LOOKUP( 2, 1/( ($A$2:$A$398=$A4)* (IFERROR($M$2:$M$398/$L$2:$L$398,0)= _xlfn.AGGREGATE(14,6, IFERROR($M$2:$M$398/$L$2:$L$398,0)/($A$2:$A$398=$A4), 1) ) ), ROW($A$2:$A$398) ), VALUE( SUBSTITUTE( SUBSTITUTE( SUBSTITUTE( INDEX($J$2:$J$398,MATCH($A4,$A$2:$A$398,0)), "٬",""), ",",""), "٫",".") ) - SUMPRODUCT( ROUND(IFERROR($M$2:$M$398/$L$2:$L$398,0),0)* --($A$2:$A$398=$A4) ), 0 ) ) ) -> 9929 | Q4: 6979759343 | U4: =IF($A4="","", IF(ROW()<>ROW(INDEX($A$2:$A$398,MATCH($A4,$A$2:$A$398,0))),"", IF( ROUND( VALUE( SUBSTITUTE( SUBSTITUTE( SUBSTITUTE( INDEX($J$2:$J$398,MATCH($A4,$A$2:$A$398,0)), "٬",""), ",",""), "٫",".") )*10000,0) <> ROUND( SUMPRODUCT( ($A$2:$A$398=$A4)* ROUND( IFERROR( VALUE(SUBSTITUTE(SUBSTITUTE(SUBSTITUTE($M$2:$M$398,"٬",""),",",""),"٫","."))/ VALUE(SUBSTITUTE(SUBSTITUTE(SUBSTITUTE($L$2:$L$398,"٬",""),",",""),"٫",".")), 0), 4) )*10000,0), "اختلاف معادل " & TEXT( ROUND( ( VALUE( SUBSTITUTE( SUBSTITUTE( SUBSTITUTE( INDEX($J$2:$J$398,MATCH($A4,$A$2:$A$398,0)), "٬",""), ",",""), "٫",".") ) - SUMPRODUCT( ($A$2:$A$398=$A4)* ROUND( IFERROR( VALUE(SUBSTITUTE(SUBSTITUTE(SUBSTITUTE($M$2:$M$398,"٬",""),",",""),"٫","."))/ VALUE(SUBSTITUTE(SUBSTITUTE(SUBSTITUTE($L$2:$L$398,"٬",""),",",""),"٫",".")), 0), 4) ) )* VALUE( SUBSTITUTE( SUBSTITUTE( SUBSTITUTE( INDEX($L$2:$L$398,MATCH($A4,$A$2:$A$398,0)), "٬",""), ",",""), "٫",".") ), 0 ), "#,##0" ) & " ریال", "" ) ) ) -> 
A5: 470006796725 | B5: 1404/08/20 | C5: 4155371 | D5: 23,200 | E5: 15203 | F5: 796725 | G5: 1404/08/20 | H5: 15203 | I5: USD | J5: 9929 | K5: 23200 | L5: 702967 | M5: 6979759343 | N5: 23200 | P5: =IF($A5="","", IF($M5="","", ROUND(IFERROR($M5/$L5,0),0) + IF( ROW()= LOOKUP( 2, 1/( ($A$2:$A$398=$A5)* (IFERROR($M$2:$M$398/$L$2:$L$398,0)= _xlfn.AGGREGATE(14,6, IFERROR($M$2:$M$398/$L$2:$L$398,0)/($A$2:$A$398=$A5), 1) ) ), ROW($A$2:$A$398) ), VALUE( SUBSTITUTE( SUBSTITUTE( SUBSTITUTE( INDEX($J$2:$J$398,MATCH($A5,$A$2:$A$398,0)), "٬",""), ",",""), "٫",".") ) - SUMPRODUCT( ROUND(IFERROR($M$2:$M$398/$L$2:$L$398,0),0)* --($A$2:$A$398=$A5) ), 0 ) ) ) -> 9929 | Q5: 6979759343 | U5: =IF($A5="","", IF(ROW()<>ROW(INDEX($A$2:$A$398,MATCH($A5,$A$2:$A$398,0))),"", IF( ROUND( VALUE( SUBSTITUTE( SUBSTITUTE( SUBSTITUTE( INDEX($J$2:$J$398,MATCH($A5,$A$2:$A$398,0)), "٬",""), ",",""), "٫",".") )*10000,0) <> ROUND( SUMPRODUCT( ($A$2:$A$398=$A5)* ROUND( IFERROR( VALUE(SUBSTITUTE(SUBSTITUTE(SUBSTITUTE($M$2:$M$398,"٬",""),",",""),"٫","."))/ VALUE(SUBSTITUTE(SUBSTITUTE(SUBSTITUTE($L$2:$L$398,"٬",""),",",""),"٫",".")), 0), 4) )*10000,0), "اختلاف معادل " & TEXT( ROUND( ( VALUE( SUBSTITUTE( SUBSTITUTE( SUBSTITUTE( INDEX($J$2:$J$398,MATCH($A5,$A$2:$A$398,0)), "٬",""), ",",""), "٫",".") ) - SUMPRODUCT( ($A$2:$A$398=$A5)* ROUND( IFERROR( VALUE(SUBSTITUTE(SUBSTITUTE(SUBSTITUTE($M$2:$M$398,"٬",""),",",""),"٫","."))/ VALUE(SUBSTITUTE(SUBSTITUTE(SUBSTITUTE($L$2:$L$398,"٬",""),",",""),"٫",".")), 0), 4) ) )* VALUE( SUBSTITUTE( SUBSTITUTE( SUBSTITUTE( INDEX($L$2:$L$398,MATCH($A5,$A$2:$A$398,0)), "٬",""), ",",""), "٫",".") ), 0 ), "#,##0" ) & " ریال", "" ) ) ) -> 
A6: 470018797029 | B6: 1404/08/20 | C6: 4152184 | D6: 1,560 | E6: 15203 | F6: 797029 | G6: 1404/08/20 | H6: 15203 | I6: USD | J6: 19967 | K6: 46390 | L6: 702967 | M6: 197533727 | N6: 390 | P6: =IF($A6="","", IF($M6="","", ROUND(IFERROR($M6/$L6,0),0) + IF( ROW()= LOOKUP( 2, 1/( ($A$2:$A$398=$A6)* (IFERROR($M$2:$M$398/$L$2:$L$398,0)= _xlfn.AGGREGATE(14,6, IFERROR($M$2:$M$398/$L$2:$L$398,0)/($A$2:$A$398=$A6), 1) ) ), ROW($A$2:$A$398) ), VALUE( SUBSTITUTE( SUBSTITUTE( SUBSTITUTE( INDEX($J$2:$J$398,MATCH($A6,$A$2:$A$398,0)), "٬",""), ",",""), "٫",".") ) - SUMPRODUCT( ROUND(IFERROR($M$2:$M$398/$L$2:$L$398,0),0)* --($A$2:$A$398=$A6) ), 0 ) ) ) -> 281 | Q6: 197533727 | U6: =IF($A6="","", IF(ROW()<>ROW(INDEX($A$2:$A$398,MATCH($A6,$A$2:$A$398,0))),"", IF( ROUND( VALUE( SUBSTITUTE( SUBSTITUTE( SUBSTITUTE( INDEX($J$2:$J$398,MATCH($A6,$A$2:$A$398,0)), "٬",""), ",",""), "٫",".") )*10000,0) <> ROUND( SUMPRODUCT( ($A$2:$A$398=$A6)* ROUND( IFERROR( VALUE(SUBSTITUTE(SUBSTITUTE(SUBSTITUTE($M$2:$M$398,"٬",""),",",""),"٫","."))/ VALUE(SUBSTITUTE(SUBSTITUTE(SUBSTITUTE($L$2:$L$398,"٬",""),",",""),"٫",".")), 0), 4) )*10000,0), "اختلاف معادل " & TEXT( ROUND( ( VALUE( SUBSTITUTE( SUBSTITUTE( SUBSTITUTE( INDEX($J$2:$J$398,MATCH($A6,$A$2:$A$398,0)), "٬",""), ",",""), "٫",".") ) - SUMPRODUCT( ($A$2:$A$398=$A6)* ROUND( IFERROR( VALUE(SUBSTITUTE(SUBSTITUTE(SUBSTITUTE($M$2:$M$398,"٬",""),",",""),"٫","."))/ VALUE(SUBSTITUTE(SUBSTITUTE(SUBSTITUTE($L$2:$L$398,"٬",""),",",""),"٫",".")), 0), 4) ) )* VALUE( SUBSTITUTE( SUBSTITUTE( SUBSTITUTE( INDEX($L$2:$L$398,MATCH($A6,$A$2:$A$398,0)), "٬",""), ",",""), "٫",".") ), 0 ), "#,##0" ) & " ریال", "" ) ) ) -> 
A7: 470018797029 | B7: 1404/08/20 | C7: 4155371 | D7: 22,800 | E7: 15203 | F7: 797029 | G7: 1404/08/20 | H7: 15203 | I7: USD | J7: 19967 | K7: 46390 | L7: 702967 | M7: 6858849019 | N7: 23473 | P7: =IF($A7="","", IF($M7="","", ROUND(IFERROR($M7/$L7,0),0) + IF( ROW()= LOOKUP( 2, 1/( ($A$2:$A$398=$A7)* (IFERROR($M$2:$M$398/$L$2:$L$398,0)= _xlfn.AGGREGATE(14,6, IFERROR($M$2:$M$398/$L$2:$L$398,0)/($A$2:$A$398=$A7), 1) ) ), ROW($A$2:$A$398) ), VALUE( SUBSTITUTE( SUBSTITUTE( SUBSTITUTE( INDEX($J$2:$J$398,MATCH($A7,$A$2:$A$398,0)), "٬",""), ",",""), "٫",".") ) - SUMPRODUCT( ROUND(IFERROR($M$2:$M$398/$L$2:$L$398,0),0)* --($A$2:$A$398=$A7) ), 0 ) ) ) -> 9757 | Q7: 6858849019 | U7: =IF($A7="","", IF(ROW()<>ROW(INDEX($A$2:$A$398,MATCH($A7,$A$2:$A$398,0))),"", IF( ROUND( VALUE( SUBSTITUTE( SUBSTITUTE( SUBSTITUTE( INDEX($J$2:$J$398,MATCH($A7,$A$2:$A$398,0)), "٬",""), ",",""), "٫",".") )*10000,0) <> ROUND( SUMPRODUCT( ($A$2:$A$398=$A7)* ROUND( IFERROR( VALUE(SUBSTITUTE(SUBSTITUTE(SUBSTITUTE($M$2:$M$398,"٬",""),",",""),"٫","."))/ VALUE(SUBSTITUTE(SUBSTITUTE(SUBSTITUTE($L$2:$L$398,"٬",""),",",""),"٫",".")), 0), 4) )*10000,0), "اختلاف معادل " & TEXT( ROUND( ( VALUE( SUBSTITUTE( SUBSTITUTE( SUBSTITUTE( INDEX($J$2:$J$398,MATCH($A7,$A$2:$A$398,0)), "٬",""), ",",""), "٫",".") ) - SUMPRODUCT( ($A$2:$A$398=$A7)* ROUND( IFERROR( VALUE(SUBSTITUTE(SUBSTITUTE(SUBSTITUTE($M$2:$M$398,"٬",""),",",""),"٫","."))/ VALUE(SUBSTITUTE(SUBSTITUTE(SUBSTITUTE($L$2:$L$398,"٬",""),",",""),"٫",".")), 0), 4) ) )* VALUE( SUBSTITUTE( SUBSTITUTE( SUBSTITUTE( INDEX($L$2:$L$398,MATCH($A7,$A$2:$A$398,0)), "٬",""), ",",""), "٫",".") ), 0 ), "#,##0" ) & " ریال", "" ) ) ) -> 
A8: 470018797029 | B8: 1404/08/20 | C8: 4155403 | D8: 23,200 | E8: 15203 | F8: 797029 | G8: 1404/08/20 | H8: 15203 | I8: USD | J8: 19967 | K8: 46390 | L8: 702967 | M8: 6979759343 | N8: 22527 | P8: =IF($A8="","", IF($M8="","", ROUND(IFERROR($M8/$L8,0),0) + IF( ROW()= LOOKUP( 2, 1/( ($A$2:$A$398=$A8)* (IFERROR($M$2:$M$398/$L$2:$L$398,0)= _xlfn.AGGREGATE(14,6, IFERROR($M$2:$M$398/$L$2:$L$398,0)/($A$2:$A$398=$A8), 1) ) ), ROW($A$2:$A$398) ), VALUE( SUBSTITUTE( SUBSTITUTE( SUBSTITUTE( INDEX($J$2:$J$398,MATCH($A8,$A$2:$A$398,0)), "٬",""), ",",""), "٫",".") ) - SUMPRODUCT( ROUND(IFERROR($M$2:$M$398/$L$2:$L$398,0),0)* --($A$2:$A$398=$A8) ), 0 ) ) ) -> 9929 | Q8: 6979759343 | U8: =IF($A8="","", IF(ROW()<>ROW(INDEX($A$2:$A$398,MATCH($A8,$A$2:$A$398,0))),"", IF( ROUND( VALUE( SUBSTITUTE( SUBSTITUTE( SUBSTITUTE( INDEX($J$2:$J$398,MATCH($A8,$A$2:$A$398,0)), "٬",""), ",",""), "٫",".") )*10000,0) <> ROUND( SUMPRODUCT( ($A$2:$A$398=$A8)* ROUND( IFERROR( VALUE(SUBSTITUTE(SUBSTITUTE(SUBSTITUTE($M$2:$M$398,"٬",""),",",""),"٫","."))/ VALUE(SUBSTITUTE(SUBSTITUTE(SUBSTITUTE($L$2:$L$398,"٬",""),",",""),"٫",".")), 0), 4) )*10000,0), "اختلاف معادل " & TEXT( ROUND( ( VALUE( SUBSTITUTE( SUBSTITUTE( SUBSTITUTE( INDEX($J$2:$J$398,MATCH($A8,$A$2:$A$398,0)), "٬",""), ",",""), "٫",".") ) - SUMPRODUCT( ($A$2:$A$398=$A8)* ROUND( IFERROR( VALUE(SUBSTITUTE(SUBSTITUTE(SUBSTITUTE($M$2:$M$398,"٬",""),",",""),"٫","."))/ VALUE(SUBSTITUTE(SUBSTITUTE(SUBSTITUTE($L$2:$L$398,"٬",""),",",""),"٫",".")), 0), 4) ) )* VALUE( SUBSTITUTE( SUBSTITUTE( SUBSTITUTE( INDEX($L$2:$L$398,MATCH($A8,$A$2:$A$398,0)), "٬",""), ",",""), "٫",".") ), 0 ), "#,##0" ) & " ریال", "" ) ) ) -> 
A9: 470006797758 | B9: 1404/08/20 | C9: 4155371 | D9: 23,200 | E9: 15203 | F9: 797758 | G9: 1404/08/20 | H9: 15203 | I9: USD | J9: 29787 | K9: 69600 | L9: 704090 | M9: 6990909610 | N9: 23884 | P9: =IF($A9="","", IF($M9="","", ROUND(IFERROR($M9/$L9,0),0) + IF( ROW()= LOOKUP( 2, 1/( ($A$2:$A$398=$A9)* (IFERROR($M$2:$M$398/$L$2:$L$398,0)= _xlfn.AGGREGATE(14,6, IFERROR($M$2:$M$398/$L$2:$L$398,0)/($A$2:$A$398=$A9), 1) ) ), ROW($A$2:$A$398) ), VALUE( SUBSTITUTE( SUBSTITUTE( SUBSTITUTE( INDEX($J$2:$J$398,MATCH($A9,$A$2:$A$398,0)), "٬",""), ",",""), "٫",".") ) - SUMPRODUCT( ROUND(IFERROR($M$2:$M$398/$L$2:$L$398,0),0)* --($A$2:$A$398=$A9) ), 0 ) ) ) -> 9929 | Q9: 6990909610 | U9: =IF($A9="","", IF(ROW()<>ROW(INDEX($A$2:$A$398,MATCH($A9,$A$2:$A$398,0))),"", IF( ROUND( VALUE( SUBSTITUTE( SUBSTITUTE( SUBSTITUTE( INDEX($J$2:$J$398,MATCH($A9,$A$2:$A$398,0)), "٬",""), ",",""), "٫",".") )*10000,0) <> ROUND( SUMPRODUCT( ($A$2:$A$398=$A9)* ROUND( IFERROR( VALUE(SUBSTITUTE(SUBSTITUTE(SUBSTITUTE($M$2:$M$398,"٬",""),",",""),"٫","."))/ VALUE(SUBSTITUTE(SUBSTITUTE(SUBSTITUTE($L$2:$L$398,"٬",""),",",""),"٫",".")), 0), 4) )*10000,0), "اختلاف معادل " & TEXT( ROUND( ( VALUE( SUBSTITUTE( SUBSTITUTE( SUBSTITUTE( INDEX($J$2:$J$398,MATCH($A9,$A$2:$A$398,0)), "٬",""), ",",""), "٫",".") ) - SUMPRODUCT( ($A$2:$A$398=$A9)* ROUND( IFERROR( VALUE(SUBSTITUTE(SUBSTITUTE(SUBSTITUTE($M$2:$M$398,"٬",""),",",""),"٫","."))/ VALUE(SUBSTITUTE(SUBSTITUTE(SUBSTITUTE($L$2:$L$398,"٬",""),",",""),"٫",".")), 0), 4) ) )* VALUE( SUBSTITUTE( SUBSTITUTE( SUBSTITUTE( INDEX($L$2:$L$398,MATCH($A9,$A$2:$A$398,0)), "٬",""), ",",""), "٫",".") ), 0 ), "#,##0" ) & " ریال", "" ) ) ) -> 
A10: 470006797758 | B10: 1404/08/20 | C10: 4155371 | D10: 23,200 | E10: 15203 | F10: 797758 | G10: 1404/08/20 | H10: 15203 | I10: USD | J10: 29787 | K10: 69600 | L10: 704090 | M10: 6990909610 | N10: 22832 | P10: =IF($A10="","", IF($M10="","", ROUND(IFERROR($M10/$L10,0),0) + IF( ROW()= LOOKUP( 2, 1/( ($A$2:$A$398=$A10)* (IFERROR($M$2:$M$398/$L$2:$L$398,0)= _xlfn.AGGREGATE(14,6, IFERROR($M$2:$M$398/$L$2:$L$398,0)/($A$2:$A$398=$A10), 1) ) ), ROW($A$2:$A$398) ), VALUE( SUBSTITUTE( SUBSTITUTE( SUBSTITUTE( INDEX($J$2:$J$398,MATCH($A10,$A$2:$A$398,0)), "٬",""), ",",""), "٫",".") ) - SUMPRODUCT( ROUND(IFERROR($M$2:$M$398/$L$2:$L$398,0),0)* --($A$2:$A$398=$A10) ), 0 ) ) ) -> 9929 | Q10: 6990909610 | U10: =IF($A10="","", IF(ROW()<>ROW(INDEX($A$2:$A$398,MATCH($A10,$A$2:$A$398,0))),"", IF( ROUND( VALUE( SUBSTITUTE( SUBSTITUTE( SUBSTITUTE( INDEX($J$2:$J$398,MATCH($A10,$A$2:$A$398,0)), "٬",""), ",",""), "٫",".") )*10000,0) <> ROUND( SUMPRODUCT( ($A$2:$A$398=$A10)* ROUND( IFERROR( VALUE(SUBSTITUTE(SUBSTITUTE(SUBSTITUTE($M$2:$M$398,"٬",""),",",""),"٫","."))/ VALUE(SUBSTITUTE(SUBSTITUTE(SUBSTITUTE($L$2:$L$398,"٬",""),",",""),"٫",".")), 0), 4) )*10000,0), "اختلاف معادل " & TEXT( ROUND( ( VALUE( SUBSTITUTE( SUBSTITUTE( SUBSTITUTE( INDEX($J$2:$J$398,MATCH($A10,$A$2:$A$398,0)), "٬",""), ",",""), "٫",".") ) - SUMPRODUCT( ($A$2:$A$398=$A10)* ROUND( IFERROR( VALUE(SUBSTITUTE(SUBSTITUTE(SUBSTITUTE($M$2:$M$398,"٬",""),",",""),"٫","."))/ VALUE(SUBSTITUTE(SUBSTITUTE(SUBSTITUTE($L$2:$L$398,"٬",""),",",""),"٫",".")), 0), 4) ) )* VALUE( SUBSTITUTE( SUBSTITUTE( SUBSTITUTE( INDEX($L$2:$L$398,MATCH($A10,$A$2:$A$398,0)), "٬",""), ",",""), "٫",".") ), 0 ), "#,##0" ) & " ریال", "" ) ) ) -> 
A11: 470006797758 | B11: 1404/08/20 | C11: 4155371 | D11: 23,200 | E11: 15203 | F11: 797758 | G11: 1404/08/20 | H11: 15203 | I11: USD | J11: 29787 | K11: 69600 | L11: 704090 | M11: 6990909610 | N11: 22884 | P11: =IF($A11="","", IF($M11="","", ROUND(IFERROR($M11/$L11,0),0) + IF( ROW()= LOOKUP( 2, 1/( ($A$2:$A$398=$A11)* (IFERROR($M$2:$M$398/$L$2:$L$398,0)= _xlfn.AGGREGATE(14,6, IFERROR($M$2:$M$398/$L$2:$L$398,0)/($A$2:$A$398=$A11), 1) ) ), ROW($A$2:$A$398) ), VALUE( SUBSTITUTE( SUBSTITUTE( SUBSTITUTE( INDEX($J$2:$J$398,MATCH($A11,$A$2:$A$398,0)), "٬",""), ",",""), "٫",".") ) - SUMPRODUCT( ROUND(IFERROR($M$2:$M$398/$L$2:$L$398,0),0)* --($A$2:$A$398=$A11) ), 0 ) ) ) -> 9929 | Q11: 6990909610 | U11: =IF($A11="","", IF(ROW()<>ROW(INDEX($A$2:$A$398,MATCH($A11,$A$2:$A$398,0))),"", IF( ROUND( VALUE( SUBSTITUTE( SUBSTITUTE( SUBSTITUTE( INDEX($J$2:$J$398,MATCH($A11,$A$2:$A$398,0)), "٬",""), ",",""), "٫",".") )*10000,0) <> ROUND( SUMPRODUCT( ($A$2:$A$398=$A11)* ROUND( IFERROR( VALUE(SUBSTITUTE(SUBSTITUTE(SUBSTITUTE($M$2:$M$398,"٬",""),",",""),"٫","."))/ VALUE(SUBSTITUTE(SUBSTITUTE(SUBSTITUTE($L$2:$L$398,"٬",""),",",""),"٫",".")), 0), 4) )*10000,0), "اختلاف معادل " & TEXT( ROUND( ( VALUE( SUBSTITUTE( SUBSTITUTE( SUBSTITUTE( INDEX($J$2:$J$398,MATCH($A11,$A$2:$A$398,0)), "٬",""), ",",""), "٫",".") ) - SUMPRODUCT( ($A$2:$A$398=$A11)* ROUND( IFERROR( VALUE(SUBSTITUTE(SUBSTITUTE(SUBSTITUTE($M$2:$M$398,"٬",""),",",""),"٫","."))/ VALUE(SUBSTITUTE(SUBSTITUTE(SUBSTITUTE($L$2:$L$398,"٬",""),",",""),"٫",".")), 0), 4) ) )* VALUE( SUBSTITUTE( SUBSTITUTE( SUBSTITUTE( INDEX($L$2:$L$398,MATCH($A11,$A$2:$A$398,0)), "٬",""), ",",""), "٫",".") ), 0 ), "#,##0" ) & " ریال", "" ) ) ) -> 
A12: 470006798518 | B12: 1404/08/20 | C12: 4155371 | D12: 23,200 | E12: 15203 | F12: 798518 | G12: 1404/08/20 | H12: 15203 | I12: USD | J12: 19858 | K12: 46400 | L12: 704177 | M12: 6991773433 | N12: 23200 | P12: =IF($A12="","", IF($M12="","", ROUND(IFERROR($M12/$L12,0),0) + IF( ROW()= LOOKUP( 2, 1/( ($A$2:$A$398=$A12)* (IFERROR($M$2:$M$398/$L$2:$L$398,0)= _xlfn.AGGREGATE(14,6, IFERROR($M$2:$M$398/$L$2:$L$398,0)/($A$2:$A$398=$A12), 1) ) ), ROW($A$2:$A$398) ), VALUE( SUBSTITUTE( SUBSTITUTE( SUBSTITUTE( INDEX($J$2:$J$398,MATCH($A12,$A$2:$A$398,0)), "٬",""), ",",""), "٫",".") ) - SUMPRODUCT( ROUND(IFERROR($M$2:$M$398/$L$2:$L$398,0),0)* --($A$2:$A$398=$A12) ), 0 ) ) ) -> 9929 | Q12: 6991773433 | U12: =IF($A12="","", IF(ROW()<>ROW(INDEX($A$2:$A$398,MATCH($A12,$A$2:$A$398,0))),"", IF( ROUND( VALUE( SUBSTITUTE( SUBSTITUTE( SUBSTITUTE( INDEX($J$2:$J$398,MATCH($A12,$A$2:$A$398,0)), "٬",""), ",",""), "٫",".") )*10000,0) <> ROUND( SUMPRODUCT( ($A$2:$A$398=$A12)* ROUND( IFERROR( VALUE(SUBSTITUTE(SUBSTITUTE(SUBSTITUTE($M$2:$M$398,"٬",""),",",""),"٫","."))/ VALUE(SUBSTITUTE(SUBSTITUTE(SUBSTITUTE($L$2:$L$398,"٬",""),",",""),"٫",".")), 0), 4) )*10000,0), "اختلاف معادل " & TEXT( ROUND( ( VALUE( SUBSTITUTE( SUBSTITUTE( SUBSTITUTE( INDEX($J$2:$J$398,MATCH($A12,$A$2:$A$398,0)), "٬",""), ",",""), "٫",".") ) - SUMPRODUCT( ($A$2:$A$398=$A12)* ROUND( IFERROR( VALUE(SUBSTITUTE(SUBSTITUTE(SUBSTITUTE($M$2:$M$398,"٬",""),",",""),"٫","."))/ VALUE(SUBSTITUTE(SUBSTITUTE(SUBSTITUTE($L$2:$L$398,"٬",""),",",""),"٫",".")), 0), 4) ) )* VALUE( SUBSTITUTE( SUBSTITUTE( SUBSTITUTE( INDEX($L$2:$L$398,MATCH($A12,$A$2:$A$398,0)), "٬",""), ",",""), "٫",".") ), 0 ), "#,##0" ) & " ریال", "" ) ) ) -> 
A13: 470006798518 | B13: 1404/08/20 | C13: 4155371 | D13: 23,200 | E13: 15203 | F13: 798518 | G13: 1404/08/20 | H13: 15203 | I13: USD | J13: 19858 | K13: 46400 | L13: 704177 | M13: 6991773433 | N13: 23200 | P13: =IF($A13="","", IF($M13="","", ROUND(IFERROR($M13/$L13,0),0) + IF( ROW()= LOOKUP( 2, 1/( ($A$2:$A$398=$A13)* (IFERROR($M$2:$M$398/$L$2:$L$398,0)= _xlfn.AGGREGATE(14,6, IFERROR($M$2:$M$398/$L$2:$L$398,0)/($A$2:$A$398=$A13), 1) ) ), ROW($A$2:$A$398) ), VALUE( SUBSTITUTE( SUBSTITUTE( SUBSTITUTE( INDEX($J$2:$J$398,MATCH($A13,$A$2:$A$398,0)), "٬",""), ",",""), "٫",".") ) - SUMPRODUCT( ROUND(IFERROR($M$2:$M$398/$L$2:$L$398,0),0)* --($A$2:$A$398=$A13) ), 0 ) ) ) -> 9929 | Q13: 6991773433 | U13: =IF($A13="","", IF(ROW()<>ROW(INDEX($A$2:$A$398,MATCH($A13,$A$2:$A$398,0))),"", IF( ROUND( VALUE( SUBSTITUTE( SUBSTITUTE( SUBSTITUTE( INDEX($J$2:$J$398,MATCH($A13,$A$2:$A$398,0)), "٬",""), ",",""), "٫",".") )*10000,0) <> ROUND( SUMPRODUCT( ($A$2:$A$398=$A13)* ROUND( IFERROR( VALUE(SUBSTITUTE(SUBSTITUTE(SUBSTITUTE($M$2:$M$398,"٬",""),",",""),"٫","."))/ VALUE(SUBSTITUTE(SUBSTITUTE(SUBSTITUTE($L$2:$L$398,"٬",""),",",""),"٫",".")), 0), 4) )*10000,0), "اختلاف معادل " & TEXT( ROUND( ( VALUE( SUBSTITUTE( SUBSTITUTE( SUBSTITUTE( INDEX($J$2:$J$398,MATCH($A13,$A$2:$A$398,0)), "٬",""), ",",""), "٫",".") ) - SUMPRODUCT( ($A$2:$A$398=$A13)* ROUND( IFERROR( VALUE(SUBSTITUTE(SUBSTITUTE(SUBSTITUTE($M$2:$M$398,"٬",""),",",""),"٫","."))/ VALUE(SUBSTITUTE(SUBSTITUTE(SUBSTITUTE($L$2:$L$398,"٬",""),",",""),"٫",".")), 0), 4) ) )* VALUE( SUBSTITUTE( SUBSTITUTE( SUBSTITUTE( INDEX($L$2:$L$398,MATCH($A13,$A$2:$A$398,0)), "٬",""), ",",""), "٫",".") ), 0 ), "#,##0" ) & " ریال", "" ) ) ) -> 
A14: 470008798521 | B14: 1404/08/20 | C14: 4155354 | D14: 190,512 | E14: 15203 | F14: 798521 | G14: 1404/08/20 | H14: 15203 | I14: USD | J14: 22918 | K14: 19051 | L14: 704177 | M14: 16138328486 | N14: 19051 | P14: =IF($A14="","", IF($M14="","", ROUND(IFERROR($M14/$L14,0),0) + IF( ROW()= LOOKUP( 2, 1/( ($A$2:$A$398=$A14)* (IFERROR($M$2:$M$398/$L$2:$L$398,0)= _xlfn.AGGREGATE(14,6, IFERROR($M$2:$M$398/$L$2:$L$398,0)/($A$2:$A$398=$A14), 1) ) ), ROW($A$2:$A$398) ), VALUE( SUBSTITUTE( SUBSTITUTE( SUBSTITUTE( INDEX($J$2:$J$398,MATCH($A14,$A$2:$A$398,0)), "٬",""), ",",""), "٫",".") ) - SUMPRODUCT( ROUND(IFERROR($M$2:$M$398/$L$2:$L$398,0),0)* --($A$2:$A$398=$A14) ), 0 ) ) ) -> 22918 | Q14: 16138328486 | U14: =IF($A14="","", IF(ROW()<>ROW(INDEX($A$2:$A$398,MATCH($A14,$A$2:$A$398,0))),"", IF( ROUND( VALUE( SUBSTITUTE( SUBSTITUTE( SUBSTITUTE( INDEX($J$2:$J$398,MATCH($A14,$A$2:$A$398,0)), "٬",""), ",",""), "٫",".") )*10000,0) <> ROUND( SUMPRODUCT( ($A$2:$A$398=$A14)* ROUND( IFERROR( VALUE(SUBSTITUTE(SUBSTITUTE(SUBSTITUTE($M$2:$M$398,"٬",""),",",""),"٫","."))/ VALUE(SUBSTITUTE(SUBSTITUTE(SUBSTITUTE($L$2:$L$398,"٬",""),",",""),"٫",".")), 0), 4) )*10000,0), "اختلاف معادل " & TEXT( ROUND( ( VALUE( SUBSTITUTE( SUBSTITUTE( SUBSTITUTE( INDEX($J$2:$J$398,MATCH($A14,$A$2:$A$398,0)), "٬",""), ",",""), "٫",".") ) - SUMPRODUCT( ($A$2:$A$398=$A14)* ROUND( IFERROR( VALUE(SUBSTITUTE(SUBSTITUTE(SUBSTITUTE($M$2:$M$398,"٬",""),",",""),"٫","."))/ VALUE(SUBSTITUTE(SUBSTITUTE(SUBSTITUTE($L$2:$L$398,"٬",""),",",""),"٫",".")), 0), 4) ) )* VALUE( SUBSTITUTE( SUBSTITUTE( SUBSTITUTE( INDEX($L$2:$L$398,MATCH($A14,$A$2:$A$398,0)), "٬",""), ",",""), "٫",".") ), 0 ), "#,##0" ) & " ریال", "" ) ) ) -> 
A15: 470006798873 | B15: 1404/08/20 | C15: 4155371 | D15: 23,200 | E15: 15203 | F15: 798873 | G15: 1404/08/20 | H15: 15203 | I15: USD | J15: 19858 | K15: 46400 | L15: 704177 | M15: 6991773433 | N15: 23200 | P15: =IF($A15="","", IF($M15="","", ROUND(IFERROR($M15/$L15,0),0) + IF( ROW()= LOOKUP( 2, 1/( ($A$2:$A$398=$A15)* (IFERROR($M$2:$M$398/$L$2:$L$398,0)= _xlfn.AGGREGATE(14,6, IFERROR($M$2:$M$398/$L$2:$L$398,0)/($A$2:$A$398=$A15), 1) ) ), ROW($A$2:$A$398) ), VALUE( SUBSTITUTE( SUBSTITUTE( SUBSTITUTE( INDEX($J$2:$J$398,MATCH($A15,$A$2:$A$398,0)), "٬",""), ",",""), "٫",".") ) - SUMPRODUCT( ROUND(IFERROR($M$2:$M$398/$L$2:$L$398,0),0)* --($A$2:$A$398=$A15) ), 0 ) ) ) -> 9929 | Q15: 6991773433 | U15: =IF($A15="","", IF(ROW()<>ROW(INDEX($A$2:$A$398,MATCH($A15,$A$2:$A$398,0))),"", IF( ROUND( VALUE( SUBSTITUTE( SUBSTITUTE( SUBSTITUTE( INDEX($J$2:$J$398,MATCH($A15,$A$2:$A$398,0)), "٬",""), ",",""), "٫",".") )*10000,0) <> ROUND( SUMPRODUCT( ($A$2:$A$398=$A15)* ROUND( IFERROR( VALUE(SUBSTITUTE(SUBSTITUTE(SUBSTITUTE($M$2:$M$398,"٬",""),",",""),"٫","."))/ VALUE(SUBSTITUTE(SUBSTITUTE(SUBSTITUTE($L$2:$L$398,"٬",""),",",""),"٫",".")), 0), 4) )*10000,0), "اختلاف معادل " & TEXT( ROUND( ( VALUE( SUBSTITUTE( SUBSTITUTE( SUBSTITUTE( INDEX($J$2:$J$398,MATCH($A15,$A$2:$A$398,0)), "٬",""), ",",""), "٫",".") ) - SUMPRODUCT( ($A$2:$A$398=$A15)* ROUND( IFERROR( VALUE(SUBSTITUTE(SUBSTITUTE(SUBSTITUTE($M$2:$M$398,"٬",""),",",""),"٫","."))/ VALUE(SUBSTITUTE(SUBSTITUTE(SUBSTITUTE($L$2:$L$398,"٬",""),",",""),"٫",".")), 0), 4) ) )* VALUE( SUBSTITUTE( SUBSTITUTE( SUBSTITUTE( INDEX($L$2:$L$398,MATCH($A15,$A$2:$A$398,0)), "٬",""), ",",""), "٫",".") ), 0 ), "#,##0" ) & " ریال", "" ) ) ) -> 
A16: 470006798873 | B16: 1404/08/20 | C16: 4155371 | D16: 23,200 | E16: 15203 | F16: 798873 | G16: 1404/08/20 | H16: 15203 | I16: USD | J16: 19858 | K16: 46400 | L16: 704177 | M16: 6991773433 | N16: 23200 | P16: =IF($A16="","", IF($M16="","", ROUND(IFERROR($M16/$L16,0),0) + IF( ROW()= LOOKUP( 2, 1/( ($A$2:$A$398=$A16)* (IFERROR($M$2:$M$398/$L$2:$L$398,0)= _xlfn.AGGREGATE(14,6, IFERROR($M$2:$M$398/$L$2:$L$398,0)/($A$2:$A$398=$A16), 1) ) ), ROW($A$2:$A$398) ), VALUE( SUBSTITUTE( SUBSTITUTE( SUBSTITUTE( INDEX($J$2:$J$398,MATCH($A16,$A$2:$A$398,0)), "٬",""), ",",""), "٫",".") ) - SUMPRODUCT( ROUND(IFERROR($M$2:$M$398/$L$2:$L$398,0),0)* --($A$2:$A$398=$A16) ), 0 ) ) ) -> 9929 | Q16: 6991773433 | U16: =IF($A16="","", IF(ROW()<>ROW(INDEX($A$2:$A$398,MATCH($A16,$A$2:$A$398,0))),"", IF( ROUND( VALUE( SUBSTITUTE( SUBSTITUTE( SUBSTITUTE( INDEX($J$2:$J$398,MATCH($A16,$A$2:$A$398,0)), "٬",""), ",",""), "٫",".") )*10000,0) <> ROUND( SUMPRODUCT( ($A$2:$A$398=$A16)* ROUND( IFERROR( VALUE(SUBSTITUTE(SUBSTITUTE(SUBSTITUTE($M$2:$M$398,"٬",""),",",""),"٫","."))/ VALUE(SUBSTITUTE(SUBSTITUTE(SUBSTITUTE($L$2:$L$398,"٬",""),",",""),"٫",".")), 0), 4) )*10000,0), "اختلاف معادل " & TEXT( ROUND( ( VALUE( SUBSTITUTE( SUBSTITUTE( SUBSTITUTE( INDEX($J$2:$J$398,MATCH($A16,$A$2:$A$398,0)), "٬",""), ",",""), "٫",".") ) - SUMPRODUCT( ($A$2:$A$398=$A16)* ROUND( IFERROR( VALUE(SUBSTITUTE(SUBSTITUTE(SUBSTITUTE($M$2:$M$398,"٬",""),",",""),"٫","."))/ VALUE(SUBSTITUTE(SUBSTITUTE(SUBSTITUTE($L$2:$L$398,"٬",""),",",""),"٫",".")), 0), 4) ) )* VALUE( SUBSTITUTE( SUBSTITUTE( SUBSTITUTE( INDEX($L$2:$L$398,MATCH($A16,$A$2:$A$398,0)), "٬",""), ",",""), "٫",".") ), 0 ), "#,##0" ) & " ریال", "" ) ) ) -> 
A17: 470018799641 | B17: 1404/08/20 | C17: 4155371 | D17: 1,210 | E17: 15203 | F17: 799641 | G17: 1404/08/20 | H17: 15203 | I17: USD | J17: 19824 | K17: 46320 | L17: 703898 | M17: 364619164 | N17: 1246 | P17: =IF($A17="","", IF($M17="","", ROUND(IFERROR($M17/$L17,0),0) + IF( ROW()= LOOKUP( 2, 1/( ($A$2:$A$398=$A17)* (IFERROR($M$2:$M$398/$L$2:$L$398,0)= _xlfn.AGGREGATE(14,6, IFERROR($M$2:$M$398/$L$2:$L$398,0)/($A$2:$A$398=$A17), 1) ) ), ROW($A$2:$A$398) ), VALUE( SUBSTITUTE( SUBSTITUTE( SUBSTITUTE( INDEX($J$2:$J$398,MATCH($A17,$A$2:$A$398,0)), "٬",""), ",",""), "٫",".") ) - SUMPRODUCT( ROUND(IFERROR($M$2:$M$398/$L$2:$L$398,0),0)* --($A$2:$A$398=$A17) ), 0 ) ) ) -> 518 | Q17: 364619164 | U17: =IF($A17="","", IF(ROW()<>ROW(INDEX($A$2:$A$398,MATCH($A17,$A$2:$A$398,0))),"", IF( ROUND( VALUE( SUBSTITUTE( SUBSTITUTE( SUBSTITUTE( INDEX($J$2:$J$398,MATCH($A17,$A$2:$A$398,0)), "٬",""), ",",""), "٫",".") )*10000,0) <> ROUND( SUMPRODUCT( ($A$2:$A$398=$A17)* ROUND( IFERROR( VALUE(SUBSTITUTE(SUBSTITUTE(SUBSTITUTE($M$2:$M$398,"٬",""),",",""),"٫","."))/ VALUE(SUBSTITUTE(SUBSTITUTE(SUBSTITUTE($L$2:$L$398,"٬",""),",",""),"٫",".")), 0), 4) )*10000,0), "اختلاف معادل " & TEXT( ROUND( ( VALUE( SUBSTITUTE( SUBSTITUTE( SUBSTITUTE( INDEX($J$2:$J$398,MATCH($A17,$A$2:$A$398,0)), "٬",""), ",",""), "٫",".") ) - SUMPRODUCT( ($A$2:$A$398=$A17)* ROUND( IFERROR( VALUE(SUBSTITUTE(SUBSTITUTE(SUBSTITUTE($M$2:$M$398,"٬",""),",",""),"٫","."))/ VALUE(SUBSTITUTE(SUBSTITUTE(SUBSTITUTE($L$2:$L$398,"٬",""),",",""),"٫",".")), 0), 4) ) )* VALUE( SUBSTITUTE( SUBSTITUTE( SUBSTITUTE( INDEX($L$2:$L$398,MATCH($A17,$A$2:$A$398,0)), "٬",""), ",",""), "٫",".") ), 0 ), "#,##0" ) & " ریال", "" ) ) ) -> 
A18: 470018799641 | B18: 1404/08/20 | C18: 4155403 | D18: 23,200 | E18: 15203 | F18: 799641 | G18: 1404/08/20 | H18: 15203 | I18: USD | J18: 19824 | K18: 46320 | L18: 703898 | M18: 6989003242 | N18: 22884 | P18: =IF($A18="","", IF($M18="","", ROUND(IFERROR($M18/$L18,0),0) + IF( ROW()= LOOKUP( 2, 1/( ($A$2:$A$398=$A18)* (IFERROR($M$2:$M$398/$L$2:$L$398,0)= _xlfn.AGGREGATE(14,6, IFERROR($M$2:$M$398/$L$2:$L$398,0)/($A$2:$A$398=$A18), 1) ) ), ROW($A$2:$A$398) ), VALUE( SUBSTITUTE( SUBSTITUTE( SUBSTITUTE( INDEX($J$2:$J$398,MATCH($A18,$A$2:$A$398,0)), "٬",""), ",",""), "٫",".") ) - SUMPRODUCT( ROUND(IFERROR($M$2:$M$398/$L$2:$L$398,0),0)* --($A$2:$A$398=$A18) ), 0 ) ) ) -> 9929 | Q18: 6989003242 | U18: =IF($A18="","", IF(ROW()<>ROW(INDEX($A$2:$A$398,MATCH($A18,$A$2:$A$398,0))),"", IF( ROUND( VALUE( SUBSTITUTE( SUBSTITUTE( SUBSTITUTE( INDEX($J$2:$J$398,MATCH($A18,$A$2:$A$398,0)), "٬",""), ",",""), "٫",".") )*10000,0) <> ROUND( SUMPRODUCT( ($A$2:$A$398=$A18)* ROUND( IFERROR( VALUE(SUBSTITUTE(SUBSTITUTE(SUBSTITUTE($M$2:$M$398,"٬",""),",",""),"٫","."))/ VALUE(SUBSTITUTE(SUBSTITUTE(SUBSTITUTE($L$2:$L$398,"٬",""),",",""),"٫",".")), 0), 4) )*10000,0), "اختلاف معادل " & TEXT( ROUND( ( VALUE( SUBSTITUTE( SUBSTITUTE( SUBSTITUTE( INDEX($J$2:$J$398,MATCH($A18,$A$2:$A$398,0)), "٬",""), ",",""), "٫",".") ) - SUMPRODUCT( ($A$2:$A$398=$A18)* ROUND( IFERROR( VALUE(SUBSTITUTE(SUBSTITUTE(SUBSTITUTE($M$2:$M$398,"٬",""),",",""),"٫","."))/ VALUE(SUBSTITUTE(SUBSTITUTE(SUBSTITUTE($L$2:$L$398,"٬",""),",",""),"٫",".")), 0), 4) ) )* VALUE( SUBSTITUTE( SUBSTITUTE( SUBSTITUTE( INDEX($L$2:$L$398,MATCH($A18,$A$2:$A$398,0)), "٬",""), ",",""), "٫",".") ), 0 ), "#,##0" ) & " ریال", "" ) ) ) -> 
A19: 470018799641 | B19: 1404/08/20 | C19: 4155403 | D19: 21,910 | E19: 15203 | F19: 799641 | G19: 1404/08/20 | H19: 15203 | I19: USD | J19: 19824 | K19: 46320 | L19: 703898 | M19: 6600451546 | N19: 22190 | P19: =IF($A19="","", IF($M19="","", ROUND(IFERROR($M19/$L19,0),0) + IF( ROW()= LOOKUP( 2, 1/( ($A$2:$A$398=$A19)* (IFERROR($M$2:$M$398/$L$2:$L$398,0)= _xlfn.AGGREGATE(14,6, IFERROR($M$2:$M$398/$L$2:$L$398,0)/($A$2:$A$398=$A19), 1) ) ), ROW($A$2:$A$398) ), VALUE( SUBSTITUTE( SUBSTITUTE( SUBSTITUTE( INDEX($J$2:$J$398,MATCH($A19,$A$2:$A$398,0)), "٬",""), ",",""), "٫",".") ) - SUMPRODUCT( ROUND(IFERROR($M$2:$M$398/$L$2:$L$398,0),0)* --($A$2:$A$398=$A19) ), 0 ) ) ) -> 9377 | Q19: 6600451546 | U19: =IF($A19="","", IF(ROW()<>ROW(INDEX($A$2:$A$398,MATCH($A19,$A$2:$A$398,0))),"", IF( ROUND( VALUE( SUBSTITUTE( SUBSTITUTE( SUBSTITUTE( INDEX($J$2:$J$398,MATCH($A19,$A$2:$A$398,0)), "٬",""), ",",""), "٫",".") )*10000,0) <> ROUND( SUMPRODUCT( ($A$2:$A$398=$A19)* ROUND( IFERROR( VALUE(SUBSTITUTE(SUBSTITUTE(SUBSTITUTE($M$2:$M$398,"٬",""),",",""),"٫","."))/ VALUE(SUBSTITUTE(SUBSTITUTE(SUBSTITUTE($L$2:$L$398,"٬",""),",",""),"٫",".")), 0), 4) )*10000,0), "اختلاف معادل " & TEXT( ROUND( ( VALUE( SUBSTITUTE( SUBSTITUTE( SUBSTITUTE( INDEX($J$2:$J$398,MATCH($A19,$A$2:$A$398,0)), "٬",""), ",",""), "٫",".") ) - SUMPRODUCT( ($A$2:$A$398=$A19)* ROUND( IFERROR( VALUE(SUBSTITUTE(SUBSTITUTE(SUBSTITUTE($M$2:$M$398,"٬",""),",",""),"٫","."))/ VALUE(SUBSTITUTE(SUBSTITUTE(SUBSTITUTE($L$2:$L$398,"٬",""),",",""),"٫",".")), 0), 4) ) )* VALUE( SUBSTITUTE( SUBSTITUTE( SUBSTITUTE( INDEX($L$2:$L$398,MATCH($A19,$A$2:$A$398,0)), "٬",""), ",",""), "٫",".") ), 0 ), "#,##0" ) & " ریال", "" ) ) ) -> 
A20: 470006800623 | B20: 1404/08/20 | C20: 4155371 | D20: 23,200 | E20: 15203 | F20: 800623 | G20: 1404/08/20 | H20: 15203 | I20: USD | J20: 9929 | K20: 2320 | L20: 703763 | M20: 6987662827 | N20: 2320 | P20: =IF($A20="","", IF($M20="","", ROUND(IFERROR($M20/$L20,0),0) + IF( ROW()= LOOKUP( 2, 1/( ($A$2:$A$398=$A20)* (IFERROR($M$2:$M$398/$L$2:$L$398,0)= _xlfn.AGGREGATE(14,6, IFERROR($M$2:$M$398/$L$2:$L$398,0)/($A$2:$A$398=$A20), 1) ) ), ROW($A$2:$A$398) ), VALUE( SUBSTITUTE( SUBSTITUTE( SUBSTITUTE( INDEX($J$2:$J$398,MATCH($A20,$A$2:$A$398,0)), "٬",""), ",",""), "٫",".") ) - SUMPRODUCT( ROUND(IFERROR($M$2:$M$398/$L$2:$L$398,0),0)* --($A$2:$A$398=$A20) ), 0 ) ) ) -> 9929 | Q20: 6987662827 | U20: =IF($A20="","", IF(ROW()<>ROW(INDEX($A$2:$A$398,MATCH($A20,$A$2:$A$398,0))),"", IF( ROUND( VALUE( SUBSTITUTE( SUBSTITUTE( SUBSTITUTE( INDEX($J$2:$J$398,MATCH($A20,$A$2:$A$398,0)), "٬",""), ",",""), "٫",".") )*10000,0) <> ROUND( SUMPRODUCT( ($A$2:$A$398=$A20)* ROUND( IFERROR( VALUE(SUBSTITUTE(SUBSTITUTE(SUBSTITUTE($M$2:$M$398,"٬",""),",",""),"٫","."))/ VALUE(SUBSTITUTE(SUBSTITUTE(SUBSTITUTE($L$2:$L$398,"٬",""),",",""),"٫",".")), 0), 4) )*10000,0), "اختلاف معادل " & TEXT( ROUND( ( VALUE( SUBSTITUTE( SUBSTITUTE( SUBSTITUTE( INDEX($J$2:$J$398,MATCH($A20,$A$2:$A$398,0)), "٬",""), ",",""), "٫",".") ) - SUMPRODUCT( ($A$2:$A$398=$A20)* ROUND( IFERROR( VALUE(SUBSTITUTE(SUBSTITUTE(SUBSTITUTE($M$2:$M$398,"٬",""),",",""),"٫","."))/ VALUE(SUBSTITUTE(SUBSTITUTE(SUBSTITUTE($L$2:$L$398,"٬",""),",",""),"٫",".")), 0), 4) ) )* VALUE( SUBSTITUTE( SUBSTITUTE( SUBSTITUTE( INDEX($L$2:$L$398,MATCH($A20,$A$2:$A$398,0)), "٬",""), ",",""), "٫",".") ), 0 ), "#,##0" ) & " ریال", "" ) ) ) -> 
A21: 470018800963 | B21: 1404/08/20 | C21: 4155371 | D21: 23,200 | E21: 15203 | F21: 800963 | G21: 1404/08/20 | H21: 15203 | I21: USD | J21: 9929 | K21: 23200 | L21: 703763 | M21: 6987662827 | N21: 23200 | P21: =IF($A21="","", IF($M21="","", ROUND(IFERROR($M21/$L21,0),0) + IF( ROW()= LOOKUP( 2, 1/( ($A$2:$A$398=$A21)* (IFERROR($M$2:$M$398/$L$2:$L$398,0)= _xlfn.AGGREGATE(14,6, IFERROR($M$2:$M$398/$L$2:$L$398,0)/($A$2:$A$398=$A21), 1) ) ), ROW($A$2:$A$398) ), VALUE( SUBSTITUTE( SUBSTITUTE( SUBSTITUTE( INDEX($J$2:$J$398,MATCH($A21,$A$2:$A$398,0)), "٬",""), ",",""), "٫",".") ) - SUMPRODUCT( ROUND(IFERROR($M$2:$M$398/$L$2:$L$398,0),0)* --($A$2:$A$398=$A21) ), 0 ) ) ) -> 9929 | Q21: 6987662827 | U21: =IF($A21="","", IF(ROW()<>ROW(INDEX($A$2:$A$398,MATCH($A21,$A$2:$A$398,0))),"", IF( ROUND( VALUE( SUBSTITUTE( SUBSTITUTE( SUBSTITUTE( INDEX($J$2:$J$398,MATCH($A21,$A$2:$A$398,0)), "٬",""), ",",""), "٫",".") )*10000,0) <> ROUND( SUMPRODUCT( ($A$2:$A$398=$A21)* ROUND( IFERROR( VALUE(SUBSTITUTE(SUBSTITUTE(SUBSTITUTE($M$2:$M$398,"٬",""),",",""),"٫","."))/ VALUE(SUBSTITUTE(SUBSTITUTE(SUBSTITUTE($L$2:$L$398,"٬",""),",",""),"٫",".")), 0), 4) )*10000,0), "اختلاف معادل " & TEXT( ROUND( ( VALUE( SUBSTITUTE( SUBSTITUTE( SUBSTITUTE( INDEX($J$2:$J$398,MATCH($A21,$A$2:$A$398,0)), "٬",""), ",",""), "٫",".") ) - SUMPRODUCT( ($A$2:$A$398=$A21)* ROUND( IFERROR( VALUE(SUBSTITUTE(SUBSTITUTE(SUBSTITUTE($M$2:$M$398,"٬",""),",",""),"٫","."))/ VALUE(SUBSTITUTE(SUBSTITUTE(SUBSTITUTE($L$2:$L$398,"٬",""),",",""),"٫",".")), 0), 4) ) )* VALUE( SUBSTITUTE( SUBSTITUTE( SUBSTITUTE( INDEX($L$2:$L$398,MATCH($A21,$A$2:$A$398,0)), "٬",""), ",",""), "٫",".") ), 0 ), "#,##0" ) & " ریال", "" ) ) ) -> 
A22: 470006802485 | B22: 1404/08/20 | C22: 4155371 | D22: 23,200 | E22: 15203 | F22: 802485 | G22: 1404/08/20 | H22: 15203 | I22: USD | J22: 39716 | K22: 92800 | L22: 702878 | M22: 6978875662 | N22: 23200 | P22: =IF($A22="","", IF($M22="","", ROUND(IFERROR($M22/$L22,0),0) + IF( ROW()= LOOKUP( 2, 1/( ($A$2:$A$398=$A22)* (IFERROR($M$2:$M$398/$L$2:$L$398,0)= _xlfn.AGGREGATE(14,6, IFERROR($M$2:$M$398/$L$2:$L$398,0)/($A$2:$A$398=$A22), 1) ) ), ROW($A$2:$A$398) ), VALUE( SUBSTITUTE( SUBSTITUTE( SUBSTITUTE( INDEX($J$2:$J$398,MATCH($A22,$A$2:$A$398,0)), "٬",""), ",",""), "٫",".") ) - SUMPRODUCT( ROUND(IFERROR($M$2:$M$398/$L$2:$L$398,0),0)* --($A$2:$A$398=$A22) ), 0 ) ) ) -> 9929 | Q22: 6978875662 | U22: =IF($A22="","", IF(ROW()<>ROW(INDEX($A$2:$A$398,MATCH($A22,$A$2:$A$398,0))),"", IF( ROUND( VALUE( SUBSTITUTE( SUBSTITUTE( SUBSTITUTE( INDEX($J$2:$J$398,MATCH($A22,$A$2:$A$398,0)), "٬",""), ",",""), "٫",".") )*10000,0) <> ROUND( SUMPRODUCT( ($A$2:$A$398=$A22)* ROUND( IFERROR( VALUE(SUBSTITUTE(SUBSTITUTE(SUBSTITUTE($M$2:$M$398,"٬",""),",",""),"٫","."))/ VALUE(SUBSTITUTE(SUBSTITUTE(SUBSTITUTE($L$2:$L$398,"٬",""),",",""),"٫",".")), 0), 4) )*10000,0), "اختلاف معادل " & TEXT( ROUND( ( VALUE( SUBSTITUTE( SUBSTITUTE( SUBSTITUTE( INDEX($J$2:$J$398,MATCH($A22,$A$2:$A$398,0)), "٬",""), ",",""), "٫",".") ) - SUMPRODUCT( ($A$2:$A$398=$A22)* ROUND( IFERROR( VALUE(SUBSTITUTE(SUBSTITUTE(SUBSTITUTE($M$2:$M$398,"٬",""),",",""),"٫","."))/ VALUE(SUBSTITUTE(SUBSTITUTE(SUBSTITUTE($L$2:$L$398,"٬",""),",",""),"٫",".")), 0), 4) ) )* VALUE( SUBSTITUTE( SUBSTITUTE( SUBSTITUTE( INDEX($L$2:$L$398,MATCH($A22,$A$2:$A$398,0)), "٬",""), ",",""), "٫",".") ), 0 ), "#,##0" ) & " ریال", "" ) ) ) -> اختلاف معادل 6,978,875,662 ریال
A23: 470006802485 | B23: 1404/08/20 | C23: 4155371 | D23: 23,200 | E23: 15203 | F23: 802485 | G23: 1404/08/20 | H23: 15203 | I23: USD | J23: 39716 | K23: 92800 | L23: 702878 | M23: 6978875662 | N23: 23200 | P23: =IF($A23="","", IF($M23="","", ROUND(IFERROR($M23/$L23,0),0) + IF( ROW()= LOOKUP( 2, 1/( ($A$2:$A$398=$A23)* (IFERROR($M$2:$M$398/$L$2:$L$398,0)= _xlfn.AGGREGATE(14,6, IFERROR($M$2:$M$398/$L$2:$L$398,0)/($A$2:$A$398=$A23), 1) ) ), ROW($A$2:$A$398) ), VALUE( SUBSTITUTE( SUBSTITUTE( SUBSTITUTE( INDEX($J$2:$J$398,MATCH($A23,$A$2:$A$398,0)), "٬",""), ",",""), "٫",".") ) - SUMPRODUCT( ROUND(IFERROR($M$2:$M$398/$L$2:$L$398,0),0)* --($A$2:$A$398=$A23) ), 0 ) ) ) -> 9929 | Q23: 6978875662 | U23: =IF($A23="","", IF(ROW()<>ROW(INDEX($A$2:$A$398,MATCH($A23,$A$2:$A$398,0))),"", IF( ROUND( VALUE( SUBSTITUTE( SUBSTITUTE( SUBSTITUTE( INDEX($J$2:$J$398,MATCH($A23,$A$2:$A$398,0)), "٬",""), ",",""), "٫",".") )*10000,0) <> ROUND( SUMPRODUCT( ($A$2:$A$398=$A23)* ROUND( IFERROR( VALUE(SUBSTITUTE(SUBSTITUTE(SUBSTITUTE($M$2:$M$398,"٬",""),",",""),"٫","."))/ VALUE(SUBSTITUTE(SUBSTITUTE(SUBSTITUTE($L$2:$L$398,"٬",""),",",""),"٫",".")), 0), 4) )*10000,0), "اختلاف معادل " & TEXT( ROUND( ( VALUE( SUBSTITUTE( SUBSTITUTE( SUBSTITUTE( INDEX($J$2:$J$398,MATCH($A23,$A$2:$A$398,0)), "٬",""), ",",""), "٫",".") ) - SUMPRODUCT( ($A$2:$A$398=$A23)* ROUND( IFERROR( VALUE(SUBSTITUTE(SUBSTITUTE(SUBSTITUTE($M$2:$M$398,"٬",""),",",""),"٫","."))/ VALUE(SUBSTITUTE(SUBSTITUTE(SUBSTITUTE($L$2:$L$398,"٬",""),",",""),"٫",".")), 0), 4) ) )* VALUE( SUBSTITUTE( SUBSTITUTE( SUBSTITUTE( INDEX($L$2:$L$398,MATCH($A23,$A$2:$A$398,0)), "٬",""), ",",""), "٫",".") ), 0 ), "#,##0" ) & " ریال", "" ) ) ) -> 
A24: 470006802485 | B24: 1404/08/20 | C24: 4155371 | D24: 23,200 | E24: 15203 | F24: 802485 | G24: 1404/08/20 | H24: 15203 | I24: USD | J24: 39716 | K24: 92800 | L24: 702878 | M24: 6978875662 | N24: 23200 | P24: =IF($A24="","", IF($M24="","", ROUND(IFERROR($M24/$L24,0),0) + IF( ROW()= LOOKUP( 2, 1/( ($A$2:$A$398=$A24)* (IFERROR($M$2:$M$398/$L$2:$L$398,0)= _xlfn.AGGREGATE(14,6, IFERROR($M$2:$M$398/$L$2:$L$398,0)/($A$2:$A$398=$A24), 1) ) ), ROW($A$2:$A$398) ), VALUE( SUBSTITUTE( SUBSTITUTE( SUBSTITUTE( INDEX($J$2:$J$398,MATCH($A24,$A$2:$A$398,0)), "٬",""), ",",""), "٫",".") ) - SUMPRODUCT( ROUND(IFERROR($M$2:$M$398/$L$2:$L$398,0),0)* --($A$2:$A$398=$A24) ), 0 ) ) ) -> 19858 | Q24: ⚠️ اعداد شما از واقعیت تفاوت معنادار دارد | U24: =IF($A24="","", IF(ROW()<>ROW(INDEX($A$2:$A$398,MATCH($A24,$A$2:$A$398,0))),"", IF( ROUND( VALUE( SUBSTITUTE( SUBSTITUTE( SUBSTITUTE( INDEX($J$2:$J$398,MATCH($A24,$A$2:$A$398,0)), "٬",""), ",",""), "٫",".") )*10000,0) <> ROUND( SUMPRODUCT( ($A$2:$A$398=$A24)* ROUND( IFERROR( VALUE(SUBSTITUTE(SUBSTITUTE(SUBSTITUTE($M$2:$M$398,"٬",""),",",""),"٫","."))/ VALUE(SUBSTITUTE(SUBSTITUTE(SUBSTITUTE($L$2:$L$398,"٬",""),",",""),"٫",".")), 0), 4) )*10000,0), "اختلاف معادل " & TEXT( ROUND( ( VALUE( SUBSTITUTE( SUBSTITUTE( SUBSTITUTE( INDEX($J$2:$J$398,MATCH($A24,$A$2:$A$398,0)), "٬",""), ",",""), "٫",".") ) - SUMPRODUCT( ($A$2:$A$398=$A24)* ROUND( IFERROR( VALUE(SUBSTITUTE(SUBSTITUTE(SUBSTITUTE($M$2:$M$398,"٬",""),",",""),"٫","."))/ VALUE(SUBSTITUTE(SUBSTITUTE(SUBSTITUTE($L$2:$L$398,"٬",""),",",""),"٫",".")), 0), 4) ) )* VALUE( SUBSTITUTE( SUBSTITUTE( SUBSTITUTE( INDEX($L$2:$L$398,MATCH($A24,$A$2:$A$398,0)), "٬",""), ",",""), "٫",".") ), 0 ), "#,##0" ) & " ریال", "" ) ) ) -> 
A25: 470006802485 | B25: 1404/08/20 | C25: 4155371 | D25: 23,200 | E25: 15203 | F25: 802485 | G25: 1404/08/20 | H25: 15203 | I25: USD | J25: 39716 | K25: 92800 | L25: 702878 | M25: 6978875662 | N25: 23200 | P25: =IF($A25="","", IF($M25="","", ROUND(IFERROR($M25/$L25,0),0) + IF( ROW()= LOOKUP( 2, 1/( ($A$2:$A$398=$A25)* (IFERROR($M$2:$M$398/$L$2:$L$398,0)= _xlfn.AGGREGATE(14,6, IFERROR($M$2:$M$398/$L$2:$L$398,0)/($A$2:$A$398=$A25), 1) ) ), ROW($A$2:$A$398) ), VALUE( SUBSTITUTE( SUBSTITUTE( SUBSTITUTE( INDEX($J$2:$J$398,MATCH($A25,$A$2:$A$398,0)), "٬",""), ",",""), "٫",".") ) - SUMPRODUCT( ROUND(IFERROR($M$2:$M$398/$L$2:$L$398,0),0)* --($A$2:$A$398=$A25) ), 0 ) ) ) -> 39716 | Q25: ⚠️ اعداد شما از واقعیت تفاوت معنادار دارد | U25: =IF($A25="","", IF(ROW()<>ROW(INDEX($A$2:$A$398,MATCH($A25,$A$2:$A$398,0))),"", IF( ROUND( VALUE( SUBSTITUTE( SUBSTITUTE( SUBSTITUTE( INDEX($J$2:$J$398,MATCH($A25,$A$2:$A$398,0)), "٬",""), ",",""), "٫",".") )*10000,0) <> ROUND( SUMPRODUCT( ($A$2:$A$398=$A25)* ROUND( IFERROR( VALUE(SUBSTITUTE(SUBSTITUTE(SUBSTITUTE($M$2:$M$398,"٬",""),",",""),"٫","."))/ VALUE(SUBSTITUTE(SUBSTITUTE(SUBSTITUTE($L$2:$L$398,"٬",""),",",""),"٫",".")), 0), 4) )*10000,0), "اختلاف معادل " & TEXT( ROUND( ( VALUE( SUBSTITUTE( SUBSTITUTE( SUBSTITUTE( INDEX($J$2:$J$398,MATCH($A25,$A$2:$A$398,0)), "٬",""), ",",""), "٫",".") ) - SUMPRODUCT( ($A$2:$A$398=$A25)* ROUND( IFERROR( VALUE(SUBSTITUTE(SUBSTITUTE(SUBSTITUTE($M$2:$M$398,"٬",""),",",""),"٫","."))/ VALUE(SUBSTITUTE(SUBSTITUTE(SUBSTITUTE($L$2:$L$398,"٬",""),",",""),"٫",".")), 0), 4) ) )* VALUE( SUBSTITUTE( SUBSTITUTE( SUBSTITUTE( INDEX($L$2:$L$398,MATCH($A25,$A$2:$A$398,0)), "٬",""), ",",""), "٫",".") ), 0 ), "#,##0" ) & " ریال", "" ) ) ) -> اختلاف معادل 20,936,626,986 ریال
P26: =IF($A26="","", IF($M26="","", ROUND(IFERROR($M26/$L26,0),0) + IF( ROW()= LOOKUP( 2, 1/( ($A$2:$A$398=$A26)* (IFERROR($M$2:$M$398/$L$2:$L$398,0)= _xlfn.AGGREGATE(14,6, IFERROR($M$2:$M$398/$L$2:$L$398,0)/($A$2:$A$398=$A26), 1) ) ), ROW($A$2:$A$398) ), VALUE( SUBSTITUTE( SUBSTITUTE( SUBSTITUTE( INDEX($J$2:$J$398,MATCH($A26,$A$2:$A$398,0)), "٬",""), ",",""), "٫",".") ) - SUMPRODUCT( ROUND(IFERROR($M$2:$M$398/$L$2:$L$398,0),0)* --($A$2:$A$398=$A26) ), 0 ) ) ) ->  | Q26: =IF($A26="","", IF($M26="","", IF( IF($M26=0,"",ABS(P26*L26 - $M26)/$M26) > 0.01, "⚠️ اعداد شما از واقعیت تفاوت معنادار دارد", ROUND(P26*L26,0) ) ) ) ->  | R26: =IF($A26="","", MID( IF($J26="","", IF( IFERROR( ABS( VALUE(SUBSTITUTE(SUBSTITUTE(SUBSTITUTE(TRIM($J26),"٬",""),",",""),"٫",".")) - ROUND(VALUE(SUBSTITUTE(SUBSTITUTE(SUBSTITUTE(TRIM($J26),"٬",""),",",""),"٫",".")),4) )>0.000000001, FALSE), " | خطا: J بیش از ۴ رقم اعشار دارد", "" ) ) & IF($K26="","", IF( IFERROR( MOD( VALUE(SUBSTITUTE(SUBSTITUTE(SUBSTITUTE(TRIM($K26),"٬",""),",",""),"٫",".")), 1)<>0, FALSE), " | خطا: K (مجموع وزن خالص) اعشاری است", "" ) ) & IF($L26="","", IF( IFERROR( MOD( VALUE(SUBSTITUTE(SUBSTITUTE(SUBSTITUTE(TRIM($L26),"٬",""),",",""),"٫",".")), 1)<>0, FALSE), " | خطا: L (نرخ برابری ارز) اعشاری است", "" ) ) & IF($M26="","", IF( IFERROR( MOD( VALUE(SUBSTITUTE(SUBSTITUTE(SUBSTITUTE(TRIM($M26),"٬",""),",",""),"٫",".")), 1)<>0, FALSE), " | خطا: M اعشاری است", "" ) ) & IF($N26="","", IF( IFERROR( MOD( VALUE(SUBSTITUTE(SUBSTITUTE(SUBSTITUTE(TRIM($N26),"٬",""),",",""),"٫",".")), 1)<>0, FALSE), " | خطا: N (وزن خالص) اعشاری است", "" ) ),4,1000) ) ->  | T26: =IF($A26="","", IF(OR($M26="",$L26=""),"", IF( L26=0, "", IF( ABS( VALUE(SUBSTITUTE(SUBSTITUTE(SUBSTITUTE(SUBSTITUTE(TRIM($M26),"٬",""),",",""),"٫","."),CHAR(160),"")) / VALUE(SUBSTITUTE(SUBSTITUTE(SUBSTITUTE(SUBSTITUTE(TRIM($L26),"٬",""),",",""),"٫","."),CHAR(160),"")) - ROUND( VALUE(SUBSTITUTE(SUBSTITUTE(SUBSTITUTE(SUBSTITUTE(TRIM($M26),"٬",""),",",""),"٫","."),CHAR(160),"")) / VALUE(SUBSTITUTE(SUBSTITUTE(SUBSTITUTE(SUBSTITUTE(TRIM($L26),"٬",""),",",""),"٫","."),CHAR(160),"")), 4) ) > 0.000000001, "تقسیم M بر L نباید بیشتر از 4 رقم اعشار باشد", "" ) ) ) ) ->  | U26: =IF($A26="","", IF(ROW()<>ROW(INDEX($A$2:$A$398,MATCH($A26,$A$2:$A$398,0))),"", IF( ROUND( VALUE( SUBSTITUTE( SUBSTITUTE( SUBSTITUTE( INDEX($J$2:$J$398,MATCH($A26,$A$2:$A$398,0)), "٬",""), ",",""), "٫",".") )*10000,0) <> ROUND( SUMPRODUCT( ($A$2:$A$398=$A26)* ROUND( IFERROR( VALUE(SUBSTITUTE(SUBSTITUTE(SUBSTITUTE($M$2:$M$398,"٬",""),",",""),"٫","."))/ VALUE(SUBSTITUTE(SUBSTITUTE(SUBSTITUTE($L$2:$L$398,"٬",""),",",""),"٫",".")), 0), 4) )*10000,0), "اختلاف معادل " & TEXT( ROUND( ( VALUE( SUBSTITUTE( SUBSTITUTE( SUBSTITUTE( INDEX($J$2:$J$398,MATCH($A26,$A$2:$A$398,0)), "٬",""), ",",""), "٫",".") ) - SUMPRODUCT( ($A$2:$A$398=$A26)* ROUND( IFERROR( VALUE(SUBSTITUTE(SUBSTITUTE(SUBSTITUTE($M$2:$M$398,"٬",""),",",""),"٫","."))/ VALUE(SUBSTITUTE(SUBSTITUTE(SUBSTITUTE($L$2:$L$398,"٬",""),",",""),"٫",".")), 0), 4) ) )* VALUE( SUBSTITUTE( SUBSTITUTE( SUBSTITUTE( INDEX($L$2:$L$398,MATCH($A26,$A$2:$A$398,0)), "٬",""), ",",""), "٫",".") ), 0 ), "#,##0" ) & " ریال", "" ) ) ) -> 
P27: =IF($A27="","", IF($M27="","", ROUND(IFERROR($M27/$L27,0),0) + IF( ROW()= LOOKUP( 2, 1/( ($A$2:$A$398=$A27)* (IFERROR($M$2:$M$398/$L$2:$L$398,0)= _xlfn.AGGREGATE(14,6, IFERROR($M$2:$M$398/$L$2:$L$398,0)/($A$2:$A$398=$A27), 1) ) ), ROW($A$2:$A$398) ), VALUE( SUBSTITUTE( SUBSTITUTE( SUBSTITUTE( INDEX($J$2:$J$398,MATCH($A27,$A$2:$A$398,0)), "٬",""), ",",""), "٫",".") ) - SUMPRODUCT( ROUND(IFERROR($M$2:$M$398/$L$2:$L$398,0),0)* --($A$2:$A$398=$A27) ), 0 ) ) ) ->  | U27: =IF($A27="","", IF(ROW()<>ROW(INDEX($A$2:$A$398,MATCH($A27,$A$2:$A$398,0))),"", IF( ROUND( VALUE( SUBSTITUTE( SUBSTITUTE( SUBSTITUTE( INDEX($J$2:$J$398,MATCH($A27,$A$2:$A$398,0)), "٬",""), ",",""), "٫",".") )*10000,0) <> ROUND( SUMPRODUCT( ($A$2:$A$398=$A27)* ROUND( IFERROR( VALUE(SUBSTITUTE(SUBSTITUTE(SUBSTITUTE($M$2:$M$398,"٬",""),",",""),"٫","."))/ VALUE(SUBSTITUTE(SUBSTITUTE(SUBSTITUTE($L$2:$L$398,"٬",""),",",""),"٫",".")), 0), 4) )*10000,0), "اختلاف معادل " & TEXT( ROUND( ( VALUE( SUBSTITUTE( SUBSTITUTE( SUBSTITUTE( INDEX($J$2:$J$398,MATCH($A27,$A$2:$A$398,0)), "٬",""), ",",""), "٫",".") ) - SUMPRODUCT( ($A$2:$A$398=$A27)* ROUND( IFERROR( VALUE(SUBSTITUTE(SUBSTITUTE(SUBSTITUTE($M$2:$M$398,"٬",""),",",""),"٫","."))/ VALUE(SUBSTITUTE(SUBSTITUTE(SUBSTITUTE($L$2:$L$398,"٬",""),",",""),"٫",".")), 0), 4) ) )* VALUE( SUBSTITUTE( SUBSTITUTE( SUBSTITUTE( INDEX($L$2:$L$398,MATCH($A27,$A$2:$A$398,0)), "٬",""), ",",""), "٫",".") ), 0 ), "#,##0" ) & " ریال", "" ) ) ) -> 
P28: =IF($A28="","", IF($M28="","", ROUND(IFERROR($M28/$L28,0),0) + IF( ROW()= LOOKUP( 2, 1/( ($A$2:$A$398=$A28)* (IFERROR($M$2:$M$398/$L$2:$L$398,0)= _xlfn.AGGREGATE(14,6, IFERROR($M$2:$M$398/$L$2:$L$398,0)/($A$2:$A$398=$A28), 1) ) ), ROW($A$2:$A$398) ), VALUE( SUBSTITUTE( SUBSTITUTE( SUBSTITUTE( INDEX($J$2:$J$398,MATCH($A28,$A$2:$A$398,0)), "٬",""), ",",""), "٫",".") ) - SUMPRODUCT( ROUND(IFERROR($M$2:$M$398/$L$2:$L$398,0),0)* --($A$2:$A$398=$A28) ), 0 ) ) ) ->  | U28: =IF($A28="","", IF(ROW()<>ROW(INDEX($A$2:$A$398,MATCH($A28,$A$2:$A$398,0))),"", IF( ROUND( VALUE( SUBSTITUTE( SUBSTITUTE( SUBSTITUTE( INDEX($J$2:$J$398,MATCH($A28,$A$2:$A$398,0)), "٬",""), ",",""), "٫",".") )*10000,0) <> ROUND( SUMPRODUCT( ($A$2:$A$398=$A28)* ROUND( IFERROR( VALUE(SUBSTITUTE(SUBSTITUTE(SUBSTITUTE($M$2:$M$398,"٬",""),",",""),"٫","."))/ VALUE(SUBSTITUTE(SUBSTITUTE(SUBSTITUTE($L$2:$L$398,"٬",""),",",""),"٫",".")), 0), 4) )*10000,0), "اختلاف معادل " & TEXT( ROUND( ( VALUE( SUBSTITUTE( SUBSTITUTE( SUBSTITUTE( INDEX($J$2:$J$398,MATCH($A28,$A$2:$A$398,0)), "٬",""), ",",""), "٫",".") ) - SUMPRODUCT( ($A$2:$A$398=$A28)* ROUND( IFERROR( VALUE(SUBSTITUTE(SUBSTITUTE(SUBSTITUTE($M$2:$M$398,"٬",""),",",""),"٫","."))/ VALUE(SUBSTITUTE(SUBSTITUTE(SUBSTITUTE($L$2:$L$398,"٬",""),",",""),"٫",".")), 0), 4) ) )* VALUE( SUBSTITUTE( SUBSTITUTE( SUBSTITUTE( INDEX($L$2:$L$398,MATCH($A28,$A$2:$A$398,0)), "٬",""), ",",""), "٫",".") ), 0 ), "#,##0" ) & " ریال", "" ) ) ) -> 
P29: =IF($A29="","", IF($M29="","", ROUND(IFERROR($M29/$L29,0),0) + IF( ROW()= LOOKUP( 2, 1/( ($A$2:$A$398=$A29)* (IFERROR($M$2:$M$398/$L$2:$L$398,0)= _xlfn.AGGREGATE(14,6, IFERROR($M$2:$M$398/$L$2:$L$398,0)/($A$2:$A$398=$A29), 1) ) ), ROW($A$2:$A$398) ), VALUE( SUBSTITUTE( SUBSTITUTE( SUBSTITUTE( INDEX($J$2:$J$398,MATCH($A29,$A$2:$A$398,0)), "٬",""), ",",""), "٫",".") ) - SUMPRODUCT( ROUND(IFERROR($M$2:$M$398/$L$2:$L$398,0),0)* --($A$2:$A$398=$A29) ), 0 ) ) ) ->  | U29: =IF($A29="","", IF(ROW()<>ROW(INDEX($A$2:$A$398,MATCH($A29,$A$2:$A$398,0))),"", IF( ROUND( VALUE( SUBSTITUTE( SUBSTITUTE( SUBSTITUTE( INDEX($J$2:$J$398,MATCH($A29,$A$2:$A$398,0)), "٬",""), ",",""), "٫",".") )*10000,0) <> ROUND( SUMPRODUCT( ($A$2:$A$398=$A29)* ROUND( IFERROR( VALUE(SUBSTITUTE(SUBSTITUTE(SUBSTITUTE($M$2:$M$398,"٬",""),",",""),"٫","."))/ VALUE(SUBSTITUTE(SUBSTITUTE(SUBSTITUTE($L$2:$L$398,"٬",""),",",""),"٫",".")), 0), 4) )*10000,0), "اختلاف معادل " & TEXT( ROUND( ( VALUE( SUBSTITUTE( SUBSTITUTE( SUBSTITUTE( INDEX($J$2:$J$398,MATCH($A29,$A$2:$A$398,0)), "٬",""), ",",""), "٫",".") ) - SUMPRODUCT( ($A$2:$A$398=$A29)* ROUND( IFERROR( VALUE(SUBSTITUTE(SUBSTITUTE(SUBSTITUTE($M$2:$M$398,"٬",""),",",""),"٫","."))/ VALUE(SUBSTITUTE(SUBSTITUTE(SUBSTITUTE($L$2:$L$398,"٬",""),",",""),"٫",".")), 0), 4) ) )* VALUE( SUBSTITUTE( SUBSTITUTE( SUBSTITUTE( INDEX($L$2:$L$398,MATCH($A29,$A$2:$A$398,0)), "٬",""), ",",""), "٫",".") ), 0 ), "#,##0" ) & " ریال", "" ) ) ) -> 
P30: =IF($A30="","", IF($M30="","", ROUND(IFERROR($M30/$L30,0),0) + IF( ROW()= LOOKUP( 2, 1/( ($A$2:$A$398=$A30)* (IFERROR($M$2:$M$398/$L$2:$L$398,0)= _xlfn.AGGREGATE(14,6, IFERROR($M$2:$M$398/$L$2:$L$398,0)/($A$2:$A$398=$A30), 1) ) ), ROW($A$2:$A$398) ), VALUE( SUBSTITUTE( SUBSTITUTE( SUBSTITUTE( INDEX($J$2:$J$398,MATCH($A30,$A$2:$A$398,0)), "٬",""), ",",""), "٫",".") ) - SUMPRODUCT( ROUND(IFERROR($M$2:$M$398/$L$2:$L$398,0),0)* --($A$2:$A$398=$A30) ), 0 ) ) ) ->  | U30: =IF($A30="","", IF(ROW()<>ROW(INDEX($A$2:$A$398,MATCH($A30,$A$2:$A$398,0))),"", IF( ROUND( VALUE( SUBSTITUTE( SUBSTITUTE( SUBSTITUTE( INDEX($J$2:$J$398,MATCH($A30,$A$2:$A$398,0)), "٬",""), ",",""), "٫",".") )*10000,0) <> ROUND( SUMPRODUCT( ($A$2:$A$398=$A30)* ROUND( IFERROR( VALUE(SUBSTITUTE(SUBSTITUTE(SUBSTITUTE($M$2:$M$398,"٬",""),",",""),"٫","."))/ VALUE(SUBSTITUTE(SUBSTITUTE(SUBSTITUTE($L$2:$L$398,"٬",""),",",""),"٫",".")), 0), 4) )*10000,0), "اختلاف معادل " & TEXT( ROUND( ( VALUE( SUBSTITUTE( SUBSTITUTE( SUBSTITUTE( INDEX($J$2:$J$398,MATCH($A30,$A$2:$A$398,0)), "٬",""), ",",""), "٫",".") ) - SUMPRODUCT( ($A$2:$A$398=$A30)* ROUND( IFERROR( VALUE(SUBSTITUTE(SUBSTITUTE(SUBSTITUTE($M$2:$M$398,"٬",""),",",""),"٫","."))/ VALUE(SUBSTITUTE(SUBSTITUTE(SUBSTITUTE($L$2:$L$398,"٬",""),",",""),"٫",".")), 0), 4) ) )* VALUE( SUBSTITUTE( SUBSTITUTE( SUBSTITUTE( INDEX($L$2:$L$398,MATCH($A30,$A$2:$A$398,0)), "٬",""), ",",""), "٫",".") ), 0 ), "#,##0" ) & " ریال", "" ) ) ) -> 
P31: =IF($A31="","", IF($M31="","", ROUND(IFERROR($M31/$L31,0),0) + IF( ROW()= LOOKUP( 2, 1/( ($A$2:$A$398=$A31)* (IFERROR($M$2:$M$398/$L$2:$L$398,0)= _xlfn.AGGREGATE(14,6, IFERROR($M$2:$M$398/$L$2:$L$398,0)/($A$2:$A$398=$A31), 1) ) ), ROW($A$2:$A$398) ), VALUE( SUBSTITUTE( SUBSTITUTE( SUBSTITUTE( INDEX($J$2:$J$398,MATCH($A31,$A$2:$A$398,0)), "٬",""), ",",""), "٫",".") ) - SUMPRODUCT( ROUND(IFERROR($M$2:$M$398/$L$2:$L$398,0),0)* --($A$2:$A$398=$A31) ), 0 ) ) ) ->  | U31: =IF($A31="","", IF(ROW()<>ROW(INDEX($A$2:$A$398,MATCH($A31,$A$2:$A$398,0))),"", IF( ROUND( VALUE( SUBSTITUTE( SUBSTITUTE( SUBSTITUTE( INDEX($J$2:$J$398,MATCH($A31,$A$2:$A$398,0)), "٬",""), ",",""), "٫",".") )*10000,0) <> ROUND( SUMPRODUCT( ($A$2:$A$398=$A31)* ROUND( IFERROR( VALUE(SUBSTITUTE(SUBSTITUTE(SUBSTITUTE($M$2:$M$398,"٬",""),",",""),"٫","."))/ VALUE(SUBSTITUTE(SUBSTITUTE(SUBSTITUTE($L$2:$L$398,"٬",""),",",""),"٫",".")), 0), 4) )*10000,0), "اختلاف معادل " & TEXT( ROUND( ( VALUE( SUBSTITUTE( SUBSTITUTE( SUBSTITUTE( INDEX($J$2:$J$398,MATCH($A31,$A$2:$A$398,0)), "٬",""), ",",""), "٫",".") ) - SUMPRODUCT( ($A$2:$A$398=$A31)* ROUND( IFERROR( VALUE(SUBSTITUTE(SUBSTITUTE(SUBSTITUTE($M$2:$M$398,"٬",""),",",""),"٫","."))/ VALUE(SUBSTITUTE(SUBSTITUTE(SUBSTITUTE($L$2:$L$398,"٬",""),",",""),"٫",".")), 0), 4) ) )* VALUE( SUBSTITUTE( SUBSTITUTE( SUBSTITUTE( INDEX($L$2:$L$398,MATCH($A31,$A$2:$A$398,0)), "٬",""), ",",""), "٫",".") ), 0 ), "#,##0" ) & " ریال", "" ) ) ) -> 
P32: =IF($A32="","", IF($M32="","", ROUND(IFERROR($M32/$L32,0),0) + IF( ROW()= LOOKUP( 2, 1/( ($A$2:$A$398=$A32)* (IFERROR($M$2:$M$398/$L$2:$L$398,0)= _xlfn.AGGREGATE(14,6, IFERROR($M$2:$M$398/$L$2:$L$398,0)/($A$2:$A$398=$A32), 1) ) ), ROW($A$2:$A$398) ), VALUE( SUBSTITUTE( SUBSTITUTE( SUBSTITUTE( INDEX($J$2:$J$398,MATCH($A32,$A$2:$A$398,0)), "٬",""), ",",""), "٫",".") ) - SUMPRODUCT( ROUND(IFERROR($M$2:$M$398/$L$2:$L$398,0),0)* --($A$2:$A$398=$A32) ), 0 ) ) ) ->  | U32: =IF($A32="","", IF(ROW()<>ROW(INDEX($A$2:$A$398,MATCH($A32,$A$2:$A$398,0))),"", IF( ROUND( VALUE( SUBSTITUTE( SUBSTITUTE( SUBSTITUTE( INDEX($J$2:$J$398,MATCH($A32,$A$2:$A$398,0)), "٬",""), ",",""), "٫",".") )*10000,0) <> ROUND( SUMPRODUCT( ($A$2:$A$398=$A32)* ROUND( IFERROR( VALUE(SUBSTITUTE(SUBSTITUTE(SUBSTITUTE($M$2:$M$398,"٬",""),",",""),"٫","."))/ VALUE(SUBSTITUTE(SUBSTITUTE(SUBSTITUTE($L$2:$L$398,"٬",""),",",""),"٫",".")), 0), 4) )*10000,0), "اختلاف معادل " & TEXT( ROUND( ( VALUE( SUBSTITUTE( SUBSTITUTE( SUBSTITUTE( INDEX($J$2:$J$398,MATCH($A32,$A$2:$A$398,0)), "٬",""), ",",""), "٫",".") ) - SUMPRODUCT( ($A$2:$A$398=$A32)* ROUND( IFERROR( VALUE(SUBSTITUTE(SUBSTITUTE(SUBSTITUTE($M$2:$M$398,"٬",""),",",""),"٫","."))/ VALUE(SUBSTITUTE(SUBSTITUTE(SUBSTITUTE($L$2:$L$398,"٬",""),",",""),"٫",".")), 0), 4) ) )* VALUE( SUBSTITUTE( SUBSTITUTE( SUBSTITUTE( INDEX($L$2:$L$398,MATCH($A32,$A$2:$A$398,0)), "٬",""), ",",""), "٫",".") ), 0 ), "#,##0" ) & " ریال", "" ) ) ) -> 
P33: =IF($A33="","", IF($M33="","", ROUND(IFERROR($M33/$L33,0),0) + IF( ROW()= LOOKUP( 2, 1/( ($A$2:$A$398=$A33)* (IFERROR($M$2:$M$398/$L$2:$L$398,0)= _xlfn.AGGREGATE(14,6, IFERROR($M$2:$M$398/$L$2:$L$398,0)/($A$2:$A$398=$A33), 1) ) ), ROW($A$2:$A$398) ), VALUE( SUBSTITUTE( SUBSTITUTE( SUBSTITUTE( INDEX($J$2:$J$398,MATCH($A33,$A$2:$A$398,0)), "٬",""), ",",""), "٫",".") ) - SUMPRODUCT( ROUND(IFERROR($M$2:$M$398/$L$2:$L$398,0),0)* --($A$2:$A$398=$A33) ), 0 ) ) ) ->  | U33: =IF($A33="","", IF(ROW()<>ROW(INDEX($A$2:$A$398,MATCH($A33,$A$2:$A$398,0))),"", IF( ROUND( VALUE( SUBSTITUTE( SUBSTITUTE( SUBSTITUTE( INDEX($J$2:$J$398,MATCH($A33,$A$2:$A$398,0)), "٬",""), ",",""), "٫",".") )*10000,0) <> ROUND( SUMPRODUCT( ($A$2:$A$398=$A33)* ROUND( IFERROR( VALUE(SUBSTITUTE(SUBSTITUTE(SUBSTITUTE($M$2:$M$398,"٬",""),",",""),"٫","."))/ VALUE(SUBSTITUTE(SUBSTITUTE(SUBSTITUTE($L$2:$L$398,"٬",""),",",""),"٫",".")), 0), 4) )*10000,0), "اختلاف معادل " & TEXT( ROUND( ( VALUE( SUBSTITUTE( SUBSTITUTE( SUBSTITUTE( INDEX($J$2:$J$398,MATCH($A33,$A$2:$A$398,0)), "٬",""), ",",""), "٫",".") ) - SUMPRODUCT( ($A$2:$A$398=$A33)* ROUND( IFERROR( VALUE(SUBSTITUTE(SUBSTITUTE(SUBSTITUTE($M$2:$M$398,"٬",""),",",""),"٫","."))/ VALUE(SUBSTITUTE(SUBSTITUTE(SUBSTITUTE($L$2:$L$398,"٬",""),",",""),"٫",".")), 0), 4) ) )* VALUE( SUBSTITUTE( SUBSTITUTE( SUBSTITUTE( INDEX($L$2:$L$398,MATCH($A33,$A$2:$A$398,0)), "٬",""), ",",""), "٫",".") ), 0 ), "#,##0" ) & " ریال", "" ) ) ) -> 
P34: =IF($A34="","", IF($M34="","", ROUND(IFERROR($M34/$L34,0),0) + IF( ROW()= LOOKUP( 2, 1/( ($A$2:$A$398=$A34)* (IFERROR($M$2:$M$398/$L$2:$L$398,0)= _xlfn.AGGREGATE(14,6, IFERROR($M$2:$M$398/$L$2:$L$398,0)/($A$2:$A$398=$A34), 1) ) ), ROW($A$2:$A$398) ), VALUE( SUBSTITUTE( SUBSTITUTE( SUBSTITUTE( INDEX($J$2:$J$398,MATCH($A34,$A$2:$A$398,0)), "٬",""), ",",""), "٫",".") ) - SUMPRODUCT( ROUND(IFERROR($M$2:$M$398/$L$2:$L$398,0),0)* --($A$2:$A$398=$A34) ), 0 ) ) ) ->  | U34: =IF($A34="","", IF(ROW()<>ROW(INDEX($A$2:$A$398,MATCH($A34,$A$2:$A$398,0))),"", IF( ROUND( VALUE( SUBSTITUTE( SUBSTITUTE( SUBSTITUTE( INDEX($J$2:$J$398,MATCH($A34,$A$2:$A$398,0)), "٬",""), ",",""), "٫",".") )*10000,0) <> ROUND( SUMPRODUCT( ($A$2:$A$398=$A34)* ROUND( IFERROR( VALUE(SUBSTITUTE(SUBSTITUTE(SUBSTITUTE($M$2:$M$398,"٬",""),",",""),"٫","."))/ VALUE(SUBSTITUTE(SUBSTITUTE(SUBSTITUTE($L$2:$L$398,"٬",""),",",""),"٫",".")), 0), 4) )*10000,0), "اختلاف معادل " & TEXT( ROUND( ( VALUE( SUBSTITUTE( SUBSTITUTE( SUBSTITUTE( INDEX($J$2:$J$398,MATCH($A34,$A$2:$A$398,0)), "٬",""), ",",""), "٫",".") ) - SUMPRODUCT( ($A$2:$A$398=$A34)* ROUND( IFERROR( VALUE(SUBSTITUTE(SUBSTITUTE(SUBSTITUTE($M$2:$M$398,"٬",""),",",""),"٫","."))/ VALUE(SUBSTITUTE(SUBSTITUTE(SUBSTITUTE($L$2:$L$398,"٬",""),",",""),"٫",".")), 0), 4) ) )* VALUE( SUBSTITUTE( SUBSTITUTE( SUBSTITUTE( INDEX($L$2:$L$398,MATCH($A34,$A$2:$A$398,0)), "٬",""), ",",""), "٫",".") ), 0 ), "#,##0" ) & " ریال", "" ) ) ) -> 
P35: =IF($A35="","", IF($M35="","", ROUND(IFERROR($M35/$L35,0),0) + IF( ROW()= LOOKUP( 2, 1/( ($A$2:$A$398=$A35)* (IFERROR($M$2:$M$398/$L$2:$L$398,0)= _xlfn.AGGREGATE(14,6, IFERROR($M$2:$M$398/$L$2:$L$398,0)/($A$2:$A$398=$A35), 1) ) ), ROW($A$2:$A$398) ), VALUE( SUBSTITUTE( SUBSTITUTE( SUBSTITUTE( INDEX($J$2:$J$398,MATCH($A35,$A$2:$A$398,0)), "٬",""), ",",""), "٫",".") ) - SUMPRODUCT( ROUND(IFERROR($M$2:$M$398/$L$2:$L$398,0),0)* --($A$2:$A$398=$A35) ), 0 ) ) ) ->  | U35: =IF($A35="","", IF(ROW()<>ROW(INDEX($A$2:$A$398,MATCH($A35,$A$2:$A$398,0))),"", IF( ROUND( VALUE( SUBSTITUTE( SUBSTITUTE( SUBSTITUTE( INDEX($J$2:$J$398,MATCH($A35,$A$2:$A$398,0)), "٬",""), ",",""), "٫",".") )*10000,0) <> ROUND( SUMPRODUCT( ($A$2:$A$398=$A35)* ROUND( IFERROR( VALUE(SUBSTITUTE(SUBSTITUTE(SUBSTITUTE($M$2:$M$398,"٬",""),",",""),"٫","."))/ VALUE(SUBSTITUTE(SUBSTITUTE(SUBSTITUTE($L$2:$L$398,"٬",""),",",""),"٫",".")), 0), 4) )*10000,0), "اختلاف معادل " & TEXT( ROUND( ( VALUE( SUBSTITUTE( SUBSTITUTE( SUBSTITUTE( INDEX($J$2:$J$398,MATCH($A35,$A$2:$A$398,0)), "٬",""), ",",""), "٫",".") ) - SUMPRODUCT( ($A$2:$A$398=$A35)* ROUND( IFERROR( VALUE(SUBSTITUTE(SUBSTITUTE(SUBSTITUTE($M$2:$M$398,"٬",""),",",""),"٫","."))/ VALUE(SUBSTITUTE(SUBSTITUTE(SUBSTITUTE($L$2:$L$398,"٬",""),",",""),"٫",".")), 0), 4) ) )* VALUE( SUBSTITUTE( SUBSTITUTE( SUBSTITUTE( INDEX($L$2:$L$398,MATCH($A35,$A$2:$A$398,0)), "٬",""), ",",""), "٫",".") ), 0 ), "#,##0" ) & " ریال", "" ) ) ) -> 
P36: =IF($A36="","", IF($M36="","", ROUND(IFERROR($M36/$L36,0),0) + IF( ROW()= LOOKUP( 2, 1/( ($A$2:$A$398=$A36)* (IFERROR($M$2:$M$398/$L$2:$L$398,0)= _xlfn.AGGREGATE(14,6, IFERROR($M$2:$M$398/$L$2:$L$398,0)/($A$2:$A$398=$A36), 1) ) ), ROW($A$2:$A$398) ), VALUE( SUBSTITUTE( SUBSTITUTE( SUBSTITUTE( INDEX($J$2:$J$398,MATCH($A36,$A$2:$A$398,0)), "٬",""), ",",""), "٫",".") ) - SUMPRODUCT( ROUND(IFERROR($M$2:$M$398/$L$2:$L$398,0),0)* --($A$2:$A$398=$A36) ), 0 ) ) ) ->  | U36: =IF($A36="","", IF(ROW()<>ROW(INDEX($A$2:$A$398,MATCH($A36,$A$2:$A$398,0))),"", IF( ROUND( VALUE( SUBSTITUTE( SUBSTITUTE( SUBSTITUTE( INDEX($J$2:$J$398,MATCH($A36,$A$2:$A$398,0)), "٬",""), ",",""), "٫",".") )*10000,0) <> ROUND( SUMPRODUCT( ($A$2:$A$398=$A36)* ROUND( IFERROR( VALUE(SUBSTITUTE(SUBSTITUTE(SUBSTITUTE($M$2:$M$398,"٬",""),",",""),"٫","."))/ VALUE(SUBSTITUTE(SUBSTITUTE(SUBSTITUTE($L$2:$L$398,"٬",""),",",""),"٫",".")), 0), 4) )*10000,0), "اختلاف معادل " & TEXT( ROUND( ( VALUE( SUBSTITUTE( SUBSTITUTE( SUBSTITUTE( INDEX($J$2:$J$398,MATCH($A36,$A$2:$A$398,0)), "٬",""), ",",""), "٫",".") ) - SUMPRODUCT( ($A$2:$A$398=$A36)* ROUND( IFERROR( VALUE(SUBSTITUTE(SUBSTITUTE(SUBSTITUTE($M$2:$M$398,"٬",""),",",""),"٫","."))/ VALUE(SUBSTITUTE(SUBSTITUTE(SUBSTITUTE($L$2:$L$398,"٬",""),",",""),"٫",".")), 0), 4) ) )* VALUE( SUBSTITUTE( SUBSTITUTE( SUBSTITUTE( INDEX($L$2:$L$398,MATCH($A36,$A$2:$A$398,0)), "٬",""), ",",""), "٫",".") ), 0 ), "#,##0" ) & " ریال", "" ) ) ) -> 
P37: =IF($A37="","", IF($M37="","", ROUND(IFERROR($M37/$L37,0),0) + IF( ROW()= LOOKUP( 2, 1/( ($A$2:$A$398=$A37)* (IFERROR($M$2:$M$398/$L$2:$L$398,0)= _xlfn.AGGREGATE(14,6, IFERROR($M$2:$M$398/$L$2:$L$398,0)/($A$2:$A$398=$A37), 1) ) ), ROW($A$2:$A$398) ), VALUE( SUBSTITUTE( SUBSTITUTE( SUBSTITUTE( INDEX($J$2:$J$398,MATCH($A37,$A$2:$A$398,0)), "٬",""), ",",""), "٫",".") ) - SUMPRODUCT( ROUND(IFERROR($M$2:$M$398/$L$2:$L$398,0),0)* --($A$2:$A$398=$A37) ), 0 ) ) ) ->  | U37: =IF($A37="","", IF(ROW()<>ROW(INDEX($A$2:$A$398,MATCH($A37,$A$2:$A$398,0))),"", IF( ROUND( VALUE( SUBSTITUTE( SUBSTITUTE( SUBSTITUTE( INDEX($J$2:$J$398,MATCH($A37,$A$2:$A$398,0)), "٬",""), ",",""), "٫",".") )*10000,0) <> ROUND( SUMPRODUCT( ($A$2:$A$398=$A37)* ROUND( IFERROR( VALUE(SUBSTITUTE(SUBSTITUTE(SUBSTITUTE($M$2:$M$398,"٬",""),",",""),"٫","."))/ VALUE(SUBSTITUTE(SUBSTITUTE(SUBSTITUTE($L$2:$L$398,"٬",""),",",""),"٫",".")), 0), 4) )*10000,0), "اختلاف معادل " & TEXT( ROUND( ( VALUE( SUBSTITUTE( SUBSTITUTE( SUBSTITUTE( INDEX($J$2:$J$398,MATCH($A37,$A$2:$A$398,0)), "٬",""), ",",""), "٫",".") ) - SUMPRODUCT( ($A$2:$A$398=$A37)* ROUND( IFERROR( VALUE(SUBSTITUTE(SUBSTITUTE(SUBSTITUTE($M$2:$M$398,"٬",""),",",""),"٫","."))/ VALUE(SUBSTITUTE(SUBSTITUTE(SUBSTITUTE($L$2:$L$398,"٬",""),",",""),"٫",".")), 0), 4) ) )* VALUE( SUBSTITUTE( SUBSTITUTE( SUBSTITUTE( INDEX($L$2:$L$398,MATCH($A37,$A$2:$A$398,0)), "٬",""), ",",""), "٫",".") ), 0 ), "#,##0" ) & " ریال", "" ) ) ) -> 
P38: =IF($A38="","", IF($M38="","", ROUND(IFERROR($M38/$L38,0),0) + IF( ROW()= LOOKUP( 2, 1/( ($A$2:$A$398=$A38)* (IFERROR($M$2:$M$398/$L$2:$L$398,0)= _xlfn.AGGREGATE(14,6, IFERROR($M$2:$M$398/$L$2:$L$398,0)/($A$2:$A$398=$A38), 1) ) ), ROW($A$2:$A$398) ), VALUE( SUBSTITUTE( SUBSTITUTE( SUBSTITUTE( INDEX($J$2:$J$398,MATCH($A38,$A$2:$A$398,0)), "٬",""), ",",""), "٫",".") ) - SUMPRODUCT( ROUND(IFERROR($M$2:$M$398/$L$2:$L$398,0),0)* --($A$2:$A$398=$A38) ), 0 ) ) ) ->  | U38: =IF($A38="","", IF(ROW()<>ROW(INDEX($A$2:$A$398,MATCH($A38,$A$2:$A$398,0))),"", IF( ROUND( VALUE( SUBSTITUTE( SUBSTITUTE( SUBSTITUTE( INDEX($J$2:$J$398,MATCH($A38,$A$2:$A$398,0)), "٬",""), ",",""), "٫",".") )*10000,0) <> ROUND( SUMPRODUCT( ($A$2:$A$398=$A38)* ROUND( IFERROR( VALUE(SUBSTITUTE(SUBSTITUTE(SUBSTITUTE($M$2:$M$398,"٬",""),",",""),"٫","."))/ VALUE(SUBSTITUTE(SUBSTITUTE(SUBSTITUTE($L$2:$L$398,"٬",""),",",""),"٫",".")), 0), 4) )*10000,0), "اختلاف معادل " & TEXT( ROUND( ( VALUE( SUBSTITUTE( SUBSTITUTE( SUBSTITUTE( INDEX($J$2:$J$398,MATCH($A38,$A$2:$A$398,0)), "٬",""), ",",""), "٫",".") ) - SUMPRODUCT( ($A$2:$A$398=$A38)* ROUND( IFERROR( VALUE(SUBSTITUTE(SUBSTITUTE(SUBSTITUTE($M$2:$M$398,"٬",""),",",""),"٫","."))/ VALUE(SUBSTITUTE(SUBSTITUTE(SUBSTITUTE($L$2:$L$398,"٬",""),",",""),"٫",".")), 0), 4) ) )* VALUE( SUBSTITUTE( SUBSTITUTE( SUBSTITUTE( INDEX($L$2:$L$398,MATCH($A38,$A$2:$A$398,0)), "٬",""), ",",""), "٫",".") ), 0 ), "#,##0" ) & " ریال", "" ) ) ) -> 
P39: =IF($A39="","", IF($M39="","", ROUND(IFERROR($M39/$L39,0),0) + IF( ROW()= LOOKUP( 2, 1/( ($A$2:$A$398=$A39)* (IFERROR($M$2:$M$398/$L$2:$L$398,0)= _xlfn.AGGREGATE(14,6, IFERROR($M$2:$M$398/$L$2:$L$398,0)/($A$2:$A$398=$A39), 1) ) ), ROW($A$2:$A$398) ), VALUE( SUBSTITUTE( SUBSTITUTE( SUBSTITUTE( INDEX($J$2:$J$398,MATCH($A39,$A$2:$A$398,0)), "٬",""), ",",""), "٫",".") ) - SUMPRODUCT( ROUND(IFERROR($M$2:$M$398/$L$2:$L$398,0),0)* --($A$2:$A$398=$A39) ), 0 ) ) ) ->  | U39: =IF($A39="","", IF(ROW()<>ROW(INDEX($A$2:$A$398,MATCH($A39,$A$2:$A$398,0))),"", IF( ROUND( VALUE( SUBSTITUTE( SUBSTITUTE( SUBSTITUTE( INDEX($J$2:$J$398,MATCH($A39,$A$2:$A$398,0)), "٬",""), ",",""), "٫",".") )*10000,0) <> ROUND( SUMPRODUCT( ($A$2:$A$398=$A39)* ROUND( IFERROR( VALUE(SUBSTITUTE(SUBSTITUTE(SUBSTITUTE($M$2:$M$398,"٬",""),",",""),"٫","."))/ VALUE(SUBSTITUTE(SUBSTITUTE(SUBSTITUTE($L$2:$L$398,"٬",""),",",""),"٫",".")), 0), 4) )*10000,0), "اختلاف معادل " & TEXT( ROUND( ( VALUE( SUBSTITUTE( SUBSTITUTE( SUBSTITUTE( INDEX($J$2:$J$398,MATCH($A39,$A$2:$A$398,0)), "٬",""), ",",""), "٫",".") ) - SUMPRODUCT( ($A$2:$A$398=$A39)* ROUND( IFERROR( VALUE(SUBSTITUTE(SUBSTITUTE(SUBSTITUTE($M$2:$M$398,"٬",""),",",""),"٫","."))/ VALUE(SUBSTITUTE(SUBSTITUTE(SUBSTITUTE($L$2:$L$398,"٬",""),",",""),"٫",".")), 0), 4) ) )* VALUE( SUBSTITUTE( SUBSTITUTE( SUBSTITUTE( INDEX($L$2:$L$398,MATCH($A39,$A$2:$A$398,0)), "٬",""), ",",""), "٫",".") ), 0 ), "#,##0" ) & " ریال", "" ) ) ) -> 
P40: =IF($A40="","", IF($M40="","", ROUND(IFERROR($M40/$L40,0),0) + IF( ROW()= LOOKUP( 2, 1/( ($A$2:$A$398=$A40)* (IFERROR($M$2:$M$398/$L$2:$L$398,0)= _xlfn.AGGREGATE(14,6, IFERROR($M$2:$M$398/$L$2:$L$398,0)/($A$2:$A$398=$A40), 1) ) ), ROW($A$2:$A$398) ), VALUE( SUBSTITUTE( SUBSTITUTE( SUBSTITUTE( INDEX($J$2:$J$398,MATCH($A40,$A$2:$A$398,0)), "٬",""), ",",""), "٫",".") ) - SUMPRODUCT( ROUND(IFERROR($M$2:$M$398/$L$2:$L$398,0),0)* --($A$2:$A$398=$A40) ), 0 ) ) ) ->  | U40: =IF($A40="","", IF(ROW()<>ROW(INDEX($A$2:$A$398,MATCH($A40,$A$2:$A$398,0))),"", IF( ROUND( VALUE( SUBSTITUTE( SUBSTITUTE( SUBSTITUTE( INDEX($J$2:$J$398,MATCH($A40,$A$2:$A$398,0)), "٬",""), ",",""), "٫",".") )*10000,0) <> ROUND( SUMPRODUCT( ($A$2:$A$398=$A40)* ROUND( IFERROR( VALUE(SUBSTITUTE(SUBSTITUTE(SUBSTITUTE($M$2:$M$398,"٬",""),",",""),"٫","."))/ VALUE(SUBSTITUTE(SUBSTITUTE(SUBSTITUTE($L$2:$L$398,"٬",""),",",""),"٫",".")), 0), 4) )*10000,0), "اختلاف معادل " & TEXT( ROUND( ( VALUE( SUBSTITUTE( SUBSTITUTE( SUBSTITUTE( INDEX($J$2:$J$398,MATCH($A40,$A$2:$A$398,0)), "٬",""), ",",""), "٫",".") ) - SUMPRODUCT( ($A$2:$A$398=$A40)* ROUND( IFERROR( VALUE(SUBSTITUTE(SUBSTITUTE(SUBSTITUTE($M$2:$M$398,"٬",""),",",""),"٫","."))/ VALUE(SUBSTITUTE(SUBSTITUTE(SUBSTITUTE($L$2:$L$398,"٬",""),",",""),"٫",".")), 0), 4) ) )* VALUE( SUBSTITUTE( SUBSTITUTE( SUBSTITUTE( INDEX($L$2:$L$398,MATCH($A40,$A$2:$A$398,0)), "٬",""), ",",""), "٫",".") ), 0 ), "#,##0" ) & " ریال", "" ) ) ) -> 
P41: =IF($A41="","", IF($M41="","", ROUND(IFERROR($M41/$L41,0),0) + IF( ROW()= LOOKUP( 2, 1/( ($A$2:$A$398=$A41)* (IFERROR($M$2:$M$398/$L$2:$L$398,0)= _xlfn.AGGREGATE(14,6, IFERROR($M$2:$M$398/$L$2:$L$398,0)/($A$2:$A$398=$A41), 1) ) ), ROW($A$2:$A$398) ), VALUE( SUBSTITUTE( SUBSTITUTE( SUBSTITUTE( INDEX($J$2:$J$398,MATCH($A41,$A$2:$A$398,0)), "٬",""), ",",""), "٫",".") ) - SUMPRODUCT( ROUND(IFERROR($M$2:$M$398/$L$2:$L$398,0),0)* --($A$2:$A$398=$A41) ), 0 ) ) ) ->  | U41: =IF($A41="","", IF(ROW()<>ROW(INDEX($A$2:$A$398,MATCH($A41,$A$2:$A$398,0))),"", IF( ROUND( VALUE( SUBSTITUTE( SUBSTITUTE( SUBSTITUTE( INDEX($J$2:$J$398,MATCH($A41,$A$2:$A$398,0)), "٬",""), ",",""), "٫",".") )*10000,0) <> ROUND( SUMPRODUCT( ($A$2:$A$398=$A41)* ROUND( IFERROR( VALUE(SUBSTITUTE(SUBSTITUTE(SUBSTITUTE($M$2:$M$398,"٬",""),",",""),"٫","."))/ VALUE(SUBSTITUTE(SUBSTITUTE(SUBSTITUTE($L$2:$L$398,"٬",""),",",""),"٫",".")), 0), 4) )*10000,0), "اختلاف معادل " & TEXT( ROUND( ( VALUE( SUBSTITUTE( SUBSTITUTE( SUBSTITUTE( INDEX($J$2:$J$398,MATCH($A41,$A$2:$A$398,0)), "٬",""), ",",""), "٫",".") ) - SUMPRODUCT( ($A$2:$A$398=$A41)* ROUND( IFERROR( VALUE(SUBSTITUTE(SUBSTITUTE(SUBSTITUTE($M$2:$M$398,"٬",""),",",""),"٫","."))/ VALUE(SUBSTITUTE(SUBSTITUTE(SUBSTITUTE($L$2:$L$398,"٬",""),",",""),"٫",".")), 0), 4) ) )* VALUE( SUBSTITUTE( SUBSTITUTE( SUBSTITUTE( INDEX($L$2:$L$398,MATCH($A41,$A$2:$A$398,0)), "٬",""), ",",""), "٫",".") ), 0 ), "#,##0" ) & " ریال", "" ) ) ) -> 
P42: =IF($A42="","", IF($M42="","", ROUND(IFERROR($M42/$L42,0),0) + IF( ROW()= LOOKUP( 2, 1/( ($A$2:$A$398=$A42)* (IFERROR($M$2:$M$398/$L$2:$L$398,0)= _xlfn.AGGREGATE(14,6, IFERROR($M$2:$M$398/$L$2:$L$398,0)/($A$2:$A$398=$A42), 1) ) ), ROW($A$2:$A$398) ), VALUE( SUBSTITUTE( SUBSTITUTE( SUBSTITUTE( INDEX($J$2:$J$398,MATCH($A42,$A$2:$A$398,0)), "٬",""), ",",""), "٫",".") ) - SUMPRODUCT( ROUND(IFERROR($M$2:$M$398/$L$2:$L$398,0),0)* --($A$2:$A$398=$A42) ), 0 ) ) ) ->  | U42: =IF($A42="","", IF(ROW()<>ROW(INDEX($A$2:$A$398,MATCH($A42,$A$2:$A$398,0))),"", IF( ROUND( VALUE( SUBSTITUTE( SUBSTITUTE( SUBSTITUTE( INDEX($J$2:$J$398,MATCH($A42,$A$2:$A$398,0)), "٬",""), ",",""), "٫",".") )*10000,0) <> ROUND( SUMPRODUCT( ($A$2:$A$398=$A42)* ROUND( IFERROR( VALUE(SUBSTITUTE(SUBSTITUTE(SUBSTITUTE($M$2:$M$398,"٬",""),",",""),"٫","."))/ VALUE(SUBSTITUTE(SUBSTITUTE(SUBSTITUTE($L$2:$L$398,"٬",""),",",""),"٫",".")), 0), 4) )*10000,0), "اختلاف معادل " & TEXT( ROUND( ( VALUE( SUBSTITUTE( SUBSTITUTE( SUBSTITUTE( INDEX($J$2:$J$398,MATCH($A42,$A$2:$A$398,0)), "٬",""), ",",""), "٫",".") ) - SUMPRODUCT( ($A$2:$A$398=$A42)* ROUND( IFERROR( VALUE(SUBSTITUTE(SUBSTITUTE(SUBSTITUTE($M$2:$M$398,"٬",""),",",""),"٫","."))/ VALUE(SUBSTITUTE(SUBSTITUTE(SUBSTITUTE($L$2:$L$398,"٬",""),",",""),"٫",".")), 0), 4) ) )* VALUE( SUBSTITUTE( SUBSTITUTE( SUBSTITUTE( INDEX($L$2:$L$398,MATCH($A42,$A$2:$A$398,0)), "٬",""), ",",""), "٫",".") ), 0 ), "#,##0" ) & " ریال", "" ) ) ) -> 
P43: =IF($A43="","", IF($M43="","", ROUND(IFERROR($M43/$L43,0),0) + IF( ROW()= LOOKUP( 2, 1/( ($A$2:$A$398=$A43)* (IFERROR($M$2:$M$398/$L$2:$L$398,0)= _xlfn.AGGREGATE(14,6, IFERROR($M$2:$M$398/$L$2:$L$398,0)/($A$2:$A$398=$A43), 1) ) ), ROW($A$2:$A$398) ), VALUE( SUBSTITUTE( SUBSTITUTE( SUBSTITUTE( INDEX($J$2:$J$398,MATCH($A43,$A$2:$A$398,0)), "٬",""), ",",""), "٫",".") ) - SUMPRODUCT( ROUND(IFERROR($M$2:$M$398/$L$2:$L$398,0),0)* --($A$2:$A$398=$A43) ), 0 ) ) ) ->  | U43: =IF($A43="","", IF(ROW()<>ROW(INDEX($A$2:$A$398,MATCH($A43,$A$2:$A$398,0))),"", IF( ROUND( VALUE( SUBSTITUTE( SUBSTITUTE( SUBSTITUTE( INDEX($J$2:$J$398,MATCH($A43,$A$2:$A$398,0)), "٬",""), ",",""), "٫",".") )*10000,0) <> ROUND( SUMPRODUCT( ($A$2:$A$398=$A43)* ROUND( IFERROR( VALUE(SUBSTITUTE(SUBSTITUTE(SUBSTITUTE($M$2:$M$398,"٬",""),",",""),"٫","."))/ VALUE(SUBSTITUTE(SUBSTITUTE(SUBSTITUTE($L$2:$L$398,"٬",""),",",""),"٫",".")), 0), 4) )*10000,0), "اختلاف معادل " & TEXT( ROUND( ( VALUE( SUBSTITUTE( SUBSTITUTE( SUBSTITUTE( INDEX($J$2:$J$398,MATCH($A43,$A$2:$A$398,0)), "٬",""), ",",""), "٫",".") ) - SUMPRODUCT( ($A$2:$A$398=$A43)* ROUND( IFERROR( VALUE(SUBSTITUTE(SUBSTITUTE(SUBSTITUTE($M$2:$M$398,"٬",""),",",""),"٫","."))/ VALUE(SUBSTITUTE(SUBSTITUTE(SUBSTITUTE($L$2:$L$398,"٬",""),",",""),"٫",".")), 0), 4) ) )* VALUE( SUBSTITUTE( SUBSTITUTE( SUBSTITUTE( INDEX($L$2:$L$398,MATCH($A43,$A$2:$A$398,0)), "٬",""), ",",""), "٫",".") ), 0 ), "#,##0" ) & " ریال", "" ) ) ) -> 
P44: =IF($A44="","", IF($M44="","", ROUND(IFERROR($M44/$L44,0),0) + IF( ROW()= LOOKUP( 2, 1/( ($A$2:$A$398=$A44)* (IFERROR($M$2:$M$398/$L$2:$L$398,0)= _xlfn.AGGREGATE(14,6, IFERROR($M$2:$M$398/$L$2:$L$398,0)/($A$2:$A$398=$A44), 1) ) ), ROW($A$2:$A$398) ), VALUE( SUBSTITUTE( SUBSTITUTE( SUBSTITUTE( INDEX($J$2:$J$398,MATCH($A44,$A$2:$A$398,0)), "٬",""), ",",""), "٫",".") ) - SUMPRODUCT( ROUND(IFERROR($M$2:$M$398/$L$2:$L$398,0),0)* --($A$2:$A$398=$A44) ), 0 ) ) ) ->  | U44: =IF($A44="","", IF(ROW()<>ROW(INDEX($A$2:$A$398,MATCH($A44,$A$2:$A$398,0))),"", IF( ROUND( VALUE( SUBSTITUTE( SUBSTITUTE( SUBSTITUTE( INDEX($J$2:$J$398,MATCH($A44,$A$2:$A$398,0)), "٬",""), ",",""), "٫",".") )*10000,0) <> ROUND( SUMPRODUCT( ($A$2:$A$398=$A44)* ROUND( IFERROR( VALUE(SUBSTITUTE(SUBSTITUTE(SUBSTITUTE($M$2:$M$398,"٬",""),",",""),"٫","."))/ VALUE(SUBSTITUTE(SUBSTITUTE(SUBSTITUTE($L$2:$L$398,"٬",""),",",""),"٫",".")), 0), 4) )*10000,0), "اختلاف معادل " & TEXT( ROUND( ( VALUE( SUBSTITUTE( SUBSTITUTE( SUBSTITUTE( INDEX($J$2:$J$398,MATCH($A44,$A$2:$A$398,0)), "٬",""), ",",""), "٫",".") ) - SUMPRODUCT( ($A$2:$A$398=$A44)* ROUND( IFERROR( VALUE(SUBSTITUTE(SUBSTITUTE(SUBSTITUTE($M$2:$M$398,"٬",""),",",""),"٫","."))/ VALUE(SUBSTITUTE(SUBSTITUTE(SUBSTITUTE($L$2:$L$398,"٬",""),",",""),"٫",".")), 0), 4) ) )* VALUE( SUBSTITUTE( SUBSTITUTE( SUBSTITUTE( INDEX($L$2:$L$398,MATCH($A44,$A$2:$A$398,0)), "٬",""), ",",""), "٫",".") ), 0 ), "#,##0" ) & " ریال", "" ) ) ) -> 
P45: =IF($A45="","", IF($M45="","", ROUND(IFERROR($M45/$L45,0),0) + IF( ROW()= LOOKUP( 2, 1/( ($A$2:$A$398=$A45)* (IFERROR($M$2:$M$398/$L$2:$L$398,0)= _xlfn.AGGREGATE(14,6, IFERROR($M$2:$M$398/$L$2:$L$398,0)/($A$2:$A$398=$A45), 1) ) ), ROW($A$2:$A$398) ), VALUE( SUBSTITUTE( SUBSTITUTE( SUBSTITUTE( INDEX($J$2:$J$398,MATCH($A45,$A$2:$A$398,0)), "٬",""), ",",""), "٫",".") ) - SUMPRODUCT( ROUND(IFERROR($M$2:$M$398/$L$2:$L$398,0),0)* --($A$2:$A$398=$A45) ), 0 ) ) ) ->  | U45: =IF($A45="","", IF(ROW()<>ROW(INDEX($A$2:$A$398,MATCH($A45,$A$2:$A$398,0))),"", IF( ROUND( VALUE( SUBSTITUTE( SUBSTITUTE( SUBSTITUTE( INDEX($J$2:$J$398,MATCH($A45,$A$2:$A$398,0)), "٬",""), ",",""), "٫",".") )*10000,0) <> ROUND( SUMPRODUCT( ($A$2:$A$398=$A45)* ROUND( IFERROR( VALUE(SUBSTITUTE(SUBSTITUTE(SUBSTITUTE($M$2:$M$398,"٬",""),",",""),"٫","."))/ VALUE(SUBSTITUTE(SUBSTITUTE(SUBSTITUTE($L$2:$L$398,"٬",""),",",""),"٫",".")), 0), 4) )*10000,0), "اختلاف معادل " & TEXT( ROUND( ( VALUE( SUBSTITUTE( SUBSTITUTE( SUBSTITUTE( INDEX($J$2:$J$398,MATCH($A45,$A$2:$A$398,0)), "٬",""), ",",""), "٫",".") ) - SUMPRODUCT( ($A$2:$A$398=$A45)* ROUND( IFERROR( VALUE(SUBSTITUTE(SUBSTITUTE(SUBSTITUTE($M$2:$M$398,"٬",""),",",""),"٫","."))/ VALUE(SUBSTITUTE(SUBSTITUTE(SUBSTITUTE($L$2:$L$398,"٬",""),",",""),"٫",".")), 0), 4) ) )* VALUE( SUBSTITUTE( SUBSTITUTE( SUBSTITUTE( INDEX($L$2:$L$398,MATCH($A45,$A$2:$A$398,0)), "٬",""), ",",""), "٫",".") ), 0 ), "#,##0" ) & " ریال", "" ) ) ) -> 
P46: =IF($A46="","", IF($M46="","", ROUND(IFERROR($M46/$L46,0),0) + IF( ROW()= LOOKUP( 2, 1/( ($A$2:$A$398=$A46)* (IFERROR($M$2:$M$398/$L$2:$L$398,0)= _xlfn.AGGREGATE(14,6, IFERROR($M$2:$M$398/$L$2:$L$398,0)/($A$2:$A$398=$A46), 1) ) ), ROW($A$2:$A$398) ), VALUE( SUBSTITUTE( SUBSTITUTE( SUBSTITUTE( INDEX($J$2:$J$398,MATCH($A46,$A$2:$A$398,0)), "٬",""), ",",""), "٫",".") ) - SUMPRODUCT( ROUND(IFERROR($M$2:$M$398/$L$2:$L$398,0),0)* --($A$2:$A$398=$A46) ), 0 ) ) ) ->  | U46: =IF($A46="","", IF(ROW()<>ROW(INDEX($A$2:$A$398,MATCH($A46,$A$2:$A$398,0))),"", IF( ROUND( VALUE( SUBSTITUTE( SUBSTITUTE( SUBSTITUTE( INDEX($J$2:$J$398,MATCH($A46,$A$2:$A$398,0)), "٬",""), ",",""), "٫",".") )*10000,0) <> ROUND( SUMPRODUCT( ($A$2:$A$398=$A46)* ROUND( IFERROR( VALUE(SUBSTITUTE(SUBSTITUTE(SUBSTITUTE($M$2:$M$398,"٬",""),",",""),"٫","."))/ VALUE(SUBSTITUTE(SUBSTITUTE(SUBSTITUTE($L$2:$L$398,"٬",""),",",""),"٫",".")), 0), 4) )*10000,0), "اختلاف معادل " & TEXT( ROUND( ( VALUE( SUBSTITUTE( SUBSTITUTE( SUBSTITUTE( INDEX($J$2:$J$398,MATCH($A46,$A$2:$A$398,0)), "٬",""), ",",""), "٫",".") ) - SUMPRODUCT( ($A$2:$A$398=$A46)* ROUND( IFERROR( VALUE(SUBSTITUTE(SUBSTITUTE(SUBSTITUTE($M$2:$M$398,"٬",""),",",""),"٫","."))/ VALUE(SUBSTITUTE(SUBSTITUTE(SUBSTITUTE($L$2:$L$398,"٬",""),",",""),"٫",".")), 0), 4) ) )* VALUE( SUBSTITUTE( SUBSTITUTE( SUBSTITUTE( INDEX($L$2:$L$398,MATCH($A46,$A$2:$A$398,0)), "٬",""), ",",""), "٫",".") ), 0 ), "#,##0" ) & " ریال", "" ) ) ) -> 
P47: =IF($A47="","", IF($M47="","", ROUND(IFERROR($M47/$L47,0),0) + IF( ROW()= LOOKUP( 2, 1/( ($A$2:$A$398=$A47)* (IFERROR($M$2:$M$398/$L$2:$L$398,0)= _xlfn.AGGREGATE(14,6, IFERROR($M$2:$M$398/$L$2:$L$398,0)/($A$2:$A$398=$A47), 1) ) ), ROW($A$2:$A$398) ), VALUE( SUBSTITUTE( SUBSTITUTE( SUBSTITUTE( INDEX($J$2:$J$398,MATCH($A47,$A$2:$A$398,0)), "٬",""), ",",""), "٫",".") ) - SUMPRODUCT( ROUND(IFERROR($M$2:$M$398/$L$2:$L$398,0),0)* --($A$2:$A$398=$A47) ), 0 ) ) ) ->  | U47: =IF($A47="","", IF(ROW()<>ROW(INDEX($A$2:$A$398,MATCH($A47,$A$2:$A$398,0))),"", IF( ROUND( VALUE( SUBSTITUTE( SUBSTITUTE( SUBSTITUTE( INDEX($J$2:$J$398,MATCH($A47,$A$2:$A$398,0)), "٬",""), ",",""), "٫",".") )*10000,0) <> ROUND( SUMPRODUCT( ($A$2:$A$398=$A47)* ROUND( IFERROR( VALUE(SUBSTITUTE(SUBSTITUTE(SUBSTITUTE($M$2:$M$398,"٬",""),",",""),"٫","."))/ VALUE(SUBSTITUTE(SUBSTITUTE(SUBSTITUTE($L$2:$L$398,"٬",""),",",""),"٫",".")), 0), 4) )*10000,0), "اختلاف معادل " & TEXT( ROUND( ( VALUE( SUBSTITUTE( SUBSTITUTE( SUBSTITUTE( INDEX($J$2:$J$398,MATCH($A47,$A$2:$A$398,0)), "٬",""), ",",""), "٫",".") ) - SUMPRODUCT( ($A$2:$A$398=$A47)* ROUND( IFERROR( VALUE(SUBSTITUTE(SUBSTITUTE(SUBSTITUTE($M$2:$M$398,"٬",""),",",""),"٫","."))/ VALUE(SUBSTITUTE(SUBSTITUTE(SUBSTITUTE($L$2:$L$398,"٬",""),",",""),"٫",".")), 0), 4) ) )* VALUE( SUBSTITUTE( SUBSTITUTE( SUBSTITUTE( INDEX($L$2:$L$398,MATCH($A47,$A$2:$A$398,0)), "٬",""), ",",""), "٫",".") ), 0 ), "#,##0" ) & " ریال", "" ) ) ) -> 
P48: =IF($A48="","", IF($M48="","", ROUND(IFERROR($M48/$L48,0),0) + IF( ROW()= LOOKUP( 2, 1/( ($A$2:$A$398=$A48)* (IFERROR($M$2:$M$398/$L$2:$L$398,0)= _xlfn.AGGREGATE(14,6, IFERROR($M$2:$M$398/$L$2:$L$398,0)/($A$2:$A$398=$A48), 1) ) ), ROW($A$2:$A$398) ), VALUE( SUBSTITUTE( SUBSTITUTE( SUBSTITUTE( INDEX($J$2:$J$398,MATCH($A48,$A$2:$A$398,0)), "٬",""), ",",""), "٫",".") ) - SUMPRODUCT( ROUND(IFERROR($M$2:$M$398/$L$2:$L$398,0),0)* --($A$2:$A$398=$A48) ), 0 ) ) ) ->  | U48: =IF($A48="","", IF(ROW()<>ROW(INDEX($A$2:$A$398,MATCH($A48,$A$2:$A$398,0))),"", IF( ROUND( VALUE( SUBSTITUTE( SUBSTITUTE( SUBSTITUTE( INDEX($J$2:$J$398,MATCH($A48,$A$2:$A$398,0)), "٬",""), ",",""), "٫",".") )*10000,0) <> ROUND( SUMPRODUCT( ($A$2:$A$398=$A48)* ROUND( IFERROR( VALUE(SUBSTITUTE(SUBSTITUTE(SUBSTITUTE($M$2:$M$398,"٬",""),",",""),"٫","."))/ VALUE(SUBSTITUTE(SUBSTITUTE(SUBSTITUTE($L$2:$L$398,"٬",""),",",""),"٫",".")), 0), 4) )*10000,0), "اختلاف معادل " & TEXT( ROUND( ( VALUE( SUBSTITUTE( SUBSTITUTE( SUBSTITUTE( INDEX($J$2:$J$398,MATCH($A48,$A$2:$A$398,0)), "٬",""), ",",""), "٫",".") ) - SUMPRODUCT( ($A$2:$A$398=$A48)* ROUND( IFERROR( VALUE(SUBSTITUTE(SUBSTITUTE(SUBSTITUTE($M$2:$M$398,"٬",""),",",""),"٫","."))/ VALUE(SUBSTITUTE(SUBSTITUTE(SUBSTITUTE($L$2:$L$398,"٬",""),",",""),"٫",".")), 0), 4) ) )* VALUE( SUBSTITUTE( SUBSTITUTE( SUBSTITUTE( INDEX($L$2:$L$398,MATCH($A48,$A$2:$A$398,0)), "٬",""), ",",""), "٫",".") ), 0 ), "#,##0" ) & " ریال", "" ) ) ) -> 
P49: =IF($A49="","", IF($M49="","", ROUND(IFERROR($M49/$L49,0),0) + IF( ROW()= LOOKUP( 2, 1/( ($A$2:$A$398=$A49)* (IFERROR($M$2:$M$398/$L$2:$L$398,0)= _xlfn.AGGREGATE(14,6, IFERROR($M$2:$M$398/$L$2:$L$398,0)/($A$2:$A$398=$A49), 1) ) ), ROW($A$2:$A$398) ), VALUE( SUBSTITUTE( SUBSTITUTE( SUBSTITUTE( INDEX($J$2:$J$398,MATCH($A49,$A$2:$A$398,0)), "٬",""), ",",""), "٫",".") ) - SUMPRODUCT( ROUND(IFERROR($M$2:$M$398/$L$2:$L$398,0),0)* --($A$2:$A$398=$A49) ), 0 ) ) ) ->  | U49: =IF($A49="","", IF(ROW()<>ROW(INDEX($A$2:$A$398,MATCH($A49,$A$2:$A$398,0))),"", IF( ROUND( VALUE( SUBSTITUTE( SUBSTITUTE( SUBSTITUTE( INDEX($J$2:$J$398,MATCH($A49,$A$2:$A$398,0)), "٬",""), ",",""), "٫",".") )*10000,0) <> ROUND( SUMPRODUCT( ($A$2:$A$398=$A49)* ROUND( IFERROR( VALUE(SUBSTITUTE(SUBSTITUTE(SUBSTITUTE($M$2:$M$398,"٬",""),",",""),"٫","."))/ VALUE(SUBSTITUTE(SUBSTITUTE(SUBSTITUTE($L$2:$L$398,"٬",""),",",""),"٫",".")), 0), 4) )*10000,0), "اختلاف معادل " & TEXT( ROUND( ( VALUE( SUBSTITUTE( SUBSTITUTE( SUBSTITUTE( INDEX($J$2:$J$398,MATCH($A49,$A$2:$A$398,0)), "٬",""), ",",""), "٫",".") ) - SUMPRODUCT( ($A$2:$A$398=$A49)* ROUND( IFERROR( VALUE(SUBSTITUTE(SUBSTITUTE(SUBSTITUTE($M$2:$M$398,"٬",""),",",""),"٫","."))/ VALUE(SUBSTITUTE(SUBSTITUTE(SUBSTITUTE($L$2:$L$398,"٬",""),",",""),"٫",".")), 0), 4) ) )* VALUE( SUBSTITUTE( SUBSTITUTE( SUBSTITUTE( INDEX($L$2:$L$398,MATCH($A49,$A$2:$A$398,0)), "٬",""), ",",""), "٫",".") ), 0 ), "#,##0" ) & " ریال", "" ) ) ) -> 
P50: =IF($A50="","", IF($M50="","", ROUND(IFERROR($M50/$L50,0),0) + IF( ROW()= LOOKUP( 2, 1/( ($A$2:$A$398=$A50)* (IFERROR($M$2:$M$398/$L$2:$L$398,0)= _xlfn.AGGREGATE(14,6, IFERROR($M$2:$M$398/$L$2:$L$398,0)/($A$2:$A$398=$A50), 1) ) ), ROW($A$2:$A$398) ), VALUE( SUBSTITUTE( SUBSTITUTE( SUBSTITUTE( INDEX($J$2:$J$398,MATCH($A50,$A$2:$A$398,0)), "٬",""), ",",""), "٫",".") ) - SUMPRODUCT( ROUND(IFERROR($M$2:$M$398/$L$2:$L$398,0),0)* --($A$2:$A$398=$A50) ), 0 ) ) ) ->  | Q50: =IF($A50="","", IF($M50="","", IF( IF($M50=0,"",ABS(P50*L50 - $M50)/$M50) > 0.01, "⚠️ اعداد شما از واقعیت تفاوت معنادار دارد", ROUND(P50*L50,0) ) ) ) ->  | R50: =IF($A50="","", MID( IF($J50="","", IF( IFERROR( ABS( VALUE(SUBSTITUTE(SUBSTITUTE(SUBSTITUTE(TRIM($J50),"٬",""),",",""),"٫",".")) - ROUND(VALUE(SUBSTITUTE(SUBSTITUTE(SUBSTITUTE(TRIM($J50),"٬",""),",",""),"٫",".")),4) )>0.000000001, FALSE), " | خطا: J بیش از ۴ رقم اعشار دارد", "" ) ) & IF($K50="","", IF( IFERROR( MOD( VALUE(SUBSTITUTE(SUBSTITUTE(SUBSTITUTE(TRIM($K50),"٬",""),",",""),"٫",".")), 1)<>0, FALSE), " | خطا: K (مجموع وزن خالص) اعشاری است", "" ) ) & IF($L50="","", IF( IFERROR( MOD( VALUE(SUBSTITUTE(SUBSTITUTE(SUBSTITUTE(TRIM($L50),"٬",""),",",""),"٫",".")), 1)<>0, FALSE), " | خطا: L (نرخ برابری ارز) اعشاری است", "" ) ) & IF($M50="","", IF( IFERROR( MOD( VALUE(SUBSTITUTE(SUBSTITUTE(SUBSTITUTE(TRIM($M50),"٬",""),",",""),"٫",".")), 1)<>0, FALSE), " | خطا: M اعشاری است", "" ) ) & IF($N50="","", IF( IFERROR( MOD( VALUE(SUBSTITUTE(SUBSTITUTE(SUBSTITUTE(TRIM($N50),"٬",""),",",""),"٫",".")), 1)<>0, FALSE), " | خطا: N (وزن خالص) اعشاری است", "" ) ),4,1000) ) ->  | T50: =IF($A50="","", IF(OR($M50="",$L50=""),"", IF( L50=0, "", IF( ABS( VALUE(SUBSTITUTE(SUBSTITUTE(SUBSTITUTE(SUBSTITUTE(TRIM($M50),"٬",""),",",""),"٫","."),CHAR(160),"")) / VALUE(SUBSTITUTE(SUBSTITUTE(SUBSTITUTE(SUBSTITUTE(TRIM($L50),"٬",""),",",""),"٫","."),CHAR(160),"")) - ROUND( VALUE(SUBSTITUTE(SUBSTITUTE(SUBSTITUTE(SUBSTITUTE(TRIM($M50),"٬",""),",",""),"٫","."),CHAR(160),"")) / VALUE(SUBSTITUTE(SUBSTITUTE(SUBSTITUTE(SUBSTITUTE(TRIM($L50),"٬",""),",",""),"٫","."),CHAR(160),"")), 4) ) > 0.000000001, "تقسیم M بر L نباید بیشتر از 4 رقم اعشار باشد", "" ) ) ) ) ->  | U50: =IF($A50="","", IF(ROW()<>ROW(INDEX($A$2:$A$398,MATCH($A50,$A$2:$A$398,0))),"", IF( ROUND( VALUE( SUBSTITUTE( SUBSTITUTE( SUBSTITUTE( INDEX($J$2:$J$398,MATCH($A50,$A$2:$A$398,0)), "٬",""), ",",""), "٫",".") )*10000,0) <> ROUND( SUMPRODUCT( ($A$2:$A$398=$A50)* ROUND( IFERROR( VALUE(SUBSTITUTE(SUBSTITUTE(SUBSTITUTE($M$2:$M$398,"٬",""),",",""),"٫","."))/ VALUE(SUBSTITUTE(SUBSTITUTE(SUBSTITUTE($L$2:$L$398,"٬",""),",",""),"٫",".")), 0), 4) )*10000,0), "اختلاف معادل " & TEXT( ROUND( ( VALUE( SUBSTITUTE( SUBSTITUTE( SUBSTITUTE( INDEX($J$2:$J$398,MATCH($A50,$A$2:$A$398,0)), "٬",""), ",",""), "٫",".") ) - SUMPRODUCT( ($A$2:$A$398=$A50)* ROUND( IFERROR( VALUE(SUBSTITUTE(SUBSTITUTE(SUBSTITUTE($M$2:$M$398,"٬",""),",",""),"٫","."))/ VALUE(SUBSTITUTE(SUBSTITUTE(SUBSTITUTE($L$2:$L$398,"٬",""),",",""),"٫",".")), 0), 4) ) )* VALUE( SUBSTITUTE( SUBSTITUTE( SUBSTITUTE( INDEX($L$2:$L$398,MATCH($A50,$A$2:$A$398,0)), "٬",""), ",",""), "٫",".") ), 0 ), "#,##0" ) & " ریال", "" ) ) ) -> 
P51: =IF($A51="","", IF($M51="","", ROUND(IFERROR($M51/$L51,0),0) + IF( ROW()= LOOKUP( 2, 1/( ($A$2:$A$398=$A51)* (IFERROR($M$2:$M$398/$L$2:$L$398,0)= _xlfn.AGGREGATE(14,6, IFERROR($M$2:$M$398/$L$2:$L$398,0)/($A$2:$A$398=$A51), 1) ) ), ROW($A$2:$A$398) ), VALUE( SUBSTITUTE( SUBSTITUTE( SUBSTITUTE( INDEX($J$2:$J$398,MATCH($A51,$A$2:$A$398,0)), "٬",""), ",",""), "٫",".") ) - SUMPRODUCT( ROUND(IFERROR($M$2:$M$398/$L$2:$L$398,0),0)* --($A$2:$A$398=$A51) ), 0 ) ) ) ->  | U51: =IF($A51="","", IF(ROW()<>ROW(INDEX($A$2:$A$398,MATCH($A51,$A$2:$A$398,0))),"", IF( ROUND( VALUE( SUBSTITUTE( SUBSTITUTE( SUBSTITUTE( INDEX($J$2:$J$398,MATCH($A51,$A$2:$A$398,0)), "٬",""), ",",""), "٫",".") )*10000,0) <> ROUND( SUMPRODUCT( ($A$2:$A$398=$A51)* ROUND( IFERROR( VALUE(SUBSTITUTE(SUBSTITUTE(SUBSTITUTE($M$2:$M$398,"٬",""),",",""),"٫","."))/ VALUE(SUBSTITUTE(SUBSTITUTE(SUBSTITUTE($L$2:$L$398,"٬",""),",",""),"٫",".")), 0), 4) )*10000,0), "اختلاف معادل " & TEXT( ROUND( ( VALUE( SUBSTITUTE( SUBSTITUTE( SUBSTITUTE( INDEX($J$2:$J$398,MATCH($A51,$A$2:$A$398,0)), "٬",""), ",",""), "٫",".") ) - SUMPRODUCT( ($A$2:$A$398=$A51)* ROUND( IFERROR( VALUE(SUBSTITUTE(SUBSTITUTE(SUBSTITUTE($M$2:$M$398,"٬",""),",",""),"٫","."))/ VALUE(SUBSTITUTE(SUBSTITUTE(SUBSTITUTE($L$2:$L$398,"٬",""),",",""),"٫",".")), 0), 4) ) )* VALUE( SUBSTITUTE( SUBSTITUTE( SUBSTITUTE( INDEX($L$2:$L$398,MATCH($A51,$A$2:$A$398,0)), "٬",""), ",",""), "٫",".") ), 0 ), "#,##0" ) & " ریال", "" ) ) ) -> 
P52: =IF($A52="","", IF($M52="","", ROUND(IFERROR($M52/$L52,0),0) + IF( ROW()= LOOKUP( 2, 1/( ($A$2:$A$398=$A52)* (IFERROR($M$2:$M$398/$L$2:$L$398,0)= _xlfn.AGGREGATE(14,6, IFERROR($M$2:$M$398/$L$2:$L$398,0)/($A$2:$A$398=$A52), 1) ) ), ROW($A$2:$A$398) ), VALUE( SUBSTITUTE( SUBSTITUTE( SUBSTITUTE( INDEX($J$2:$J$398,MATCH($A52,$A$2:$A$398,0)), "٬",""), ",",""), "٫",".") ) - SUMPRODUCT( ROUND(IFERROR($M$2:$M$398/$L$2:$L$398,0),0)* --($A$2:$A$398=$A52) ), 0 ) ) ) ->  | U52: =IF($A52="","", IF(ROW()<>ROW(INDEX($A$2:$A$398,MATCH($A52,$A$2:$A$398,0))),"", IF( ROUND( VALUE( SUBSTITUTE( SUBSTITUTE( SUBSTITUTE( INDEX($J$2:$J$398,MATCH($A52,$A$2:$A$398,0)), "٬",""), ",",""), "٫",".") )*10000,0) <> ROUND( SUMPRODUCT( ($A$2:$A$398=$A52)* ROUND( IFERROR( VALUE(SUBSTITUTE(SUBSTITUTE(SUBSTITUTE($M$2:$M$398,"٬",""),",",""),"٫","."))/ VALUE(SUBSTITUTE(SUBSTITUTE(SUBSTITUTE($L$2:$L$398,"٬",""),",",""),"٫",".")), 0), 4) )*10000,0), "اختلاف معادل " & TEXT( ROUND( ( VALUE( SUBSTITUTE( SUBSTITUTE( SUBSTITUTE( INDEX($J$2:$J$398,MATCH($A52,$A$2:$A$398,0)), "٬",""), ",",""), "٫",".") ) - SUMPRODUCT( ($A$2:$A$398=$A52)* ROUND( IFERROR( VALUE(SUBSTITUTE(SUBSTITUTE(SUBSTITUTE($M$2:$M$398,"٬",""),",",""),"٫","."))/ VALUE(SUBSTITUTE(SUBSTITUTE(SUBSTITUTE($L$2:$L$398,"٬",""),",",""),"٫",".")), 0), 4) ) )* VALUE( SUBSTITUTE( SUBSTITUTE( SUBSTITUTE( INDEX($L$2:$L$398,MATCH($A52,$A$2:$A$398,0)), "٬",""), ",",""), "٫",".") ), 0 ), "#,##0" ) & " ریال", "" ) ) ) -> 
P53: =IF($A53="","", IF($M53="","", ROUND(IFERROR($M53/$L53,0),0) + IF( ROW()= LOOKUP( 2, 1/( ($A$2:$A$398=$A53)* (IFERROR($M$2:$M$398/$L$2:$L$398,0)= _xlfn.AGGREGATE(14,6, IFERROR($M$2:$M$398/$L$2:$L$398,0)/($A$2:$A$398=$A53), 1) ) ), ROW($A$2:$A$398) ), VALUE( SUBSTITUTE( SUBSTITUTE( SUBSTITUTE( INDEX($J$2:$J$398,MATCH($A53,$A$2:$A$398,0)), "٬",""), ",",""), "٫",".") ) - SUMPRODUCT( ROUND(IFERROR($M$2:$M$398/$L$2:$L$398,0),0)* --($A$2:$A$398=$A53) ), 0 ) ) ) ->  | U53: =IF($A53="","", IF(ROW()<>ROW(INDEX($A$2:$A$398,MATCH($A53,$A$2:$A$398,0))),"", IF( ROUND( VALUE( SUBSTITUTE( SUBSTITUTE( SUBSTITUTE( INDEX($J$2:$J$398,MATCH($A53,$A$2:$A$398,0)), "٬",""), ",",""), "٫",".") )*10000,0) <> ROUND( SUMPRODUCT( ($A$2:$A$398=$A53)* ROUND( IFERROR( VALUE(SUBSTITUTE(SUBSTITUTE(SUBSTITUTE($M$2:$M$398,"٬",""),",",""),"٫","."))/ VALUE(SUBSTITUTE(SUBSTITUTE(SUBSTITUTE($L$2:$L$398,"٬",""),",",""),"٫",".")), 0), 4) )*10000,0), "اختلاف معادل " & TEXT( ROUND( ( VALUE( SUBSTITUTE( SUBSTITUTE( SUBSTITUTE( INDEX($J$2:$J$398,MATCH($A53,$A$2:$A$398,0)), "٬",""), ",",""), "٫",".") ) - SUMPRODUCT( ($A$2:$A$398=$A53)* ROUND( IFERROR( VALUE(SUBSTITUTE(SUBSTITUTE(SUBSTITUTE($M$2:$M$398,"٬",""),",",""),"٫","."))/ VALUE(SUBSTITUTE(SUBSTITUTE(SUBSTITUTE($L$2:$L$398,"٬",""),",",""),"٫",".")), 0), 4) ) )* VALUE( SUBSTITUTE( SUBSTITUTE( SUBSTITUTE( INDEX($L$2:$L$398,MATCH($A53,$A$2:$A$398,0)), "٬",""), ",",""), "٫",".") ), 0 ), "#,##0" ) & " ریال", "" ) ) ) -> 
P54: =IF($A54="","", IF($M54="","", ROUND(IFERROR($M54/$L54,0),0) + IF( ROW()= LOOKUP( 2, 1/( ($A$2:$A$398=$A54)* (IFERROR($M$2:$M$398/$L$2:$L$398,0)= _xlfn.AGGREGATE(14,6, IFERROR($M$2:$M$398/$L$2:$L$398,0)/($A$2:$A$398=$A54), 1) ) ), ROW($A$2:$A$398) ), VALUE( SUBSTITUTE( SUBSTITUTE( SUBSTITUTE( INDEX($J$2:$J$398,MATCH($A54,$A$2:$A$398,0)), "٬",""), ",",""), "٫",".") ) - SUMPRODUCT( ROUND(IFERROR($M$2:$M$398/$L$2:$L$398,0),0)* --($A$2:$A$398=$A54) ), 0 ) ) ) ->  | U54: =IF($A54="","", IF(ROW()<>ROW(INDEX($A$2:$A$398,MATCH($A54,$A$2:$A$398,0))),"", IF( ROUND( VALUE( SUBSTITUTE( SUBSTITUTE( SUBSTITUTE( INDEX($J$2:$J$398,MATCH($A54,$A$2:$A$398,0)), "٬",""), ",",""), "٫",".") )*10000,0) <> ROUND( SUMPRODUCT( ($A$2:$A$398=$A54)* ROUND( IFERROR( VALUE(SUBSTITUTE(SUBSTITUTE(SUBSTITUTE($M$2:$M$398,"٬",""),",",""),"٫","."))/ VALUE(SUBSTITUTE(SUBSTITUTE(SUBSTITUTE($L$2:$L$398,"٬",""),",",""),"٫",".")), 0), 4) )*10000,0), "اختلاف معادل " & TEXT( ROUND( ( VALUE( SUBSTITUTE( SUBSTITUTE( SUBSTITUTE( INDEX($J$2:$J$398,MATCH($A54,$A$2:$A$398,0)), "٬",""), ",",""), "٫",".") ) - SUMPRODUCT( ($A$2:$A$398=$A54)* ROUND( IFERROR( VALUE(SUBSTITUTE(SUBSTITUTE(SUBSTITUTE($M$2:$M$398,"٬",""),",",""),"٫","."))/ VALUE(SUBSTITUTE(SUBSTITUTE(SUBSTITUTE($L$2:$L$398,"٬",""),",",""),"٫",".")), 0), 4) ) )* VALUE( SUBSTITUTE( SUBSTITUTE( SUBSTITUTE( INDEX($L$2:$L$398,MATCH($A54,$A$2:$A$398,0)), "٬",""), ",",""), "٫",".") ), 0 ), "#,##0" ) & " ریال", "" ) ) ) -> 
P55: =IF($A55="","", IF($M55="","", ROUND(IFERROR($M55/$L55,0),0) + IF( ROW()= LOOKUP( 2, 1/( ($A$2:$A$398=$A55)* (IFERROR($M$2:$M$398/$L$2:$L$398,0)= _xlfn.AGGREGATE(14,6, IFERROR($M$2:$M$398/$L$2:$L$398,0)/($A$2:$A$398=$A55), 1) ) ), ROW($A$2:$A$398) ), VALUE( SUBSTITUTE( SUBSTITUTE( SUBSTITUTE( INDEX($J$2:$J$398,MATCH($A55,$A$2:$A$398,0)), "٬",""), ",",""), "٫",".") ) - SUMPRODUCT( ROUND(IFERROR($M$2:$M$398/$L$2:$L$398,0),0)* --($A$2:$A$398=$A55) ), 0 ) ) ) ->  | U55: =IF($A55="","", IF(ROW()<>ROW(INDEX($A$2:$A$398,MATCH($A55,$A$2:$A$398,0))),"", IF( ROUND( VALUE( SUBSTITUTE( SUBSTITUTE( SUBSTITUTE( INDEX($J$2:$J$398,MATCH($A55,$A$2:$A$398,0)), "٬",""), ",",""), "٫",".") )*10000,0) <> ROUND( SUMPRODUCT( ($A$2:$A$398=$A55)* ROUND( IFERROR( VALUE(SUBSTITUTE(SUBSTITUTE(SUBSTITUTE($M$2:$M$398,"٬",""),",",""),"٫","."))/ VALUE(SUBSTITUTE(SUBSTITUTE(SUBSTITUTE($L$2:$L$398,"٬",""),",",""),"٫",".")), 0), 4) )*10000,0), "اختلاف معادل " & TEXT( ROUND( ( VALUE( SUBSTITUTE( SUBSTITUTE( SUBSTITUTE( INDEX($J$2:$J$398,MATCH($A55,$A$2:$A$398,0)), "٬",""), ",",""), "٫",".") ) - SUMPRODUCT( ($A$2:$A$398=$A55)* ROUND( IFERROR( VALUE(SUBSTITUTE(SUBSTITUTE(SUBSTITUTE($M$2:$M$398,"٬",""),",",""),"٫","."))/ VALUE(SUBSTITUTE(SUBSTITUTE(SUBSTITUTE($L$2:$L$398,"٬",""),",",""),"٫",".")), 0), 4) ) )* VALUE( SUBSTITUTE( SUBSTITUTE( SUBSTITUTE( INDEX($L$2:$L$398,MATCH($A55,$A$2:$A$398,0)), "٬",""), ",",""), "٫",".") ), 0 ), "#,##0" ) & " ریال", "" ) ) ) -> 
P56: =IF($A56="","", IF($M56="","", ROUND(IFERROR($M56/$L56,0),0) + IF( ROW()= LOOKUP( 2, 1/( ($A$2:$A$398=$A56)* (IFERROR($M$2:$M$398/$L$2:$L$398,0)= _xlfn.AGGREGATE(14,6, IFERROR($M$2:$M$398/$L$2:$L$398,0)/($A$2:$A$398=$A56), 1) ) ), ROW($A$2:$A$398) ), VALUE( SUBSTITUTE( SUBSTITUTE( SUBSTITUTE( INDEX($J$2:$J$398,MATCH($A56,$A$2:$A$398,0)), "٬",""), ",",""), "٫",".") ) - SUMPRODUCT( ROUND(IFERROR($M$2:$M$398/$L$2:$L$398,0),0)* --($A$2:$A$398=$A56) ), 0 ) ) ) ->  | U56: =IF($A56="","", IF(ROW()<>ROW(INDEX($A$2:$A$398,MATCH($A56,$A$2:$A$398,0))),"", IF( ROUND( VALUE( SUBSTITUTE( SUBSTITUTE( SUBSTITUTE( INDEX($J$2:$J$398,MATCH($A56,$A$2:$A$398,0)), "٬",""), ",",""), "٫",".") )*10000,0) <> ROUND( SUMPRODUCT( ($A$2:$A$398=$A56)* ROUND( IFERROR( VALUE(SUBSTITUTE(SUBSTITUTE(SUBSTITUTE($M$2:$M$398,"٬",""),",",""),"٫","."))/ VALUE(SUBSTITUTE(SUBSTITUTE(SUBSTITUTE($L$2:$L$398,"٬",""),",",""),"٫",".")), 0), 4) )*10000,0), "اختلاف معادل " & TEXT( ROUND( ( VALUE( SUBSTITUTE( SUBSTITUTE( SUBSTITUTE( INDEX($J$2:$J$398,MATCH($A56,$A$2:$A$398,0)), "٬",""), ",",""), "٫",".") ) - SUMPRODUCT( ($A$2:$A$398=$A56)* ROUND( IFERROR( VALUE(SUBSTITUTE(SUBSTITUTE(SUBSTITUTE($M$2:$M$398,"٬",""),",",""),"٫","."))/ VALUE(SUBSTITUTE(SUBSTITUTE(SUBSTITUTE($L$2:$L$398,"٬",""),",",""),"٫",".")), 0), 4) ) )* VALUE( SUBSTITUTE( SUBSTITUTE( SUBSTITUTE( INDEX($L$2:$L$398,MATCH($A56,$A$2:$A$398,0)), "٬",""), ",",""), "٫",".") ), 0 ), "#,##0" ) & " ریال", "" ) ) ) -> 
P57: =IF($A57="","", IF($M57="","", ROUND(IFERROR($M57/$L57,0),0) + IF( ROW()= LOOKUP( 2, 1/( ($A$2:$A$398=$A57)* (IFERROR($M$2:$M$398/$L$2:$L$398,0)= _xlfn.AGGREGATE(14,6, IFERROR($M$2:$M$398/$L$2:$L$398,0)/($A$2:$A$398=$A57), 1) ) ), ROW($A$2:$A$398) ), VALUE( SUBSTITUTE( SUBSTITUTE( SUBSTITUTE( INDEX($J$2:$J$398,MATCH($A57,$A$2:$A$398,0)), "٬",""), ",",""), "٫",".") ) - SUMPRODUCT( ROUND(IFERROR($M$2:$M$398/$L$2:$L$398,0),0)* --($A$2:$A$398=$A57) ), 0 ) ) ) ->  | U57: =IF($A57="","", IF(ROW()<>ROW(INDEX($A$2:$A$398,MATCH($A57,$A$2:$A$398,0))),"", IF( ROUND( VALUE( SUBSTITUTE( SUBSTITUTE( SUBSTITUTE( INDEX($J$2:$J$398,MATCH($A57,$A$2:$A$398,0)), "٬",""), ",",""), "٫",".") )*10000,0) <> ROUND( SUMPRODUCT( ($A$2:$A$398=$A57)* ROUND( IFERROR( VALUE(SUBSTITUTE(SUBSTITUTE(SUBSTITUTE($M$2:$M$398,"٬",""),",",""),"٫","."))/ VALUE(SUBSTITUTE(SUBSTITUTE(SUBSTITUTE($L$2:$L$398,"٬",""),",",""),"٫",".")), 0), 4) )*10000,0), "اختلاف معادل " & TEXT( ROUND( ( VALUE( SUBSTITUTE( SUBSTITUTE( SUBSTITUTE( INDEX($J$2:$J$398,MATCH($A57,$A$2:$A$398,0)), "٬",""), ",",""), "٫",".") ) - SUMPRODUCT( ($A$2:$A$398=$A57)* ROUND( IFERROR( VALUE(SUBSTITUTE(SUBSTITUTE(SUBSTITUTE($M$2:$M$398,"٬",""),",",""),"٫","."))/ VALUE(SUBSTITUTE(SUBSTITUTE(SUBSTITUTE($L$2:$L$398,"٬",""),",",""),"٫",".")), 0), 4) ) )* VALUE( SUBSTITUTE( SUBSTITUTE( SUBSTITUTE( INDEX($L$2:$L$398,MATCH($A57,$A$2:$A$398,0)), "٬",""), ",",""), "٫",".") ), 0 ), "#,##0" ) & " ریال", "" ) ) ) -> 
P58: =IF($A58="","", IF($M58="","", ROUND(IFERROR($M58/$L58,0),0) + IF( ROW()= LOOKUP( 2, 1/( ($A$2:$A$398=$A58)* (IFERROR($M$2:$M$398/$L$2:$L$398,0)= _xlfn.AGGREGATE(14,6, IFERROR($M$2:$M$398/$L$2:$L$398,0)/($A$2:$A$398=$A58), 1) ) ), ROW($A$2:$A$398) ), VALUE( SUBSTITUTE( SUBSTITUTE( SUBSTITUTE( INDEX($J$2:$J$398,MATCH($A58,$A$2:$A$398,0)), "٬",""), ",",""), "٫",".") ) - SUMPRODUCT( ROUND(IFERROR($M$2:$M$398/$L$2:$L$398,0),0)* --($A$2:$A$398=$A58) ), 0 ) ) ) ->  | U58: =IF($A58="","", IF(ROW()<>ROW(INDEX($A$2:$A$398,MATCH($A58,$A$2:$A$398,0))),"", IF( ROUND( VALUE( SUBSTITUTE( SUBSTITUTE( SUBSTITUTE( INDEX($J$2:$J$398,MATCH($A58,$A$2:$A$398,0)), "٬",""), ",",""), "٫",".") )*10000,0) <> ROUND( SUMPRODUCT( ($A$2:$A$398=$A58)* ROUND( IFERROR( VALUE(SUBSTITUTE(SUBSTITUTE(SUBSTITUTE($M$2:$M$398,"٬",""),",",""),"٫","."))/ VALUE(SUBSTITUTE(SUBSTITUTE(SUBSTITUTE($L$2:$L$398,"٬",""),",",""),"٫",".")), 0), 4) )*10000,0), "اختلاف معادل " & TEXT( ROUND( ( VALUE( SUBSTITUTE( SUBSTITUTE( SUBSTITUTE( INDEX($J$2:$J$398,MATCH($A58,$A$2:$A$398,0)), "٬",""), ",",""), "٫",".") ) - SUMPRODUCT( ($A$2:$A$398=$A58)* ROUND( IFERROR( VALUE(SUBSTITUTE(SUBSTITUTE(SUBSTITUTE($M$2:$M$398,"٬",""),",",""),"٫","."))/ VALUE(SUBSTITUTE(SUBSTITUTE(SUBSTITUTE($L$2:$L$398,"٬",""),",",""),"٫",".")), 0), 4) ) )* VALUE( SUBSTITUTE( SUBSTITUTE( SUBSTITUTE( INDEX($L$2:$L$398,MATCH($A58,$A$2:$A$398,0)), "٬",""), ",",""), "٫",".") ), 0 ), "#,##0" ) & " ریال", "" ) ) ) -> 
P59: =IF($A59="","", IF($M59="","", ROUND(IFERROR($M59/$L59,0),0) + IF( ROW()= LOOKUP( 2, 1/( ($A$2:$A$398=$A59)* (IFERROR($M$2:$M$398/$L$2:$L$398,0)= _xlfn.AGGREGATE(14,6, IFERROR($M$2:$M$398/$L$2:$L$398,0)/($A$2:$A$398=$A59), 1) ) ), ROW($A$2:$A$398) ), VALUE( SUBSTITUTE( SUBSTITUTE( SUBSTITUTE( INDEX($J$2:$J$398,MATCH($A59,$A$2:$A$398,0)), "٬",""), ",",""), "٫",".") ) - SUMPRODUCT( ROUND(IFERROR($M$2:$M$398/$L$2:$L$398,0),0)* --($A$2:$A$398=$A59) ), 0 ) ) ) ->  | U59: =IF($A59="","", IF(ROW()<>ROW(INDEX($A$2:$A$398,MATCH($A59,$A$2:$A$398,0))),"", IF( ROUND( VALUE( SUBSTITUTE( SUBSTITUTE( SUBSTITUTE( INDEX($J$2:$J$398,MATCH($A59,$A$2:$A$398,0)), "٬",""), ",",""), "٫",".") )*10000,0) <> ROUND( SUMPRODUCT( ($A$2:$A$398=$A59)* ROUND( IFERROR( VALUE(SUBSTITUTE(SUBSTITUTE(SUBSTITUTE($M$2:$M$398,"٬",""),",",""),"٫","."))/ VALUE(SUBSTITUTE(SUBSTITUTE(SUBSTITUTE($L$2:$L$398,"٬",""),",",""),"٫",".")), 0), 4) )*10000,0), "اختلاف معادل " & TEXT( ROUND( ( VALUE( SUBSTITUTE( SUBSTITUTE( SUBSTITUTE( INDEX($J$2:$J$398,MATCH($A59,$A$2:$A$398,0)), "٬",""), ",",""), "٫",".") ) - SUMPRODUCT( ($A$2:$A$398=$A59)* ROUND( IFERROR( VALUE(SUBSTITUTE(SUBSTITUTE(SUBSTITUTE($M$2:$M$398,"٬",""),",",""),"٫","."))/ VALUE(SUBSTITUTE(SUBSTITUTE(SUBSTITUTE($L$2:$L$398,"٬",""),",",""),"٫",".")), 0), 4) ) )* VALUE( SUBSTITUTE( SUBSTITUTE( SUBSTITUTE( INDEX($L$2:$L$398,MATCH($A59,$A$2:$A$398,0)), "٬",""), ",",""), "٫",".") ), 0 ), "#,##0" ) & " ریال", "" ) ) ) -> 
P60: =IF($A60="","", IF($M60="","", ROUND(IFERROR($M60/$L60,0),0) + IF( ROW()= LOOKUP( 2, 1/( ($A$2:$A$398=$A60)* (IFERROR($M$2:$M$398/$L$2:$L$398,0)= _xlfn.AGGREGATE(14,6, IFERROR($M$2:$M$398/$L$2:$L$398,0)/($A$2:$A$398=$A60), 1) ) ), ROW($A$2:$A$398) ), VALUE( SUBSTITUTE( SUBSTITUTE( SUBSTITUTE( INDEX($J$2:$J$398,MATCH($A60,$A$2:$A$398,0)), "٬",""), ",",""), "٫",".") ) - SUMPRODUCT( ROUND(IFERROR($M$2:$M$398/$L$2:$L$398,0),0)* --($A$2:$A$398=$A60) ), 0 ) ) ) ->  | U60: =IF($A60="","", IF(ROW()<>ROW(INDEX($A$2:$A$398,MATCH($A60,$A$2:$A$398,0))),"", IF( ROUND( VALUE( SUBSTITUTE( SUBSTITUTE( SUBSTITUTE( INDEX($J$2:$J$398,MATCH($A60,$A$2:$A$398,0)), "٬",""), ",",""), "٫",".") )*10000,0) <> ROUND( SUMPRODUCT( ($A$2:$A$398=$A60)* ROUND( IFERROR( VALUE(SUBSTITUTE(SUBSTITUTE(SUBSTITUTE($M$2:$M$398,"٬",""),",",""),"٫","."))/ VALUE(SUBSTITUTE(SUBSTITUTE(SUBSTITUTE($L$2:$L$398,"٬",""),",",""),"٫",".")), 0), 4) )*10000,0), "اختلاف معادل " & TEXT( ROUND( ( VALUE( SUBSTITUTE( SUBSTITUTE( SUBSTITUTE( INDEX($J$2:$J$398,MATCH($A60,$A$2:$A$398,0)), "٬",""), ",",""), "٫",".") ) - SUMPRODUCT( ($A$2:$A$398=$A60)* ROUND( IFERROR( VALUE(SUBSTITUTE(SUBSTITUTE(SUBSTITUTE($M$2:$M$398,"٬",""),",",""),"٫","."))/ VALUE(SUBSTITUTE(SUBSTITUTE(SUBSTITUTE($L$2:$L$398,"٬",""),",",""),"٫",".")), 0), 4) ) )* VALUE( SUBSTITUTE( SUBSTITUTE( SUBSTITUTE( INDEX($L$2:$L$398,MATCH($A60,$A$2:$A$398,0)), "٬",""), ",",""), "٫",".") ), 0 ), "#,##0" ) & " ریال", "" ) ) ) -> 
P61: =IF($A61="","", IF($M61="","", ROUND(IFERROR($M61/$L61,0),0) + IF( ROW()= LOOKUP( 2, 1/( ($A$2:$A$398=$A61)* (IFERROR($M$2:$M$398/$L$2:$L$398,0)= _xlfn.AGGREGATE(14,6, IFERROR($M$2:$M$398/$L$2:$L$398,0)/($A$2:$A$398=$A61), 1) ) ), ROW($A$2:$A$398) ), VALUE( SUBSTITUTE( SUBSTITUTE( SUBSTITUTE( INDEX($J$2:$J$398,MATCH($A61,$A$2:$A$398,0)), "٬",""), ",",""), "٫",".") ) - SUMPRODUCT( ROUND(IFERROR($M$2:$M$398/$L$2:$L$398,0),0)* --($A$2:$A$398=$A61) ), 0 ) ) ) ->  | U61: =IF($A61="","", IF(ROW()<>ROW(INDEX($A$2:$A$398,MATCH($A61,$A$2:$A$398,0))),"", IF( ROUND( VALUE( SUBSTITUTE( SUBSTITUTE( SUBSTITUTE( INDEX($J$2:$J$398,MATCH($A61,$A$2:$A$398,0)), "٬",""), ",",""), "٫",".") )*10000,0) <> ROUND( SUMPRODUCT( ($A$2:$A$398=$A61)* ROUND( IFERROR( VALUE(SUBSTITUTE(SUBSTITUTE(SUBSTITUTE($M$2:$M$398,"٬",""),",",""),"٫","."))/ VALUE(SUBSTITUTE(SUBSTITUTE(SUBSTITUTE($L$2:$L$398,"٬",""),",",""),"٫",".")), 0), 4) )*10000,0), "اختلاف معادل " & TEXT( ROUND( ( VALUE( SUBSTITUTE( SUBSTITUTE( SUBSTITUTE( INDEX($J$2:$J$398,MATCH($A61,$A$2:$A$398,0)), "٬",""), ",",""), "٫",".") ) - SUMPRODUCT( ($A$2:$A$398=$A61)* ROUND( IFERROR( VALUE(SUBSTITUTE(SUBSTITUTE(SUBSTITUTE($M$2:$M$398,"٬",""),",",""),"٫","."))/ VALUE(SUBSTITUTE(SUBSTITUTE(SUBSTITUTE($L$2:$L$398,"٬",""),",",""),"٫",".")), 0), 4) ) )* VALUE( SUBSTITUTE( SUBSTITUTE( SUBSTITUTE( INDEX($L$2:$L$398,MATCH($A61,$A$2:$A$398,0)), "٬",""), ",",""), "٫",".") ), 0 ), "#,##0" ) & " ریال", "" ) ) ) -> 
P62: =IF($A62="","", IF($M62="","", ROUND(IFERROR($M62/$L62,0),0) + IF( ROW()= LOOKUP( 2, 1/( ($A$2:$A$398=$A62)* (IFERROR($M$2:$M$398/$L$2:$L$398,0)= _xlfn.AGGREGATE(14,6, IFERROR($M$2:$M$398/$L$2:$L$398,0)/($A$2:$A$398=$A62), 1) ) ), ROW($A$2:$A$398) ), VALUE( SUBSTITUTE( SUBSTITUTE( SUBSTITUTE( INDEX($J$2:$J$398,MATCH($A62,$A$2:$A$398,0)), "٬",""), ",",""), "٫",".") ) - SUMPRODUCT( ROUND(IFERROR($M$2:$M$398/$L$2:$L$398,0),0)* --($A$2:$A$398=$A62) ), 0 ) ) ) ->  | U62: =IF($A62="","", IF(ROW()<>ROW(INDEX($A$2:$A$398,MATCH($A62,$A$2:$A$398,0))),"", IF( ROUND( VALUE( SUBSTITUTE( SUBSTITUTE( SUBSTITUTE( INDEX($J$2:$J$398,MATCH($A62,$A$2:$A$398,0)), "٬",""), ",",""), "٫",".") )*10000,0) <> ROUND( SUMPRODUCT( ($A$2:$A$398=$A62)* ROUND( IFERROR( VALUE(SUBSTITUTE(SUBSTITUTE(SUBSTITUTE($M$2:$M$398,"٬",""),",",""),"٫","."))/ VALUE(SUBSTITUTE(SUBSTITUTE(SUBSTITUTE($L$2:$L$398,"٬",""),",",""),"٫",".")), 0), 4) )*10000,0), "اختلاف معادل " & TEXT( ROUND( ( VALUE( SUBSTITUTE( SUBSTITUTE( SUBSTITUTE( INDEX($J$2:$J$398,MATCH($A62,$A$2:$A$398,0)), "٬",""), ",",""), "٫",".") ) - SUMPRODUCT( ($A$2:$A$398=$A62)* ROUND( IFERROR( VALUE(SUBSTITUTE(SUBSTITUTE(SUBSTITUTE($M$2:$M$398,"٬",""),",",""),"٫","."))/ VALUE(SUBSTITUTE(SUBSTITUTE(SUBSTITUTE($L$2:$L$398,"٬",""),",",""),"٫",".")), 0), 4) ) )* VALUE( SUBSTITUTE( SUBSTITUTE( SUBSTITUTE( INDEX($L$2:$L$398,MATCH($A62,$A$2:$A$398,0)), "٬",""), ",",""), "٫",".") ), 0 ), "#,##0" ) & " ریال", "" ) ) ) -> 
P63: =IF($A63="","", IF($M63="","", ROUND(IFERROR($M63/$L63,0),0) + IF( ROW()= LOOKUP( 2, 1/( ($A$2:$A$398=$A63)* (IFERROR($M$2:$M$398/$L$2:$L$398,0)= _xlfn.AGGREGATE(14,6, IFERROR($M$2:$M$398/$L$2:$L$398,0)/($A$2:$A$398=$A63), 1) ) ), ROW($A$2:$A$398) ), VALUE( SUBSTITUTE( SUBSTITUTE( SUBSTITUTE( INDEX($J$2:$J$398,MATCH($A63,$A$2:$A$398,0)), "٬",""), ",",""), "٫",".") ) - SUMPRODUCT( ROUND(IFERROR($M$2:$M$398/$L$2:$L$398,0),0)* --($A$2:$A$398=$A63) ), 0 ) ) ) ->  | U63: =IF($A63="","", IF(ROW()<>ROW(INDEX($A$2:$A$398,MATCH($A63,$A$2:$A$398,0))),"", IF( ROUND( VALUE( SUBSTITUTE( SUBSTITUTE( SUBSTITUTE( INDEX($J$2:$J$398,MATCH($A63,$A$2:$A$398,0)), "٬",""), ",",""), "٫",".") )*10000,0) <> ROUND( SUMPRODUCT( ($A$2:$A$398=$A63)* ROUND( IFERROR( VALUE(SUBSTITUTE(SUBSTITUTE(SUBSTITUTE($M$2:$M$398,"٬",""),",",""),"٫","."))/ VALUE(SUBSTITUTE(SUBSTITUTE(SUBSTITUTE($L$2:$L$398,"٬",""),",",""),"٫",".")), 0), 4) )*10000,0), "اختلاف معادل " & TEXT( ROUND( ( VALUE( SUBSTITUTE( SUBSTITUTE( SUBSTITUTE( INDEX($J$2:$J$398,MATCH($A63,$A$2:$A$398,0)), "٬",""), ",",""), "٫",".") ) - SUMPRODUCT( ($A$2:$A$398=$A63)* ROUND( IFERROR( VALUE(SUBSTITUTE(SUBSTITUTE(SUBSTITUTE($M$2:$M$398,"٬",""),",",""),"٫","."))/ VALUE(SUBSTITUTE(SUBSTITUTE(SUBSTITUTE($L$2:$L$398,"٬",""),",",""),"٫",".")), 0), 4) ) )* VALUE( SUBSTITUTE( SUBSTITUTE( SUBSTITUTE( INDEX($L$2:$L$398,MATCH($A63,$A$2:$A$398,0)), "٬",""), ",",""), "٫",".") ), 0 ), "#,##0" ) & " ریال", "" ) ) ) -> 
P64: =IF($A64="","", IF($M64="","", ROUND(IFERROR($M64/$L64,0),0) + IF( ROW()= LOOKUP( 2, 1/( ($A$2:$A$398=$A64)* (IFERROR($M$2:$M$398/$L$2:$L$398,0)= _xlfn.AGGREGATE(14,6, IFERROR($M$2:$M$398/$L$2:$L$398,0)/($A$2:$A$398=$A64), 1) ) ), ROW($A$2:$A$398) ), VALUE( SUBSTITUTE( SUBSTITUTE( SUBSTITUTE( INDEX($J$2:$J$398,MATCH($A64,$A$2:$A$398,0)), "٬",""), ",",""), "٫",".") ) - SUMPRODUCT( ROUND(IFERROR($M$2:$M$398/$L$2:$L$398,0),0)* --($A$2:$A$398=$A64) ), 0 ) ) ) ->  | U64: =IF($A64="","", IF(ROW()<>ROW(INDEX($A$2:$A$398,MATCH($A64,$A$2:$A$398,0))),"", IF( ROUND( VALUE( SUBSTITUTE( SUBSTITUTE( SUBSTITUTE( INDEX($J$2:$J$398,MATCH($A64,$A$2:$A$398,0)), "٬",""), ",",""), "٫",".") )*10000,0) <> ROUND( SUMPRODUCT( ($A$2:$A$398=$A64)* ROUND( IFERROR( VALUE(SUBSTITUTE(SUBSTITUTE(SUBSTITUTE($M$2:$M$398,"٬",""),",",""),"٫","."))/ VALUE(SUBSTITUTE(SUBSTITUTE(SUBSTITUTE($L$2:$L$398,"٬",""),",",""),"٫",".")), 0), 4) )*10000,0), "اختلاف معادل " & TEXT( ROUND( ( VALUE( SUBSTITUTE( SUBSTITUTE( SUBSTITUTE( INDEX($J$2:$J$398,MATCH($A64,$A$2:$A$398,0)), "٬",""), ",",""), "٫",".") ) - SUMPRODUCT( ($A$2:$A$398=$A64)* ROUND( IFERROR( VALUE(SUBSTITUTE(SUBSTITUTE(SUBSTITUTE($M$2:$M$398,"٬",""),",",""),"٫","."))/ VALUE(SUBSTITUTE(SUBSTITUTE(SUBSTITUTE($L$2:$L$398,"٬",""),",",""),"٫",".")), 0), 4) ) )* VALUE( SUBSTITUTE( SUBSTITUTE( SUBSTITUTE( INDEX($L$2:$L$398,MATCH($A64,$A$2:$A$398,0)), "٬",""), ",",""), "٫",".") ), 0 ), "#,##0" ) & " ریال", "" ) ) ) -> 
P65: =IF($A65="","", IF($M65="","", ROUND(IFERROR($M65/$L65,0),0) + IF( ROW()= LOOKUP( 2, 1/( ($A$2:$A$398=$A65)* (IFERROR($M$2:$M$398/$L$2:$L$398,0)= _xlfn.AGGREGATE(14,6, IFERROR($M$2:$M$398/$L$2:$L$398,0)/($A$2:$A$398=$A65), 1) ) ), ROW($A$2:$A$398) ), VALUE( SUBSTITUTE( SUBSTITUTE( SUBSTITUTE( INDEX($J$2:$J$398,MATCH($A65,$A$2:$A$398,0)), "٬",""), ",",""), "٫",".") ) - SUMPRODUCT( ROUND(IFERROR($M$2:$M$398/$L$2:$L$398,0),0)* --($A$2:$A$398=$A65) ), 0 ) ) ) ->  | U65: =IF($A65="","", IF(ROW()<>ROW(INDEX($A$2:$A$398,MATCH($A65,$A$2:$A$398,0))),"", IF( ROUND( VALUE( SUBSTITUTE( SUBSTITUTE( SUBSTITUTE( INDEX($J$2:$J$398,MATCH($A65,$A$2:$A$398,0)), "٬",""), ",",""), "٫",".") )*10000,0) <> ROUND( SUMPRODUCT( ($A$2:$A$398=$A65)* ROUND( IFERROR( VALUE(SUBSTITUTE(SUBSTITUTE(SUBSTITUTE($M$2:$M$398,"٬",""),",",""),"٫","."))/ VALUE(SUBSTITUTE(SUBSTITUTE(SUBSTITUTE($L$2:$L$398,"٬",""),",",""),"٫",".")), 0), 4) )*10000,0), "اختلاف معادل " & TEXT( ROUND( ( VALUE( SUBSTITUTE( SUBSTITUTE( SUBSTITUTE( INDEX($J$2:$J$398,MATCH($A65,$A$2:$A$398,0)), "٬",""), ",",""), "٫",".") ) - SUMPRODUCT( ($A$2:$A$398=$A65)* ROUND( IFERROR( VALUE(SUBSTITUTE(SUBSTITUTE(SUBSTITUTE($M$2:$M$398,"٬",""),",",""),"٫","."))/ VALUE(SUBSTITUTE(SUBSTITUTE(SUBSTITUTE($L$2:$L$398,"٬",""),",",""),"٫",".")), 0), 4) ) )* VALUE( SUBSTITUTE( SUBSTITUTE( SUBSTITUTE( INDEX($L$2:$L$398,MATCH($A65,$A$2:$A$398,0)), "٬",""), ",",""), "٫",".") ), 0 ), "#,##0" ) & " ریال", "" ) ) ) -> 
P66: =IF($A66="","", IF($M66="","", ROUND(IFERROR($M66/$L66,0),0) + IF( ROW()= LOOKUP( 2, 1/( ($A$2:$A$398=$A66)* (IFERROR($M$2:$M$398/$L$2:$L$398,0)= _xlfn.AGGREGATE(14,6, IFERROR($M$2:$M$398/$L$2:$L$398,0)/($A$2:$A$398=$A66), 1) ) ), ROW($A$2:$A$398) ), VALUE( SUBSTITUTE( SUBSTITUTE( SUBSTITUTE( INDEX($J$2:$J$398,MATCH($A66,$A$2:$A$398,0)), "٬",""), ",",""), "٫",".") ) - SUMPRODUCT( ROUND(IFERROR($M$2:$M$398/$L$2:$L$398,0),0)* --($A$2:$A$398=$A66) ), 0 ) ) ) ->  | S66: =IF($F66="","", IF($K66="","", IF(SUMIF($F:$F,$F66,$N:$N)="","", IF( ROUND( SUMIF($F:$F,$F66,$N:$N) - VALUE(SUBSTITUTE(SUBSTITUTE(SUBSTITUTE(SUBSTITUTE(SUBSTITUTE(TRIM($K66),"٬",""),",",""),"٫","."),CHAR(160),"")," ","")), 0)=0, "", "جمع N = " & TEXT(SUMIF($F:$F,$F66,$N:$N),"#,##0") & " | K = " & TEXT(VALUE(SUBSTITUTE(SUBSTITUTE(SUBSTITUTE(SUBSTITUTE(SUBSTITUTE(TRIM($K66),"٬",""),",",""),"٫","."),CHAR(160),"")," ","")),"#,##0") & " | اختلاف = " & TEXT( SUMIF($F:$F,$F66,$N:$N) - VALUE(SUBSTITUTE(SUBSTITUTE(SUBSTITUTE(SUBSTITUTE(SUBSTITUTE(TRIM($K66),"٬",""),",",""),"٫","."),CHAR(160),"")," ","")), "#,##0") ) ) ) ) ->  | U66: =IF($A66="","", IF(ROW()<>ROW(INDEX($A$2:$A$398,MATCH($A66,$A$2:$A$398,0))),"", IF( ROUND( VALUE( SUBSTITUTE( SUBSTITUTE( SUBSTITUTE( INDEX($J$2:$J$398,MATCH($A66,$A$2:$A$398,0)), "٬",""), ",",""), "٫",".") )*10000,0) <> ROUND( SUMPRODUCT( ($A$2:$A$398=$A66)* ROUND( IFERROR( VALUE(SUBSTITUTE(SUBSTITUTE(SUBSTITUTE($M$2:$M$398,"٬",""),",",""),"٫","."))/ VALUE(SUBSTITUTE(SUBSTITUTE(SUBSTITUTE($L$2:$L$398,"٬",""),",",""),"٫",".")), 0), 4) )*10000,0), "اختلاف معادل " & TEXT( ROUND( ( VALUE( SUBSTITUTE( SUBSTITUTE( SUBSTITUTE( INDEX($J$2:$J$398,MATCH($A66,$A$2:$A$398,0)), "٬",""), ",",""), "٫",".") ) - SUMPRODUCT( ($A$2:$A$398=$A66)* ROUND( IFERROR( VALUE(SUBSTITUTE(SUBSTITUTE(SUBSTITUTE($M$2:$M$398,"٬",""),",",""),"٫","."))/ VALUE(SUBSTITUTE(SUBSTITUTE(SUBSTITUTE($L$2:$L$398,"٬",""),",",""),"٫",".")), 0), 4) ) )* VALUE( SUBSTITUTE( SUBSTITUTE( SUBSTITUTE( INDEX($L$2:$L$398,MATCH($A66,$A$2:$A$398,0)), "٬",""), ",",""), "٫",".") ), 0 ), "#,##0" ) & " ریال", "" ) ) ) ->  | V66: =IF($A66="","", MID( IF($B66="","", IF(TRIM($B66)<>TRIM(INDEX($B$2:$B$227,MATCH($A66,$A$2:$A$227,0))), " | خطا در ستون B","") ) & IF($F66="","", IF( OR( TRIM($F66)<>TRIM(INDEX($F$2:$F$227,MATCH($A66,$A$2:$A$227,0))), TRIM($A66)<>TRIM(IFERROR(INDEX($A$2:$A$227,MATCH($F66,$F$2:$F$227,0)),"")) ), " | خطا در ستون F","") ) & IF($G66="","", IF(TRIM($G66)<>TRIM(INDEX($G$2:$G$227,MATCH($A66,$A$2:$A$227,0))), " | خطا در ستون G","") ) & IF($H66="","", IF(TRIM($H66)<>TRIM(INDEX($H$2:$H$227,MATCH($A66,$A$2:$A$227,0))), " | خطا در ستون H","") ) & IF($I66="","", IF(TRIM($I66)<>TRIM(INDEX($I$2:$I$227,MATCH($A66,$A$2:$A$227,0))), " | خطا در ستون I","") ) & IF($J66="","", IF(TRIM($J66)<>TRIM(INDEX($J$2:$J$227,MATCH($A66,$A$2:$A$227,0))), " | خطا در ستون J","") ) & IF($K66="","", IF(TRIM($K66)<>TRIM(INDEX($K$2:$K$227,MATCH($A66,$A$2:$A$227,0))), " | خطا در ستون K","") ) & IF($L66="","", IF(TRIM($L66)<>TRIM(INDEX($L$2:$L$227,MATCH($A66,$A$2:$A$227,0))), " | خطا در ستون L","") ),4,1000) ) -> 
P67: =IF($A67="","", IF($M67="","", ROUND(IFERROR($M67/$L67,0),0) + IF( ROW()= LOOKUP( 2, 1/( ($A$2:$A$398=$A67)* (IFERROR($M$2:$M$398/$L$2:$L$398,0)= _xlfn.AGGREGATE(14,6, IFERROR($M$2:$M$398/$L$2:$L$398,0)/($A$2:$A$398=$A67), 1) ) ), ROW($A$2:$A$398) ), VALUE( SUBSTITUTE( SUBSTITUTE( SUBSTITUTE( INDEX($J$2:$J$398,MATCH($A67,$A$2:$A$398,0)), "٬",""), ",",""), "٫",".") ) - SUMPRODUCT( ROUND(IFERROR($M$2:$M$398/$L$2:$L$398,0),0)* --($A$2:$A$398=$A67) ), 0 ) ) ) ->  | U67: =IF($A67="","", IF(ROW()<>ROW(INDEX($A$2:$A$398,MATCH($A67,$A$2:$A$398,0))),"", IF( ROUND( VALUE( SUBSTITUTE( SUBSTITUTE( SUBSTITUTE( INDEX($J$2:$J$398,MATCH($A67,$A$2:$A$398,0)), "٬",""), ",",""), "٫",".") )*10000,0) <> ROUND( SUMPRODUCT( ($A$2:$A$398=$A67)* ROUND( IFERROR( VALUE(SUBSTITUTE(SUBSTITUTE(SUBSTITUTE($M$2:$M$398,"٬",""),",",""),"٫","."))/ VALUE(SUBSTITUTE(SUBSTITUTE(SUBSTITUTE($L$2:$L$398,"٬",""),",",""),"٫",".")), 0), 4) )*10000,0), "اختلاف معادل " & TEXT( ROUND( ( VALUE( SUBSTITUTE( SUBSTITUTE( SUBSTITUTE( INDEX($J$2:$J$398,MATCH($A67,$A$2:$A$398,0)), "٬",""), ",",""), "٫",".") ) - SUMPRODUCT( ($A$2:$A$398=$A67)* ROUND( IFERROR( VALUE(SUBSTITUTE(SUBSTITUTE(SUBSTITUTE($M$2:$M$398,"٬",""),",",""),"٫","."))/ VALUE(SUBSTITUTE(SUBSTITUTE(SUBSTITUTE($L$2:$L$398,"٬",""),",",""),"٫",".")), 0), 4) ) )* VALUE( SUBSTITUTE( SUBSTITUTE( SUBSTITUTE( INDEX($L$2:$L$398,MATCH($A67,$A$2:$A$398,0)), "٬",""), ",",""), "٫",".") ), 0 ), "#,##0" ) & " ریال", "" ) ) ) -> 
P68: =IF($A68="","", IF($M68="","", ROUND(IFERROR($M68/$L68,0),0) + IF( ROW()= LOOKUP( 2, 1/( ($A$2:$A$398=$A68)* (IFERROR($M$2:$M$398/$L$2:$L$398,0)= _xlfn.AGGREGATE(14,6, IFERROR($M$2:$M$398/$L$2:$L$398,0)/($A$2:$A$398=$A68), 1) ) ), ROW($A$2:$A$398) ), VALUE( SUBSTITUTE( SUBSTITUTE( SUBSTITUTE( INDEX($J$2:$J$398,MATCH($A68,$A$2:$A$398,0)), "٬",""), ",",""), "٫",".") ) - SUMPRODUCT( ROUND(IFERROR($M$2:$M$398/$L$2:$L$398,0),0)* --($A$2:$A$398=$A68) ), 0 ) ) ) ->  | U68: =IF($A68="","", IF(ROW()<>ROW(INDEX($A$2:$A$398,MATCH($A68,$A$2:$A$398,0))),"", IF( ROUND( VALUE( SUBSTITUTE( SUBSTITUTE( SUBSTITUTE( INDEX($J$2:$J$398,MATCH($A68,$A$2:$A$398,0)), "٬",""), ",",""), "٫",".") )*10000,0) <> ROUND( SUMPRODUCT( ($A$2:$A$398=$A68)* ROUND( IFERROR( VALUE(SUBSTITUTE(SUBSTITUTE(SUBSTITUTE($M$2:$M$398,"٬",""),",",""),"٫","."))/ VALUE(SUBSTITUTE(SUBSTITUTE(SUBSTITUTE($L$2:$L$398,"٬",""),",",""),"٫",".")), 0), 4) )*10000,0), "اختلاف معادل " & TEXT( ROUND( ( VALUE( SUBSTITUTE( SUBSTITUTE( SUBSTITUTE( INDEX($J$2:$J$398,MATCH($A68,$A$2:$A$398,0)), "٬",""), ",",""), "٫",".") ) - SUMPRODUCT( ($A$2:$A$398=$A68)* ROUND( IFERROR( VALUE(SUBSTITUTE(SUBSTITUTE(SUBSTITUTE($M$2:$M$398,"٬",""),",",""),"٫","."))/ VALUE(SUBSTITUTE(SUBSTITUTE(SUBSTITUTE($L$2:$L$398,"٬",""),",",""),"٫",".")), 0), 4) ) )* VALUE( SUBSTITUTE( SUBSTITUTE( SUBSTITUTE( INDEX($L$2:$L$398,MATCH($A68,$A$2:$A$398,0)), "٬",""), ",",""), "٫",".") ), 0 ), "#,##0" ) & " ریال", "" ) ) ) -> 
P69: =IF($A69="","", IF($M69="","", ROUND(IFERROR($M69/$L69,0),0) + IF( ROW()= LOOKUP( 2, 1/( ($A$2:$A$398=$A69)* (IFERROR($M$2:$M$398/$L$2:$L$398,0)= _xlfn.AGGREGATE(14,6, IFERROR($M$2:$M$398/$L$2:$L$398,0)/($A$2:$A$398=$A69), 1) ) ), ROW($A$2:$A$398) ), VALUE( SUBSTITUTE( SUBSTITUTE( SUBSTITUTE( INDEX($J$2:$J$398,MATCH($A69,$A$2:$A$398,0)), "٬",""), ",",""), "٫",".") ) - SUMPRODUCT( ROUND(IFERROR($M$2:$M$398/$L$2:$L$398,0),0)* --($A$2:$A$398=$A69) ), 0 ) ) ) ->  | U69: =IF($A69="","", IF(ROW()<>ROW(INDEX($A$2:$A$398,MATCH($A69,$A$2:$A$398,0))),"", IF( ROUND( VALUE( SUBSTITUTE( SUBSTITUTE( SUBSTITUTE( INDEX($J$2:$J$398,MATCH($A69,$A$2:$A$398,0)), "٬",""), ",",""), "٫",".") )*10000,0) <> ROUND( SUMPRODUCT( ($A$2:$A$398=$A69)* ROUND( IFERROR( VALUE(SUBSTITUTE(SUBSTITUTE(SUBSTITUTE($M$2:$M$398,"٬",""),",",""),"٫","."))/ VALUE(SUBSTITUTE(SUBSTITUTE(SUBSTITUTE($L$2:$L$398,"٬",""),",",""),"٫",".")), 0), 4) )*10000,0), "اختلاف معادل " & TEXT( ROUND( ( VALUE( SUBSTITUTE( SUBSTITUTE( SUBSTITUTE( INDEX($J$2:$J$398,MATCH($A69,$A$2:$A$398,0)), "٬",""), ",",""), "٫",".") ) - SUMPRODUCT( ($A$2:$A$398=$A69)* ROUND( IFERROR( VALUE(SUBSTITUTE(SUBSTITUTE(SUBSTITUTE($M$2:$M$398,"٬",""),",",""),"٫","."))/ VALUE(SUBSTITUTE(SUBSTITUTE(SUBSTITUTE($L$2:$L$398,"٬",""),",",""),"٫",".")), 0), 4) ) )* VALUE( SUBSTITUTE( SUBSTITUTE( SUBSTITUTE( INDEX($L$2:$L$398,MATCH($A69,$A$2:$A$398,0)), "٬",""), ",",""), "٫",".") ), 0 ), "#,##0" ) & " ریال", "" ) ) ) -> 
P70: =IF($A70="","", IF($M70="","", ROUND(IFERROR($M70/$L70,0),0) + IF( ROW()= LOOKUP( 2, 1/( ($A$2:$A$398=$A70)* (IFERROR($M$2:$M$398/$L$2:$L$398,0)= _xlfn.AGGREGATE(14,6, IFERROR($M$2:$M$398/$L$2:$L$398,0)/($A$2:$A$398=$A70), 1) ) ), ROW($A$2:$A$398) ), VALUE( SUBSTITUTE( SUBSTITUTE( SUBSTITUTE( INDEX($J$2:$J$398,MATCH($A70,$A$2:$A$398,0)), "٬",""), ",",""), "٫",".") ) - SUMPRODUCT( ROUND(IFERROR($M$2:$M$398/$L$2:$L$398,0),0)* --($A$2:$A$398=$A70) ), 0 ) ) ) ->  | U70: =IF($A70="","", IF(ROW()<>ROW(INDEX($A$2:$A$398,MATCH($A70,$A$2:$A$398,0))),"", IF( ROUND( VALUE( SUBSTITUTE( SUBSTITUTE( SUBSTITUTE( INDEX($J$2:$J$398,MATCH($A70,$A$2:$A$398,0)), "٬",""), ",",""), "٫",".") )*10000,0) <> ROUND( SUMPRODUCT( ($A$2:$A$398=$A70)* ROUND( IFERROR( VALUE(SUBSTITUTE(SUBSTITUTE(SUBSTITUTE($M$2:$M$398,"٬",""),",",""),"٫","."))/ VALUE(SUBSTITUTE(SUBSTITUTE(SUBSTITUTE($L$2:$L$398,"٬",""),",",""),"٫",".")), 0), 4) )*10000,0), "اختلاف معادل " & TEXT( ROUND( ( VALUE( SUBSTITUTE( SUBSTITUTE( SUBSTITUTE( INDEX($J$2:$J$398,MATCH($A70,$A$2:$A$398,0)), "٬",""), ",",""), "٫",".") ) - SUMPRODUCT( ($A$2:$A$398=$A70)* ROUND( IFERROR( VALUE(SUBSTITUTE(SUBSTITUTE(SUBSTITUTE($M$2:$M$398,"٬",""),",",""),"٫","."))/ VALUE(SUBSTITUTE(SUBSTITUTE(SUBSTITUTE($L$2:$L$398,"٬",""),",",""),"٫",".")), 0), 4) ) )* VALUE( SUBSTITUTE( SUBSTITUTE( SUBSTITUTE( INDEX($L$2:$L$398,MATCH($A70,$A$2:$A$398,0)), "٬",""), ",",""), "٫",".") ), 0 ), "#,##0" ) & " ریال", "" ) ) ) -> 
P71: =IF($A71="","", IF($M71="","", ROUND(IFERROR($M71/$L71,0),0) + IF( ROW()= LOOKUP( 2, 1/( ($A$2:$A$398=$A71)* (IFERROR($M$2:$M$398/$L$2:$L$398,0)= _xlfn.AGGREGATE(14,6, IFERROR($M$2:$M$398/$L$2:$L$398,0)/($A$2:$A$398=$A71), 1) ) ), ROW($A$2:$A$398) ), VALUE( SUBSTITUTE( SUBSTITUTE( SUBSTITUTE( INDEX($J$2:$J$398,MATCH($A71,$A$2:$A$398,0)), "٬",""), ",",""), "٫",".") ) - SUMPRODUCT( ROUND(IFERROR($M$2:$M$398/$L$2:$L$398,0),0)* --($A$2:$A$398=$A71) ), 0 ) ) ) ->  | U71: =IF($A71="","", IF(ROW()<>ROW(INDEX($A$2:$A$398,MATCH($A71,$A$2:$A$398,0))),"", IF( ROUND( VALUE( SUBSTITUTE( SUBSTITUTE( SUBSTITUTE( INDEX($J$2:$J$398,MATCH($A71,$A$2:$A$398,0)), "٬",""), ",",""), "٫",".") )*10000,0) <> ROUND( SUMPRODUCT( ($A$2:$A$398=$A71)* ROUND( IFERROR( VALUE(SUBSTITUTE(SUBSTITUTE(SUBSTITUTE($M$2:$M$398,"٬",""),",",""),"٫","."))/ VALUE(SUBSTITUTE(SUBSTITUTE(SUBSTITUTE($L$2:$L$398,"٬",""),",",""),"٫",".")), 0), 4) )*10000,0), "اختلاف معادل " & TEXT( ROUND( ( VALUE( SUBSTITUTE( SUBSTITUTE( SUBSTITUTE( INDEX($J$2:$J$398,MATCH($A71,$A$2:$A$398,0)), "٬",""), ",",""), "٫",".") ) - SUMPRODUCT( ($A$2:$A$398=$A71)* ROUND( IFERROR( VALUE(SUBSTITUTE(SUBSTITUTE(SUBSTITUTE($M$2:$M$398,"٬",""),",",""),"٫","."))/ VALUE(SUBSTITUTE(SUBSTITUTE(SUBSTITUTE($L$2:$L$398,"٬",""),",",""),"٫",".")), 0), 4) ) )* VALUE( SUBSTITUTE( SUBSTITUTE( SUBSTITUTE( INDEX($L$2:$L$398,MATCH($A71,$A$2:$A$398,0)), "٬",""), ",",""), "٫",".") ), 0 ), "#,##0" ) & " ریال", "" ) ) ) -> 
P72: =IF($A72="","", IF($M72="","", ROUND(IFERROR($M72/$L72,0),0) + IF( ROW()= LOOKUP( 2, 1/( ($A$2:$A$398=$A72)* (IFERROR($M$2:$M$398/$L$2:$L$398,0)= _xlfn.AGGREGATE(14,6, IFERROR($M$2:$M$398/$L$2:$L$398,0)/($A$2:$A$398=$A72), 1) ) ), ROW($A$2:$A$398) ), VALUE( SUBSTITUTE( SUBSTITUTE( SUBSTITUTE( INDEX($J$2:$J$398,MATCH($A72,$A$2:$A$398,0)), "٬",""), ",",""), "٫",".") ) - SUMPRODUCT( ROUND(IFERROR($M$2:$M$398/$L$2:$L$398,0),0)* --($A$2:$A$398=$A72) ), 0 ) ) ) ->  | U72: =IF($A72="","", IF(ROW()<>ROW(INDEX($A$2:$A$398,MATCH($A72,$A$2:$A$398,0))),"", IF( ROUND( VALUE( SUBSTITUTE( SUBSTITUTE( SUBSTITUTE( INDEX($J$2:$J$398,MATCH($A72,$A$2:$A$398,0)), "٬",""), ",",""), "٫",".") )*10000,0) <> ROUND( SUMPRODUCT( ($A$2:$A$398=$A72)* ROUND( IFERROR( VALUE(SUBSTITUTE(SUBSTITUTE(SUBSTITUTE($M$2:$M$398,"٬",""),",",""),"٫","."))/ VALUE(SUBSTITUTE(SUBSTITUTE(SUBSTITUTE($L$2:$L$398,"٬",""),",",""),"٫",".")), 0), 4) )*10000,0), "اختلاف معادل " & TEXT( ROUND( ( VALUE( SUBSTITUTE( SUBSTITUTE( SUBSTITUTE( INDEX($J$2:$J$398,MATCH($A72,$A$2:$A$398,0)), "٬",""), ",",""), "٫",".") ) - SUMPRODUCT( ($A$2:$A$398=$A72)* ROUND( IFERROR( VALUE(SUBSTITUTE(SUBSTITUTE(SUBSTITUTE($M$2:$M$398,"٬",""),",",""),"٫","."))/ VALUE(SUBSTITUTE(SUBSTITUTE(SUBSTITUTE($L$2:$L$398,"٬",""),",",""),"٫",".")), 0), 4) ) )* VALUE( SUBSTITUTE( SUBSTITUTE( SUBSTITUTE( INDEX($L$2:$L$398,MATCH($A72,$A$2:$A$398,0)), "٬",""), ",",""), "٫",".") ), 0 ), "#,##0" ) & " ریال", "" ) ) ) -> 
P73: =IF($A73="","", IF($M73="","", ROUND(IFERROR($M73/$L73,0),0) + IF( ROW()= LOOKUP( 2, 1/( ($A$2:$A$398=$A73)* (IFERROR($M$2:$M$398/$L$2:$L$398,0)= _xlfn.AGGREGATE(14,6, IFERROR($M$2:$M$398/$L$2:$L$398,0)/($A$2:$A$398=$A73), 1) ) ), ROW($A$2:$A$398) ), VALUE( SUBSTITUTE( SUBSTITUTE( SUBSTITUTE( INDEX($J$2:$J$398,MATCH($A73,$A$2:$A$398,0)), "٬",""), ",",""), "٫",".") ) - SUMPRODUCT( ROUND(IFERROR($M$2:$M$398/$L$2:$L$398,0),0)* --($A$2:$A$398=$A73) ), 0 ) ) ) ->  | U73: =IF($A73="","", IF(ROW()<>ROW(INDEX($A$2:$A$398,MATCH($A73,$A$2:$A$398,0))),"", IF( ROUND( VALUE( SUBSTITUTE( SUBSTITUTE( SUBSTITUTE( INDEX($J$2:$J$398,MATCH($A73,$A$2:$A$398,0)), "٬",""), ",",""), "٫",".") )*10000,0) <> ROUND( SUMPRODUCT( ($A$2:$A$398=$A73)* ROUND( IFERROR( VALUE(SUBSTITUTE(SUBSTITUTE(SUBSTITUTE($M$2:$M$398,"٬",""),",",""),"٫","."))/ VALUE(SUBSTITUTE(SUBSTITUTE(SUBSTITUTE($L$2:$L$398,"٬",""),",",""),"٫",".")), 0), 4) )*10000,0), "اختلاف معادل " & TEXT( ROUND( ( VALUE( SUBSTITUTE( SUBSTITUTE( SUBSTITUTE( INDEX($J$2:$J$398,MATCH($A73,$A$2:$A$398,0)), "٬",""), ",",""), "٫",".") ) - SUMPRODUCT( ($A$2:$A$398=$A73)* ROUND( IFERROR( VALUE(SUBSTITUTE(SUBSTITUTE(SUBSTITUTE($M$2:$M$398,"٬",""),",",""),"٫","."))/ VALUE(SUBSTITUTE(SUBSTITUTE(SUBSTITUTE($L$2:$L$398,"٬",""),",",""),"٫",".")), 0), 4) ) )* VALUE( SUBSTITUTE( SUBSTITUTE( SUBSTITUTE( INDEX($L$2:$L$398,MATCH($A73,$A$2:$A$398,0)), "٬",""), ",",""), "٫",".") ), 0 ), "#,##0" ) & " ریال", "" ) ) ) -> 
P74: =IF($A74="","", IF($M74="","", ROUND(IFERROR($M74/$L74,0),0) + IF( ROW()= LOOKUP( 2, 1/( ($A$2:$A$398=$A74)* (IFERROR($M$2:$M$398/$L$2:$L$398,0)= _xlfn.AGGREGATE(14,6, IFERROR($M$2:$M$398/$L$2:$L$398,0)/($A$2:$A$398=$A74), 1) ) ), ROW($A$2:$A$398) ), VALUE( SUBSTITUTE( SUBSTITUTE( SUBSTITUTE( INDEX($J$2:$J$398,MATCH($A74,$A$2:$A$398,0)), "٬",""), ",",""), "٫",".") ) - SUMPRODUCT( ROUND(IFERROR($M$2:$M$398/$L$2:$L$398,0),0)* --($A$2:$A$398=$A74) ), 0 ) ) ) ->  | U74: =IF($A74="","", IF(ROW()<>ROW(INDEX($A$2:$A$398,MATCH($A74,$A$2:$A$398,0))),"", IF( ROUND( VALUE( SUBSTITUTE( SUBSTITUTE( SUBSTITUTE( INDEX($J$2:$J$398,MATCH($A74,$A$2:$A$398,0)), "٬",""), ",",""), "٫",".") )*10000,0) <> ROUND( SUMPRODUCT( ($A$2:$A$398=$A74)* ROUND( IFERROR( VALUE(SUBSTITUTE(SUBSTITUTE(SUBSTITUTE($M$2:$M$398,"٬",""),",",""),"٫","."))/ VALUE(SUBSTITUTE(SUBSTITUTE(SUBSTITUTE($L$2:$L$398,"٬",""),",",""),"٫",".")), 0), 4) )*10000,0), "اختلاف معادل " & TEXT( ROUND( ( VALUE( SUBSTITUTE( SUBSTITUTE( SUBSTITUTE( INDEX($J$2:$J$398,MATCH($A74,$A$2:$A$398,0)), "٬",""), ",",""), "٫",".") ) - SUMPRODUCT( ($A$2:$A$398=$A74)* ROUND( IFERROR( VALUE(SUBSTITUTE(SUBSTITUTE(SUBSTITUTE($M$2:$M$398,"٬",""),",",""),"٫","."))/ VALUE(SUBSTITUTE(SUBSTITUTE(SUBSTITUTE($L$2:$L$398,"٬",""),",",""),"٫",".")), 0), 4) ) )* VALUE( SUBSTITUTE( SUBSTITUTE( SUBSTITUTE( INDEX($L$2:$L$398,MATCH($A74,$A$2:$A$398,0)), "٬",""), ",",""), "٫",".") ), 0 ), "#,##0" ) & " ریال", "" ) ) ) -> 
P75: =IF($A75="","", IF($M75="","", ROUND(IFERROR($M75/$L75,0),0) + IF( ROW()= LOOKUP( 2, 1/( ($A$2:$A$398=$A75)* (IFERROR($M$2:$M$398/$L$2:$L$398,0)= _xlfn.AGGREGATE(14,6, IFERROR($M$2:$M$398/$L$2:$L$398,0)/($A$2:$A$398=$A75), 1) ) ), ROW($A$2:$A$398) ), VALUE( SUBSTITUTE( SUBSTITUTE( SUBSTITUTE( INDEX($J$2:$J$398,MATCH($A75,$A$2:$A$398,0)), "٬",""), ",",""), "٫",".") ) - SUMPRODUCT( ROUND(IFERROR($M$2:$M$398/$L$2:$L$398,0),0)* --($A$2:$A$398=$A75) ), 0 ) ) ) ->  | U75: =IF($A75="","", IF(ROW()<>ROW(INDEX($A$2:$A$398,MATCH($A75,$A$2:$A$398,0))),"", IF( ROUND( VALUE( SUBSTITUTE( SUBSTITUTE( SUBSTITUTE( INDEX($J$2:$J$398,MATCH($A75,$A$2:$A$398,0)), "٬",""), ",",""), "٫",".") )*10000,0) <> ROUND( SUMPRODUCT( ($A$2:$A$398=$A75)* ROUND( IFERROR( VALUE(SUBSTITUTE(SUBSTITUTE(SUBSTITUTE($M$2:$M$398,"٬",""),",",""),"٫","."))/ VALUE(SUBSTITUTE(SUBSTITUTE(SUBSTITUTE($L$2:$L$398,"٬",""),",",""),"٫",".")), 0), 4) )*10000,0), "اختلاف معادل " & TEXT( ROUND( ( VALUE( SUBSTITUTE( SUBSTITUTE( SUBSTITUTE( INDEX($J$2:$J$398,MATCH($A75,$A$2:$A$398,0)), "٬",""), ",",""), "٫",".") ) - SUMPRODUCT( ($A$2:$A$398=$A75)* ROUND( IFERROR( VALUE(SUBSTITUTE(SUBSTITUTE(SUBSTITUTE($M$2:$M$398,"٬",""),",",""),"٫","."))/ VALUE(SUBSTITUTE(SUBSTITUTE(SUBSTITUTE($L$2:$L$398,"٬",""),",",""),"٫",".")), 0), 4) ) )* VALUE( SUBSTITUTE( SUBSTITUTE( SUBSTITUTE( INDEX($L$2:$L$398,MATCH($A75,$A$2:$A$398,0)), "٬",""), ",",""), "٫",".") ), 0 ), "#,##0" ) & " ریال", "" ) ) ) -> 
P76: =IF($A76="","", IF($M76="","", ROUND(IFERROR($M76/$L76,0),0) + IF( ROW()= LOOKUP( 2, 1/( ($A$2:$A$398=$A76)* (IFERROR($M$2:$M$398/$L$2:$L$398,0)= _xlfn.AGGREGATE(14,6, IFERROR($M$2:$M$398/$L$2:$L$398,0)/($A$2:$A$398=$A76), 1) ) ), ROW($A$2:$A$398) ), VALUE( SUBSTITUTE( SUBSTITUTE( SUBSTITUTE( INDEX($J$2:$J$398,MATCH($A76,$A$2:$A$398,0)), "٬",""), ",",""), "٫",".") ) - SUMPRODUCT( ROUND(IFERROR($M$2:$M$398/$L$2:$L$398,0),0)* --($A$2:$A$398=$A76) ), 0 ) ) ) ->  | U76: =IF($A76="","", IF(ROW()<>ROW(INDEX($A$2:$A$398,MATCH($A76,$A$2:$A$398,0))),"", IF( ROUND( VALUE( SUBSTITUTE( SUBSTITUTE( SUBSTITUTE( INDEX($J$2:$J$398,MATCH($A76,$A$2:$A$398,0)), "٬",""), ",",""), "٫",".") )*10000,0) <> ROUND( SUMPRODUCT( ($A$2:$A$398=$A76)* ROUND( IFERROR( VALUE(SUBSTITUTE(SUBSTITUTE(SUBSTITUTE($M$2:$M$398,"٬",""),",",""),"٫","."))/ VALUE(SUBSTITUTE(SUBSTITUTE(SUBSTITUTE($L$2:$L$398,"٬",""),",",""),"٫",".")), 0), 4) )*10000,0), "اختلاف معادل " & TEXT( ROUND( ( VALUE( SUBSTITUTE( SUBSTITUTE( SUBSTITUTE( INDEX($J$2:$J$398,MATCH($A76,$A$2:$A$398,0)), "٬",""), ",",""), "٫",".") ) - SUMPRODUCT( ($A$2:$A$398=$A76)* ROUND( IFERROR( VALUE(SUBSTITUTE(SUBSTITUTE(SUBSTITUTE($M$2:$M$398,"٬",""),",",""),"٫","."))/ VALUE(SUBSTITUTE(SUBSTITUTE(SUBSTITUTE($L$2:$L$398,"٬",""),",",""),"٫",".")), 0), 4) ) )* VALUE( SUBSTITUTE( SUBSTITUTE( SUBSTITUTE( INDEX($L$2:$L$398,MATCH($A76,$A$2:$A$398,0)), "٬",""), ",",""), "٫",".") ), 0 ), "#,##0" ) & " ریال", "" ) ) ) -> 
P77: =IF($A77="","", IF($M77="","", ROUND(IFERROR($M77/$L77,0),0) + IF( ROW()= LOOKUP( 2, 1/( ($A$2:$A$398=$A77)* (IFERROR($M$2:$M$398/$L$2:$L$398,0)= _xlfn.AGGREGATE(14,6, IFERROR($M$2:$M$398/$L$2:$L$398,0)/($A$2:$A$398=$A77), 1) ) ), ROW($A$2:$A$398) ), VALUE( SUBSTITUTE( SUBSTITUTE( SUBSTITUTE( INDEX($J$2:$J$398,MATCH($A77,$A$2:$A$398,0)), "٬",""), ",",""), "٫",".") ) - SUMPRODUCT( ROUND(IFERROR($M$2:$M$398/$L$2:$L$398,0),0)* --($A$2:$A$398=$A77) ), 0 ) ) ) ->  | U77: =IF($A77="","", IF(ROW()<>ROW(INDEX($A$2:$A$398,MATCH($A77,$A$2:$A$398,0))),"", IF( ROUND( VALUE( SUBSTITUTE( SUBSTITUTE( SUBSTITUTE( INDEX($J$2:$J$398,MATCH($A77,$A$2:$A$398,0)), "٬",""), ",",""), "٫",".") )*10000,0) <> ROUND( SUMPRODUCT( ($A$2:$A$398=$A77)* ROUND( IFERROR( VALUE(SUBSTITUTE(SUBSTITUTE(SUBSTITUTE($M$2:$M$398,"٬",""),",",""),"٫","."))/ VALUE(SUBSTITUTE(SUBSTITUTE(SUBSTITUTE($L$2:$L$398,"٬",""),",",""),"٫",".")), 0), 4) )*10000,0), "اختلاف معادل " & TEXT( ROUND( ( VALUE( SUBSTITUTE( SUBSTITUTE( SUBSTITUTE( INDEX($J$2:$J$398,MATCH($A77,$A$2:$A$398,0)), "٬",""), ",",""), "٫",".") ) - SUMPRODUCT( ($A$2:$A$398=$A77)* ROUND( IFERROR( VALUE(SUBSTITUTE(SUBSTITUTE(SUBSTITUTE($M$2:$M$398,"٬",""),",",""),"٫","."))/ VALUE(SUBSTITUTE(SUBSTITUTE(SUBSTITUTE($L$2:$L$398,"٬",""),",",""),"٫",".")), 0), 4) ) )* VALUE( SUBSTITUTE( SUBSTITUTE( SUBSTITUTE( INDEX($L$2:$L$398,MATCH($A77,$A$2:$A$398,0)), "٬",""), ",",""), "٫",".") ), 0 ), "#,##0" ) & " ریال", "" ) ) ) -> 
P78: =IF($A78="","", IF($M78="","", ROUND(IFERROR($M78/$L78,0),0) + IF( ROW()= LOOKUP( 2, 1/( ($A$2:$A$398=$A78)* (IFERROR($M$2:$M$398/$L$2:$L$398,0)= _xlfn.AGGREGATE(14,6, IFERROR($M$2:$M$398/$L$2:$L$398,0)/($A$2:$A$398=$A78), 1) ) ), ROW($A$2:$A$398) ), VALUE( SUBSTITUTE( SUBSTITUTE( SUBSTITUTE( INDEX($J$2:$J$398,MATCH($A78,$A$2:$A$398,0)), "٬",""), ",",""), "٫",".") ) - SUMPRODUCT( ROUND(IFERROR($M$2:$M$398/$L$2:$L$398,0),0)* --($A$2:$A$398=$A78) ), 0 ) ) ) ->  | U78: =IF($A78="","", IF(ROW()<>ROW(INDEX($A$2:$A$398,MATCH($A78,$A$2:$A$398,0))),"", IF( ROUND( VALUE( SUBSTITUTE( SUBSTITUTE( SUBSTITUTE( INDEX($J$2:$J$398,MATCH($A78,$A$2:$A$398,0)), "٬",""), ",",""), "٫",".") )*10000,0) <> ROUND( SUMPRODUCT( ($A$2:$A$398=$A78)* ROUND( IFERROR( VALUE(SUBSTITUTE(SUBSTITUTE(SUBSTITUTE($M$2:$M$398,"٬",""),",",""),"٫","."))/ VALUE(SUBSTITUTE(SUBSTITUTE(SUBSTITUTE($L$2:$L$398,"٬",""),",",""),"٫",".")), 0), 4) )*10000,0), "اختلاف معادل " & TEXT( ROUND( ( VALUE( SUBSTITUTE( SUBSTITUTE( SUBSTITUTE( INDEX($J$2:$J$398,MATCH($A78,$A$2:$A$398,0)), "٬",""), ",",""), "٫",".") ) - SUMPRODUCT( ($A$2:$A$398=$A78)* ROUND( IFERROR( VALUE(SUBSTITUTE(SUBSTITUTE(SUBSTITUTE($M$2:$M$398,"٬",""),",",""),"٫","."))/ VALUE(SUBSTITUTE(SUBSTITUTE(SUBSTITUTE($L$2:$L$398,"٬",""),",",""),"٫",".")), 0), 4) ) )* VALUE( SUBSTITUTE( SUBSTITUTE( SUBSTITUTE( INDEX($L$2:$L$398,MATCH($A78,$A$2:$A$398,0)), "٬",""), ",",""), "٫",".") ), 0 ), "#,##0" ) & " ریال", "" ) ) ) -> 
P79: =IF($A79="","", IF($M79="","", ROUND(IFERROR($M79/$L79,0),0) + IF( ROW()= LOOKUP( 2, 1/( ($A$2:$A$398=$A79)* (IFERROR($M$2:$M$398/$L$2:$L$398,0)= _xlfn.AGGREGATE(14,6, IFERROR($M$2:$M$398/$L$2:$L$398,0)/($A$2:$A$398=$A79), 1) ) ), ROW($A$2:$A$398) ), VALUE( SUBSTITUTE( SUBSTITUTE( SUBSTITUTE( INDEX($J$2:$J$398,MATCH($A79,$A$2:$A$398,0)), "٬",""), ",",""), "٫",".") ) - SUMPRODUCT( ROUND(IFERROR($M$2:$M$398/$L$2:$L$398,0),0)* --($A$2:$A$398=$A79) ), 0 ) ) ) ->  | U79: =IF($A79="","", IF(ROW()<>ROW(INDEX($A$2:$A$398,MATCH($A79,$A$2:$A$398,0))),"", IF( ROUND( VALUE( SUBSTITUTE( SUBSTITUTE( SUBSTITUTE( INDEX($J$2:$J$398,MATCH($A79,$A$2:$A$398,0)), "٬",""), ",",""), "٫",".") )*10000,0) <> ROUND( SUMPRODUCT( ($A$2:$A$398=$A79)* ROUND( IFERROR( VALUE(SUBSTITUTE(SUBSTITUTE(SUBSTITUTE($M$2:$M$398,"٬",""),",",""),"٫","."))/ VALUE(SUBSTITUTE(SUBSTITUTE(SUBSTITUTE($L$2:$L$398,"٬",""),",",""),"٫",".")), 0), 4) )*10000,0), "اختلاف معادل " & TEXT( ROUND( ( VALUE( SUBSTITUTE( SUBSTITUTE( SUBSTITUTE( INDEX($J$2:$J$398,MATCH($A79,$A$2:$A$398,0)), "٬",""), ",",""), "٫",".") ) - SUMPRODUCT( ($A$2:$A$398=$A79)* ROUND( IFERROR( VALUE(SUBSTITUTE(SUBSTITUTE(SUBSTITUTE($M$2:$M$398,"٬",""),",",""),"٫","."))/ VALUE(SUBSTITUTE(SUBSTITUTE(SUBSTITUTE($L$2:$L$398,"٬",""),",",""),"٫",".")), 0), 4) ) )* VALUE( SUBSTITUTE( SUBSTITUTE( SUBSTITUTE( INDEX($L$2:$L$398,MATCH($A79,$A$2:$A$398,0)), "٬",""), ",",""), "٫",".") ), 0 ), "#,##0" ) & " ریال", "" ) ) ) -> 
P80: =IF($A80="","", IF($M80="","", ROUND(IFERROR($M80/$L80,0),0) + IF( ROW()= LOOKUP( 2, 1/( ($A$2:$A$398=$A80)* (IFERROR($M$2:$M$398/$L$2:$L$398,0)= _xlfn.AGGREGATE(14,6, IFERROR($M$2:$M$398/$L$2:$L$398,0)/($A$2:$A$398=$A80), 1) ) ), ROW($A$2:$A$398) ), VALUE( SUBSTITUTE( SUBSTITUTE( SUBSTITUTE( INDEX($J$2:$J$398,MATCH($A80,$A$2:$A$398,0)), "٬",""), ",",""), "٫",".") ) - SUMPRODUCT( ROUND(IFERROR($M$2:$M$398/$L$2:$L$398,0),0)* --($A$2:$A$398=$A80) ), 0 ) ) ) ->  | U80: =IF($A80="","", IF(ROW()<>ROW(INDEX($A$2:$A$398,MATCH($A80,$A$2:$A$398,0))),"", IF( ROUND( VALUE( SUBSTITUTE( SUBSTITUTE( SUBSTITUTE( INDEX($J$2:$J$398,MATCH($A80,$A$2:$A$398,0)), "٬",""), ",",""), "٫",".") )*10000,0) <> ROUND( SUMPRODUCT( ($A$2:$A$398=$A80)* ROUND( IFERROR( VALUE(SUBSTITUTE(SUBSTITUTE(SUBSTITUTE($M$2:$M$398,"٬",""),",",""),"٫","."))/ VALUE(SUBSTITUTE(SUBSTITUTE(SUBSTITUTE($L$2:$L$398,"٬",""),",",""),"٫",".")), 0), 4) )*10000,0), "اختلاف معادل " & TEXT( ROUND( ( VALUE( SUBSTITUTE( SUBSTITUTE( SUBSTITUTE( INDEX($J$2:$J$398,MATCH($A80,$A$2:$A$398,0)), "٬",""), ",",""), "٫",".") ) - SUMPRODUCT( ($A$2:$A$398=$A80)* ROUND( IFERROR( VALUE(SUBSTITUTE(SUBSTITUTE(SUBSTITUTE($M$2:$M$398,"٬",""),",",""),"٫","."))/ VALUE(SUBSTITUTE(SUBSTITUTE(SUBSTITUTE($L$2:$L$398,"٬",""),",",""),"٫",".")), 0), 4) ) )* VALUE( SUBSTITUTE( SUBSTITUTE( SUBSTITUTE( INDEX($L$2:$L$398,MATCH($A80,$A$2:$A$398,0)), "٬",""), ",",""), "٫",".") ), 0 ), "#,##0" ) & " ریال", "" ) ) ) -> 
P81: =IF($A81="","", IF($M81="","", ROUND(IFERROR($M81/$L81,0),0) + IF( ROW()= LOOKUP( 2, 1/( ($A$2:$A$398=$A81)* (IFERROR($M$2:$M$398/$L$2:$L$398,0)= _xlfn.AGGREGATE(14,6, IFERROR($M$2:$M$398/$L$2:$L$398,0)/($A$2:$A$398=$A81), 1) ) ), ROW($A$2:$A$398) ), VALUE( SUBSTITUTE( SUBSTITUTE( SUBSTITUTE( INDEX($J$2:$J$398,MATCH($A81,$A$2:$A$398,0)), "٬",""), ",",""), "٫",".") ) - SUMPRODUCT( ROUND(IFERROR($M$2:$M$398/$L$2:$L$398,0),0)* --($A$2:$A$398=$A81) ), 0 ) ) ) ->  | U81: =IF($A81="","", IF(ROW()<>ROW(INDEX($A$2:$A$398,MATCH($A81,$A$2:$A$398,0))),"", IF( ROUND( VALUE( SUBSTITUTE( SUBSTITUTE( SUBSTITUTE( INDEX($J$2:$J$398,MATCH($A81,$A$2:$A$398,0)), "٬",""), ",",""), "٫",".") )*10000,0) <> ROUND( SUMPRODUCT( ($A$2:$A$398=$A81)* ROUND( IFERROR( VALUE(SUBSTITUTE(SUBSTITUTE(SUBSTITUTE($M$2:$M$398,"٬",""),",",""),"٫","."))/ VALUE(SUBSTITUTE(SUBSTITUTE(SUBSTITUTE($L$2:$L$398,"٬",""),",",""),"٫",".")), 0), 4) )*10000,0), "اختلاف معادل " & TEXT( ROUND( ( VALUE( SUBSTITUTE( SUBSTITUTE( SUBSTITUTE( INDEX($J$2:$J$398,MATCH($A81,$A$2:$A$398,0)), "٬",""), ",",""), "٫",".") ) - SUMPRODUCT( ($A$2:$A$398=$A81)* ROUND( IFERROR( VALUE(SUBSTITUTE(SUBSTITUTE(SUBSTITUTE($M$2:$M$398,"٬",""),",",""),"٫","."))/ VALUE(SUBSTITUTE(SUBSTITUTE(SUBSTITUTE($L$2:$L$398,"٬",""),",",""),"٫",".")), 0), 4) ) )* VALUE( SUBSTITUTE( SUBSTITUTE( SUBSTITUTE( INDEX($L$2:$L$398,MATCH($A81,$A$2:$A$398,0)), "٬",""), ",",""), "٫",".") ), 0 ), "#,##0" ) & " ریال", "" ) ) ) -> 
P82: =IF($A82="","", IF($M82="","", ROUND(IFERROR($M82/$L82,0),0) + IF( ROW()= LOOKUP( 2, 1/( ($A$2:$A$398=$A82)* (IFERROR($M$2:$M$398/$L$2:$L$398,0)= _xlfn.AGGREGATE(14,6, IFERROR($M$2:$M$398/$L$2:$L$398,0)/($A$2:$A$398=$A82), 1) ) ), ROW($A$2:$A$398) ), VALUE( SUBSTITUTE( SUBSTITUTE( SUBSTITUTE( INDEX($J$2:$J$398,MATCH($A82,$A$2:$A$398,0)), "٬",""), ",",""), "٫",".") ) - SUMPRODUCT( ROUND(IFERROR($M$2:$M$398/$L$2:$L$398,0),0)* --($A$2:$A$398=$A82) ), 0 ) ) ) ->  | U82: =IF($A82="","", IF(ROW()<>ROW(INDEX($A$2:$A$398,MATCH($A82,$A$2:$A$398,0))),"", IF( ROUND( VALUE( SUBSTITUTE( SUBSTITUTE( SUBSTITUTE( INDEX($J$2:$J$398,MATCH($A82,$A$2:$A$398,0)), "٬",""), ",",""), "٫",".") )*10000,0) <> ROUND( SUMPRODUCT( ($A$2:$A$398=$A82)* ROUND( IFERROR( VALUE(SUBSTITUTE(SUBSTITUTE(SUBSTITUTE($M$2:$M$398,"٬",""),",",""),"٫","."))/ VALUE(SUBSTITUTE(SUBSTITUTE(SUBSTITUTE($L$2:$L$398,"٬",""),",",""),"٫",".")), 0), 4) )*10000,0), "اختلاف معادل " & TEXT( ROUND( ( VALUE( SUBSTITUTE( SUBSTITUTE( SUBSTITUTE( INDEX($J$2:$J$398,MATCH($A82,$A$2:$A$398,0)), "٬",""), ",",""), "٫",".") ) - SUMPRODUCT( ($A$2:$A$398=$A82)* ROUND( IFERROR( VALUE(SUBSTITUTE(SUBSTITUTE(SUBSTITUTE($M$2:$M$398,"٬",""),",",""),"٫","."))/ VALUE(SUBSTITUTE(SUBSTITUTE(SUBSTITUTE($L$2:$L$398,"٬",""),",",""),"٫",".")), 0), 4) ) )* VALUE( SUBSTITUTE( SUBSTITUTE( SUBSTITUTE( INDEX($L$2:$L$398,MATCH($A82,$A$2:$A$398,0)), "٬",""), ",",""), "٫",".") ), 0 ), "#,##0" ) & " ریال", "" ) ) ) -> 
P83: =IF($A83="","", IF($M83="","", ROUND(IFERROR($M83/$L83,0),0) + IF( ROW()= LOOKUP( 2, 1/( ($A$2:$A$398=$A83)* (IFERROR($M$2:$M$398/$L$2:$L$398,0)= _xlfn.AGGREGATE(14,6, IFERROR($M$2:$M$398/$L$2:$L$398,0)/($A$2:$A$398=$A83), 1) ) ), ROW($A$2:$A$398) ), VALUE( SUBSTITUTE( SUBSTITUTE( SUBSTITUTE( INDEX($J$2:$J$398,MATCH($A83,$A$2:$A$398,0)), "٬",""), ",",""), "٫",".") ) - SUMPRODUCT( ROUND(IFERROR($M$2:$M$398/$L$2:$L$398,0),0)* --($A$2:$A$398=$A83) ), 0 ) ) ) ->  | U83: =IF($A83="","", IF(ROW()<>ROW(INDEX($A$2:$A$398,MATCH($A83,$A$2:$A$398,0))),"", IF( ROUND( VALUE( SUBSTITUTE( SUBSTITUTE( SUBSTITUTE( INDEX($J$2:$J$398,MATCH($A83,$A$2:$A$398,0)), "٬",""), ",",""), "٫",".") )*10000,0) <> ROUND( SUMPRODUCT( ($A$2:$A$398=$A83)* ROUND( IFERROR( VALUE(SUBSTITUTE(SUBSTITUTE(SUBSTITUTE($M$2:$M$398,"٬",""),",",""),"٫","."))/ VALUE(SUBSTITUTE(SUBSTITUTE(SUBSTITUTE($L$2:$L$398,"٬",""),",",""),"٫",".")), 0), 4) )*10000,0), "اختلاف معادل " & TEXT( ROUND( ( VALUE( SUBSTITUTE( SUBSTITUTE( SUBSTITUTE( INDEX($J$2:$J$398,MATCH($A83,$A$2:$A$398,0)), "٬",""), ",",""), "٫",".") ) - SUMPRODUCT( ($A$2:$A$398=$A83)* ROUND( IFERROR( VALUE(SUBSTITUTE(SUBSTITUTE(SUBSTITUTE($M$2:$M$398,"٬",""),",",""),"٫","."))/ VALUE(SUBSTITUTE(SUBSTITUTE(SUBSTITUTE($L$2:$L$398,"٬",""),",",""),"٫",".")), 0), 4) ) )* VALUE( SUBSTITUTE( SUBSTITUTE( SUBSTITUTE( INDEX($L$2:$L$398,MATCH($A83,$A$2:$A$398,0)), "٬",""), ",",""), "٫",".") ), 0 ), "#,##0" ) & " ریال", "" ) ) ) -> 
P84: =IF($A84="","", IF($M84="","", ROUND(IFERROR($M84/$L84,0),0) + IF( ROW()= LOOKUP( 2, 1/( ($A$2:$A$398=$A84)* (IFERROR($M$2:$M$398/$L$2:$L$398,0)= _xlfn.AGGREGATE(14,6, IFERROR($M$2:$M$398/$L$2:$L$398,0)/($A$2:$A$398=$A84), 1) ) ), ROW($A$2:$A$398) ), VALUE( SUBSTITUTE( SUBSTITUTE( SUBSTITUTE( INDEX($J$2:$J$398,MATCH($A84,$A$2:$A$398,0)), "٬",""), ",",""), "٫",".") ) - SUMPRODUCT( ROUND(IFERROR($M$2:$M$398/$L$2:$L$398,0),0)* --($A$2:$A$398=$A84) ), 0 ) ) ) ->  | U84: =IF($A84="","", IF(ROW()<>ROW(INDEX($A$2:$A$398,MATCH($A84,$A$2:$A$398,0))),"", IF( ROUND( VALUE( SUBSTITUTE( SUBSTITUTE( SUBSTITUTE( INDEX($J$2:$J$398,MATCH($A84,$A$2:$A$398,0)), "٬",""), ",",""), "٫",".") )*10000,0) <> ROUND( SUMPRODUCT( ($A$2:$A$398=$A84)* ROUND( IFERROR( VALUE(SUBSTITUTE(SUBSTITUTE(SUBSTITUTE($M$2:$M$398,"٬",""),",",""),"٫","."))/ VALUE(SUBSTITUTE(SUBSTITUTE(SUBSTITUTE($L$2:$L$398,"٬",""),",",""),"٫",".")), 0), 4) )*10000,0), "اختلاف معادل " & TEXT( ROUND( ( VALUE( SUBSTITUTE( SUBSTITUTE( SUBSTITUTE( INDEX($J$2:$J$398,MATCH($A84,$A$2:$A$398,0)), "٬",""), ",",""), "٫",".") ) - SUMPRODUCT( ($A$2:$A$398=$A84)* ROUND( IFERROR( VALUE(SUBSTITUTE(SUBSTITUTE(SUBSTITUTE($M$2:$M$398,"٬",""),",",""),"٫","."))/ VALUE(SUBSTITUTE(SUBSTITUTE(SUBSTITUTE($L$2:$L$398,"٬",""),",",""),"٫",".")), 0), 4) ) )* VALUE( SUBSTITUTE( SUBSTITUTE( SUBSTITUTE( INDEX($L$2:$L$398,MATCH($A84,$A$2:$A$398,0)), "٬",""), ",",""), "٫",".") ), 0 ), "#,##0" ) & " ریال", "" ) ) ) -> 
P85: =IF($A85="","", IF($M85="","", ROUND(IFERROR($M85/$L85,0),0) + IF( ROW()= LOOKUP( 2, 1/( ($A$2:$A$398=$A85)* (IFERROR($M$2:$M$398/$L$2:$L$398,0)= _xlfn.AGGREGATE(14,6, IFERROR($M$2:$M$398/$L$2:$L$398,0)/($A$2:$A$398=$A85), 1) ) ), ROW($A$2:$A$398) ), VALUE( SUBSTITUTE( SUBSTITUTE( SUBSTITUTE( INDEX($J$2:$J$398,MATCH($A85,$A$2:$A$398,0)), "٬",""), ",",""), "٫",".") ) - SUMPRODUCT( ROUND(IFERROR($M$2:$M$398/$L$2:$L$398,0),0)* --($A$2:$A$398=$A85) ), 0 ) ) ) ->  | U85: =IF($A85="","", IF(ROW()<>ROW(INDEX($A$2:$A$398,MATCH($A85,$A$2:$A$398,0))),"", IF( ROUND( VALUE( SUBSTITUTE( SUBSTITUTE( SUBSTITUTE( INDEX($J$2:$J$398,MATCH($A85,$A$2:$A$398,0)), "٬",""), ",",""), "٫",".") )*10000,0) <> ROUND( SUMPRODUCT( ($A$2:$A$398=$A85)* ROUND( IFERROR( VALUE(SUBSTITUTE(SUBSTITUTE(SUBSTITUTE($M$2:$M$398,"٬",""),",",""),"٫","."))/ VALUE(SUBSTITUTE(SUBSTITUTE(SUBSTITUTE($L$2:$L$398,"٬",""),",",""),"٫",".")), 0), 4) )*10000,0), "اختلاف معادل " & TEXT( ROUND( ( VALUE( SUBSTITUTE( SUBSTITUTE( SUBSTITUTE( INDEX($J$2:$J$398,MATCH($A85,$A$2:$A$398,0)), "٬",""), ",",""), "٫",".") ) - SUMPRODUCT( ($A$2:$A$398=$A85)* ROUND( IFERROR( VALUE(SUBSTITUTE(SUBSTITUTE(SUBSTITUTE($M$2:$M$398,"٬",""),",",""),"٫","."))/ VALUE(SUBSTITUTE(SUBSTITUTE(SUBSTITUTE($L$2:$L$398,"٬",""),",",""),"٫",".")), 0), 4) ) )* VALUE( SUBSTITUTE( SUBSTITUTE( SUBSTITUTE( INDEX($L$2:$L$398,MATCH($A85,$A$2:$A$398,0)), "٬",""), ",",""), "٫",".") ), 0 ), "#,##0" ) & " ریال", "" ) ) ) -> 
P86: =IF($A86="","", IF($M86="","", ROUND(IFERROR($M86/$L86,0),0) + IF( ROW()= LOOKUP( 2, 1/( ($A$2:$A$398=$A86)* (IFERROR($M$2:$M$398/$L$2:$L$398,0)= _xlfn.AGGREGATE(14,6, IFERROR($M$2:$M$398/$L$2:$L$398,0)/($A$2:$A$398=$A86), 1) ) ), ROW($A$2:$A$398) ), VALUE( SUBSTITUTE( SUBSTITUTE( SUBSTITUTE( INDEX($J$2:$J$398,MATCH($A86,$A$2:$A$398,0)), "٬",""), ",",""), "٫",".") ) - SUMPRODUCT( ROUND(IFERROR($M$2:$M$398/$L$2:$L$398,0),0)* --($A$2:$A$398=$A86) ), 0 ) ) ) ->  | U86: =IF($A86="","", IF(ROW()<>ROW(INDEX($A$2:$A$398,MATCH($A86,$A$2:$A$398,0))),"", IF( ROUND( VALUE( SUBSTITUTE( SUBSTITUTE( SUBSTITUTE( INDEX($J$2:$J$398,MATCH($A86,$A$2:$A$398,0)), "٬",""), ",",""), "٫",".") )*10000,0) <> ROUND( SUMPRODUCT( ($A$2:$A$398=$A86)* ROUND( IFERROR( VALUE(SUBSTITUTE(SUBSTITUTE(SUBSTITUTE($M$2:$M$398,"٬",""),",",""),"٫","."))/ VALUE(SUBSTITUTE(SUBSTITUTE(SUBSTITUTE($L$2:$L$398,"٬",""),",",""),"٫",".")), 0), 4) )*10000,0), "اختلاف معادل " & TEXT( ROUND( ( VALUE( SUBSTITUTE( SUBSTITUTE( SUBSTITUTE( INDEX($J$2:$J$398,MATCH($A86,$A$2:$A$398,0)), "٬",""), ",",""), "٫",".") ) - SUMPRODUCT( ($A$2:$A$398=$A86)* ROUND( IFERROR( VALUE(SUBSTITUTE(SUBSTITUTE(SUBSTITUTE($M$2:$M$398,"٬",""),",",""),"٫","."))/ VALUE(SUBSTITUTE(SUBSTITUTE(SUBSTITUTE($L$2:$L$398,"٬",""),",",""),"٫",".")), 0), 4) ) )* VALUE( SUBSTITUTE( SUBSTITUTE( SUBSTITUTE( INDEX($L$2:$L$398,MATCH($A86,$A$2:$A$398,0)), "٬",""), ",",""), "٫",".") ), 0 ), "#,##0" ) & " ریال", "" ) ) ) -> 
P87: =IF($A87="","", IF($M87="","", ROUND(IFERROR($M87/$L87,0),0) + IF( ROW()= LOOKUP( 2, 1/( ($A$2:$A$398=$A87)* (IFERROR($M$2:$M$398/$L$2:$L$398,0)= _xlfn.AGGREGATE(14,6, IFERROR($M$2:$M$398/$L$2:$L$398,0)/($A$2:$A$398=$A87), 1) ) ), ROW($A$2:$A$398) ), VALUE( SUBSTITUTE( SUBSTITUTE( SUBSTITUTE( INDEX($J$2:$J$398,MATCH($A87,$A$2:$A$398,0)), "٬",""), ",",""), "٫",".") ) - SUMPRODUCT( ROUND(IFERROR($M$2:$M$398/$L$2:$L$398,0),0)* --($A$2:$A$398=$A87) ), 0 ) ) ) ->  | U87: =IF($A87="","", IF(ROW()<>ROW(INDEX($A$2:$A$398,MATCH($A87,$A$2:$A$398,0))),"", IF( ROUND( VALUE( SUBSTITUTE( SUBSTITUTE( SUBSTITUTE( INDEX($J$2:$J$398,MATCH($A87,$A$2:$A$398,0)), "٬",""), ",",""), "٫",".") )*10000,0) <> ROUND( SUMPRODUCT( ($A$2:$A$398=$A87)* ROUND( IFERROR( VALUE(SUBSTITUTE(SUBSTITUTE(SUBSTITUTE($M$2:$M$398,"٬",""),",",""),"٫","."))/ VALUE(SUBSTITUTE(SUBSTITUTE(SUBSTITUTE($L$2:$L$398,"٬",""),",",""),"٫",".")), 0), 4) )*10000,0), "اختلاف معادل " & TEXT( ROUND( ( VALUE( SUBSTITUTE( SUBSTITUTE( SUBSTITUTE( INDEX($J$2:$J$398,MATCH($A87,$A$2:$A$398,0)), "٬",""), ",",""), "٫",".") ) - SUMPRODUCT( ($A$2:$A$398=$A87)* ROUND( IFERROR( VALUE(SUBSTITUTE(SUBSTITUTE(SUBSTITUTE($M$2:$M$398,"٬",""),",",""),"٫","."))/ VALUE(SUBSTITUTE(SUBSTITUTE(SUBSTITUTE($L$2:$L$398,"٬",""),",",""),"٫",".")), 0), 4) ) )* VALUE( SUBSTITUTE( SUBSTITUTE( SUBSTITUTE( INDEX($L$2:$L$398,MATCH($A87,$A$2:$A$398,0)), "٬",""), ",",""), "٫",".") ), 0 ), "#,##0" ) & " ریال", "" ) ) ) -> 
P88: =IF($A88="","", IF($M88="","", ROUND(IFERROR($M88/$L88,0),0) + IF( ROW()= LOOKUP( 2, 1/( ($A$2:$A$398=$A88)* (IFERROR($M$2:$M$398/$L$2:$L$398,0)= _xlfn.AGGREGATE(14,6, IFERROR($M$2:$M$398/$L$2:$L$398,0)/($A$2:$A$398=$A88), 1) ) ), ROW($A$2:$A$398) ), VALUE( SUBSTITUTE( SUBSTITUTE( SUBSTITUTE( INDEX($J$2:$J$398,MATCH($A88,$A$2:$A$398,0)), "٬",""), ",",""), "٫",".") ) - SUMPRODUCT( ROUND(IFERROR($M$2:$M$398/$L$2:$L$398,0),0)* --($A$2:$A$398=$A88) ), 0 ) ) ) ->  | U88: =IF($A88="","", IF(ROW()<>ROW(INDEX($A$2:$A$398,MATCH($A88,$A$2:$A$398,0))),"", IF( ROUND( VALUE( SUBSTITUTE( SUBSTITUTE( SUBSTITUTE( INDEX($J$2:$J$398,MATCH($A88,$A$2:$A$398,0)), "٬",""), ",",""), "٫",".") )*10000,0) <> ROUND( SUMPRODUCT( ($A$2:$A$398=$A88)* ROUND( IFERROR( VALUE(SUBSTITUTE(SUBSTITUTE(SUBSTITUTE($M$2:$M$398,"٬",""),",",""),"٫","."))/ VALUE(SUBSTITUTE(SUBSTITUTE(SUBSTITUTE($L$2:$L$398,"٬",""),",",""),"٫",".")), 0), 4) )*10000,0), "اختلاف معادل " & TEXT( ROUND( ( VALUE( SUBSTITUTE( SUBSTITUTE( SUBSTITUTE( INDEX($J$2:$J$398,MATCH($A88,$A$2:$A$398,0)), "٬",""), ",",""), "٫",".") ) - SUMPRODUCT( ($A$2:$A$398=$A88)* ROUND( IFERROR( VALUE(SUBSTITUTE(SUBSTITUTE(SUBSTITUTE($M$2:$M$398,"٬",""),",",""),"٫","."))/ VALUE(SUBSTITUTE(SUBSTITUTE(SUBSTITUTE($L$2:$L$398,"٬",""),",",""),"٫",".")), 0), 4) ) )* VALUE( SUBSTITUTE( SUBSTITUTE( SUBSTITUTE( INDEX($L$2:$L$398,MATCH($A88,$A$2:$A$398,0)), "٬",""), ",",""), "٫",".") ), 0 ), "#,##0" ) & " ریال", "" ) ) ) -> 
P89: =IF($A89="","", IF($M89="","", ROUND(IFERROR($M89/$L89,0),0) + IF( ROW()= LOOKUP( 2, 1/( ($A$2:$A$398=$A89)* (IFERROR($M$2:$M$398/$L$2:$L$398,0)= _xlfn.AGGREGATE(14,6, IFERROR($M$2:$M$398/$L$2:$L$398,0)/($A$2:$A$398=$A89), 1) ) ), ROW($A$2:$A$398) ), VALUE( SUBSTITUTE( SUBSTITUTE( SUBSTITUTE( INDEX($J$2:$J$398,MATCH($A89,$A$2:$A$398,0)), "٬",""), ",",""), "٫",".") ) - SUMPRODUCT( ROUND(IFERROR($M$2:$M$398/$L$2:$L$398,0),0)* --($A$2:$A$398=$A89) ), 0 ) ) ) ->  | U89: =IF($A89="","", IF(ROW()<>ROW(INDEX($A$2:$A$398,MATCH($A89,$A$2:$A$398,0))),"", IF( ROUND( VALUE( SUBSTITUTE( SUBSTITUTE( SUBSTITUTE( INDEX($J$2:$J$398,MATCH($A89,$A$2:$A$398,0)), "٬",""), ",",""), "٫",".") )*10000,0) <> ROUND( SUMPRODUCT( ($A$2:$A$398=$A89)* ROUND( IFERROR( VALUE(SUBSTITUTE(SUBSTITUTE(SUBSTITUTE($M$2:$M$398,"٬",""),",",""),"٫","."))/ VALUE(SUBSTITUTE(SUBSTITUTE(SUBSTITUTE($L$2:$L$398,"٬",""),",",""),"٫",".")), 0), 4) )*10000,0), "اختلاف معادل " & TEXT( ROUND( ( VALUE( SUBSTITUTE( SUBSTITUTE( SUBSTITUTE( INDEX($J$2:$J$398,MATCH($A89,$A$2:$A$398,0)), "٬",""), ",",""), "٫",".") ) - SUMPRODUCT( ($A$2:$A$398=$A89)* ROUND( IFERROR( VALUE(SUBSTITUTE(SUBSTITUTE(SUBSTITUTE($M$2:$M$398,"٬",""),",",""),"٫","."))/ VALUE(SUBSTITUTE(SUBSTITUTE(SUBSTITUTE($L$2:$L$398,"٬",""),",",""),"٫",".")), 0), 4) ) )* VALUE( SUBSTITUTE( SUBSTITUTE( SUBSTITUTE( INDEX($L$2:$L$398,MATCH($A89,$A$2:$A$398,0)), "٬",""), ",",""), "٫",".") ), 0 ), "#,##0" ) & " ریال", "" ) ) ) -> 
P90: =IF($A90="","", IF($M90="","", ROUND(IFERROR($M90/$L90,0),0) + IF( ROW()= LOOKUP( 2, 1/( ($A$2:$A$398=$A90)* (IFERROR($M$2:$M$398/$L$2:$L$398,0)= _xlfn.AGGREGATE(14,6, IFERROR($M$2:$M$398/$L$2:$L$398,0)/($A$2:$A$398=$A90), 1) ) ), ROW($A$2:$A$398) ), VALUE( SUBSTITUTE( SUBSTITUTE( SUBSTITUTE( INDEX($J$2:$J$398,MATCH($A90,$A$2:$A$398,0)), "٬",""), ",",""), "٫",".") ) - SUMPRODUCT( ROUND(IFERROR($M$2:$M$398/$L$2:$L$398,0),0)* --($A$2:$A$398=$A90) ), 0 ) ) ) ->  | U90: =IF($A90="","", IF(ROW()<>ROW(INDEX($A$2:$A$398,MATCH($A90,$A$2:$A$398,0))),"", IF( ROUND( VALUE( SUBSTITUTE( SUBSTITUTE( SUBSTITUTE( INDEX($J$2:$J$398,MATCH($A90,$A$2:$A$398,0)), "٬",""), ",",""), "٫",".") )*10000,0) <> ROUND( SUMPRODUCT( ($A$2:$A$398=$A90)* ROUND( IFERROR( VALUE(SUBSTITUTE(SUBSTITUTE(SUBSTITUTE($M$2:$M$398,"٬",""),",",""),"٫","."))/ VALUE(SUBSTITUTE(SUBSTITUTE(SUBSTITUTE($L$2:$L$398,"٬",""),",",""),"٫",".")), 0), 4) )*10000,0), "اختلاف معادل " & TEXT( ROUND( ( VALUE( SUBSTITUTE( SUBSTITUTE( SUBSTITUTE( INDEX($J$2:$J$398,MATCH($A90,$A$2:$A$398,0)), "٬",""), ",",""), "٫",".") ) - SUMPRODUCT( ($A$2:$A$398=$A90)* ROUND( IFERROR( VALUE(SUBSTITUTE(SUBSTITUTE(SUBSTITUTE($M$2:$M$398,"٬",""),",",""),"٫","."))/ VALUE(SUBSTITUTE(SUBSTITUTE(SUBSTITUTE($L$2:$L$398,"٬",""),",",""),"٫",".")), 0), 4) ) )* VALUE( SUBSTITUTE( SUBSTITUTE( SUBSTITUTE( INDEX($L$2:$L$398,MATCH($A90,$A$2:$A$398,0)), "٬",""), ",",""), "٫",".") ), 0 ), "#,##0" ) & " ریال", "" ) ) ) -> 
P91: =IF($A91="","", IF($M91="","", ROUND(IFERROR($M91/$L91,0),0) + IF( ROW()= LOOKUP( 2, 1/( ($A$2:$A$398=$A91)* (IFERROR($M$2:$M$398/$L$2:$L$398,0)= _xlfn.AGGREGATE(14,6, IFERROR($M$2:$M$398/$L$2:$L$398,0)/($A$2:$A$398=$A91), 1) ) ), ROW($A$2:$A$398) ), VALUE( SUBSTITUTE( SUBSTITUTE( SUBSTITUTE( INDEX($J$2:$J$398,MATCH($A91,$A$2:$A$398,0)), "٬",""), ",",""), "٫",".") ) - SUMPRODUCT( ROUND(IFERROR($M$2:$M$398/$L$2:$L$398,0),0)* --($A$2:$A$398=$A91) ), 0 ) ) ) ->  | U91: =IF($A91="","", IF(ROW()<>ROW(INDEX($A$2:$A$398,MATCH($A91,$A$2:$A$398,0))),"", IF( ROUND( VALUE( SUBSTITUTE( SUBSTITUTE( SUBSTITUTE( INDEX($J$2:$J$398,MATCH($A91,$A$2:$A$398,0)), "٬",""), ",",""), "٫",".") )*10000,0) <> ROUND( SUMPRODUCT( ($A$2:$A$398=$A91)* ROUND( IFERROR( VALUE(SUBSTITUTE(SUBSTITUTE(SUBSTITUTE($M$2:$M$398,"٬",""),",",""),"٫","."))/ VALUE(SUBSTITUTE(SUBSTITUTE(SUBSTITUTE($L$2:$L$398,"٬",""),",",""),"٫",".")), 0), 4) )*10000,0), "اختلاف معادل " & TEXT( ROUND( ( VALUE( SUBSTITUTE( SUBSTITUTE( SUBSTITUTE( INDEX($J$2:$J$398,MATCH($A91,$A$2:$A$398,0)), "٬",""), ",",""), "٫",".") ) - SUMPRODUCT( ($A$2:$A$398=$A91)* ROUND( IFERROR( VALUE(SUBSTITUTE(SUBSTITUTE(SUBSTITUTE($M$2:$M$398,"٬",""),",",""),"٫","."))/ VALUE(SUBSTITUTE(SUBSTITUTE(SUBSTITUTE($L$2:$L$398,"٬",""),",",""),"٫",".")), 0), 4) ) )* VALUE( SUBSTITUTE( SUBSTITUTE( SUBSTITUTE( INDEX($L$2:$L$398,MATCH($A91,$A$2:$A$398,0)), "٬",""), ",",""), "٫",".") ), 0 ), "#,##0" ) & " ریال", "" ) ) ) -> 
P92: =IF($A92="","", IF($M92="","", ROUND(IFERROR($M92/$L92,0),0) + IF( ROW()= LOOKUP( 2, 1/( ($A$2:$A$398=$A92)* (IFERROR($M$2:$M$398/$L$2:$L$398,0)= _xlfn.AGGREGATE(14,6, IFERROR($M$2:$M$398/$L$2:$L$398,0)/($A$2:$A$398=$A92), 1) ) ), ROW($A$2:$A$398) ), VALUE( SUBSTITUTE( SUBSTITUTE( SUBSTITUTE( INDEX($J$2:$J$398,MATCH($A92,$A$2:$A$398,0)), "٬",""), ",",""), "٫",".") ) - SUMPRODUCT( ROUND(IFERROR($M$2:$M$398/$L$2:$L$398,0),0)* --($A$2:$A$398=$A92) ), 0 ) ) ) ->  | U92: =IF($A92="","", IF(ROW()<>ROW(INDEX($A$2:$A$398,MATCH($A92,$A$2:$A$398,0))),"", IF( ROUND( VALUE( SUBSTITUTE( SUBSTITUTE( SUBSTITUTE( INDEX($J$2:$J$398,MATCH($A92,$A$2:$A$398,0)), "٬",""), ",",""), "٫",".") )*10000,0) <> ROUND( SUMPRODUCT( ($A$2:$A$398=$A92)* ROUND( IFERROR( VALUE(SUBSTITUTE(SUBSTITUTE(SUBSTITUTE($M$2:$M$398,"٬",""),",",""),"٫","."))/ VALUE(SUBSTITUTE(SUBSTITUTE(SUBSTITUTE($L$2:$L$398,"٬",""),",",""),"٫",".")), 0), 4) )*10000,0), "اختلاف معادل " & TEXT( ROUND( ( VALUE( SUBSTITUTE( SUBSTITUTE( SUBSTITUTE( INDEX($J$2:$J$398,MATCH($A92,$A$2:$A$398,0)), "٬",""), ",",""), "٫",".") ) - SUMPRODUCT( ($A$2:$A$398=$A92)* ROUND( IFERROR( VALUE(SUBSTITUTE(SUBSTITUTE(SUBSTITUTE($M$2:$M$398,"٬",""),",",""),"٫","."))/ VALUE(SUBSTITUTE(SUBSTITUTE(SUBSTITUTE($L$2:$L$398,"٬",""),",",""),"٫",".")), 0), 4) ) )* VALUE( SUBSTITUTE( SUBSTITUTE( SUBSTITUTE( INDEX($L$2:$L$398,MATCH($A92,$A$2:$A$398,0)), "٬",""), ",",""), "٫",".") ), 0 ), "#,##0" ) & " ریال", "" ) ) ) -> 
P93: =IF($A93="","", IF($M93="","", ROUND(IFERROR($M93/$L93,0),0) + IF( ROW()= LOOKUP( 2, 1/( ($A$2:$A$398=$A93)* (IFERROR($M$2:$M$398/$L$2:$L$398,0)= _xlfn.AGGREGATE(14,6, IFERROR($M$2:$M$398/$L$2:$L$398,0)/($A$2:$A$398=$A93), 1) ) ), ROW($A$2:$A$398) ), VALUE( SUBSTITUTE( SUBSTITUTE( SUBSTITUTE( INDEX($J$2:$J$398,MATCH($A93,$A$2:$A$398,0)), "٬",""), ",",""), "٫",".") ) - SUMPRODUCT( ROUND(IFERROR($M$2:$M$398/$L$2:$L$398,0),0)* --($A$2:$A$398=$A93) ), 0 ) ) ) ->  | U93: =IF($A93="","", IF(ROW()<>ROW(INDEX($A$2:$A$398,MATCH($A93,$A$2:$A$398,0))),"", IF( ROUND( VALUE( SUBSTITUTE( SUBSTITUTE( SUBSTITUTE( INDEX($J$2:$J$398,MATCH($A93,$A$2:$A$398,0)), "٬",""), ",",""), "٫",".") )*10000,0) <> ROUND( SUMPRODUCT( ($A$2:$A$398=$A93)* ROUND( IFERROR( VALUE(SUBSTITUTE(SUBSTITUTE(SUBSTITUTE($M$2:$M$398,"٬",""),",",""),"٫","."))/ VALUE(SUBSTITUTE(SUBSTITUTE(SUBSTITUTE($L$2:$L$398,"٬",""),",",""),"٫",".")), 0), 4) )*10000,0), "اختلاف معادل " & TEXT( ROUND( ( VALUE( SUBSTITUTE( SUBSTITUTE( SUBSTITUTE( INDEX($J$2:$J$398,MATCH($A93,$A$2:$A$398,0)), "٬",""), ",",""), "٫",".") ) - SUMPRODUCT( ($A$2:$A$398=$A93)* ROUND( IFERROR( VALUE(SUBSTITUTE(SUBSTITUTE(SUBSTITUTE($M$2:$M$398,"٬",""),",",""),"٫","."))/ VALUE(SUBSTITUTE(SUBSTITUTE(SUBSTITUTE($L$2:$L$398,"٬",""),",",""),"٫",".")), 0), 4) ) )* VALUE( SUBSTITUTE( SUBSTITUTE( SUBSTITUTE( INDEX($L$2:$L$398,MATCH($A93,$A$2:$A$398,0)), "٬",""), ",",""), "٫",".") ), 0 ), "#,##0" ) & " ریال", "" ) ) ) -> 
P94: =IF($A94="","", IF($M94="","", ROUND(IFERROR($M94/$L94,0),0) + IF( ROW()= LOOKUP( 2, 1/( ($A$2:$A$398=$A94)* (IFERROR($M$2:$M$398/$L$2:$L$398,0)= _xlfn.AGGREGATE(14,6, IFERROR($M$2:$M$398/$L$2:$L$398,0)/($A$2:$A$398=$A94), 1) ) ), ROW($A$2:$A$398) ), VALUE( SUBSTITUTE( SUBSTITUTE( SUBSTITUTE( INDEX($J$2:$J$398,MATCH($A94,$A$2:$A$398,0)), "٬",""), ",",""), "٫",".") ) - SUMPRODUCT( ROUND(IFERROR($M$2:$M$398/$L$2:$L$398,0),0)* --($A$2:$A$398=$A94) ), 0 ) ) ) ->  | U94: =IF($A94="","", IF(ROW()<>ROW(INDEX($A$2:$A$398,MATCH($A94,$A$2:$A$398,0))),"", IF( ROUND( VALUE( SUBSTITUTE( SUBSTITUTE( SUBSTITUTE( INDEX($J$2:$J$398,MATCH($A94,$A$2:$A$398,0)), "٬",""), ",",""), "٫",".") )*10000,0) <> ROUND( SUMPRODUCT( ($A$2:$A$398=$A94)* ROUND( IFERROR( VALUE(SUBSTITUTE(SUBSTITUTE(SUBSTITUTE($M$2:$M$398,"٬",""),",",""),"٫","."))/ VALUE(SUBSTITUTE(SUBSTITUTE(SUBSTITUTE($L$2:$L$398,"٬",""),",",""),"٫",".")), 0), 4) )*10000,0), "اختلاف معادل " & TEXT( ROUND( ( VALUE( SUBSTITUTE( SUBSTITUTE( SUBSTITUTE( INDEX($J$2:$J$398,MATCH($A94,$A$2:$A$398,0)), "٬",""), ",",""), "٫",".") ) - SUMPRODUCT( ($A$2:$A$398=$A94)* ROUND( IFERROR( VALUE(SUBSTITUTE(SUBSTITUTE(SUBSTITUTE($M$2:$M$398,"٬",""),",",""),"٫","."))/ VALUE(SUBSTITUTE(SUBSTITUTE(SUBSTITUTE($L$2:$L$398,"٬",""),",",""),"٫",".")), 0), 4) ) )* VALUE( SUBSTITUTE( SUBSTITUTE( SUBSTITUTE( INDEX($L$2:$L$398,MATCH($A94,$A$2:$A$398,0)), "٬",""), ",",""), "٫",".") ), 0 ), "#,##0" ) & " ریال", "" ) ) ) -> 
P95: =IF($A95="","", IF($M95="","", ROUND(IFERROR($M95/$L95,0),0) + IF( ROW()= LOOKUP( 2, 1/( ($A$2:$A$398=$A95)* (IFERROR($M$2:$M$398/$L$2:$L$398,0)= _xlfn.AGGREGATE(14,6, IFERROR($M$2:$M$398/$L$2:$L$398,0)/($A$2:$A$398=$A95), 1) ) ), ROW($A$2:$A$398) ), VALUE( SUBSTITUTE( SUBSTITUTE( SUBSTITUTE( INDEX($J$2:$J$398,MATCH($A95,$A$2:$A$398,0)), "٬",""), ",",""), "٫",".") ) - SUMPRODUCT( ROUND(IFERROR($M$2:$M$398/$L$2:$L$398,0),0)* --($A$2:$A$398=$A95) ), 0 ) ) ) ->  | U95: =IF($A95="","", IF(ROW()<>ROW(INDEX($A$2:$A$398,MATCH($A95,$A$2:$A$398,0))),"", IF( ROUND( VALUE( SUBSTITUTE( SUBSTITUTE( SUBSTITUTE( INDEX($J$2:$J$398,MATCH($A95,$A$2:$A$398,0)), "٬",""), ",",""), "٫",".") )*10000,0) <> ROUND( SUMPRODUCT( ($A$2:$A$398=$A95)* ROUND( IFERROR( VALUE(SUBSTITUTE(SUBSTITUTE(SUBSTITUTE($M$2:$M$398,"٬",""),",",""),"٫","."))/ VALUE(SUBSTITUTE(SUBSTITUTE(SUBSTITUTE($L$2:$L$398,"٬",""),",",""),"٫",".")), 0), 4) )*10000,0), "اختلاف معادل " & TEXT( ROUND( ( VALUE( SUBSTITUTE( SUBSTITUTE( SUBSTITUTE( INDEX($J$2:$J$398,MATCH($A95,$A$2:$A$398,0)), "٬",""), ",",""), "٫",".") ) - SUMPRODUCT( ($A$2:$A$398=$A95)* ROUND( IFERROR( VALUE(SUBSTITUTE(SUBSTITUTE(SUBSTITUTE($M$2:$M$398,"٬",""),",",""),"٫","."))/ VALUE(SUBSTITUTE(SUBSTITUTE(SUBSTITUTE($L$2:$L$398,"٬",""),",",""),"٫",".")), 0), 4) ) )* VALUE( SUBSTITUTE( SUBSTITUTE( SUBSTITUTE( INDEX($L$2:$L$398,MATCH($A95,$A$2:$A$398,0)), "٬",""), ",",""), "٫",".") ), 0 ), "#,##0" ) & " ریال", "" ) ) ) -> 
P96: =IF($A96="","", IF($M96="","", ROUND(IFERROR($M96/$L96,0),0) + IF( ROW()= LOOKUP( 2, 1/( ($A$2:$A$398=$A96)* (IFERROR($M$2:$M$398/$L$2:$L$398,0)= _xlfn.AGGREGATE(14,6, IFERROR($M$2:$M$398/$L$2:$L$398,0)/($A$2:$A$398=$A96), 1) ) ), ROW($A$2:$A$398) ), VALUE( SUBSTITUTE( SUBSTITUTE( SUBSTITUTE( INDEX($J$2:$J$398,MATCH($A96,$A$2:$A$398,0)), "٬",""), ",",""), "٫",".") ) - SUMPRODUCT( ROUND(IFERROR($M$2:$M$398/$L$2:$L$398,0),0)* --($A$2:$A$398=$A96) ), 0 ) ) ) ->  | U96: =IF($A96="","", IF(ROW()<>ROW(INDEX($A$2:$A$398,MATCH($A96,$A$2:$A$398,0))),"", IF( ROUND( VALUE( SUBSTITUTE( SUBSTITUTE( SUBSTITUTE( INDEX($J$2:$J$398,MATCH($A96,$A$2:$A$398,0)), "٬",""), ",",""), "٫",".") )*10000,0) <> ROUND( SUMPRODUCT( ($A$2:$A$398=$A96)* ROUND( IFERROR( VALUE(SUBSTITUTE(SUBSTITUTE(SUBSTITUTE($M$2:$M$398,"٬",""),",",""),"٫","."))/ VALUE(SUBSTITUTE(SUBSTITUTE(SUBSTITUTE($L$2:$L$398,"٬",""),",",""),"٫",".")), 0), 4) )*10000,0), "اختلاف معادل " & TEXT( ROUND( ( VALUE( SUBSTITUTE( SUBSTITUTE( SUBSTITUTE( INDEX($J$2:$J$398,MATCH($A96,$A$2:$A$398,0)), "٬",""), ",",""), "٫",".") ) - SUMPRODUCT( ($A$2:$A$398=$A96)* ROUND( IFERROR( VALUE(SUBSTITUTE(SUBSTITUTE(SUBSTITUTE($M$2:$M$398,"٬",""),",",""),"٫","."))/ VALUE(SUBSTITUTE(SUBSTITUTE(SUBSTITUTE($L$2:$L$398,"٬",""),",",""),"٫",".")), 0), 4) ) )* VALUE( SUBSTITUTE( SUBSTITUTE( SUBSTITUTE( INDEX($L$2:$L$398,MATCH($A96,$A$2:$A$398,0)), "٬",""), ",",""), "٫",".") ), 0 ), "#,##0" ) & " ریال", "" ) ) ) -> 
P97: =IF($A97="","", IF($M97="","", ROUND(IFERROR($M97/$L97,0),0) + IF( ROW()= LOOKUP( 2, 1/( ($A$2:$A$398=$A97)* (IFERROR($M$2:$M$398/$L$2:$L$398,0)= _xlfn.AGGREGATE(14,6, IFERROR($M$2:$M$398/$L$2:$L$398,0)/($A$2:$A$398=$A97), 1) ) ), ROW($A$2:$A$398) ), VALUE( SUBSTITUTE( SUBSTITUTE( SUBSTITUTE( INDEX($J$2:$J$398,MATCH($A97,$A$2:$A$398,0)), "٬",""), ",",""), "٫",".") ) - SUMPRODUCT( ROUND(IFERROR($M$2:$M$398/$L$2:$L$398,0),0)* --($A$2:$A$398=$A97) ), 0 ) ) ) ->  | U97: =IF($A97="","", IF(ROW()<>ROW(INDEX($A$2:$A$398,MATCH($A97,$A$2:$A$398,0))),"", IF( ROUND( VALUE( SUBSTITUTE( SUBSTITUTE( SUBSTITUTE( INDEX($J$2:$J$398,MATCH($A97,$A$2:$A$398,0)), "٬",""), ",",""), "٫",".") )*10000,0) <> ROUND( SUMPRODUCT( ($A$2:$A$398=$A97)* ROUND( IFERROR( VALUE(SUBSTITUTE(SUBSTITUTE(SUBSTITUTE($M$2:$M$398,"٬",""),",",""),"٫","."))/ VALUE(SUBSTITUTE(SUBSTITUTE(SUBSTITUTE($L$2:$L$398,"٬",""),",",""),"٫",".")), 0), 4) )*10000,0), "اختلاف معادل " & TEXT( ROUND( ( VALUE( SUBSTITUTE( SUBSTITUTE( SUBSTITUTE( INDEX($J$2:$J$398,MATCH($A97,$A$2:$A$398,0)), "٬",""), ",",""), "٫",".") ) - SUMPRODUCT( ($A$2:$A$398=$A97)* ROUND( IFERROR( VALUE(SUBSTITUTE(SUBSTITUTE(SUBSTITUTE($M$2:$M$398,"٬",""),",",""),"٫","."))/ VALUE(SUBSTITUTE(SUBSTITUTE(SUBSTITUTE($L$2:$L$398,"٬",""),",",""),"٫",".")), 0), 4) ) )* VALUE( SUBSTITUTE( SUBSTITUTE( SUBSTITUTE( INDEX($L$2:$L$398,MATCH($A97,$A$2:$A$398,0)), "٬",""), ",",""), "٫",".") ), 0 ), "#,##0" ) & " ریال", "" ) ) ) -> 
P98: =IF($A98="","", IF($M98="","", ROUND(IFERROR($M98/$L98,0),0) + IF( ROW()= LOOKUP( 2, 1/( ($A$2:$A$398=$A98)* (IFERROR($M$2:$M$398/$L$2:$L$398,0)= _xlfn.AGGREGATE(14,6, IFERROR($M$2:$M$398/$L$2:$L$398,0)/($A$2:$A$398=$A98), 1) ) ), ROW($A$2:$A$398) ), VALUE( SUBSTITUTE( SUBSTITUTE( SUBSTITUTE( INDEX($J$2:$J$398,MATCH($A98,$A$2:$A$398,0)), "٬",""), ",",""), "٫",".") ) - SUMPRODUCT( ROUND(IFERROR($M$2:$M$398/$L$2:$L$398,0),0)* --($A$2:$A$398=$A98) ), 0 ) ) ) ->  | U98: =IF($A98="","", IF(ROW()<>ROW(INDEX($A$2:$A$398,MATCH($A98,$A$2:$A$398,0))),"", IF( ROUND( VALUE( SUBSTITUTE( SUBSTITUTE( SUBSTITUTE( INDEX($J$2:$J$398,MATCH($A98,$A$2:$A$398,0)), "٬",""), ",",""), "٫",".") )*10000,0) <> ROUND( SUMPRODUCT( ($A$2:$A$398=$A98)* ROUND( IFERROR( VALUE(SUBSTITUTE(SUBSTITUTE(SUBSTITUTE($M$2:$M$398,"٬",""),",",""),"٫","."))/ VALUE(SUBSTITUTE(SUBSTITUTE(SUBSTITUTE($L$2:$L$398,"٬",""),",",""),"٫",".")), 0), 4) )*10000,0), "اختلاف معادل " & TEXT( ROUND( ( VALUE( SUBSTITUTE( SUBSTITUTE( SUBSTITUTE( INDEX($J$2:$J$398,MATCH($A98,$A$2:$A$398,0)), "٬",""), ",",""), "٫",".") ) - SUMPRODUCT( ($A$2:$A$398=$A98)* ROUND( IFERROR( VALUE(SUBSTITUTE(SUBSTITUTE(SUBSTITUTE($M$2:$M$398,"٬",""),",",""),"٫","."))/ VALUE(SUBSTITUTE(SUBSTITUTE(SUBSTITUTE($L$2:$L$398,"٬",""),",",""),"٫",".")), 0), 4) ) )* VALUE( SUBSTITUTE( SUBSTITUTE( SUBSTITUTE( INDEX($L$2:$L$398,MATCH($A98,$A$2:$A$398,0)), "٬",""), ",",""), "٫",".") ), 0 ), "#,##0" ) & " ریال", "" ) ) ) -> 
P99: =IF($A99="","", IF($M99="","", ROUND(IFERROR($M99/$L99,0),0) + IF( ROW()= LOOKUP( 2, 1/( ($A$2:$A$398=$A99)* (IFERROR($M$2:$M$398/$L$2:$L$398,0)= _xlfn.AGGREGATE(14,6, IFERROR($M$2:$M$398/$L$2:$L$398,0)/($A$2:$A$398=$A99), 1) ) ), ROW($A$2:$A$398) ), VALUE( SUBSTITUTE( SUBSTITUTE( SUBSTITUTE( INDEX($J$2:$J$398,MATCH($A99,$A$2:$A$398,0)), "٬",""), ",",""), "٫",".") ) - SUMPRODUCT( ROUND(IFERROR($M$2:$M$398/$L$2:$L$398,0),0)* --($A$2:$A$398=$A99) ), 0 ) ) ) ->  | U99: =IF($A99="","", IF(ROW()<>ROW(INDEX($A$2:$A$398,MATCH($A99,$A$2:$A$398,0))),"", IF( ROUND( VALUE( SUBSTITUTE( SUBSTITUTE( SUBSTITUTE( INDEX($J$2:$J$398,MATCH($A99,$A$2:$A$398,0)), "٬",""), ",",""), "٫",".") )*10000,0) <> ROUND( SUMPRODUCT( ($A$2:$A$398=$A99)* ROUND( IFERROR( VALUE(SUBSTITUTE(SUBSTITUTE(SUBSTITUTE($M$2:$M$398,"٬",""),",",""),"٫","."))/ VALUE(SUBSTITUTE(SUBSTITUTE(SUBSTITUTE($L$2:$L$398,"٬",""),",",""),"٫",".")), 0), 4) )*10000,0), "اختلاف معادل " & TEXT( ROUND( ( VALUE( SUBSTITUTE( SUBSTITUTE( SUBSTITUTE( INDEX($J$2:$J$398,MATCH($A99,$A$2:$A$398,0)), "٬",""), ",",""), "٫",".") ) - SUMPRODUCT( ($A$2:$A$398=$A99)* ROUND( IFERROR( VALUE(SUBSTITUTE(SUBSTITUTE(SUBSTITUTE($M$2:$M$398,"٬",""),",",""),"٫","."))/ VALUE(SUBSTITUTE(SUBSTITUTE(SUBSTITUTE($L$2:$L$398,"٬",""),",",""),"٫",".")), 0), 4) ) )* VALUE( SUBSTITUTE( SUBSTITUTE( SUBSTITUTE( INDEX($L$2:$L$398,MATCH($A99,$A$2:$A$398,0)), "٬",""), ",",""), "٫",".") ), 0 ), "#,##0" ) & " ریال", "" ) ) ) -> 
P100: =IF($A100="","", IF($M100="","", ROUND(IFERROR($M100/$L100,0),0) + IF( ROW()= LOOKUP( 2, 1/( ($A$2:$A$398=$A100)* (IFERROR($M$2:$M$398/$L$2:$L$398,0)= _xlfn.AGGREGATE(14,6, IFERROR($M$2:$M$398/$L$2:$L$398,0)/($A$2:$A$398=$A100), 1) ) ), ROW($A$2:$A$398) ), VALUE( SUBSTITUTE( SUBSTITUTE( SUBSTITUTE( INDEX($J$2:$J$398,MATCH($A100,$A$2:$A$398,0)), "٬",""), ",",""), "٫",".") ) - SUMPRODUCT( ROUND(IFERROR($M$2:$M$398/$L$2:$L$398,0),0)* --($A$2:$A$398=$A100) ), 0 ) ) ) ->  | U100: =IF($A100="","", IF(ROW()<>ROW(INDEX($A$2:$A$398,MATCH($A100,$A$2:$A$398,0))),"", IF( ROUND( VALUE( SUBSTITUTE( SUBSTITUTE( SUBSTITUTE( INDEX($J$2:$J$398,MATCH($A100,$A$2:$A$398,0)), "٬",""), ",",""), "٫",".") )*10000,0) <> ROUND( SUMPRODUCT( ($A$2:$A$398=$A100)* ROUND( IFERROR( VALUE(SUBSTITUTE(SUBSTITUTE(SUBSTITUTE($M$2:$M$398,"٬",""),",",""),"٫","."))/ VALUE(SUBSTITUTE(SUBSTITUTE(SUBSTITUTE($L$2:$L$398,"٬",""),",",""),"٫",".")), 0), 4) )*10000,0), "اختلاف معادل " & TEXT( ROUND( ( VALUE( SUBSTITUTE( SUBSTITUTE( SUBSTITUTE( INDEX($J$2:$J$398,MATCH($A100,$A$2:$A$398,0)), "٬",""), ",",""), "٫",".") ) - SUMPRODUCT( ($A$2:$A$398=$A100)* ROUND( IFERROR( VALUE(SUBSTITUTE(SUBSTITUTE(SUBSTITUTE($M$2:$M$398,"٬",""),",",""),"٫","."))/ VALUE(SUBSTITUTE(SUBSTITUTE(SUBSTITUTE($L$2:$L$398,"٬",""),",",""),"٫",".")), 0), 4) ) )* VALUE( SUBSTITUTE( SUBSTITUTE( SUBSTITUTE( INDEX($L$2:$L$398,MATCH($A100,$A$2:$A$398,0)), "٬",""), ",",""), "٫",".") ), 0 ), "#,##0" ) & " ریال", "" ) ) ) -> 
P101: =IF($A101="","", IF($M101="","", ROUND(IFERROR($M101/$L101,0),0) + IF( ROW()= LOOKUP( 2, 1/( ($A$2:$A$398=$A101)* (IFERROR($M$2:$M$398/$L$2:$L$398,0)= _xlfn.AGGREGATE(14,6, IFERROR($M$2:$M$398/$L$2:$L$398,0)/($A$2:$A$398=$A101), 1) ) ), ROW($A$2:$A$398) ), VALUE( SUBSTITUTE( SUBSTITUTE( SUBSTITUTE( INDEX($J$2:$J$398,MATCH($A101,$A$2:$A$398,0)), "٬",""), ",",""), "٫",".") ) - SUMPRODUCT( ROUND(IFERROR($M$2:$M$398/$L$2:$L$398,0),0)* --($A$2:$A$398=$A101) ), 0 ) ) ) ->  | U101: =IF($A101="","", IF(ROW()<>ROW(INDEX($A$2:$A$398,MATCH($A101,$A$2:$A$398,0))),"", IF( ROUND( VALUE( SUBSTITUTE( SUBSTITUTE( SUBSTITUTE( INDEX($J$2:$J$398,MATCH($A101,$A$2:$A$398,0)), "٬",""), ",",""), "٫",".") )*10000,0) <> ROUND( SUMPRODUCT( ($A$2:$A$398=$A101)* ROUND( IFERROR( VALUE(SUBSTITUTE(SUBSTITUTE(SUBSTITUTE($M$2:$M$398,"٬",""),",",""),"٫","."))/ VALUE(SUBSTITUTE(SUBSTITUTE(SUBSTITUTE($L$2:$L$398,"٬",""),",",""),"٫",".")), 0), 4) )*10000,0), "اختلاف معادل " & TEXT( ROUND( ( VALUE( SUBSTITUTE( SUBSTITUTE( SUBSTITUTE( INDEX($J$2:$J$398,MATCH($A101,$A$2:$A$398,0)), "٬",""), ",",""), "٫",".") ) - SUMPRODUCT( ($A$2:$A$398=$A101)* ROUND( IFERROR( VALUE(SUBSTITUTE(SUBSTITUTE(SUBSTITUTE($M$2:$M$398,"٬",""),",",""),"٫","."))/ VALUE(SUBSTITUTE(SUBSTITUTE(SUBSTITUTE($L$2:$L$398,"٬",""),",",""),"٫",".")), 0), 4) ) )* VALUE( SUBSTITUTE( SUBSTITUTE( SUBSTITUTE( INDEX($L$2:$L$398,MATCH($A101,$A$2:$A$398,0)), "٬",""), ",",""), "٫",".") ), 0 ), "#,##0" ) & " ریال", "" ) ) ) -> 
P102: =IF($A102="","", IF($M102="","", ROUND(IFERROR($M102/$L102,0),0) + IF( ROW()= LOOKUP( 2, 1/( ($A$2:$A$398=$A102)* (IFERROR($M$2:$M$398/$L$2:$L$398,0)= _xlfn.AGGREGATE(14,6, IFERROR($M$2:$M$398/$L$2:$L$398,0)/($A$2:$A$398=$A102), 1) ) ), ROW($A$2:$A$398) ), VALUE( SUBSTITUTE( SUBSTITUTE( SUBSTITUTE( INDEX($J$2:$J$398,MATCH($A102,$A$2:$A$398,0)), "٬",""), ",",""), "٫",".") ) - SUMPRODUCT( ROUND(IFERROR($M$2:$M$398/$L$2:$L$398,0),0)* --($A$2:$A$398=$A102) ), 0 ) ) ) ->  | U102: =IF($A102="","", IF(ROW()<>ROW(INDEX($A$2:$A$398,MATCH($A102,$A$2:$A$398,0))),"", IF( ROUND( VALUE( SUBSTITUTE( SUBSTITUTE( SUBSTITUTE( INDEX($J$2:$J$398,MATCH($A102,$A$2:$A$398,0)), "٬",""), ",",""), "٫",".") )*10000,0) <> ROUND( SUMPRODUCT( ($A$2:$A$398=$A102)* ROUND( IFERROR( VALUE(SUBSTITUTE(SUBSTITUTE(SUBSTITUTE($M$2:$M$398,"٬",""),",",""),"٫","."))/ VALUE(SUBSTITUTE(SUBSTITUTE(SUBSTITUTE($L$2:$L$398,"٬",""),",",""),"٫",".")), 0), 4) )*10000,0), "اختلاف معادل " & TEXT( ROUND( ( VALUE( SUBSTITUTE( SUBSTITUTE( SUBSTITUTE( INDEX($J$2:$J$398,MATCH($A102,$A$2:$A$398,0)), "٬",""), ",",""), "٫",".") ) - SUMPRODUCT( ($A$2:$A$398=$A102)* ROUND( IFERROR( VALUE(SUBSTITUTE(SUBSTITUTE(SUBSTITUTE($M$2:$M$398,"٬",""),",",""),"٫","."))/ VALUE(SUBSTITUTE(SUBSTITUTE(SUBSTITUTE($L$2:$L$398,"٬",""),",",""),"٫",".")), 0), 4) ) )* VALUE( SUBSTITUTE( SUBSTITUTE( SUBSTITUTE( INDEX($L$2:$L$398,MATCH($A102,$A$2:$A$398,0)), "٬",""), ",",""), "٫",".") ), 0 ), "#,##0" ) & " ریال", "" ) ) ) -> 
P103: =IF($A103="","", IF($M103="","", ROUND(IFERROR($M103/$L103,0),0) + IF( ROW()= LOOKUP( 2, 1/( ($A$2:$A$398=$A103)* (IFERROR($M$2:$M$398/$L$2:$L$398,0)= _xlfn.AGGREGATE(14,6, IFERROR($M$2:$M$398/$L$2:$L$398,0)/($A$2:$A$398=$A103), 1) ) ), ROW($A$2:$A$398) ), VALUE( SUBSTITUTE( SUBSTITUTE( SUBSTITUTE( INDEX($J$2:$J$398,MATCH($A103,$A$2:$A$398,0)), "٬",""), ",",""), "٫",".") ) - SUMPRODUCT( ROUND(IFERROR($M$2:$M$398/$L$2:$L$398,0),0)* --($A$2:$A$398=$A103) ), 0 ) ) ) ->  | U103: =IF($A103="","", IF(ROW()<>ROW(INDEX($A$2:$A$398,MATCH($A103,$A$2:$A$398,0))),"", IF( ROUND( VALUE( SUBSTITUTE( SUBSTITUTE( SUBSTITUTE( INDEX($J$2:$J$398,MATCH($A103,$A$2:$A$398,0)), "٬",""), ",",""), "٫",".") )*10000,0) <> ROUND( SUMPRODUCT( ($A$2:$A$398=$A103)* ROUND( IFERROR( VALUE(SUBSTITUTE(SUBSTITUTE(SUBSTITUTE($M$2:$M$398,"٬",""),",",""),"٫","."))/ VALUE(SUBSTITUTE(SUBSTITUTE(SUBSTITUTE($L$2:$L$398,"٬",""),",",""),"٫",".")), 0), 4) )*10000,0), "اختلاف معادل " & TEXT( ROUND( ( VALUE( SUBSTITUTE( SUBSTITUTE( SUBSTITUTE( INDEX($J$2:$J$398,MATCH($A103,$A$2:$A$398,0)), "٬",""), ",",""), "٫",".") ) - SUMPRODUCT( ($A$2:$A$398=$A103)* ROUND( IFERROR( VALUE(SUBSTITUTE(SUBSTITUTE(SUBSTITUTE($M$2:$M$398,"٬",""),",",""),"٫","."))/ VALUE(SUBSTITUTE(SUBSTITUTE(SUBSTITUTE($L$2:$L$398,"٬",""),",",""),"٫",".")), 0), 4) ) )* VALUE( SUBSTITUTE( SUBSTITUTE( SUBSTITUTE( INDEX($L$2:$L$398,MATCH($A103,$A$2:$A$398,0)), "٬",""), ",",""), "٫",".") ), 0 ), "#,##0" ) & " ریال", "" ) ) ) -> 
P104: =IF($A104="","", IF($M104="","", ROUND(IFERROR($M104/$L104,0),0) + IF( ROW()= LOOKUP( 2, 1/( ($A$2:$A$398=$A104)* (IFERROR($M$2:$M$398/$L$2:$L$398,0)= _xlfn.AGGREGATE(14,6, IFERROR($M$2:$M$398/$L$2:$L$398,0)/($A$2:$A$398=$A104), 1) ) ), ROW($A$2:$A$398) ), VALUE( SUBSTITUTE( SUBSTITUTE( SUBSTITUTE( INDEX($J$2:$J$398,MATCH($A104,$A$2:$A$398,0)), "٬",""), ",",""), "٫",".") ) - SUMPRODUCT( ROUND(IFERROR($M$2:$M$398/$L$2:$L$398,0),0)* --($A$2:$A$398=$A104) ), 0 ) ) ) ->  | U104: =IF($A104="","", IF(ROW()<>ROW(INDEX($A$2:$A$398,MATCH($A104,$A$2:$A$398,0))),"", IF( ROUND( VALUE( SUBSTITUTE( SUBSTITUTE( SUBSTITUTE( INDEX($J$2:$J$398,MATCH($A104,$A$2:$A$398,0)), "٬",""), ",",""), "٫",".") )*10000,0) <> ROUND( SUMPRODUCT( ($A$2:$A$398=$A104)* ROUND( IFERROR( VALUE(SUBSTITUTE(SUBSTITUTE(SUBSTITUTE($M$2:$M$398,"٬",""),",",""),"٫","."))/ VALUE(SUBSTITUTE(SUBSTITUTE(SUBSTITUTE($L$2:$L$398,"٬",""),",",""),"٫",".")), 0), 4) )*10000,0), "اختلاف معادل " & TEXT( ROUND( ( VALUE( SUBSTITUTE( SUBSTITUTE( SUBSTITUTE( INDEX($J$2:$J$398,MATCH($A104,$A$2:$A$398,0)), "٬",""), ",",""), "٫",".") ) - SUMPRODUCT( ($A$2:$A$398=$A104)* ROUND( IFERROR( VALUE(SUBSTITUTE(SUBSTITUTE(SUBSTITUTE($M$2:$M$398,"٬",""),",",""),"٫","."))/ VALUE(SUBSTITUTE(SUBSTITUTE(SUBSTITUTE($L$2:$L$398,"٬",""),",",""),"٫",".")), 0), 4) ) )* VALUE( SUBSTITUTE( SUBSTITUTE( SUBSTITUTE( INDEX($L$2:$L$398,MATCH($A104,$A$2:$A$398,0)), "٬",""), ",",""), "٫",".") ), 0 ), "#,##0" ) & " ریال", "" ) ) ) -> 
P105: =IF($A105="","", IF($M105="","", ROUND(IFERROR($M105/$L105,0),0) + IF( ROW()= LOOKUP( 2, 1/( ($A$2:$A$398=$A105)* (IFERROR($M$2:$M$398/$L$2:$L$398,0)= _xlfn.AGGREGATE(14,6, IFERROR($M$2:$M$398/$L$2:$L$398,0)/($A$2:$A$398=$A105), 1) ) ), ROW($A$2:$A$398) ), VALUE( SUBSTITUTE( SUBSTITUTE( SUBSTITUTE( INDEX($J$2:$J$398,MATCH($A105,$A$2:$A$398,0)), "٬",""), ",",""), "٫",".") ) - SUMPRODUCT( ROUND(IFERROR($M$2:$M$398/$L$2:$L$398,0),0)* --($A$2:$A$398=$A105) ), 0 ) ) ) ->  | U105: =IF($A105="","", IF(ROW()<>ROW(INDEX($A$2:$A$398,MATCH($A105,$A$2:$A$398,0))),"", IF( ROUND( VALUE( SUBSTITUTE( SUBSTITUTE( SUBSTITUTE( INDEX($J$2:$J$398,MATCH($A105,$A$2:$A$398,0)), "٬",""), ",",""), "٫",".") )*10000,0) <> ROUND( SUMPRODUCT( ($A$2:$A$398=$A105)* ROUND( IFERROR( VALUE(SUBSTITUTE(SUBSTITUTE(SUBSTITUTE($M$2:$M$398,"٬",""),",",""),"٫","."))/ VALUE(SUBSTITUTE(SUBSTITUTE(SUBSTITUTE($L$2:$L$398,"٬",""),",",""),"٫",".")), 0), 4) )*10000,0), "اختلاف معادل " & TEXT( ROUND( ( VALUE( SUBSTITUTE( SUBSTITUTE( SUBSTITUTE( INDEX($J$2:$J$398,MATCH($A105,$A$2:$A$398,0)), "٬",""), ",",""), "٫",".") ) - SUMPRODUCT( ($A$2:$A$398=$A105)* ROUND( IFERROR( VALUE(SUBSTITUTE(SUBSTITUTE(SUBSTITUTE($M$2:$M$398,"٬",""),",",""),"٫","."))/ VALUE(SUBSTITUTE(SUBSTITUTE(SUBSTITUTE($L$2:$L$398,"٬",""),",",""),"٫",".")), 0), 4) ) )* VALUE( SUBSTITUTE( SUBSTITUTE( SUBSTITUTE( INDEX($L$2:$L$398,MATCH($A105,$A$2:$A$398,0)), "٬",""), ",",""), "٫",".") ), 0 ), "#,##0" ) & " ریال", "" ) ) ) -> 
P106: =IF($A106="","", IF($M106="","", ROUND(IFERROR($M106/$L106,0),0) + IF( ROW()= LOOKUP( 2, 1/( ($A$2:$A$398=$A106)* (IFERROR($M$2:$M$398/$L$2:$L$398,0)= _xlfn.AGGREGATE(14,6, IFERROR($M$2:$M$398/$L$2:$L$398,0)/($A$2:$A$398=$A106), 1) ) ), ROW($A$2:$A$398) ), VALUE( SUBSTITUTE( SUBSTITUTE( SUBSTITUTE( INDEX($J$2:$J$398,MATCH($A106,$A$2:$A$398,0)), "٬",""), ",",""), "٫",".") ) - SUMPRODUCT( ROUND(IFERROR($M$2:$M$398/$L$2:$L$398,0),0)* --($A$2:$A$398=$A106) ), 0 ) ) ) ->  | U106: =IF($A106="","", IF(ROW()<>ROW(INDEX($A$2:$A$398,MATCH($A106,$A$2:$A$398,0))),"", IF( ROUND( VALUE( SUBSTITUTE( SUBSTITUTE( SUBSTITUTE( INDEX($J$2:$J$398,MATCH($A106,$A$2:$A$398,0)), "٬",""), ",",""), "٫",".") )*10000,0) <> ROUND( SUMPRODUCT( ($A$2:$A$398=$A106)* ROUND( IFERROR( VALUE(SUBSTITUTE(SUBSTITUTE(SUBSTITUTE($M$2:$M$398,"٬",""),",",""),"٫","."))/ VALUE(SUBSTITUTE(SUBSTITUTE(SUBSTITUTE($L$2:$L$398,"٬",""),",",""),"٫",".")), 0), 4) )*10000,0), "اختلاف معادل " & TEXT( ROUND( ( VALUE( SUBSTITUTE( SUBSTITUTE( SUBSTITUTE( INDEX($J$2:$J$398,MATCH($A106,$A$2:$A$398,0)), "٬",""), ",",""), "٫",".") ) - SUMPRODUCT( ($A$2:$A$398=$A106)* ROUND( IFERROR( VALUE(SUBSTITUTE(SUBSTITUTE(SUBSTITUTE($M$2:$M$398,"٬",""),",",""),"٫","."))/ VALUE(SUBSTITUTE(SUBSTITUTE(SUBSTITUTE($L$2:$L$398,"٬",""),",",""),"٫",".")), 0), 4) ) )* VALUE( SUBSTITUTE( SUBSTITUTE( SUBSTITUTE( INDEX($L$2:$L$398,MATCH($A106,$A$2:$A$398,0)), "٬",""), ",",""), "٫",".") ), 0 ), "#,##0" ) & " ریال", "" ) ) ) -> 
P107: =IF($A107="","", IF($M107="","", ROUND(IFERROR($M107/$L107,0),0) + IF( ROW()= LOOKUP( 2, 1/( ($A$2:$A$398=$A107)* (IFERROR($M$2:$M$398/$L$2:$L$398,0)= _xlfn.AGGREGATE(14,6, IFERROR($M$2:$M$398/$L$2:$L$398,0)/($A$2:$A$398=$A107), 1) ) ), ROW($A$2:$A$398) ), VALUE( SUBSTITUTE( SUBSTITUTE( SUBSTITUTE( INDEX($J$2:$J$398,MATCH($A107,$A$2:$A$398,0)), "٬",""), ",",""), "٫",".") ) - SUMPRODUCT( ROUND(IFERROR($M$2:$M$398/$L$2:$L$398,0),0)* --($A$2:$A$398=$A107) ), 0 ) ) ) ->  | U107: =IF($A107="","", IF(ROW()<>ROW(INDEX($A$2:$A$398,MATCH($A107,$A$2:$A$398,0))),"", IF( ROUND( VALUE( SUBSTITUTE( SUBSTITUTE( SUBSTITUTE( INDEX($J$2:$J$398,MATCH($A107,$A$2:$A$398,0)), "٬",""), ",",""), "٫",".") )*10000,0) <> ROUND( SUMPRODUCT( ($A$2:$A$398=$A107)* ROUND( IFERROR( VALUE(SUBSTITUTE(SUBSTITUTE(SUBSTITUTE($M$2:$M$398,"٬",""),",",""),"٫","."))/ VALUE(SUBSTITUTE(SUBSTITUTE(SUBSTITUTE($L$2:$L$398,"٬",""),",",""),"٫",".")), 0), 4) )*10000,0), "اختلاف معادل " & TEXT( ROUND( ( VALUE( SUBSTITUTE( SUBSTITUTE( SUBSTITUTE( INDEX($J$2:$J$398,MATCH($A107,$A$2:$A$398,0)), "٬",""), ",",""), "٫",".") ) - SUMPRODUCT( ($A$2:$A$398=$A107)* ROUND( IFERROR( VALUE(SUBSTITUTE(SUBSTITUTE(SUBSTITUTE($M$2:$M$398,"٬",""),",",""),"٫","."))/ VALUE(SUBSTITUTE(SUBSTITUTE(SUBSTITUTE($L$2:$L$398,"٬",""),",",""),"٫",".")), 0), 4) ) )* VALUE( SUBSTITUTE( SUBSTITUTE( SUBSTITUTE( INDEX($L$2:$L$398,MATCH($A107,$A$2:$A$398,0)), "٬",""), ",",""), "٫",".") ), 0 ), "#,##0" ) & " ریال", "" ) ) ) -> 
P108: =IF($A108="","", IF($M108="","", ROUND(IFERROR($M108/$L108,0),0) + IF( ROW()= LOOKUP( 2, 1/( ($A$2:$A$398=$A108)* (IFERROR($M$2:$M$398/$L$2:$L$398,0)= _xlfn.AGGREGATE(14,6, IFERROR($M$2:$M$398/$L$2:$L$398,0)/($A$2:$A$398=$A108), 1) ) ), ROW($A$2:$A$398) ), VALUE( SUBSTITUTE( SUBSTITUTE( SUBSTITUTE( INDEX($J$2:$J$398,MATCH($A108,$A$2:$A$398,0)), "٬",""), ",",""), "٫",".") ) - SUMPRODUCT( ROUND(IFERROR($M$2:$M$398/$L$2:$L$398,0),0)* --($A$2:$A$398=$A108) ), 0 ) ) ) ->  | U108: =IF($A108="","", IF(ROW()<>ROW(INDEX($A$2:$A$398,MATCH($A108,$A$2:$A$398,0))),"", IF( ROUND( VALUE( SUBSTITUTE( SUBSTITUTE( SUBSTITUTE( INDEX($J$2:$J$398,MATCH($A108,$A$2:$A$398,0)), "٬",""), ",",""), "٫",".") )*10000,0) <> ROUND( SUMPRODUCT( ($A$2:$A$398=$A108)* ROUND( IFERROR( VALUE(SUBSTITUTE(SUBSTITUTE(SUBSTITUTE($M$2:$M$398,"٬",""),",",""),"٫","."))/ VALUE(SUBSTITUTE(SUBSTITUTE(SUBSTITUTE($L$2:$L$398,"٬",""),",",""),"٫",".")), 0), 4) )*10000,0), "اختلاف معادل " & TEXT( ROUND( ( VALUE( SUBSTITUTE( SUBSTITUTE( SUBSTITUTE( INDEX($J$2:$J$398,MATCH($A108,$A$2:$A$398,0)), "٬",""), ",",""), "٫",".") ) - SUMPRODUCT( ($A$2:$A$398=$A108)* ROUND( IFERROR( VALUE(SUBSTITUTE(SUBSTITUTE(SUBSTITUTE($M$2:$M$398,"٬",""),",",""),"٫","."))/ VALUE(SUBSTITUTE(SUBSTITUTE(SUBSTITUTE($L$2:$L$398,"٬",""),",",""),"٫",".")), 0), 4) ) )* VALUE( SUBSTITUTE( SUBSTITUTE( SUBSTITUTE( INDEX($L$2:$L$398,MATCH($A108,$A$2:$A$398,0)), "٬",""), ",",""), "٫",".") ), 0 ), "#,##0" ) & " ریال", "" ) ) ) -> 
P109: =IF($A109="","", IF($M109="","", ROUND(IFERROR($M109/$L109,0),0) + IF( ROW()= LOOKUP( 2, 1/( ($A$2:$A$398=$A109)* (IFERROR($M$2:$M$398/$L$2:$L$398,0)= _xlfn.AGGREGATE(14,6, IFERROR($M$2:$M$398/$L$2:$L$398,0)/($A$2:$A$398=$A109), 1) ) ), ROW($A$2:$A$398) ), VALUE( SUBSTITUTE( SUBSTITUTE( SUBSTITUTE( INDEX($J$2:$J$398,MATCH($A109,$A$2:$A$398,0)), "٬",""), ",",""), "٫",".") ) - SUMPRODUCT( ROUND(IFERROR($M$2:$M$398/$L$2:$L$398,0),0)* --($A$2:$A$398=$A109) ), 0 ) ) ) ->  | U109: =IF($A109="","", IF(ROW()<>ROW(INDEX($A$2:$A$398,MATCH($A109,$A$2:$A$398,0))),"", IF( ROUND( VALUE( SUBSTITUTE( SUBSTITUTE( SUBSTITUTE( INDEX($J$2:$J$398,MATCH($A109,$A$2:$A$398,0)), "٬",""), ",",""), "٫",".") )*10000,0) <> ROUND( SUMPRODUCT( ($A$2:$A$398=$A109)* ROUND( IFERROR( VALUE(SUBSTITUTE(SUBSTITUTE(SUBSTITUTE($M$2:$M$398,"٬",""),",",""),"٫","."))/ VALUE(SUBSTITUTE(SUBSTITUTE(SUBSTITUTE($L$2:$L$398,"٬",""),",",""),"٫",".")), 0), 4) )*10000,0), "اختلاف معادل " & TEXT( ROUND( ( VALUE( SUBSTITUTE( SUBSTITUTE( SUBSTITUTE( INDEX($J$2:$J$398,MATCH($A109,$A$2:$A$398,0)), "٬",""), ",",""), "٫",".") ) - SUMPRODUCT( ($A$2:$A$398=$A109)* ROUND( IFERROR( VALUE(SUBSTITUTE(SUBSTITUTE(SUBSTITUTE($M$2:$M$398,"٬",""),",",""),"٫","."))/ VALUE(SUBSTITUTE(SUBSTITUTE(SUBSTITUTE($L$2:$L$398,"٬",""),",",""),"٫",".")), 0), 4) ) )* VALUE( SUBSTITUTE( SUBSTITUTE( SUBSTITUTE( INDEX($L$2:$L$398,MATCH($A109,$A$2:$A$398,0)), "٬",""), ",",""), "٫",".") ), 0 ), "#,##0" ) & " ریال", "" ) ) ) -> 
P110: =IF($A110="","", IF($M110="","", ROUND(IFERROR($M110/$L110,0),0) + IF( ROW()= LOOKUP( 2, 1/( ($A$2:$A$398=$A110)* (IFERROR($M$2:$M$398/$L$2:$L$398,0)= _xlfn.AGGREGATE(14,6, IFERROR($M$2:$M$398/$L$2:$L$398,0)/($A$2:$A$398=$A110), 1) ) ), ROW($A$2:$A$398) ), VALUE( SUBSTITUTE( SUBSTITUTE( SUBSTITUTE( INDEX($J$2:$J$398,MATCH($A110,$A$2:$A$398,0)), "٬",""), ",",""), "٫",".") ) - SUMPRODUCT( ROUND(IFERROR($M$2:$M$398/$L$2:$L$398,0),0)* --($A$2:$A$398=$A110) ), 0 ) ) ) ->  | U110: =IF($A110="","", IF(ROW()<>ROW(INDEX($A$2:$A$398,MATCH($A110,$A$2:$A$398,0))),"", IF( ROUND( VALUE( SUBSTITUTE( SUBSTITUTE( SUBSTITUTE( INDEX($J$2:$J$398,MATCH($A110,$A$2:$A$398,0)), "٬",""), ",",""), "٫",".") )*10000,0) <> ROUND( SUMPRODUCT( ($A$2:$A$398=$A110)* ROUND( IFERROR( VALUE(SUBSTITUTE(SUBSTITUTE(SUBSTITUTE($M$2:$M$398,"٬",""),",",""),"٫","."))/ VALUE(SUBSTITUTE(SUBSTITUTE(SUBSTITUTE($L$2:$L$398,"٬",""),",",""),"٫",".")), 0), 4) )*10000,0), "اختلاف معادل " & TEXT( ROUND( ( VALUE( SUBSTITUTE( SUBSTITUTE( SUBSTITUTE( INDEX($J$2:$J$398,MATCH($A110,$A$2:$A$398,0)), "٬",""), ",",""), "٫",".") ) - SUMPRODUCT( ($A$2:$A$398=$A110)* ROUND( IFERROR( VALUE(SUBSTITUTE(SUBSTITUTE(SUBSTITUTE($M$2:$M$398,"٬",""),",",""),"٫","."))/ VALUE(SUBSTITUTE(SUBSTITUTE(SUBSTITUTE($L$2:$L$398,"٬",""),",",""),"٫",".")), 0), 4) ) )* VALUE( SUBSTITUTE( SUBSTITUTE( SUBSTITUTE( INDEX($L$2:$L$398,MATCH($A110,$A$2:$A$398,0)), "٬",""), ",",""), "٫",".") ), 0 ), "#,##0" ) & " ریال", "" ) ) ) -> 
P111: =IF($A111="","", IF($M111="","", ROUND(IFERROR($M111/$L111,0),0) + IF( ROW()= LOOKUP( 2, 1/( ($A$2:$A$398=$A111)* (IFERROR($M$2:$M$398/$L$2:$L$398,0)= _xlfn.AGGREGATE(14,6, IFERROR($M$2:$M$398/$L$2:$L$398,0)/($A$2:$A$398=$A111), 1) ) ), ROW($A$2:$A$398) ), VALUE( SUBSTITUTE( SUBSTITUTE( SUBSTITUTE( INDEX($J$2:$J$398,MATCH($A111,$A$2:$A$398,0)), "٬",""), ",",""), "٫",".") ) - SUMPRODUCT( ROUND(IFERROR($M$2:$M$398/$L$2:$L$398,0),0)* --($A$2:$A$398=$A111) ), 0 ) ) ) ->  | U111: =IF($A111="","", IF(ROW()<>ROW(INDEX($A$2:$A$398,MATCH($A111,$A$2:$A$398,0))),"", IF( ROUND( VALUE( SUBSTITUTE( SUBSTITUTE( SUBSTITUTE( INDEX($J$2:$J$398,MATCH($A111,$A$2:$A$398,0)), "٬",""), ",",""), "٫",".") )*10000,0) <> ROUND( SUMPRODUCT( ($A$2:$A$398=$A111)* ROUND( IFERROR( VALUE(SUBSTITUTE(SUBSTITUTE(SUBSTITUTE($M$2:$M$398,"٬",""),",",""),"٫","."))/ VALUE(SUBSTITUTE(SUBSTITUTE(SUBSTITUTE($L$2:$L$398,"٬",""),",",""),"٫",".")), 0), 4) )*10000,0), "اختلاف معادل " & TEXT( ROUND( ( VALUE( SUBSTITUTE( SUBSTITUTE( SUBSTITUTE( INDEX($J$2:$J$398,MATCH($A111,$A$2:$A$398,0)), "٬",""), ",",""), "٫",".") ) - SUMPRODUCT( ($A$2:$A$398=$A111)* ROUND( IFERROR( VALUE(SUBSTITUTE(SUBSTITUTE(SUBSTITUTE($M$2:$M$398,"٬",""),",",""),"٫","."))/ VALUE(SUBSTITUTE(SUBSTITUTE(SUBSTITUTE($L$2:$L$398,"٬",""),",",""),"٫",".")), 0), 4) ) )* VALUE( SUBSTITUTE( SUBSTITUTE( SUBSTITUTE( INDEX($L$2:$L$398,MATCH($A111,$A$2:$A$398,0)), "٬",""), ",",""), "٫",".") ), 0 ), "#,##0" ) & " ریال", "" ) ) ) -> 
P112: =IF($A112="","", IF($M112="","", ROUND(IFERROR($M112/$L112,0),0) + IF( ROW()= LOOKUP( 2, 1/( ($A$2:$A$398=$A112)* (IFERROR($M$2:$M$398/$L$2:$L$398,0)= _xlfn.AGGREGATE(14,6, IFERROR($M$2:$M$398/$L$2:$L$398,0)/($A$2:$A$398=$A112), 1) ) ), ROW($A$2:$A$398) ), VALUE( SUBSTITUTE( SUBSTITUTE( SUBSTITUTE( INDEX($J$2:$J$398,MATCH($A112,$A$2:$A$398,0)), "٬",""), ",",""), "٫",".") ) - SUMPRODUCT( ROUND(IFERROR($M$2:$M$398/$L$2:$L$398,0),0)* --($A$2:$A$398=$A112) ), 0 ) ) ) ->  | U112: =IF($A112="","", IF(ROW()<>ROW(INDEX($A$2:$A$398,MATCH($A112,$A$2:$A$398,0))),"", IF( ROUND( VALUE( SUBSTITUTE( SUBSTITUTE( SUBSTITUTE( INDEX($J$2:$J$398,MATCH($A112,$A$2:$A$398,0)), "٬",""), ",",""), "٫",".") )*10000,0) <> ROUND( SUMPRODUCT( ($A$2:$A$398=$A112)* ROUND( IFERROR( VALUE(SUBSTITUTE(SUBSTITUTE(SUBSTITUTE($M$2:$M$398,"٬",""),",",""),"٫","."))/ VALUE(SUBSTITUTE(SUBSTITUTE(SUBSTITUTE($L$2:$L$398,"٬",""),",",""),"٫",".")), 0), 4) )*10000,0), "اختلاف معادل " & TEXT( ROUND( ( VALUE( SUBSTITUTE( SUBSTITUTE( SUBSTITUTE( INDEX($J$2:$J$398,MATCH($A112,$A$2:$A$398,0)), "٬",""), ",",""), "٫",".") ) - SUMPRODUCT( ($A$2:$A$398=$A112)* ROUND( IFERROR( VALUE(SUBSTITUTE(SUBSTITUTE(SUBSTITUTE($M$2:$M$398,"٬",""),",",""),"٫","."))/ VALUE(SUBSTITUTE(SUBSTITUTE(SUBSTITUTE($L$2:$L$398,"٬",""),",",""),"٫",".")), 0), 4) ) )* VALUE( SUBSTITUTE( SUBSTITUTE( SUBSTITUTE( INDEX($L$2:$L$398,MATCH($A112,$A$2:$A$398,0)), "٬",""), ",",""), "٫",".") ), 0 ), "#,##0" ) & " ریال", "" ) ) ) -> 
P113: =IF($A113="","", IF($M113="","", ROUND(IFERROR($M113/$L113,0),0) + IF( ROW()= LOOKUP( 2, 1/( ($A$2:$A$398=$A113)* (IFERROR($M$2:$M$398/$L$2:$L$398,0)= _xlfn.AGGREGATE(14,6, IFERROR($M$2:$M$398/$L$2:$L$398,0)/($A$2:$A$398=$A113), 1) ) ), ROW($A$2:$A$398) ), VALUE( SUBSTITUTE( SUBSTITUTE( SUBSTITUTE( INDEX($J$2:$J$398,MATCH($A113,$A$2:$A$398,0)), "٬",""), ",",""), "٫",".") ) - SUMPRODUCT( ROUND(IFERROR($M$2:$M$398/$L$2:$L$398,0),0)* --($A$2:$A$398=$A113) ), 0 ) ) ) ->  | U113: =IF($A113="","", IF(ROW()<>ROW(INDEX($A$2:$A$398,MATCH($A113,$A$2:$A$398,0))),"", IF( ROUND( VALUE( SUBSTITUTE( SUBSTITUTE( SUBSTITUTE( INDEX($J$2:$J$398,MATCH($A113,$A$2:$A$398,0)), "٬",""), ",",""), "٫",".") )*10000,0) <> ROUND( SUMPRODUCT( ($A$2:$A$398=$A113)* ROUND( IFERROR( VALUE(SUBSTITUTE(SUBSTITUTE(SUBSTITUTE($M$2:$M$398,"٬",""),",",""),"٫","."))/ VALUE(SUBSTITUTE(SUBSTITUTE(SUBSTITUTE($L$2:$L$398,"٬",""),",",""),"٫",".")), 0), 4) )*10000,0), "اختلاف معادل " & TEXT( ROUND( ( VALUE( SUBSTITUTE( SUBSTITUTE( SUBSTITUTE( INDEX($J$2:$J$398,MATCH($A113,$A$2:$A$398,0)), "٬",""), ",",""), "٫",".") ) - SUMPRODUCT( ($A$2:$A$398=$A113)* ROUND( IFERROR( VALUE(SUBSTITUTE(SUBSTITUTE(SUBSTITUTE($M$2:$M$398,"٬",""),",",""),"٫","."))/ VALUE(SUBSTITUTE(SUBSTITUTE(SUBSTITUTE($L$2:$L$398,"٬",""),",",""),"٫",".")), 0), 4) ) )* VALUE( SUBSTITUTE( SUBSTITUTE( SUBSTITUTE( INDEX($L$2:$L$398,MATCH($A113,$A$2:$A$398,0)), "٬",""), ",",""), "٫",".") ), 0 ), "#,##0" ) & " ریال", "" ) ) ) -> 
P114: =IF($A114="","", IF($M114="","", ROUND(IFERROR($M114/$L114,0),0) + IF( ROW()= LOOKUP( 2, 1/( ($A$2:$A$398=$A114)* (IFERROR($M$2:$M$398/$L$2:$L$398,0)= _xlfn.AGGREGATE(14,6, IFERROR($M$2:$M$398/$L$2:$L$398,0)/($A$2:$A$398=$A114), 1) ) ), ROW($A$2:$A$398) ), VALUE( SUBSTITUTE( SUBSTITUTE( SUBSTITUTE( INDEX($J$2:$J$398,MATCH($A114,$A$2:$A$398,0)), "٬",""), ",",""), "٫",".") ) - SUMPRODUCT( ROUND(IFERROR($M$2:$M$398/$L$2:$L$398,0),0)* --($A$2:$A$398=$A114) ), 0 ) ) ) ->  | Q114: =IF($A114="","", IF($M114="","", IF( IF($M114=0,"",ABS(P114*L114 - $M114)/$M114) > 0.01, "⚠️ اعداد شما از واقعیت تفاوت معنادار دارد", ROUND(P114*L114,0) ) ) ) ->  | R114: =IF($A114="","", MID( IF($J114="","", IF( IFERROR( ABS( VALUE(SUBSTITUTE(SUBSTITUTE(SUBSTITUTE(TRIM($J114),"٬",""),",",""),"٫",".")) - ROUND(VALUE(SUBSTITUTE(SUBSTITUTE(SUBSTITUTE(TRIM($J114),"٬",""),",",""),"٫",".")),4) )>0.000000001, FALSE), " | خطا: J بیش از ۴ رقم اعشار دارد", "" ) ) & IF($K114="","", IF( IFERROR( MOD( VALUE(SUBSTITUTE(SUBSTITUTE(SUBSTITUTE(TRIM($K114),"٬",""),",",""),"٫",".")), 1)<>0, FALSE), " | خطا: K (مجموع وزن خالص) اعشاری است", "" ) ) & IF($L114="","", IF( IFERROR( MOD( VALUE(SUBSTITUTE(SUBSTITUTE(SUBSTITUTE(TRIM($L114),"٬",""),",",""),"٫",".")), 1)<>0, FALSE), " | خطا: L (نرخ برابری ارز) اعشاری است", "" ) ) & IF($M114="","", IF( IFERROR( MOD( VALUE(SUBSTITUTE(SUBSTITUTE(SUBSTITUTE(TRIM($M114),"٬",""),",",""),"٫",".")), 1)<>0, FALSE), " | خطا: M اعشاری است", "" ) ) & IF($N114="","", IF( IFERROR( MOD( VALUE(SUBSTITUTE(SUBSTITUTE(SUBSTITUTE(TRIM($N114),"٬",""),",",""),"٫",".")), 1)<>0, FALSE), " | خطا: N (وزن خالص) اعشاری است", "" ) ),4,1000) ) ->  | T114: =IF($A114="","", IF(OR($M114="",$L114=""),"", IF( L114=0, "", IF( ABS( VALUE(SUBSTITUTE(SUBSTITUTE(SUBSTITUTE(SUBSTITUTE(TRIM($M114),"٬",""),",",""),"٫","."),CHAR(160),"")) / VALUE(SUBSTITUTE(SUBSTITUTE(SUBSTITUTE(SUBSTITUTE(TRIM($L114),"٬",""),",",""),"٫","."),CHAR(160),"")) - ROUND( VALUE(SUBSTITUTE(SUBSTITUTE(SUBSTITUTE(SUBSTITUTE(TRIM($M114),"٬",""),",",""),"٫","."),CHAR(160),"")) / VALUE(SUBSTITUTE(SUBSTITUTE(SUBSTITUTE(SUBSTITUTE(TRIM($L114),"٬",""),",",""),"٫","."),CHAR(160),"")), 4) ) > 0.000000001, "تقسیم M بر L نباید بیشتر از 4 رقم اعشار باشد", "" ) ) ) ) ->  | U114: =IF($A114="","", IF(ROW()<>ROW(INDEX($A$2:$A$398,MATCH($A114,$A$2:$A$398,0))),"", IF( ROUND( VALUE( SUBSTITUTE( SUBSTITUTE( SUBSTITUTE( INDEX($J$2:$J$398,MATCH($A114,$A$2:$A$398,0)), "٬",""), ",",""), "٫",".") )*10000,0) <> ROUND( SUMPRODUCT( ($A$2:$A$398=$A114)* ROUND( IFERROR( VALUE(SUBSTITUTE(SUBSTITUTE(SUBSTITUTE($M$2:$M$398,"٬",""),",",""),"٫","."))/ VALUE(SUBSTITUTE(SUBSTITUTE(SUBSTITUTE($L$2:$L$398,"٬",""),",",""),"٫",".")), 0), 4) )*10000,0), "اختلاف معادل " & TEXT( ROUND( ( VALUE( SUBSTITUTE( SUBSTITUTE( SUBSTITUTE( INDEX($J$2:$J$398,MATCH($A114,$A$2:$A$398,0)), "٬",""), ",",""), "٫",".") ) - SUMPRODUCT( ($A$2:$A$398=$A114)* ROUND( IFERROR( VALUE(SUBSTITUTE(SUBSTITUTE(SUBSTITUTE($M$2:$M$398,"٬",""),",",""),"٫","."))/ VALUE(SUBSTITUTE(SUBSTITUTE(SUBSTITUTE($L$2:$L$398,"٬",""),",",""),"٫",".")), 0), 4) ) )* VALUE( SUBSTITUTE( SUBSTITUTE( SUBSTITUTE( INDEX($L$2:$L$398,MATCH($A114,$A$2:$A$398,0)), "٬",""), ",",""), "٫",".") ), 0 ), "#,##0" ) & " ریال", "" ) ) ) -> 
P115: =IF($A115="","", IF($M115="","", ROUND(IFERROR($M115/$L115,0),0) + IF( ROW()= LOOKUP( 2, 1/( ($A$2:$A$398=$A115)* (IFERROR($M$2:$M$398/$L$2:$L$398,0)= _xlfn.AGGREGATE(14,6, IFERROR($M$2:$M$398/$L$2:$L$398,0)/($A$2:$A$398=$A115), 1) ) ), ROW($A$2:$A$398) ), VALUE( SUBSTITUTE( SUBSTITUTE( SUBSTITUTE( INDEX($J$2:$J$398,MATCH($A115,$A$2:$A$398,0)), "٬",""), ",",""), "٫",".") ) - SUMPRODUCT( ROUND(IFERROR($M$2:$M$398/$L$2:$L$398,0),0)* --($A$2:$A$398=$A115) ), 0 ) ) ) ->  | U115: =IF($A115="","", IF(ROW()<>ROW(INDEX($A$2:$A$398,MATCH($A115,$A$2:$A$398,0))),"", IF( ROUND( VALUE( SUBSTITUTE( SUBSTITUTE( SUBSTITUTE( INDEX($J$2:$J$398,MATCH($A115,$A$2:$A$398,0)), "٬",""), ",",""), "٫",".") )*10000,0) <> ROUND( SUMPRODUCT( ($A$2:$A$398=$A115)* ROUND( IFERROR( VALUE(SUBSTITUTE(SUBSTITUTE(SUBSTITUTE($M$2:$M$398,"٬",""),",",""),"٫","."))/ VALUE(SUBSTITUTE(SUBSTITUTE(SUBSTITUTE($L$2:$L$398,"٬",""),",",""),"٫",".")), 0), 4) )*10000,0), "اختلاف معادل " & TEXT( ROUND( ( VALUE( SUBSTITUTE( SUBSTITUTE( SUBSTITUTE( INDEX($J$2:$J$398,MATCH($A115,$A$2:$A$398,0)), "٬",""), ",",""), "٫",".") ) - SUMPRODUCT( ($A$2:$A$398=$A115)* ROUND( IFERROR( VALUE(SUBSTITUTE(SUBSTITUTE(SUBSTITUTE($M$2:$M$398,"٬",""),",",""),"٫","."))/ VALUE(SUBSTITUTE(SUBSTITUTE(SUBSTITUTE($L$2:$L$398,"٬",""),",",""),"٫",".")), 0), 4) ) )* VALUE( SUBSTITUTE( SUBSTITUTE( SUBSTITUTE( INDEX($L$2:$L$398,MATCH($A115,$A$2:$A$398,0)), "٬",""), ",",""), "٫",".") ), 0 ), "#,##0" ) & " ریال", "" ) ) ) -> 
P116: =IF($A116="","", IF($M116="","", ROUND(IFERROR($M116/$L116,0),0) + IF( ROW()= LOOKUP( 2, 1/( ($A$2:$A$398=$A116)* (IFERROR($M$2:$M$398/$L$2:$L$398,0)= _xlfn.AGGREGATE(14,6, IFERROR($M$2:$M$398/$L$2:$L$398,0)/($A$2:$A$398=$A116), 1) ) ), ROW($A$2:$A$398) ), VALUE( SUBSTITUTE( SUBSTITUTE( SUBSTITUTE( INDEX($J$2:$J$398,MATCH($A116,$A$2:$A$398,0)), "٬",""), ",",""), "٫",".") ) - SUMPRODUCT( ROUND(IFERROR($M$2:$M$398/$L$2:$L$398,0),0)* --($A$2:$A$398=$A116) ), 0 ) ) ) ->  | U116: =IF($A116="","", IF(ROW()<>ROW(INDEX($A$2:$A$398,MATCH($A116,$A$2:$A$398,0))),"", IF( ROUND( VALUE( SUBSTITUTE( SUBSTITUTE( SUBSTITUTE( INDEX($J$2:$J$398,MATCH($A116,$A$2:$A$398,0)), "٬",""), ",",""), "٫",".") )*10000,0) <> ROUND( SUMPRODUCT( ($A$2:$A$398=$A116)* ROUND( IFERROR( VALUE(SUBSTITUTE(SUBSTITUTE(SUBSTITUTE($M$2:$M$398,"٬",""),",",""),"٫","."))/ VALUE(SUBSTITUTE(SUBSTITUTE(SUBSTITUTE($L$2:$L$398,"٬",""),",",""),"٫",".")), 0), 4) )*10000,0), "اختلاف معادل " & TEXT( ROUND( ( VALUE( SUBSTITUTE( SUBSTITUTE( SUBSTITUTE( INDEX($J$2:$J$398,MATCH($A116,$A$2:$A$398,0)), "٬",""), ",",""), "٫",".") ) - SUMPRODUCT( ($A$2:$A$398=$A116)* ROUND( IFERROR( VALUE(SUBSTITUTE(SUBSTITUTE(SUBSTITUTE($M$2:$M$398,"٬",""),",",""),"٫","."))/ VALUE(SUBSTITUTE(SUBSTITUTE(SUBSTITUTE($L$2:$L$398,"٬",""),",",""),"٫",".")), 0), 4) ) )* VALUE( SUBSTITUTE( SUBSTITUTE( SUBSTITUTE( INDEX($L$2:$L$398,MATCH($A116,$A$2:$A$398,0)), "٬",""), ",",""), "٫",".") ), 0 ), "#,##0" ) & " ریال", "" ) ) ) -> 
P117: =IF($A117="","", IF($M117="","", ROUND(IFERROR($M117/$L117,0),0) + IF( ROW()= LOOKUP( 2, 1/( ($A$2:$A$398=$A117)* (IFERROR($M$2:$M$398/$L$2:$L$398,0)= _xlfn.AGGREGATE(14,6, IFERROR($M$2:$M$398/$L$2:$L$398,0)/($A$2:$A$398=$A117), 1) ) ), ROW($A$2:$A$398) ), VALUE( SUBSTITUTE( SUBSTITUTE( SUBSTITUTE( INDEX($J$2:$J$398,MATCH($A117,$A$2:$A$398,0)), "٬",""), ",",""), "٫",".") ) - SUMPRODUCT( ROUND(IFERROR($M$2:$M$398/$L$2:$L$398,0),0)* --($A$2:$A$398=$A117) ), 0 ) ) ) ->  | U117: =IF($A117="","", IF(ROW()<>ROW(INDEX($A$2:$A$398,MATCH($A117,$A$2:$A$398,0))),"", IF( ROUND( VALUE( SUBSTITUTE( SUBSTITUTE( SUBSTITUTE( INDEX($J$2:$J$398,MATCH($A117,$A$2:$A$398,0)), "٬",""), ",",""), "٫",".") )*10000,0) <> ROUND( SUMPRODUCT( ($A$2:$A$398=$A117)* ROUND( IFERROR( VALUE(SUBSTITUTE(SUBSTITUTE(SUBSTITUTE($M$2:$M$398,"٬",""),",",""),"٫","."))/ VALUE(SUBSTITUTE(SUBSTITUTE(SUBSTITUTE($L$2:$L$398,"٬",""),",",""),"٫",".")), 0), 4) )*10000,0), "اختلاف معادل " & TEXT( ROUND( ( VALUE( SUBSTITUTE( SUBSTITUTE( SUBSTITUTE( INDEX($J$2:$J$398,MATCH($A117,$A$2:$A$398,0)), "٬",""), ",",""), "٫",".") ) - SUMPRODUCT( ($A$2:$A$398=$A117)* ROUND( IFERROR( VALUE(SUBSTITUTE(SUBSTITUTE(SUBSTITUTE($M$2:$M$398,"٬",""),",",""),"٫","."))/ VALUE(SUBSTITUTE(SUBSTITUTE(SUBSTITUTE($L$2:$L$398,"٬",""),",",""),"٫",".")), 0), 4) ) )* VALUE( SUBSTITUTE( SUBSTITUTE( SUBSTITUTE( INDEX($L$2:$L$398,MATCH($A117,$A$2:$A$398,0)), "٬",""), ",",""), "٫",".") ), 0 ), "#,##0" ) & " ریال", "" ) ) ) -> 
P118: =IF($A118="","", IF($M118="","", ROUND(IFERROR($M118/$L118,0),0) + IF( ROW()= LOOKUP( 2, 1/( ($A$2:$A$398=$A118)* (IFERROR($M$2:$M$398/$L$2:$L$398,0)= _xlfn.AGGREGATE(14,6, IFERROR($M$2:$M$398/$L$2:$L$398,0)/($A$2:$A$398=$A118), 1) ) ), ROW($A$2:$A$398) ), VALUE( SUBSTITUTE( SUBSTITUTE( SUBSTITUTE( INDEX($J$2:$J$398,MATCH($A118,$A$2:$A$398,0)), "٬",""), ",",""), "٫",".") ) - SUMPRODUCT( ROUND(IFERROR($M$2:$M$398/$L$2:$L$398,0),0)* --($A$2:$A$398=$A118) ), 0 ) ) ) ->  | U118: =IF($A118="","", IF(ROW()<>ROW(INDEX($A$2:$A$398,MATCH($A118,$A$2:$A$398,0))),"", IF( ROUND( VALUE( SUBSTITUTE( SUBSTITUTE( SUBSTITUTE( INDEX($J$2:$J$398,MATCH($A118,$A$2:$A$398,0)), "٬",""), ",",""), "٫",".") )*10000,0) <> ROUND( SUMPRODUCT( ($A$2:$A$398=$A118)* ROUND( IFERROR( VALUE(SUBSTITUTE(SUBSTITUTE(SUBSTITUTE($M$2:$M$398,"٬",""),",",""),"٫","."))/ VALUE(SUBSTITUTE(SUBSTITUTE(SUBSTITUTE($L$2:$L$398,"٬",""),",",""),"٫",".")), 0), 4) )*10000,0), "اختلاف معادل " & TEXT( ROUND( ( VALUE( SUBSTITUTE( SUBSTITUTE( SUBSTITUTE( INDEX($J$2:$J$398,MATCH($A118,$A$2:$A$398,0)), "٬",""), ",",""), "٫",".") ) - SUMPRODUCT( ($A$2:$A$398=$A118)* ROUND( IFERROR( VALUE(SUBSTITUTE(SUBSTITUTE(SUBSTITUTE($M$2:$M$398,"٬",""),",",""),"٫","."))/ VALUE(SUBSTITUTE(SUBSTITUTE(SUBSTITUTE($L$2:$L$398,"٬",""),",",""),"٫",".")), 0), 4) ) )* VALUE( SUBSTITUTE( SUBSTITUTE( SUBSTITUTE( INDEX($L$2:$L$398,MATCH($A118,$A$2:$A$398,0)), "٬",""), ",",""), "٫",".") ), 0 ), "#,##0" ) & " ریال", "" ) ) ) -> 
P119: =IF($A119="","", IF($M119="","", ROUND(IFERROR($M119/$L119,0),0) + IF( ROW()= LOOKUP( 2, 1/( ($A$2:$A$398=$A119)* (IFERROR($M$2:$M$398/$L$2:$L$398,0)= _xlfn.AGGREGATE(14,6, IFERROR($M$2:$M$398/$L$2:$L$398,0)/($A$2:$A$398=$A119), 1) ) ), ROW($A$2:$A$398) ), VALUE( SUBSTITUTE( SUBSTITUTE( SUBSTITUTE( INDEX($J$2:$J$398,MATCH($A119,$A$2:$A$398,0)), "٬",""), ",",""), "٫",".") ) - SUMPRODUCT( ROUND(IFERROR($M$2:$M$398/$L$2:$L$398,0),0)* --($A$2:$A$398=$A119) ), 0 ) ) ) ->  | U119: =IF($A119="","", IF(ROW()<>ROW(INDEX($A$2:$A$398,MATCH($A119,$A$2:$A$398,0))),"", IF( ROUND( VALUE( SUBSTITUTE( SUBSTITUTE( SUBSTITUTE( INDEX($J$2:$J$398,MATCH($A119,$A$2:$A$398,0)), "٬",""), ",",""), "٫",".") )*10000,0) <> ROUND( SUMPRODUCT( ($A$2:$A$398=$A119)* ROUND( IFERROR( VALUE(SUBSTITUTE(SUBSTITUTE(SUBSTITUTE($M$2:$M$398,"٬",""),",",""),"٫","."))/ VALUE(SUBSTITUTE(SUBSTITUTE(SUBSTITUTE($L$2:$L$398,"٬",""),",",""),"٫",".")), 0), 4) )*10000,0), "اختلاف معادل " & TEXT( ROUND( ( VALUE( SUBSTITUTE( SUBSTITUTE( SUBSTITUTE( INDEX($J$2:$J$398,MATCH($A119,$A$2:$A$398,0)), "٬",""), ",",""), "٫",".") ) - SUMPRODUCT( ($A$2:$A$398=$A119)* ROUND( IFERROR( VALUE(SUBSTITUTE(SUBSTITUTE(SUBSTITUTE($M$2:$M$398,"٬",""),",",""),"٫","."))/ VALUE(SUBSTITUTE(SUBSTITUTE(SUBSTITUTE($L$2:$L$398,"٬",""),",",""),"٫",".")), 0), 4) ) )* VALUE( SUBSTITUTE( SUBSTITUTE( SUBSTITUTE( INDEX($L$2:$L$398,MATCH($A119,$A$2:$A$398,0)), "٬",""), ",",""), "٫",".") ), 0 ), "#,##0" ) & " ریال", "" ) ) ) -> 
P120: =IF($A120="","", IF($M120="","", ROUND(IFERROR($M120/$L120,0),0) + IF( ROW()= LOOKUP( 2, 1/( ($A$2:$A$398=$A120)* (IFERROR($M$2:$M$398/$L$2:$L$398,0)= _xlfn.AGGREGATE(14,6, IFERROR($M$2:$M$398/$L$2:$L$398,0)/($A$2:$A$398=$A120), 1) ) ), ROW($A$2:$A$398) ), VALUE( SUBSTITUTE( SUBSTITUTE( SUBSTITUTE( INDEX($J$2:$J$398,MATCH($A120,$A$2:$A$398,0)), "٬",""), ",",""), "٫",".") ) - SUMPRODUCT( ROUND(IFERROR($M$2:$M$398/$L$2:$L$398,0),0)* --($A$2:$A$398=$A120) ), 0 ) ) ) ->  | U120: =IF($A120="","", IF(ROW()<>ROW(INDEX($A$2:$A$398,MATCH($A120,$A$2:$A$398,0))),"", IF( ROUND( VALUE( SUBSTITUTE( SUBSTITUTE( SUBSTITUTE( INDEX($J$2:$J$398,MATCH($A120,$A$2:$A$398,0)), "٬",""), ",",""), "٫",".") )*10000,0) <> ROUND( SUMPRODUCT( ($A$2:$A$398=$A120)* ROUND( IFERROR( VALUE(SUBSTITUTE(SUBSTITUTE(SUBSTITUTE($M$2:$M$398,"٬",""),",",""),"٫","."))/ VALUE(SUBSTITUTE(SUBSTITUTE(SUBSTITUTE($L$2:$L$398,"٬",""),",",""),"٫",".")), 0), 4) )*10000,0), "اختلاف معادل " & TEXT( ROUND( ( VALUE( SUBSTITUTE( SUBSTITUTE( SUBSTITUTE( INDEX($J$2:$J$398,MATCH($A120,$A$2:$A$398,0)), "٬",""), ",",""), "٫",".") ) - SUMPRODUCT( ($A$2:$A$398=$A120)* ROUND( IFERROR( VALUE(SUBSTITUTE(SUBSTITUTE(SUBSTITUTE($M$2:$M$398,"٬",""),",",""),"٫","."))/ VALUE(SUBSTITUTE(SUBSTITUTE(SUBSTITUTE($L$2:$L$398,"٬",""),",",""),"٫",".")), 0), 4) ) )* VALUE( SUBSTITUTE( SUBSTITUTE( SUBSTITUTE( INDEX($L$2:$L$398,MATCH($A120,$A$2:$A$398,0)), "٬",""), ",",""), "٫",".") ), 0 ), "#,##0" ) & " ریال", "" ) ) ) -> 
P121: =IF($A121="","", IF($M121="","", ROUND(IFERROR($M121/$L121,0),0) + IF( ROW()= LOOKUP( 2, 1/( ($A$2:$A$398=$A121)* (IFERROR($M$2:$M$398/$L$2:$L$398,0)= _xlfn.AGGREGATE(14,6, IFERROR($M$2:$M$398/$L$2:$L$398,0)/($A$2:$A$398=$A121), 1) ) ), ROW($A$2:$A$398) ), VALUE( SUBSTITUTE( SUBSTITUTE( SUBSTITUTE( INDEX($J$2:$J$398,MATCH($A121,$A$2:$A$398,0)), "٬",""), ",",""), "٫",".") ) - SUMPRODUCT( ROUND(IFERROR($M$2:$M$398/$L$2:$L$398,0),0)* --($A$2:$A$398=$A121) ), 0 ) ) ) ->  | U121: =IF($A121="","", IF(ROW()<>ROW(INDEX($A$2:$A$398,MATCH($A121,$A$2:$A$398,0))),"", IF( ROUND( VALUE( SUBSTITUTE( SUBSTITUTE( SUBSTITUTE( INDEX($J$2:$J$398,MATCH($A121,$A$2:$A$398,0)), "٬",""), ",",""), "٫",".") )*10000,0) <> ROUND( SUMPRODUCT( ($A$2:$A$398=$A121)* ROUND( IFERROR( VALUE(SUBSTITUTE(SUBSTITUTE(SUBSTITUTE($M$2:$M$398,"٬",""),",",""),"٫","."))/ VALUE(SUBSTITUTE(SUBSTITUTE(SUBSTITUTE($L$2:$L$398,"٬",""),",",""),"٫",".")), 0), 4) )*10000,0), "اختلاف معادل " & TEXT( ROUND( ( VALUE( SUBSTITUTE( SUBSTITUTE( SUBSTITUTE( INDEX($J$2:$J$398,MATCH($A121,$A$2:$A$398,0)), "٬",""), ",",""), "٫",".") ) - SUMPRODUCT( ($A$2:$A$398=$A121)* ROUND( IFERROR( VALUE(SUBSTITUTE(SUBSTITUTE(SUBSTITUTE($M$2:$M$398,"٬",""),",",""),"٫","."))/ VALUE(SUBSTITUTE(SUBSTITUTE(SUBSTITUTE($L$2:$L$398,"٬",""),",",""),"٫",".")), 0), 4) ) )* VALUE( SUBSTITUTE( SUBSTITUTE( SUBSTITUTE( INDEX($L$2:$L$398,MATCH($A121,$A$2:$A$398,0)), "٬",""), ",",""), "٫",".") ), 0 ), "#,##0" ) & " ریال", "" ) ) ) -> 
P122: =IF($A122="","", IF($M122="","", ROUND(IFERROR($M122/$L122,0),0) + IF( ROW()= LOOKUP( 2, 1/( ($A$2:$A$398=$A122)* (IFERROR($M$2:$M$398/$L$2:$L$398,0)= _xlfn.AGGREGATE(14,6, IFERROR($M$2:$M$398/$L$2:$L$398,0)/($A$2:$A$398=$A122), 1) ) ), ROW($A$2:$A$398) ), VALUE( SUBSTITUTE( SUBSTITUTE( SUBSTITUTE( INDEX($J$2:$J$398,MATCH($A122,$A$2:$A$398,0)), "٬",""), ",",""), "٫",".") ) - SUMPRODUCT( ROUND(IFERROR($M$2:$M$398/$L$2:$L$398,0),0)* --($A$2:$A$398=$A122) ), 0 ) ) ) ->  | U122: =IF($A122="","", IF(ROW()<>ROW(INDEX($A$2:$A$398,MATCH($A122,$A$2:$A$398,0))),"", IF( ROUND( VALUE( SUBSTITUTE( SUBSTITUTE( SUBSTITUTE( INDEX($J$2:$J$398,MATCH($A122,$A$2:$A$398,0)), "٬",""), ",",""), "٫",".") )*10000,0) <> ROUND( SUMPRODUCT( ($A$2:$A$398=$A122)* ROUND( IFERROR( VALUE(SUBSTITUTE(SUBSTITUTE(SUBSTITUTE($M$2:$M$398,"٬",""),",",""),"٫","."))/ VALUE(SUBSTITUTE(SUBSTITUTE(SUBSTITUTE($L$2:$L$398,"٬",""),",",""),"٫",".")), 0), 4) )*10000,0), "اختلاف معادل " & TEXT( ROUND( ( VALUE( SUBSTITUTE( SUBSTITUTE( SUBSTITUTE( INDEX($J$2:$J$398,MATCH($A122,$A$2:$A$398,0)), "٬",""), ",",""), "٫",".") ) - SUMPRODUCT( ($A$2:$A$398=$A122)* ROUND( IFERROR( VALUE(SUBSTITUTE(SUBSTITUTE(SUBSTITUTE($M$2:$M$398,"٬",""),",",""),"٫","."))/ VALUE(SUBSTITUTE(SUBSTITUTE(SUBSTITUTE($L$2:$L$398,"٬",""),",",""),"٫",".")), 0), 4) ) )* VALUE( SUBSTITUTE( SUBSTITUTE( SUBSTITUTE( INDEX($L$2:$L$398,MATCH($A122,$A$2:$A$398,0)), "٬",""), ",",""), "٫",".") ), 0 ), "#,##0" ) & " ریال", "" ) ) ) -> 
P123: =IF($A123="","", IF($M123="","", ROUND(IFERROR($M123/$L123,0),0) + IF( ROW()= LOOKUP( 2, 1/( ($A$2:$A$398=$A123)* (IFERROR($M$2:$M$398/$L$2:$L$398,0)= _xlfn.AGGREGATE(14,6, IFERROR($M$2:$M$398/$L$2:$L$398,0)/($A$2:$A$398=$A123), 1) ) ), ROW($A$2:$A$398) ), VALUE( SUBSTITUTE( SUBSTITUTE( SUBSTITUTE( INDEX($J$2:$J$398,MATCH($A123,$A$2:$A$398,0)), "٬",""), ",",""), "٫",".") ) - SUMPRODUCT( ROUND(IFERROR($M$2:$M$398/$L$2:$L$398,0),0)* --($A$2:$A$398=$A123) ), 0 ) ) ) ->  | U123: =IF($A123="","", IF(ROW()<>ROW(INDEX($A$2:$A$398,MATCH($A123,$A$2:$A$398,0))),"", IF( ROUND( VALUE( SUBSTITUTE( SUBSTITUTE( SUBSTITUTE( INDEX($J$2:$J$398,MATCH($A123,$A$2:$A$398,0)), "٬",""), ",",""), "٫",".") )*10000,0) <> ROUND( SUMPRODUCT( ($A$2:$A$398=$A123)* ROUND( IFERROR( VALUE(SUBSTITUTE(SUBSTITUTE(SUBSTITUTE($M$2:$M$398,"٬",""),",",""),"٫","."))/ VALUE(SUBSTITUTE(SUBSTITUTE(SUBSTITUTE($L$2:$L$398,"٬",""),",",""),"٫",".")), 0), 4) )*10000,0), "اختلاف معادل " & TEXT( ROUND( ( VALUE( SUBSTITUTE( SUBSTITUTE( SUBSTITUTE( INDEX($J$2:$J$398,MATCH($A123,$A$2:$A$398,0)), "٬",""), ",",""), "٫",".") ) - SUMPRODUCT( ($A$2:$A$398=$A123)* ROUND( IFERROR( VALUE(SUBSTITUTE(SUBSTITUTE(SUBSTITUTE($M$2:$M$398,"٬",""),",",""),"٫","."))/ VALUE(SUBSTITUTE(SUBSTITUTE(SUBSTITUTE($L$2:$L$398,"٬",""),",",""),"٫",".")), 0), 4) ) )* VALUE( SUBSTITUTE( SUBSTITUTE( SUBSTITUTE( INDEX($L$2:$L$398,MATCH($A123,$A$2:$A$398,0)), "٬",""), ",",""), "٫",".") ), 0 ), "#,##0" ) & " ریال", "" ) ) ) -> 
P124: =IF($A124="","", IF($M124="","", ROUND(IFERROR($M124/$L124,0),0) + IF( ROW()= LOOKUP( 2, 1/( ($A$2:$A$398=$A124)* (IFERROR($M$2:$M$398/$L$2:$L$398,0)= _xlfn.AGGREGATE(14,6, IFERROR($M$2:$M$398/$L$2:$L$398,0)/($A$2:$A$398=$A124), 1) ) ), ROW($A$2:$A$398) ), VALUE( SUBSTITUTE( SUBSTITUTE( SUBSTITUTE( INDEX($J$2:$J$398,MATCH($A124,$A$2:$A$398,0)), "٬",""), ",",""), "٫",".") ) - SUMPRODUCT( ROUND(IFERROR($M$2:$M$398/$L$2:$L$398,0),0)* --($A$2:$A$398=$A124) ), 0 ) ) ) ->  | U124: =IF($A124="","", IF(ROW()<>ROW(INDEX($A$2:$A$398,MATCH($A124,$A$2:$A$398,0))),"", IF( ROUND( VALUE( SUBSTITUTE( SUBSTITUTE( SUBSTITUTE( INDEX($J$2:$J$398,MATCH($A124,$A$2:$A$398,0)), "٬",""), ",",""), "٫",".") )*10000,0) <> ROUND( SUMPRODUCT( ($A$2:$A$398=$A124)* ROUND( IFERROR( VALUE(SUBSTITUTE(SUBSTITUTE(SUBSTITUTE($M$2:$M$398,"٬",""),",",""),"٫","."))/ VALUE(SUBSTITUTE(SUBSTITUTE(SUBSTITUTE($L$2:$L$398,"٬",""),",",""),"٫",".")), 0), 4) )*10000,0), "اختلاف معادل " & TEXT( ROUND( ( VALUE( SUBSTITUTE( SUBSTITUTE( SUBSTITUTE( INDEX($J$2:$J$398,MATCH($A124,$A$2:$A$398,0)), "٬",""), ",",""), "٫",".") ) - SUMPRODUCT( ($A$2:$A$398=$A124)* ROUND( IFERROR( VALUE(SUBSTITUTE(SUBSTITUTE(SUBSTITUTE($M$2:$M$398,"٬",""),",",""),"٫","."))/ VALUE(SUBSTITUTE(SUBSTITUTE(SUBSTITUTE($L$2:$L$398,"٬",""),",",""),"٫",".")), 0), 4) ) )* VALUE( SUBSTITUTE( SUBSTITUTE( SUBSTITUTE( INDEX($L$2:$L$398,MATCH($A124,$A$2:$A$398,0)), "٬",""), ",",""), "٫",".") ), 0 ), "#,##0" ) & " ریال", "" ) ) ) -> 
P125: =IF($A125="","", IF($M125="","", ROUND(IFERROR($M125/$L125,0),0) + IF( ROW()= LOOKUP( 2, 1/( ($A$2:$A$398=$A125)* (IFERROR($M$2:$M$398/$L$2:$L$398,0)= _xlfn.AGGREGATE(14,6, IFERROR($M$2:$M$398/$L$2:$L$398,0)/($A$2:$A$398=$A125), 1) ) ), ROW($A$2:$A$398) ), VALUE( SUBSTITUTE( SUBSTITUTE( SUBSTITUTE( INDEX($J$2:$J$398,MATCH($A125,$A$2:$A$398,0)), "٬",""), ",",""), "٫",".") ) - SUMPRODUCT( ROUND(IFERROR($M$2:$M$398/$L$2:$L$398,0),0)* --($A$2:$A$398=$A125) ), 0 ) ) ) ->  | U125: =IF($A125="","", IF(ROW()<>ROW(INDEX($A$2:$A$398,MATCH($A125,$A$2:$A$398,0))),"", IF( ROUND( VALUE( SUBSTITUTE( SUBSTITUTE( SUBSTITUTE( INDEX($J$2:$J$398,MATCH($A125,$A$2:$A$398,0)), "٬",""), ",",""), "٫",".") )*10000,0) <> ROUND( SUMPRODUCT( ($A$2:$A$398=$A125)* ROUND( IFERROR( VALUE(SUBSTITUTE(SUBSTITUTE(SUBSTITUTE($M$2:$M$398,"٬",""),",",""),"٫","."))/ VALUE(SUBSTITUTE(SUBSTITUTE(SUBSTITUTE($L$2:$L$398,"٬",""),",",""),"٫",".")), 0), 4) )*10000,0), "اختلاف معادل " & TEXT( ROUND( ( VALUE( SUBSTITUTE( SUBSTITUTE( SUBSTITUTE( INDEX($J$2:$J$398,MATCH($A125,$A$2:$A$398,0)), "٬",""), ",",""), "٫",".") ) - SUMPRODUCT( ($A$2:$A$398=$A125)* ROUND( IFERROR( VALUE(SUBSTITUTE(SUBSTITUTE(SUBSTITUTE($M$2:$M$398,"٬",""),",",""),"٫","."))/ VALUE(SUBSTITUTE(SUBSTITUTE(SUBSTITUTE($L$2:$L$398,"٬",""),",",""),"٫",".")), 0), 4) ) )* VALUE( SUBSTITUTE( SUBSTITUTE( SUBSTITUTE( INDEX($L$2:$L$398,MATCH($A125,$A$2:$A$398,0)), "٬",""), ",",""), "٫",".") ), 0 ), "#,##0" ) & " ریال", "" ) ) ) -> 
P126: =IF($A126="","", IF($M126="","", ROUND(IFERROR($M126/$L126,0),0) + IF( ROW()= LOOKUP( 2, 1/( ($A$2:$A$398=$A126)* (IFERROR($M$2:$M$398/$L$2:$L$398,0)= _xlfn.AGGREGATE(14,6, IFERROR($M$2:$M$398/$L$2:$L$398,0)/($A$2:$A$398=$A126), 1) ) ), ROW($A$2:$A$398) ), VALUE( SUBSTITUTE( SUBSTITUTE( SUBSTITUTE( INDEX($J$2:$J$398,MATCH($A126,$A$2:$A$398,0)), "٬",""), ",",""), "٫",".") ) - SUMPRODUCT( ROUND(IFERROR($M$2:$M$398/$L$2:$L$398,0),0)* --($A$2:$A$398=$A126) ), 0 ) ) ) ->  | U126: =IF($A126="","", IF(ROW()<>ROW(INDEX($A$2:$A$398,MATCH($A126,$A$2:$A$398,0))),"", IF( ROUND( VALUE( SUBSTITUTE( SUBSTITUTE( SUBSTITUTE( INDEX($J$2:$J$398,MATCH($A126,$A$2:$A$398,0)), "٬",""), ",",""), "٫",".") )*10000,0) <> ROUND( SUMPRODUCT( ($A$2:$A$398=$A126)* ROUND( IFERROR( VALUE(SUBSTITUTE(SUBSTITUTE(SUBSTITUTE($M$2:$M$398,"٬",""),",",""),"٫","."))/ VALUE(SUBSTITUTE(SUBSTITUTE(SUBSTITUTE($L$2:$L$398,"٬",""),",",""),"٫",".")), 0), 4) )*10000,0), "اختلاف معادل " & TEXT( ROUND( ( VALUE( SUBSTITUTE( SUBSTITUTE( SUBSTITUTE( INDEX($J$2:$J$398,MATCH($A126,$A$2:$A$398,0)), "٬",""), ",",""), "٫",".") ) - SUMPRODUCT( ($A$2:$A$398=$A126)* ROUND( IFERROR( VALUE(SUBSTITUTE(SUBSTITUTE(SUBSTITUTE($M$2:$M$398,"٬",""),",",""),"٫","."))/ VALUE(SUBSTITUTE(SUBSTITUTE(SUBSTITUTE($L$2:$L$398,"٬",""),",",""),"٫",".")), 0), 4) ) )* VALUE( SUBSTITUTE( SUBSTITUTE( SUBSTITUTE( INDEX($L$2:$L$398,MATCH($A126,$A$2:$A$398,0)), "٬",""), ",",""), "٫",".") ), 0 ), "#,##0" ) & " ریال", "" ) ) ) -> 
P127: =IF($A127="","", IF($M127="","", ROUND(IFERROR($M127/$L127,0),0) + IF( ROW()= LOOKUP( 2, 1/( ($A$2:$A$398=$A127)* (IFERROR($M$2:$M$398/$L$2:$L$398,0)= _xlfn.AGGREGATE(14,6, IFERROR($M$2:$M$398/$L$2:$L$398,0)/($A$2:$A$398=$A127), 1) ) ), ROW($A$2:$A$398) ), VALUE( SUBSTITUTE( SUBSTITUTE( SUBSTITUTE( INDEX($J$2:$J$398,MATCH($A127,$A$2:$A$398,0)), "٬",""), ",",""), "٫",".") ) - SUMPRODUCT( ROUND(IFERROR($M$2:$M$398/$L$2:$L$398,0),0)* --($A$2:$A$398=$A127) ), 0 ) ) ) ->  | U127: =IF($A127="","", IF(ROW()<>ROW(INDEX($A$2:$A$398,MATCH($A127,$A$2:$A$398,0))),"", IF( ROUND( VALUE( SUBSTITUTE( SUBSTITUTE( SUBSTITUTE( INDEX($J$2:$J$398,MATCH($A127,$A$2:$A$398,0)), "٬",""), ",",""), "٫",".") )*10000,0) <> ROUND( SUMPRODUCT( ($A$2:$A$398=$A127)* ROUND( IFERROR( VALUE(SUBSTITUTE(SUBSTITUTE(SUBSTITUTE($M$2:$M$398,"٬",""),",",""),"٫","."))/ VALUE(SUBSTITUTE(SUBSTITUTE(SUBSTITUTE($L$2:$L$398,"٬",""),",",""),"٫",".")), 0), 4) )*10000,0), "اختلاف معادل " & TEXT( ROUND( ( VALUE( SUBSTITUTE( SUBSTITUTE( SUBSTITUTE( INDEX($J$2:$J$398,MATCH($A127,$A$2:$A$398,0)), "٬",""), ",",""), "٫",".") ) - SUMPRODUCT( ($A$2:$A$398=$A127)* ROUND( IFERROR( VALUE(SUBSTITUTE(SUBSTITUTE(SUBSTITUTE($M$2:$M$398,"٬",""),",",""),"٫","."))/ VALUE(SUBSTITUTE(SUBSTITUTE(SUBSTITUTE($L$2:$L$398,"٬",""),",",""),"٫",".")), 0), 4) ) )* VALUE( SUBSTITUTE( SUBSTITUTE( SUBSTITUTE( INDEX($L$2:$L$398,MATCH($A127,$A$2:$A$398,0)), "٬",""), ",",""), "٫",".") ), 0 ), "#,##0" ) & " ریال", "" ) ) ) -> 
P128: =IF($A128="","", IF($M128="","", ROUND(IFERROR($M128/$L128,0),0) + IF( ROW()= LOOKUP( 2, 1/( ($A$2:$A$398=$A128)* (IFERROR($M$2:$M$398/$L$2:$L$398,0)= _xlfn.AGGREGATE(14,6, IFERROR($M$2:$M$398/$L$2:$L$398,0)/($A$2:$A$398=$A128), 1) ) ), ROW($A$2:$A$398) ), VALUE( SUBSTITUTE( SUBSTITUTE( SUBSTITUTE( INDEX($J$2:$J$398,MATCH($A128,$A$2:$A$398,0)), "٬",""), ",",""), "٫",".") ) - SUMPRODUCT( ROUND(IFERROR($M$2:$M$398/$L$2:$L$398,0),0)* --($A$2:$A$398=$A128) ), 0 ) ) ) ->  | U128: =IF($A128="","", IF(ROW()<>ROW(INDEX($A$2:$A$398,MATCH($A128,$A$2:$A$398,0))),"", IF( ROUND( VALUE( SUBSTITUTE( SUBSTITUTE( SUBSTITUTE( INDEX($J$2:$J$398,MATCH($A128,$A$2:$A$398,0)), "٬",""), ",",""), "٫",".") )*10000,0) <> ROUND( SUMPRODUCT( ($A$2:$A$398=$A128)* ROUND( IFERROR( VALUE(SUBSTITUTE(SUBSTITUTE(SUBSTITUTE($M$2:$M$398,"٬",""),",",""),"٫","."))/ VALUE(SUBSTITUTE(SUBSTITUTE(SUBSTITUTE($L$2:$L$398,"٬",""),",",""),"٫",".")), 0), 4) )*10000,0), "اختلاف معادل " & TEXT( ROUND( ( VALUE( SUBSTITUTE( SUBSTITUTE( SUBSTITUTE( INDEX($J$2:$J$398,MATCH($A128,$A$2:$A$398,0)), "٬",""), ",",""), "٫",".") ) - SUMPRODUCT( ($A$2:$A$398=$A128)* ROUND( IFERROR( VALUE(SUBSTITUTE(SUBSTITUTE(SUBSTITUTE($M$2:$M$398,"٬",""),",",""),"٫","."))/ VALUE(SUBSTITUTE(SUBSTITUTE(SUBSTITUTE($L$2:$L$398,"٬",""),",",""),"٫",".")), 0), 4) ) )* VALUE( SUBSTITUTE( SUBSTITUTE( SUBSTITUTE( INDEX($L$2:$L$398,MATCH($A128,$A$2:$A$398,0)), "٬",""), ",",""), "٫",".") ), 0 ), "#,##0" ) & " ریال", "" ) ) ) -> 
P129: =IF($A129="","", IF($M129="","", ROUND(IFERROR($M129/$L129,0),0) + IF( ROW()= LOOKUP( 2, 1/( ($A$2:$A$398=$A129)* (IFERROR($M$2:$M$398/$L$2:$L$398,0)= _xlfn.AGGREGATE(14,6, IFERROR($M$2:$M$398/$L$2:$L$398,0)/($A$2:$A$398=$A129), 1) ) ), ROW($A$2:$A$398) ), VALUE( SUBSTITUTE( SUBSTITUTE( SUBSTITUTE( INDEX($J$2:$J$398,MATCH($A129,$A$2:$A$398,0)), "٬",""), ",",""), "٫",".") ) - SUMPRODUCT( ROUND(IFERROR($M$2:$M$398/$L$2:$L$398,0),0)* --($A$2:$A$398=$A129) ), 0 ) ) ) ->  | U129: =IF($A129="","", IF(ROW()<>ROW(INDEX($A$2:$A$398,MATCH($A129,$A$2:$A$398,0))),"", IF( ROUND( VALUE( SUBSTITUTE( SUBSTITUTE( SUBSTITUTE( INDEX($J$2:$J$398,MATCH($A129,$A$2:$A$398,0)), "٬",""), ",",""), "٫",".") )*10000,0) <> ROUND( SUMPRODUCT( ($A$2:$A$398=$A129)* ROUND( IFERROR( VALUE(SUBSTITUTE(SUBSTITUTE(SUBSTITUTE($M$2:$M$398,"٬",""),",",""),"٫","."))/ VALUE(SUBSTITUTE(SUBSTITUTE(SUBSTITUTE($L$2:$L$398,"٬",""),",",""),"٫",".")), 0), 4) )*10000,0), "اختلاف معادل " & TEXT( ROUND( ( VALUE( SUBSTITUTE( SUBSTITUTE( SUBSTITUTE( INDEX($J$2:$J$398,MATCH($A129,$A$2:$A$398,0)), "٬",""), ",",""), "٫",".") ) - SUMPRODUCT( ($A$2:$A$398=$A129)* ROUND( IFERROR( VALUE(SUBSTITUTE(SUBSTITUTE(SUBSTITUTE($M$2:$M$398,"٬",""),",",""),"٫","."))/ VALUE(SUBSTITUTE(SUBSTITUTE(SUBSTITUTE($L$2:$L$398,"٬",""),",",""),"٫",".")), 0), 4) ) )* VALUE( SUBSTITUTE( SUBSTITUTE( SUBSTITUTE( INDEX($L$2:$L$398,MATCH($A129,$A$2:$A$398,0)), "٬",""), ",",""), "٫",".") ), 0 ), "#,##0" ) & " ریال", "" ) ) ) -> 
